Workbook

Sheet Eingabe Daten
B2: Dateneingabe
B4: Name | C4: Datum | D4: Stichprobe | E4: Y1 | F4: Y2 | G4: Y3 | H4: Y4 | I4: Y5
D5: 1 | E5: 74.03 | F5: 74.002 | G5: 74.019 | H5: 73.992 | I5: 74.008
D6: 2 | E6: 73.995 | F6: 73.992 | G6: 74.001 | H6: 74.011 | I6: 74.004
D7: 3 | E7: 73.988 | F7: 74.024 | G7: 74.021 | H7: 74.005 | I7: 74.002
D8: 4 | E8: 74.002 | F8: 73.996 | G8: 73.993 | H8: 74.015 | I8: 74.009
D9: 5 | E9: 73.992 | F9: 74.007 | G9: 74.015 | H9: 73.989 | I9: 74.014
D10: 6 | E10: 74.009 | F10: 73.994 | G10: 73.997 | H10: 73.985 | I10: 73.993
D11: 7 | E11: 73.995 | F11: 74.006 | G11: 73.994 | H11: 74 | I11: 74.005
D12: 8 | E12: 73.985 | F12: 74.003 | G12: 73.993 | H12: 74.015 | I12: 73.988
D13: 9 | E13: 74.008 | F13: 73.995 | G13: 74.009 | H13: 74.005 | I13: 74.004
D14: 10 | E14: 73.998 | F14: 74 | G14: 73.99 | H14: 74.007 | I14: 73.995
D15: 11 | E15: 73.994 | F15: 73.998 | G15: 73.994 | H15: 73.995 | I15: 73.99
D16: 12 | E16: 74.004 | F16: 74 | G16: 74.007 | H16: 74 | I16: 73.996
D17: 13 | E17: 73.983 | F17: 74.002 | G17: 73.998 | H17: 73.997 | I17: 74.012
D18: 14 | E18: 74.006 | F18: 73.967 | G18: 73.994 | H18: 74 | I18: 73.984
D19: 15 | E19: 74.012 | F19: 74.014 | G19: 73.998 | H19: 73.999 | I19: 74.007
D20: 16 | E20: 74 | F20: 73.984 | G20: 74.005 | H20: 73.998 | I20: 73.996
D21: 17 | E21: 73.994 | F21: 74.012 | G21: 73.986 | H21: 74.005 | I21: 74.007
D22: 18 | E22: 74.006 | F22: 74.01 | G22: 74.018 | H22: 74.003 | I22: 74
D23: 19 | E23: 73.984 | F23: 74.002 | G23: 74.003 | H23: 74.005 | I23: 73.997
D24: 20 | E24: 74 | F24: 74.01 | G24: 74.013 | H24: 74.02 | I24: 74.003
D25: 21 | E25: 73.982 | F25: 74.001 | G25: 74.015 | H25: 74.005 | I25: 73.996
D26: 22 | E26: 74.004 | F26: 73.999 | G26: 73.99 | H26: 74.006 | I26: 74.009
D27: 23 | E27: 74.01 | F27: 73.989 | G27: 73.99 | H27: 74.009 | I27: 74.014
D28: 24 | E28: 74.015 | F28: 74.008 | G28: 73.993 | H28: 74 | I28: 74.01
D29: 25 | E29: 73.982 | F29: 73.984 | G29: 73.995 | H29: 74.017 | I29: 74.013
D30: 26 | E30: 74.03 | F30: 74.002 | G30: 74.019 | H30: 73.992 | I30: 74.008
D31: 27 | E31: 73.995 | F31: 73.992 | G31: 74.001 | H31: 74.011 | I31: 74.004
D32: 28 | E32: 73.988 | F32: 74.024 | G32: 74.021 | H32: 74.005 | I32: 74.002
D33: 29 | E33: 74.002 | F33: 73.996 | G33: 73.993 | H33: 74.015 | I33: 74.009
D34: 30 | E34: 73.992 | F34: 74.007 | G34: 74.015 | H34: 73.989 | I34: 74.014
D35: 31 | E35: 74.009 | F35: 73.994 | G35: 73.997 | H35: 73.985 | I35: 73.993
D36: 32 | E36: 73.995 | F36: 74.006 | G36: 73.994 | H36: 74 | I36: 74.005
D37: 33 | E37: 73.985 | F37: 74.003 | G37: 73.993 | H37: 74.015 | I37: 73.988
D38: 34 | E38: 74.008 | F38: 73.995 | G38: 74.009 | H38: 74.005 | I38: 74.004
D39: 35 | E39: 73.998 | F39: 74 | G39: 73.99 | H39: 74.007 | I39: 73.995
D40: 36 | E40: 73.994 | F40: 73.998 | G40: 73.994 | H40: 73.995 | I40: 73.99
D41: 37 | E41: 74.004 | F41: 74 | G41: 74.007 | H41: 74 | I41: 73.996
D42: 38 | E42: 73.983 | F42: 74.002 | G42: 73.998 | H42: 73.997 | I42: 74.012
D43: 39 | E43: 74.006 | F43: 73.967 | G43: 73.994 | H43: 74 | I43: 73.984
D44: 40 | E44: 74.012 | F44: 74.014 | G44: 73.998 | H44: 73.999 | I44: 74.007
D45: 41 | E45: 74 | F45: 73.984 | G45: 74.005 | H45: 73.998 | I45: 73.996
D46: 42 | E46: 73.994 | F46: 74.012 | G46: 73.986 | H46: 74.005 | I46: 74.007
D47: 43 | E47: 74.006 | F47: 74.01 | G47: 74.018 | H47: 74.003 | I47: 74
D48: 44 | E48: 73.984 | F48: 74.002 | G48: 74.003 | H48: 74.005 | I48: 73.997
D49: 45 | E49: 74 | F49: 74.01 | G49: 74.013 | H49: 74.02 | I49: 74.003
D50: 46 | E50: 73.982 | F50: 74.001 | G50: 74.015 | H50: 74.005 | I50: 73.996
D51: 47 | E51: 74.004 | F51: 73.999 | G51: 73.99 | H51: 74.006 | I51: 74.009
D52: 48 | E52: 74.01 | F52: 73.989 | G52: 73.99 | H52: 74.009 | I52: 74.014
D53: 49 | E53: 74.015 | F53: 74.008 | G53: 73.993 | H53: 74 | I53: 74.01
D54: 50 | E54: 73.982 | F54: 73.984 | G54: 73.995 | H54: 74.017 | I54: 74.013
B56: Bis zu 50 Stichproben á 5 Werte
B57: Bei jeder Stichprobe muss die gleiche Anzahl an Messerten aufgenommen werden
B58: Die Stichprobengröße muss mindestens 2 sein

Sheet Auswertung und Diagramm
O2: Prozess- und Maschinenfähigkeit
R4: Werte können geändert werden
R5: Werte werden berechnet (Blatt Berechnung)
R7: Artikel: | S7: Halter
R8: A-Nummer | S8: C2G234824ß
R9: Zeichnung: | S9: UZT1340124357
R10: Prüfer: | S10: Maier
R11: Messmittel: | S11: Messschieber 47.22452
R12: Datum: | S12: 2014-12-10
R13: Merkmal: | S13: Länge
R14: Maßeinheit: | S14: mm
R15: Sollwert msoll = | T15: 74
R16: Unterer Grenzwert UGW = | T16: 73.95
R17: Oberer Grenzwert OGW = | T17: 74.05
R18: Anzahl Klassen Histogramm = | T18: 20
R19: Cpk (Ppk) > | S19: 1.33 | T19: Prozess nicht fähig
R20: Cpk (Ppk) | S20: zwischen | T20: Prozess bedingt fähig
R21: Cpk (Ppk) < | S21: 1.66 | T21: Prozess fähig
R23: Umfang der Stichprobe | T23: =Anzahl -> 250
R24: Mittelwert m | T24: =Mittelwert -> 74.001176
R25: Standardabweich. s (s ges.) | T25: =Standardabweichung -> 0.01017838011
R26: Die Werte sind | T26: =IF(Berechnung!CP8<0.05,"nicht normalverteilt","normalverteilt") -> normalverteilt
R28: Fähigkeits- kennwerte (angelehnt an VDA Band 4 und DGQ) | S28: Cpu (Ppu) | T28: =CPU -> 1.675970683
S29: Cpo (Ppo) | T29: =CPO -> 1.598944674
S30: Cp (Pp) | T30: =CP -> 1.637457678
S31: Cpk (Ppk) | T31: =CPK -> 1.598944674
R32: ="Bewertung Cpk (Ppk) =>" -> Bewertung Cpk (Ppk) => | T32: =IF(T31<S19,T19,IF(T31>S21,T21,T20)) -> Prozess bedingt fähig
R34: Median z | T34: =Median -> 74.001
R35: Spannweite R | T35: =Spannweite -> 0.063
R36: Minimum | T36: =Minimum -> 73.967
R37: Maximum | T37: =Maximum -> 74.03
R39: Berechnete Leistung in ppm
R40: Über- schreitungs- anteil | S40: pUGW | T40: =BERPUGW -> 0.2479245947
S41: pOGW | T41: =BERPOGW -> 0.8059652973
S42: p | T42: =BERP -> 1.053889892
R44: Beobachtete Leistung in ppm
R45: Über- schreitungs- anteil | S45: pUGW | T45: =BEOBPUGW -> 0
S46: pOGW | T46: =BEOBPOGW -> 0
S47: p | T47: =BEOBPPM -> 0

Sheet Berechnung (hidden)
A1: Erwin Büchele GmbH & Co. KG | B1: 2 | C1: 3 | D1: 4 | E1: 5 | F1: 6 | G1: 7 | H1: 8 | I1: 9 | J1: 10 | K1: 11 | L1: 12 | M1: 13 | N1: 14 | O1: 15 | P1: 16 | Q1: 17 | R1: 18 | S1: 19 | T1: 20 | U1: 21 | V1: 22 | W1: 23 | X1: 24 | Y1: 25 | Z1: 26 | AA1: 27 | AB1: 28 | AC1: 29 | AD1: 30 | AE1: 31 | AF1: 32 | AG1: 33 | AH1: 34 | AI1: 35 | AJ1: 36 | AK1: 37 | AL1: 38 | AM1: 39 | AN1: 40 | AO1: 41 | AP1: 42 | AQ1: 43 | AR1: 44 | AS1: 45 | AT1: 46 | AU1: 47 | AV1: 48 | AW1: 49 | AX1: 50 | AY1: 51 | AZ1: 52 | BA1: 53 | BB1: 54 | BC1: 55 | BD1: 56 | BE1: 57 | BF1: 58 | BG1: 59 | BH1: 60 | BI1: 61 | BJ1: 62 | BK1: 63 | BL1: 64 | BM1: 65 | BN1: 66 | BO1: 67 | BP1: 68 | BQ1: 69 | BR1: 70 | BS1: 71 | BT1: 72 | BU1: 73 | BV1: 74 | BW1: 75 | BX1: 76 | BY1: 77 | BZ1: 78 | CA1: 79 | CB1: 80 | CC1: 81 | CD1: 82 | CE1: 83 | CF1: 84 | CG1: 85 | CH1: 86 | CI1: 87 | CJ1: 88 | CK1: 89 | CL1: 90 | CM1: 91 | CN1: 92 | CO1: 93 | CP1: 94 | CQ1: 95 | CR1: 96 | CS1: 0.7056000233 | CT1: 0.5335000157 | CU1: 0.5795999765 | CV1: 0.2896000147
AM2: 0.3019999862 | AN2: 0.7748000026 | AO2: 0.01410000026 | AP2: 0.760800004 | AQ2: 0.8144999743 | AR2: 0.709100008 | AS2: 0.04540000111 | AT2: 0.4140999913 | AU2: 0.8626999855 | AV2: 0.7904999852 | AW2: 0.3736000061 | AX2: 0.9620000124 | AY2: 0.8715000153 | AZ2: 0.05629999936 | BA2: 0.9495999813 | BB2: 0.3641000092 | BC2: 0.5249000192 | BD2: 0.7671999931 | BE2: 0.05359999835 | BF2: 0.5924999714 | BG2: 0.4688000083 | BH2: 0.2982000113 | BI2: 0.622699976 | BJ2: 0.6478999853 | BK2: 0.2637999952 | BL2: 0.279399991 | BM2: 0.8299000263 | BN2: 0.8246999979 | BO2: 0.5892000198 | BP2: 0.986100018 | BQ2: 0.9110000134 | BR2: 0.2268999964 | BS2: 0.695200026 | BT2: 0.9800999761 | BU2: 0.2440000027 | BV2: 0.5339000225 | BW2: 0.1063999981 | BX2: 0.9994999766 | BY2: 0.6761999726 | BZ2: 0.01579999924 | CA2: 0.5752000213 | CB2: 0.1001000032 | CC2: 0.1031000018 | CD2: 0.7989000082 | CE2: 0.2845000029 | CF2: 0.04569999874 | CG2: 0.2958000004 | CH2: 0.3820999861 | CI2: 0.300999999 | CJ2: 0.9485999942 | CK2: 0.9799000025 | CL2: 0.4013999999 | CM2: 0.2782999873 | CN2: 0.1605000049 | CO2: 0.1629000008 | CP2: 0.646600008 | CQ2: 0.410100013 | CR2: 0.412800014 | CS2: 0.7128000259 | CT2: 0.3262999952 | CU2: 0.6331999898 | CV2: 0.2075999975
W3: Stichprobe Berechnung | AM3: 0.1861000061 | AN3: 0.5834000111 | AO3: 0.08079999685 | AP3: 0.4580000043 | AQ3: 0.9057999849 | AR3: 0.2614000142 | AS3: 0.7853000164 | AT3: 0.3790000081 | AU3: 0.2897000015 | AV3: 0.9193999767 | AW3: 0.6317999959 | AX3: 0.6276999712 | AY3: 0.4284999967 | AZ3: 0.09799999744 | BA3: 0.5611000061 | BB3: 0.6945000291 | BC3: 0.9138000011 | BD3: 0.8349000216 | BE3: 0.02270000055 | BF3: 0.5433999896 | BG3: 0.9161999822 | BH3: 0.4302999973 | BI3: 0.6779999733 | BJ3: 0.5024999976 | BK3: 0.513800025 | BL3: 0.4629999995 | BM3: 0.3535000086 | BN3: 0.4049000144 | BO3: 0.2698000073 | BP3: 0.05559999868 | BQ3: 0.243900001 | BR3: 0.9790999889 | BS3: 0.06100000069 | BT3: 0.3903000057 | BU3: 0.3650000095 | BV3: 0.4898999929 | BW3: 0.1556999981 | BX3: 0.4745000005 | BY3: 0.2572999895 | BZ3: 0.6287999749 | CA3: 0.5421000123 | CB3: 0.1563999951 | CC3: 0.9386000037 | CD3: 0.6545000076 | CE3: 0.506099999 | CF3: 0.3905000091 | CG3: 0.1074000001 | CH3: 0.7839999795 | CI3: 0.4596999884 | CJ3: 0.7537000179 | CK3: 0.5960999727 | CL3: 0.8327999711 | CM3: 0.01879999973 | CN3: 0.2104000002 | CO3: 0.07400000095 | CP3: 0.1054999977 | CQ3: 0.3316999972 | CR3: 0.1282999963 | CS3: 0.0003000000142 | CT3: 0.5368000269 | CU3: 0.6571000218 | CV3: 0.5440999866
B4: Y1 | C4: Y2 | D4: Y3 | E4: Y4 | F4: Y5 | H4: Mittelwert | I4: Standardabweichung | J4: Range | L4: Zähler | M4: Mittelwert | N4: X quer | O4: OEG X quer | P4: UEG x quer | Q4: Spannweite quer | R4: Range | S4: OEG R | V4: i | W4: Wert für Berechnung | X4: <UGW | Y4: >OGW | Z4: i | AA4: Stichprobe 1 | AB4: i | AC4: Stichprobe 2 | AE4: i | AF4: Stichprobe 3 | AH4: i | AI4: Stichprobe 4 | AK4: i | AL4: Stichprobe 5 | AM4: 0.8274999857 | AN4: 0.08190000057 | AO4: 0.1920000017 | AP4: 0.67900002 | AQ4: 0.4542999864 | AR4: 0.3571000099 | AS4: 0.150000006 | AT4: 0.704400003 | AU4: 0.9287999868 | AV4: 0.5303000212 | AW4: 0.0896999985 | AX4: 0.757799983 | AY4: 0.4018999934 | AZ4: 0.4618999958 | BA4: 0.4921999872 | BB4: 0.2076999992 | BC4: 0.3298000097 | BD4: Zähler | BE4: X Wert | BF4: Y1 Wert | BG4: Y2 Wert | BH4: Y3 Wert | BI4: Y4 Wert | BJ4: Y5 Wert | BK4: 0.09549999982 | BL4: OGW | BM4: UGW | BN4: =" - 1 Sigma" -> - 1 Sigma | BO4: =" + 1 Sigma" -> + 1 Sigma | BP4: ="- 2 Sigma" -> - 2 Sigma | BQ4: =" + 2 Sigma" -> + 2 Sigma | BR4: =" - 3 Sigma" -> - 3 Sigma | BS4: =" + 3 Sigma" -> + 3 Sigma | BT4: =" Mittelwert" -> Mittelwert | BU4: 0.5898000002 | BV4: 0.1699000001 | BW4: 0.9276999831 | BX4: u | BY4: x-quer+u∙s | BZ4: Helfer | CA4: Fehlerindikator | CB4: 0.09799999744 | CC4: 0.4438999891 | CD4: 0.2730000019 | CE4: 0.872600019 | CF4: 0.7506999969 | CG4: 0.2730000019 | CH4: 0.673699975 | CI4: 0.2567000091 | CJ4: 0.08990000188 | CK4: 0.03099999949 | CL4: 0.3228000104 | CM4: 0.790199995 | CN4: 0.2973000109 | CO4: 0.2353000045 | CP4: 0.4805000126 | CQ4: 0.2547000051 | CR4: 0.3407000005 | CS4: 0.04500000179 | CT4: 0.4824999869 | CU4: 0.2061000019 | CV4: 0.8646000028
A5: 1 | B5: =IF('Eingabe Daten'!E5="","",'Eingabe Daten'!E5) -> 74.03 | C5: =IF('Eingabe Daten'!F5="","",'Eingabe Daten'!F5) -> 74.002 | D5: =IF('Eingabe Daten'!G5="","",'Eingabe Daten'!G5) -> 74.019 | E5: =IF('Eingabe Daten'!H5="","",'Eingabe Daten'!H5) -> 73.992 | F5: =IF('Eingabe Daten'!I5="","",'Eingabe Daten'!I5) -> 74.008 | H5: =IF(B5<>"",AVERAGE(B5:F5),"") -> 74.0102 | I5: =IF(B5<>"",_xlfn.STDEV.P(B5:F5),"") -> 0.01321211565 | J5: =IF(B5<>"",MAX(B5:F5)-MIN(B5:F5),"") -> 0.038 | L5: 1 | M5: =IF(H5="",NA(),xquerquer) -> 74.001176 | N5: =IF(H5="",NA(),H5) -> 74.0102 | O5: =IF(H5="",NA(),xquerquer+(Azwei*Rquer)) -> 74.01458548 | P5: =IF(H5="",NA(),xquerquer-(Azwei*Rquer)) -> 73.98776652 | Q5: =IF(H5="",NA(),Rquer) -> 0.02324 | R5: =IF(H5="",NA(),J5) -> 0.038 | S5: =IF(H5="",NA(),Dvier*Rquer) -> 0.0491526 | V5: 1 | W5: =IF($AP$39=2,IF(AC5<>"",AC5,""),(IF($AP$39=3,IF(AF5<>"",AF5,""),(IF($AP$39=4,IF(AI5<>"",AI5,""),IF(AL5<>"",AL5,"")))))) -> 74.03 | X5: =IF(W5<>"",IF(W5<UGW,1,0),"") -> 0 | Y5: =IF(W5<>"",IF(W5>OGW,1,0),"") -> 0 | AB5: E5 | AC5: =IF($B$5="","",$B$5) -> 74.03 | AE5: E5 | AF5: =IF($B$5="","",$B$5) -> 74.03 | AH5: E5 | AI5: =IF($B$5="","",$B$5) -> 74.03 | AK5: E5 | AL5: =IF($B$5="","",$B$5) -> 74.03 | AM5: 0.5886999965 | AN5: 0.7549999952 | AO5: 0.9279000163 | AP5: 0.331099987 | AQ5: 0.5429999828 | AR5: 0.08070000261 | AS5: 0.6344000101 | AT5: 0.410100013 | AU5: 0.9605000019 | AV5: 0.114699997 | AW5: 0.9235000014 | AX5: 0.6202999949 | AY5: 0.3477999866 | AZ5: 0.1492999941 | BA5: 0.4799999893 | BB5: 0.2195000052 | BC5: 0.9937999845 | BD5: 1 | BE5: =IF((AnzahlderStichproben>BD5),BD5,AnzahlderStichproben) -> 1 | BF5: =IF('Eingabe Daten'!E5<>"",'Eingabe Daten'!E5,"") -> 74.03 | BG5: =IF('Eingabe Daten'!F5<>"",'Eingabe Daten'!F5,NA()) -> 74.002 | BH5: =IF('Eingabe Daten'!G5<>"",'Eingabe Daten'!G5,NA()) -> 74.019 | BI5: =IF('Eingabe Daten'!H5<>"",'Eingabe Daten'!H5,NA()) -> 73.992 | BJ5: =IF('Eingabe Daten'!I5<>"",'Eingabe Daten'!I5,NA()) -> 74.008 | BK5: 0.1305000037 | BL5: =IF(W5<>"",OGW,BL4) -> 74.05 | BM5: =IF(W5<>"",UGW,BM4) -> 73.95 | BN5: =Mittelwert-Standardabweichung -> 73.99099762 | BO5: =Mittelwert+Standardabweichung -> 74.01135438 | BP5: =Mittelwert-2*Standardabweichung -> 73.98081924 | BQ5: =Mittelwert+2*Standardabweichung -> 74.02153276 | BR5: =Mittelwert-3*Standardabweichung -> 73.97064086 | BS5: =Mittelwert+3*Standardabweichung -> 74.03171114 | BT5: =Mittelwert -> 74.001176 | BU5: 0.02889999934 | BV5: 0.3454000056 | BW5: 0.5476999879 | BX5: -6 | BY5: =Mittelwert+BX5*Standardabweichung -> 73.94010572 | BZ5: 3 | CA5: =BZ5*2 -> 6 | CB5: =BY5 -> 73.94010572 | CC5: 0.9229999781 | CD5: 0.5382999778 | CE5: 1 | CF5: =IF(W5="",NA(),SMALL(xi,CG5)) -> 73.967 | CG5: =IF(W5="","",1) -> 1 | CH5: =IF(W5="","",NORMSDIST((CF5-Mittelwert)/Standardabweichung)-0.00000001) -> 0.0003929518974 | CI5: =IF(W5="","",1-CH5) -> 0.9996070481 | CJ5: =IF(IF(W5="","",SMALL(BG,CG5))=0,0.0001,IF(W5="","",SMALL(BG,CG5))) -> 0.0023137358 | CK5: =IF(W5="","",(2*CG5-1)*(LN(CJ5)+LN(CH5))) -> -13.91071518 | CL5: =IF(W5="",NA(),NORMSINV((CG5-0.3)/(Anzahl+0.4))) -> -2.770847864 | CM5: 0.4065000117 | CN5: Wert | CO5: z | CP5: =SUM(Normalverteilung_S) -> -62596.13833 | CQ5: =IF(AND(CP7<13, CP7>=0.6),EXP(1.2937-5.709*CP7+0.0186*CP7^ 2),0) -> 0 | CR5: 0.847299993 | CS5: 0.826300025 | CT5: 0.6725000143 | CU5: 0.7218999863 | CV5: 0.9968000054
A6: 2 | B6: =IF('Eingabe Daten'!E6="","",'Eingabe Daten'!E6) -> 73.995 | C6: =IF('Eingabe Daten'!F6="","",'Eingabe Daten'!F6) -> 73.992 | D6: =IF('Eingabe Daten'!G6="","",'Eingabe Daten'!G6) -> 74.001 | E6: =IF('Eingabe Daten'!H6="","",'Eingabe Daten'!H6) -> 74.011 | F6: =IF('Eingabe Daten'!I6="","",'Eingabe Daten'!I6) -> 74.004 | H6: 74.0006 | I6: 0.006711184694 | J6: 0.019 | L6: =IF(H6="",L5,A6) -> 2 | M6: 74.001176 | N6: 74.0006 | O6: 74.01458548 | P6: 73.98776652 | Q6: 0.02324 | R6: =IF(H6="",NA(),J6) -> 0.019 | S6: 0.0491526 | V6: 2 | W6: =IF($AP$39=2,IF(AC6<>"",AC6,""),(IF($AP$39=3,IF(AF6<>"",AF6,""),(IF($AP$39=4,IF(AI6<>"",AI6,""),IF(AL6<>"",AL6,"")))))) -> 74.002 | X6: 0 | Y6: 0 | AC6: =IF($C$5="","",$C$5) -> 74.002 | AF6: =IF($C$5="","",$C$5) -> 74.002 | AI6: =IF($C$5="","",$C$5) -> 74.002 | AL6: =IF($C$5="","",$C$5) -> 74.002 | AM6: 0.339899987 | AN6: 0.4952999949 | AO6: 0.4129999876 | AP6: 0.695299983 | AQ6: 0.1791000068 | AR6: 0.4230000079 | AS6: 0.543200016 | AT6: 0.8147000074 | AU6: 0.5410000086 | AV6: 0.4275999963 | AW6: 0.5091000199 | AX6: 0.2277999967 | AY6: 0.6191999912 | AZ6: 0.4898999929 | BA6: 0.6808999777 | BB6: 0.8866999745 | BC6: 0.3705999851 | BD6: 2 | BE6: 2 | BF6: =IF('Eingabe Daten'!E6<>"",'Eingabe Daten'!E6,BF5) -> 73.995 | BG6: =IF('Eingabe Daten'!F6<>"",'Eingabe Daten'!F6,BG5) -> 73.992 | BH6: =IF('Eingabe Daten'!G6<>"",'Eingabe Daten'!G6,BH5) -> 74.001 | BI6: =IF('Eingabe Daten'!H6<>"",'Eingabe Daten'!H6,BI5) -> 74.011 | BJ6: =IF('Eingabe Daten'!I6<>"",'Eingabe Daten'!I6,BJ5) -> 74.004 | BK6: 0.3025000095 | BL6: 74.05 | BM6: =IF(AC6<>"",UGW,BM5) -> 73.95 | BN6: =BN5 -> 73.99099762 | BO6: 74.01135438 | BP6: 73.98081924 | BQ6: 74.02153276 | BR6: 73.97064086 | BS6: 74.03171114 | BT6: 74.001176 | BU6: 0.292899996 | BV6: 0.1503999978 | BW6: 0.5299000144 | BX6: -5 | BY6: 73.9502841 | BZ6: 3 | CA6: =BZ6*2 -> 6 | CB6: =CB5 -> 73.94010572 | CC6: 0.2232999951 | CD6: 0.5845999718 | CE6: 2 | CF6: 73.967 | CG6: =IF(W6="","",1+CG5) -> 2 | CH6: 0.0003929518974 | CI6: 0.9996070481 | CJ6: =IF(W6="","",SMALL(BG,CG6)) -> 0.0023137358 | CK6: -41.73214555 | CL6: -2.46823078 | CM6: 0.363499999 | CN6: =Standardabweichung*CO6+Mittelwert -> 74.03171114 | CO6: 3 | CP6: =-CP5/Anzahl-Anzahl -> 0.3845533083 | CQ6: =IF(AND(CP7<0.6,CP7>=0.34),EXP(0.9177-4.279*CP7-1.38*CP7^2),0) -> 0.3913642733 | CR6: 0.8759999871 | CS6: 0.4781000018 | CT6: 0.1906999946 | CU6: 0.6840999722 | CV6: 0.7475000024
A7: 3 | B7: =IF('Eingabe Daten'!E7="","",'Eingabe Daten'!E7) -> 73.988 | C7: =IF('Eingabe Daten'!F7="","",'Eingabe Daten'!F7) -> 74.024 | D7: =IF('Eingabe Daten'!G7="","",'Eingabe Daten'!G7) -> 74.021 | E7: =IF('Eingabe Daten'!H7="","",'Eingabe Daten'!H7) -> 74.005 | F7: =IF('Eingabe Daten'!I7="","",'Eingabe Daten'!I7) -> 74.002 | H7: 74.008 | I7: 0.01319090596 | J7: 0.036 | L7: =IF(H7="",L6,A7) -> 3 | M7: 74.001176 | N7: 74.008 | O7: 74.01458548 | P7: 73.98776652 | Q7: 0.02324 | R7: 0.036 | S7: 0.0491526 | V7: 3 | W7: 74.019 | X7: 0 | Y7: 0 | AB7: E6 | AC7: =IF($B$6="","",$B$6) -> 73.995 | AF7: =IF($D$5="","",$D$5) -> 74.019 | AI7: =IF($D$5="","",$D$5) -> 74.019 | AL7: =IF($D$5="","",$D$5) -> 74.019 | AM7: 0.6140000224 | AN7: 0.7821999788 | AO7: 0.1617999971 | AP7: 0.8077999949 | AQ7: 0.202700004 | AR7: =six_cmu(Mittelwert,UGW,Standardabweichung) -> 1.675970683 | AS7: =MEDIAN(xi) -> 74.001 | AT7: 0.956799984 | AU7: 0.06589999795 | AV7: 0.06159999967 | AW7: 0.793200016 | AX7: 0.3797000051 | AY7: 0.4636000097 | AZ7: 0.119599998 | BA7: 0.1155000031 | BB7: 0.1738000065 | BC7: 0.04820000008 | BD7: 3 | BE7: 3 | BF7: =IF('Eingabe Daten'!E7<>"",'Eingabe Daten'!E7,BF6) -> 73.988 | BG7: =IF('Eingabe Daten'!F7<>"",'Eingabe Daten'!F7,BG6) -> 74.024 | BH7: =IF('Eingabe Daten'!G7<>"",'Eingabe Daten'!G7,BH6) -> 74.021 | BI7: =IF('Eingabe Daten'!H7<>"",'Eingabe Daten'!H7,BI6) -> 74.005 | BJ7: =IF('Eingabe Daten'!I7<>"",'Eingabe Daten'!I7,BJ6) -> 74.002 | BK7: 0.7149000168 | BL7: 74.05 | BM7: 73.95 | BN7: 73.99099762 | BO7: 74.01135438 | BP7: 73.98081924 | BQ7: 74.02153276 | BR7: 73.97064086 | BS7: 74.03171114 | BT7: 74.001176 | BU7: 0.533100009 | BV7: 0.5611000061 | BW7: 0.2168000042 | BX7: -4 | BY7: 73.96046248 | BZ7: 3 | CA7: 6 | CB7: =CB6 -> 73.94010572 | CC7: 0.4681000113 | CD7: 0.7463999987 | CE7: 3 | CF7: 73.982 | CG7: 3 | CH7: 0.02978293044 | CI7: 0.9702170696 | CJ7: 0.01246777451 | CK7: -39.49213928 | CL7: -2.297934889 | CM7: 0.752399981 | CN7: =Standardabweichung*CO7+Mittelwert -> 74.001176 | CO7: 0 | CP7: =CP6*(1+0.75/Anzahl+2.25/Anzahl^2) -> 0.3857208122 | CQ7: =IF(AND(CP7<0.34,CP7>=0.2),1-EXP(-8.318+42.796*CP7-59.938*CP7^2),0) -> 0 | CR7: 0.398999989 | CS7: 0.9031000137 | CT7: 0.7461000085 | CU7: 0.08860000223 | CV7: 0.6345999837
A8: 4 | B8: =IF('Eingabe Daten'!E8="","",'Eingabe Daten'!E8) -> 74.002 | C8: =IF('Eingabe Daten'!F8="","",'Eingabe Daten'!F8) -> 73.996 | D8: =IF('Eingabe Daten'!G8="","",'Eingabe Daten'!G8) -> 73.993 | E8: =IF('Eingabe Daten'!H8="","",'Eingabe Daten'!H8) -> 74.015 | F8: =IF('Eingabe Daten'!I8="","",'Eingabe Daten'!I8) -> 74.009 | H8: 74.003 | I8: 0.008124038405 | J8: 0.022 | L8: 4 | M8: 74.001176 | N8: 74.003 | O8: 74.01458548 | P8: 73.98776652 | Q8: 0.02324 | R8: 0.022 | S8: 0.0491526 | V8: 4 | W8: 73.992 | X8: 0 | Y8: 0 | AC8: =IF($C$6="","",$C$6) -> 73.992 | AE8: E6 | AF8: =IF($B$6="","",$B$6) -> 73.995 | AI8: =IF($E$5="","",$E$5) -> 73.992 | AL8: =IF($E$5="","",$E$5) -> 73.992 | AM8: 0.7131000161 | AN8: 0.01569999941 | AO8: 0.4311999977 | AP8: =Sollwert -> 74 | AQ8: =six_a(xi) -> 250 | AR8: =six_cmo(OGW,Mittelwert,Standardabweichung) -> 1.598944674 | AS8: =Maximum-Minimum -> 0.063 | AT8: =NORMDIST(UGW,Mittelwert,Standardabweichung,1)*1000000 -> 0.2479245947 | AU8: =AnzahlWertekleinerUGW/AQ8*1000000 -> 0 | AV8: 0.40200001 | AW8: 0.2752999961 | AX8: 0.9854000211 | AY8: 0.8026000261 | AZ8: 0.6962000132 | BA8: 0.4176000059 | BB8: 0.7344999909 | BC8: 0.2772000134 | BD8: 4 | BE8: 4 | BF8: =IF('Eingabe Daten'!E8<>"",'Eingabe Daten'!E8,BF7) -> 74.002 | BG8: =IF('Eingabe Daten'!F8<>"",'Eingabe Daten'!F8,BG7) -> 73.996 | BH8: =IF('Eingabe Daten'!G8<>"",'Eingabe Daten'!G8,BH7) -> 73.993 | BI8: =IF('Eingabe Daten'!H8<>"",'Eingabe Daten'!H8,BI7) -> 74.015 | BJ8: =IF('Eingabe Daten'!I8<>"",'Eingabe Daten'!I8,BJ7) -> 74.009 | BK8: 0.3565999866 | BL8: 74.05 | BM8: 73.95 | BN8: 73.99099762 | BO8: 74.01135438 | BP8: 73.98081924 | BQ8: 74.02153276 | BR8: 73.97064086 | BS8: 74.03171114 | BT8: 74.001176 | BU8: 0.4334999919 | BV8: 0.9449999928 | BW8: 0.1216000021 | BX8: -2 | BY8: 73.98081924 | BZ8: 3 | CA8: 6 | CB8: 73.94010572 | CC8: 0.6460000277 | CD8: 0.3479000032 | CE8: 4 | CF8: 73.982 | CG8: 4 | CH8: 0.02978293044 | CI8: 0.9702170696 | CJ8: 0.01246777451 | CK8: -55.28899499 | CL8: -2.176034036 | CM8: 0.1045000032 | CN8: =Standardabweichung*CO8+Mittelwert -> 73.97064086 | CO8: -3 | CP8: =MAX(CQ5:CQ8) -> 0.3913642733 | CQ8: =IF(CP7<0.2,1-EXP(-13.436+101.14*CP7-223.73*CP7^2),0) -> 0 | CR8: 0.1854999959 | CS8: 0.07769999653 | CT8: 0.4327999949 | CU8: 0.9592999816 | CV8: 0.5421000123
A9: 5 | B9: =IF('Eingabe Daten'!E9="","",'Eingabe Daten'!E9) -> 73.992 | C9: =IF('Eingabe Daten'!F9="","",'Eingabe Daten'!F9) -> 74.007 | D9: =IF('Eingabe Daten'!G9="","",'Eingabe Daten'!G9) -> 74.015 | E9: =IF('Eingabe Daten'!H9="","",'Eingabe Daten'!H9) -> 73.989 | F9: =IF('Eingabe Daten'!I9="","",'Eingabe Daten'!I9) -> 74.014 | H9: 74.0034 | I9: 0.01092886087 | J9: 0.026 | L9: 5 | M9: 74.001176 | N9: 74.0034 | O9: 74.01458548 | P9: 73.98776652 | Q9: 0.02324 | R9: 0.026 | S9: 0.0491526 | V9: 5 | W9: 74.008 | X9: 0 | Y9: 0 | AB9: E7 | AC9: =IF($B$7="","",$B$7) -> 73.988 | AF9: =IF($C$6="","",$C$6) -> 73.992 | AH9: E6 | AI9: =IF($B$6="","",$B$6) -> 73.995 | AL9: =IF($F$5="","",$F$5) -> 74.008 | AM9: 0.4943999946 | AN9: 0.97299999 | AO9: 0.2178000063 | AP9: =UGW -> 73.95 | AQ9: =six_m(xi) -> 74.001176 | AR9: =six_cm(OGW,UGW,Standardabweichung) -> 1.637457678 | AS9: =MIN(xi) -> 73.967 | AT9: =(1-NORMDIST(OGW,Mittelwert,Standardabweichung,1))*1000000 -> 0.8059652973 | AU9: =AnzahlWertegroesserOGW/AQ8*1000000 -> 0 | AV9: 0.3790000081 | AW9: 0.3959000111 | AX9: 0.2815999985 | AY9: 0.5034000278 | AZ9: 0.1387999952 | BA9: 0.5173000097 | BB9: 0.9653999805 | BC9: 0.5576000214 | BD9: 5 | BE9: 5 | BF9: =IF('Eingabe Daten'!E9<>"",'Eingabe Daten'!E9,BF8) -> 73.992 | BG9: =IF('Eingabe Daten'!F9<>"",'Eingabe Daten'!F9,BG8) -> 74.007 | BH9: =IF('Eingabe Daten'!G9<>"",'Eingabe Daten'!G9,BH8) -> 74.015 | BI9: =IF('Eingabe Daten'!H9<>"",'Eingabe Daten'!H9,BI8) -> 73.989 | BJ9: =IF('Eingabe Daten'!I9<>"",'Eingabe Daten'!I9,BJ8) -> 74.014 | BK9: 0.9093000293 | BL9: 74.05 | BM9: 73.95 | BN9: 73.99099762 | BO9: 74.01135438 | BP9: 73.98081924 | BQ9: 74.02153276 | BR9: 73.97064086 | BS9: 74.03171114 | BT9: 74.001176 | BU9: 0.6572999954 | BV9: 0.4411999881 | BW9: 0.6930000186 | BX9: -1 | BY9: 73.99099762 | BZ9: 3 | CA9: 6 | CB9: 73.94010572 | CC9: 0.0644999966 | CD9: 0.756099999 | CE9: 5 | CF9: 73.982 | CG9: 5 | CH9: 0.02978293044 | CI9: 0.9702170696 | CJ9: 0.02572797968 | CK9: -64.56596427 | CL9: -2.079842995 | CM9: 0.700600028 | CN9: 0.4970999956 | CO9: 0.1554999948 | CP9: 0.2238000035 | CQ9: 0.3262000084 | CR9: 0.7845000029 | CS9: 0.05029999837 | CT9: 0.5181000233 | CU9: 0.7570999861 | CV9: 0.8007000089
A10: 6 | B10: =IF('Eingabe Daten'!E10="","",'Eingabe Daten'!E10) -> 74.009 | C10: =IF('Eingabe Daten'!F10="","",'Eingabe Daten'!F10) -> 73.994 | D10: =IF('Eingabe Daten'!G10="","",'Eingabe Daten'!G10) -> 73.997 | E10: =IF('Eingabe Daten'!H10="","",'Eingabe Daten'!H10) -> 73.985 | F10: =IF('Eingabe Daten'!I10="","",'Eingabe Daten'!I10) -> 73.993 | H10: 73.9956 | I10: 0.007787168934 | J10: 0.024 | L10: 6 | M10: 74.001176 | N10: 73.9956 | O10: 74.01458548 | P10: 73.98776652 | Q10: 0.02324 | R10: 0.024 | S10: 0.0491526 | V10: 6 | W10: 73.995 | X10: 0 | Y10: 0 | AC10: =IF($C$7="","",$C$7) -> 74.024 | AF10: =IF($D$6="","",$D$6) -> 74.001 | AI10: =IF($C$6="","",$C$6) -> 73.992 | AK10: E6 | AL10: =IF($B$6="","",$B$6) -> 73.995 | AM10: 0.3253000081 | AN10: 0.9728000164 | AO10: 0.8043000102 | AP10: =OGW -> 74.05 | AQ10: =six_st(xi) -> 0.01017838011 | AR10: =six_ck(CPO,CPU) -> 1.598944674 | AS10: =MAX(xi) -> 74.03 | AT10: =BERPOGW+BERPUGW -> 1.053889892 | AU10: =AU9+AU8 -> 0 | AV10: 0.6748999953 | AW10: 0.9052000046 | AX10: 0.8758000135 | AY10: 0.4167000055 | AZ10: 0.1230999976 | BA10: 0.9542000294 | BB10: 0.7972999811 | BC10: 0.6963000298 | BD10: 6 | BE10: 6 | BF10: =IF('Eingabe Daten'!E10<>"",'Eingabe Daten'!E10,BF9) -> 74.009 | BG10: =IF('Eingabe Daten'!F10<>"",'Eingabe Daten'!F10,BG9) -> 73.994 | BH10: =IF('Eingabe Daten'!G10<>"",'Eingabe Daten'!G10,BH9) -> 73.997 | BI10: =IF('Eingabe Daten'!H10<>"",'Eingabe Daten'!H10,BI9) -> 73.985 | BJ10: =IF('Eingabe Daten'!I10<>"",'Eingabe Daten'!I10,BJ9) -> 73.993 | BK10: 0.40169999 | BL10: 74.05 | BM10: 73.95 | BN10: 73.99099762 | BO10: 74.01135438 | BP10: 73.98081924 | BQ10: 74.02153276 | BR10: 73.97064086 | BS10: 74.03171114 | BT10: 74.001176 | BU10: 0.01630000025 | BV10: 0.1677999943 | BW10: 0.1642999947 | BX10: 1 | BY10: 74.01135438 | BZ10: 3 | CA10: 6 | CB10: 73.94010572 | CC10: 0.5098000169 | CD10: 0.4061000049 | CE10: 6 | CF10: 73.982 | CG10: 6 | CH10: 0.02978293044 | CI10: 0.9702170696 | CJ10: 0.02572797968 | CK10: -78.91395632 | CL10: -1.999751014 | CM10: 0.1062000021 | CN10: 0.2761999965 | CO10: 0.6431000233 | CP10: 0.8490999937 | CQ10: 0.4979999959 | CR10: 0.1878000051 | CS10: 0.8967000246 | CT10: 0.3729000092 | CU10: 0.3235999942 | CV10: 0.7709000111
A11: 7 | B11: =IF('Eingabe Daten'!E11="","",'Eingabe Daten'!E11) -> 73.995 | C11: =IF('Eingabe Daten'!F11="","",'Eingabe Daten'!F11) -> 74.006 | D11: =IF('Eingabe Daten'!G11="","",'Eingabe Daten'!G11) -> 73.994 | E11: =IF('Eingabe Daten'!H11="","",'Eingabe Daten'!H11) -> 74 | F11: =IF('Eingabe Daten'!I11="","",'Eingabe Daten'!I11) -> 74.005 | H11: 74 | I11: 0.004939635614 | J11: 0.012 | L11: 7 | M11: 74.001176 | N11: 74 | O11: 74.01458548 | P11: 73.98776652 | Q11: 0.02324 | R11: 0.012 | S11: 0.0491526 | V11: 7 | W11: 73.992 | X11: 0 | Y11: 0 | AB11: E8 | AC11: =IF($B$8="","",$B$8) -> 74.002 | AE11: E7 | AF11: =IF($B$7="","",$B$7) -> 73.988 | AI11: =IF($D$6="","",$D$6) -> 74.001 | AL11: =IF($C$6="","",$C$6) -> 73.992 | AM11: 0.2180999964 | AN11: 0.4469999969 | AO11: 0.2361000031 | AP11: 0.8784000278 | AQ11: 0.6104999781 | AR11: 0.3745000064 | AS11: 0.3896000087 | AT11: 0.8605999947 | AU11: 0.5860000253 | AV11: 0.9315999746 | AW11: 0.5171999931 | AX11: 0.3303999901 | AY11: 0.8684999943 | AZ11: 0.2590999901 | BA11: 0.2596000135 | BB11: 0.1787 | BC11: 0.3470000029 | BD11: 7 | BE11: 7 | BF11: =IF('Eingabe Daten'!E11<>"",'Eingabe Daten'!E11,BF10) -> 73.995 | BG11: =IF('Eingabe Daten'!F11<>"",'Eingabe Daten'!F11,BG10) -> 74.006 | BH11: =IF('Eingabe Daten'!G11<>"",'Eingabe Daten'!G11,BH10) -> 73.994 | BI11: =IF('Eingabe Daten'!H11<>"",'Eingabe Daten'!H11,BI10) -> 74 | BJ11: =IF('Eingabe Daten'!I11<>"",'Eingabe Daten'!I11,BJ10) -> 74.005 | BK11: 0.002600000007 | BL11: 74.05 | BM11: 73.95 | BN11: 73.99099762 | BO11: 74.01135438 | BP11: 73.98081924 | BQ11: 74.02153276 | BR11: 73.97064086 | BS11: 74.03171114 | BT11: 74.001176 | BU11: 0.7423999906 | BV11: 0.8409000039 | BW11: 0.2786000073 | BX11: 2 | BY11: 74.02153276 | BZ11: 3 | CA11: 6 | CB11: 73.94010572 | CC11: 0.7030000091 | CD11: 0.4049000144 | CE11: 7 | CF11: 73.983 | CG11: 7 | CH11: 0.03707019932 | CI11: 0.9629298007 | CJ11: 0.03219931183 | CK11: -87.49977708 | CL11: -1.930746762 | CM11: 0.8116000295 | CN11: 0.7418000102 | CO11: 0.4377000034 | CP11: 0.07800000161 | CQ11: 0.4106999934 | CR11: 0.3393999934 | CS11: 0.7106000185 | CT11: 0.3122999966 | CU11: 0.7987999916 | CV11: 0.1518000066
A12: 8 | B12: =IF('Eingabe Daten'!E12="","",'Eingabe Daten'!E12) -> 73.985 | C12: =IF('Eingabe Daten'!F12="","",'Eingabe Daten'!F12) -> 74.003 | D12: =IF('Eingabe Daten'!G12="","",'Eingabe Daten'!G12) -> 73.993 | E12: =IF('Eingabe Daten'!H12="","",'Eingabe Daten'!H12) -> 74.015 | F12: =IF('Eingabe Daten'!I12="","",'Eingabe Daten'!I12) -> 73.988 | H12: =IF(B12<>"",AVERAGE(B12:F12),"") -> 73.9968 | I12: 0.01096175168 | J12: =IF(B12<>"",MAX(B12:F12)-MIN(B12:F12),"") -> 0.03 | L12: 8 | M12: 74.001176 | N12: 73.9968 | O12: 74.01458548 | P12: 73.98776652 | Q12: 0.02324 | R12: 0.03 | S12: 0.0491526 | V12: 8 | W12: 74.001 | X12: 0 | Y12: 0 | AC12: =IF($C$8="","",$C$8) -> 73.996 | AF12: =IF($C$7="","",$C$7) -> 74.024 | AI12: =IF($E$6="","",$E$6) -> 74.011 | AL12: =IF($D$6="","",$D$6) -> 74.001 | AM12: 0.5929999948 | AN12: 0.9563000202 | AO12: 0.2432000041 | AP12: 0.9399999976 | AQ12: 0.1143999994 | AR12: 0.9843000174 | AS12: 0.6330000162 | AT12: 0.5989000201 | AU12: 0.9025999904 | AV12: 0.5748999715 | AW12: 0.2451999933 | AX12: 0.8601999879 | AY12: 0.07500000298 | AZ12: 0.4388999939 | BA12: 0.7599999905 | BB12: 0.2457000017 | BC12: 0.3786999881 | BD12: 8 | BE12: 8 | BF12: =IF('Eingabe Daten'!E12<>"",'Eingabe Daten'!E12,BF11) -> 73.985 | BG12: =IF('Eingabe Daten'!F12<>"",'Eingabe Daten'!F12,BG11) -> 74.003 | BH12: =IF('Eingabe Daten'!G12<>"",'Eingabe Daten'!G12,BH11) -> 73.993 | BI12: =IF('Eingabe Daten'!H12<>"",'Eingabe Daten'!H12,BI11) -> 74.015 | BJ12: =IF('Eingabe Daten'!I12<>"",'Eingabe Daten'!I12,BJ11) -> 73.988 | BK12: 0.397300005 | BL12: 74.05 | BM12: 73.95 | BN12: 73.99099762 | BO12: 74.01135438 | BP12: 73.98081924 | BQ12: 74.02153276 | BR12: 73.97064086 | BS12: 74.03171114 | BT12: 74.001176 | BU12: 0.5266000032 | BV12: 0.2703999877 | BW12: 0.5812000036 | BX12: 4 | BY12: 74.04188952 | BZ12: 3 | CA12: 6 | CB12: 73.94010572 | CC12: 0.2097000033 | CD12: 0.07880000025 | CE12: 8 | CF12: 73.983 | CG12: 8 | CH12: 0.03707019932 | CI12: 0.9629298007 | CJ12: 0.03219931183 | CK12: -100.9612813 | CL12: -1.869871982 | CM12: 0.8955000043 | CN12: 0.1115000024 | CO12: 0.6524000168 | CP12: 0.9003999829 | CQ12: 0.2316000015 | CR12: 0.9499999881 | CS12: 0.8461999893 | CT12: 0.4413000047 | CU12: 0.4921000004 | CV12: 0.7695999742
A13: 9 | B13: =IF('Eingabe Daten'!E13="","",'Eingabe Daten'!E13) -> 74.008 | C13: =IF('Eingabe Daten'!F13="","",'Eingabe Daten'!F13) -> 73.995 | D13: =IF('Eingabe Daten'!G13="","",'Eingabe Daten'!G13) -> 74.009 | E13: =IF('Eingabe Daten'!H13="","",'Eingabe Daten'!H13) -> 74.005 | F13: =IF('Eingabe Daten'!I13="","",'Eingabe Daten'!I13) -> 74.004 | H13: =IF(B13<>"",AVERAGE(B13:F13),"") -> 74.0042 | I13: 0.004955804677 | J13: =IF(B13<>"",MAX(B13:F13)-MIN(B13:F13),"") -> 0.014 | L13: 9 | M13: 74.001176 | N13: 74.0042 | O13: 74.01458548 | P13: 73.98776652 | Q13: 0.02324 | R13: 0.014 | S13: 0.0491526 | V13: 9 | W13: 74.011 | X13: 0 | Y13: 0 | AB13: E9 | AC13: =IF($B$9="","",$B$9) -> 73.992 | AF13: =IF($D$7="","",$D$7) -> 74.021 | AH13: E7 | AI13: =IF($B$7="","",$B$7) -> 73.988 | AL13: =IF($E$6="","",$E$6) -> 74.011 | AM13: 0.8349000216 | AN13: 0.3826000094 | AO13: 0.195600003 | AP13: 0.3262000084 | AQ13: 0.4133000076 | AR13: 0.152700007 | AS13: 0.6198999882 | AT13: 0.09950000048 | AU13: 0.2050999999 | AV13: 0.6926000118 | AW13: 0.5044999719 | AX13: 0.1831 | AY13: 0.99150002 | AZ13: 0.4713999927 | BA13: 0.00410000002 | BB13: 0.4259000123 | BC13: 0.2888000011 | BD13: 9 | BE13: 9 | BF13: =IF('Eingabe Daten'!E13<>"",'Eingabe Daten'!E13,BF12) -> 74.008 | BG13: =IF('Eingabe Daten'!F13<>"",'Eingabe Daten'!F13,BG12) -> 73.995 | BH13: =IF('Eingabe Daten'!G13<>"",'Eingabe Daten'!G13,BH12) -> 74.009 | BI13: =IF('Eingabe Daten'!H13<>"",'Eingabe Daten'!H13,BI12) -> 74.005 | BJ13: =IF('Eingabe Daten'!I13<>"",'Eingabe Daten'!I13,BJ12) -> 74.004 | BK13: 0.7526000142 | BL13: 74.05 | BM13: 73.95 | BN13: 73.99099762 | BO13: 74.01135438 | BP13: 73.98081924 | BQ13: 74.02153276 | BR13: 73.97064086 | BS13: 74.03171114 | BT13: 74.001176 | BU13: 0.8913000226 | BV13: 0.8220000267 | BW13: 0.1768999994 | BX13: 5 | BY13: 74.0520679 | BZ13: 3 | CA13: 6 | CB13: 73.94010572 | CC13: 0.1088000014 | CD13: 0.0103000002 | CE13: 9 | CF13: 73.984 | CG13: 9 | CH13: 0.0457537701 | CI13: 0.9542462299 | CJ13: 0.03995895083 | CK13: -107.1745223 | CL13: -1.815228394 | CM13: 0.1517000049 | CN13: 0.3774999976 | CO13: 0.1881999969 | CP13: 0.9796000123 | CQ13: 0.8722000122 | CR13: 0.5816000104 | CS13: 0.7294999957 | CT13: 0.1450999975 | CU13: 0.2578000128 | CV13: 0.02830000035
A14: 10 | B14: =IF('Eingabe Daten'!E14="","",'Eingabe Daten'!E14) -> 73.998 | C14: =IF('Eingabe Daten'!F14="","",'Eingabe Daten'!F14) -> 74 | D14: =IF('Eingabe Daten'!G14="","",'Eingabe Daten'!G14) -> 73.99 | E14: =IF('Eingabe Daten'!H14="","",'Eingabe Daten'!H14) -> 74.007 | F14: =IF('Eingabe Daten'!I14="","",'Eingabe Daten'!I14) -> 73.995 | H14: 73.998 | I14: 0.005621387729 | J14: 0.017 | L14: 10 | M14: 74.001176 | N14: 73.998 | O14: 74.01458548 | P14: 73.98776652 | Q14: 0.02324 | R14: 0.017 | S14: 0.0491526 | V14: 10 | W14: 74.004 | X14: 0 | Y14: 0 | AC14: =IF($C$9="","",$C$9) -> 74.007 | AE14: E8 | AF14: =IF($B$8="","",$B$8) -> 74.002 | AI14: =IF($C$7="","",$C$7) -> 74.024 | AL14: =IF($F$6="","",$F$6) -> 74.004 | AM14: 0.8278999925 | AN14: 0.7833999991 | AO14: 0.7911999822 | AP14: 0.3327000141 | AQ14: 0.451000005 | AR14: 0.5551999807 | AS14: 0.8033999801 | AT14: 0.5640000105 | AU14: 0.2036000043 | AV14: 0.2075999975 | AW14: 0.3646999896 | AX14: 0.5735999942 | AY14: 0.3441999853 | AZ14: 0.5282999873 | BA14: 0.4255000055 | BB14: 0.5730999708 | BC14: 0.05009999871 | BD14: 10 | BE14: 10 | BF14: =IF('Eingabe Daten'!E14<>"",'Eingabe Daten'!E14,BF13) -> 73.998 | BG14: =IF('Eingabe Daten'!F14<>"",'Eingabe Daten'!F14,BG13) -> 74 | BH14: =IF('Eingabe Daten'!G14<>"",'Eingabe Daten'!G14,BH13) -> 73.99 | BI14: =IF('Eingabe Daten'!H14<>"",'Eingabe Daten'!H14,BI13) -> 74.007 | BJ14: =IF('Eingabe Daten'!I14<>"",'Eingabe Daten'!I14,BJ13) -> 73.995 | BK14: 0.5475999713 | BL14: 74.05 | BM14: 73.95 | BN14: 73.99099762 | BO14: 74.01135438 | BP14: 73.98081924 | BQ14: 74.02153276 | BR14: 73.97064086 | BS14: 74.03171114 | BT14: 74.001176 | BU14: 0.2064999938 | BV14: 0.9627000093 | BW14: 0.9330999851 | BX14: 6 | BY14: 74.06224628 | BZ14: 3 | CA14: 6 | CB14: 73.94010572 | CC14: 0.9926000237 | CD14: 0.8396000266 | CE14: 10 | CF14: 73.984 | CG14: 10 | CH14: 0.0457537701 | CI14: 0.9542462299 | CJ14: 0.03995895083 | CK14: -119.7832896 | CL14: -1.765522225 | CM14: 0.4093999863 | CN14: 0.8052999973 | CO14: 0.9894999862 | CP14: 0.2585000098 | CQ14: 0.1745000035 | CR14: 0.6947000027 | CS14: 0.01700000092 | CT14: 0.3391000032 | CU14: 0.6926000118 | CV14: 0.1103999987
A15: 11 | B15: =IF('Eingabe Daten'!E15="","",'Eingabe Daten'!E15) -> 73.994 | C15: =IF('Eingabe Daten'!F15="","",'Eingabe Daten'!F15) -> 73.998 | D15: =IF('Eingabe Daten'!G15="","",'Eingabe Daten'!G15) -> 73.994 | E15: =IF('Eingabe Daten'!H15="","",'Eingabe Daten'!H15) -> 73.995 | F15: =IF('Eingabe Daten'!I15="","",'Eingabe Daten'!I15) -> 73.99 | H15: 73.9942 | I15: 0.002561249695 | J15: 0.008 | L15: 11 | M15: 74.001176 | N15: 73.9942 | O15: 74.01458548 | P15: 73.98776652 | Q15: 0.02324 | R15: 0.008 | S15: 0.0491526 | V15: 11 | W15: 73.988 | X15: 0 | Y15: 0 | AB15: E10 | AC15: =IF($B$10="","",$B$10) -> 74.009 | AF15: =IF($C$8="","",$C$8) -> 73.996 | AI15: =IF($D$7="","",$D$7) -> 74.021 | AK15: E7 | AL15: =IF($B$7="","",$B$7) -> 73.988 | AM15: 0.1098000035 | AN15: 0.2906000018 | AO15: 0.3989000022 | AP15: 0.5590999722 | AQ15: 0.3109999895 | AR15: 0.295599997 | AS15: 0.8080000281 | AT15: 0.3097000122 | AU15: 0.3759000003 | AV15: 0.4011000097 | AW15: 0.8414999843 | AX15: 0.4095999897 | AY15: 0.7246000171 | AZ15: 0.6588000059 | BA15: 0.4063999951 | BB15: 0.9503999949 | BC15: 0.6456000209 | BD15: 11 | BE15: 11 | BF15: =IF('Eingabe Daten'!E15<>"",'Eingabe Daten'!E15,BF14) -> 73.994 | BG15: =IF('Eingabe Daten'!F15<>"",'Eingabe Daten'!F15,BG14) -> 73.998 | BH15: =IF('Eingabe Daten'!G15<>"",'Eingabe Daten'!G15,BH14) -> 73.994 | BI15: =IF('Eingabe Daten'!H15<>"",'Eingabe Daten'!H15,BI14) -> 73.995 | BJ15: =IF('Eingabe Daten'!I15<>"",'Eingabe Daten'!I15,BJ14) -> 73.99 | BK15: 0.5160999894 | BL15: 74.05 | BM15: 73.95 | BN15: 73.99099762 | BO15: 74.01135438 | BP15: 73.98081924 | BQ15: 74.02153276 | BR15: 73.97064086 | BS15: 74.03171114 | BT15: 74.001176 | BU15: 0.2233999968 | BV15: 0.5827999711 | BW15: 0.7486000061 | BX15: -3 | BY15: 73.97064086 | BZ15: 3 | CA15: 6 | CB15: 73.94010572 | CC15: 0.4564999938 | CD15: 0.904399991 | CE15: 11 | CF15: 73.984 | CG15: 11 | CH15: 0.0457537701 | CI15: 0.9542462299 | CJ15: 0.04917406357 | CK15: -128.0342709 | CL15: -1.719830489 | CM15: 0.283100009 | CN15: 0.6675999761 | CO15: 0.8902000189 | CP15: 0.2813999951 | CQ15: 0.3680999875 | CR15: 0.01429999992 | CS15: 0.2946999967 | CT15: 0.9840999842 | CU15: 0.7613000274 | CV15: 0.5809000134
A16: 12 | B16: =IF('Eingabe Daten'!E16="","",'Eingabe Daten'!E16) -> 74.004 | C16: =IF('Eingabe Daten'!F16="","",'Eingabe Daten'!F16) -> 74 | D16: =IF('Eingabe Daten'!G16="","",'Eingabe Daten'!G16) -> 74.007 | E16: =IF('Eingabe Daten'!H16="","",'Eingabe Daten'!H16) -> 74 | F16: =IF('Eingabe Daten'!I16="","",'Eingabe Daten'!I16) -> 73.996 | H16: 74.0014 | I16: 0.003773592453 | J16: 0.011 | L16: 12 | M16: 74.001176 | N16: 74.0014 | O16: 74.01458548 | P16: 73.98776652 | Q16: 0.02324 | R16: 0.011 | S16: 0.0491526 | V16: 12 | W16: 74.024 | X16: 0 | Y16: 0 | AC16: =IF($C$10="","",$C$10) -> 73.994 | AF16: =IF($D$8="","",$D$8) -> 73.993 | AI16: =IF($E$7="","",$E$7) -> 74.005 | AL16: =IF($C$7="","",$C$7) -> 74.024 | AM16: 0.605700016 | AN16: 0.2680999935 | AO16: 0.5081999898 | AP16: 0.7936000228 | AQ16: 0.8575000167 | AR16: 0.09319999814 | AS16: 0.5418999791 | AT16: 0.4153999984 | AU16: 0.07339999825 | AV16: 0.4514000118 | AW16: 0.6988999844 | AX16: 0.4993000031 | AY16: 0.4070000052 | AZ16: 0.9451000094 | BA16: 0.9847000241 | BB16: 0.5914999843 | BC16: 0.5320000052 | BD16: 12 | BE16: 12 | BF16: =IF('Eingabe Daten'!E16<>"",'Eingabe Daten'!E16,BF15) -> 74.004 | BG16: =IF('Eingabe Daten'!F16<>"",'Eingabe Daten'!F16,BG15) -> 74 | BH16: =IF('Eingabe Daten'!G16<>"",'Eingabe Daten'!G16,BH15) -> 74.007 | BI16: =IF('Eingabe Daten'!H16<>"",'Eingabe Daten'!H16,BI15) -> 74 | BJ16: =IF('Eingabe Daten'!I16<>"",'Eingabe Daten'!I16,BJ15) -> 73.996 | BK16: 0.6151000261 | BL16: 74.05 | BM16: 73.95 | BN16: 73.99099762 | BO16: 74.01135438 | BP16: 73.98081924 | BQ16: 74.02153276 | BR16: 73.97064086 | BS16: 74.03171114 | BT16: 74.001176 | BU16: 0.08919999748 | BV16: 0.1844999939 | BW16: 0.2836000025 | BX16: 3 | BY16: 74.03171114 | BZ16: 3 | CA16: 6 | CB16: 73.94010572 | CC16: 0.01889999956 | CD16: 0.1526000053 | CE16: 12 | CF16: 73.984 | CG16: 12 | CH16: 0.0457537701 | CI16: 0.9542462299 | CJ16: 0.04917406357 | CK16: -140.228011 | CL16: -1.677470675 | CM16: 0.4201999903 | CN16: 0.5485000014 | CO16: 0.5584999919 | CP16: 0.7810999751 | CQ16: 0.04300000146 | CR16: 0.4058000147 | CS16: 0.05900000036 | CT16: 0.3118999898 | CU16: 0.6031000018 | CV16: 0.5177000165
A17: 13 | B17: =IF('Eingabe Daten'!E17="","",'Eingabe Daten'!E17) -> 73.983 | C17: =IF('Eingabe Daten'!F17="","",'Eingabe Daten'!F17) -> 74.002 | D17: =IF('Eingabe Daten'!G17="","",'Eingabe Daten'!G17) -> 73.998 | E17: =IF('Eingabe Daten'!H17="","",'Eingabe Daten'!H17) -> 73.997 | F17: =IF('Eingabe Daten'!I17="","",'Eingabe Daten'!I17) -> 74.012 | H17: 73.9984 | I17: 0.009350935782 | J17: 0.029 | L17: 13 | M17: 74.001176 | N17: 73.9984 | O17: 74.01458548 | P17: 73.98776652 | Q17: 0.02324 | R17: 0.029 | S17: 0.0491526 | V17: 13 | W17: 74.021 | X17: 0 | Y17: 0 | AB17: E11 | AC17: =IF($B$11="","",$B$11) -> 73.995 | AE17: E9 | AF17: =IF($B$9="","",$B$9) -> 73.992 | AH17: E8 | AI17: =IF($B$8="","",$B$8) -> 74.002 | AL17: =IF($D$7="","",$D$7) -> 74.021 | AM17: 0.5964999795 | AN17: 0.3296999931 | AO17: 0.9093000293 | AP17: 0.7700999975 | AQ17: 0.5759000182 | AR17: 0.4316999912 | AS17: 0.7325999737 | AT17: 0.1630000025 | AU17: 0.05970000103 | AV17: 0.2433999926 | AW17: 0.7585999966 | AX17: 0.951300025 | AY17: 0.3454000056 | AZ17: 0.6843000054 | BA17: 0.7914999723 | BB17: 0.03550000116 | BC17: 0.7942000031 | BD17: 13 | BE17: 13 | BF17: =IF('Eingabe Daten'!E17<>"",'Eingabe Daten'!E17,BF16) -> 73.983 | BG17: =IF('Eingabe Daten'!F17<>"",'Eingabe Daten'!F17,BG16) -> 74.002 | BH17: =IF('Eingabe Daten'!G17<>"",'Eingabe Daten'!G17,BH16) -> 73.998 | BI17: =IF('Eingabe Daten'!H17<>"",'Eingabe Daten'!H17,BI16) -> 73.997 | BJ17: =IF('Eingabe Daten'!I17<>"",'Eingabe Daten'!I17,BJ16) -> 74.012 | BK17: 0.4835000038 | BL17: 74.05 | BM17: 73.95 | BN17: 73.99099762 | BO17: 74.01135438 | BP17: 73.98081924 | BQ17: 74.02153276 | BR17: 73.97064086 | BS17: 74.03171114 | BT17: 74.001176 | BU17: 0.2064999938 | BV17: 0.6021999717 | BW17: 0.9089000225 | BX17: 0.945299983 | BY17: 0.6534000039 | BZ17: 0.01460000034 | CA17: 0.6620000005 | CB17: 0.9648000002 | CC17: 0.009499999695 | CD17: 0.9535999894 | CE17: 13 | CF17: 73.984 | CG17: 13 | CH17: 0.0457537701 | CI17: 0.9542462299 | CJ17: 0.06001261144 | CK17: -147.4420408 | CL17: -1.637923277 | CM17: 0.07370000333 | CN17: 0.2933000028 | CO17: 0.5824999809 | CP17: 0.8079000115 | CQ17: 0.04039999843 | CR17: 0.05469999835 | CS17: 0.5644000173 | CT17: 0.3149000108 | CU17: 0.4124000072 | CV17: 0.5101000071
A18: 14 | B18: =IF('Eingabe Daten'!E18="","",'Eingabe Daten'!E18) -> 74.006 | C18: =IF('Eingabe Daten'!F18="","",'Eingabe Daten'!F18) -> 73.967 | D18: =IF('Eingabe Daten'!G18="","",'Eingabe Daten'!G18) -> 73.994 | E18: =IF('Eingabe Daten'!H18="","",'Eingabe Daten'!H18) -> 74 | F18: =IF('Eingabe Daten'!I18="","",'Eingabe Daten'!I18) -> 73.984 | H18: 73.9902 | I18: 0.01368795091 | J18: 0.039 | L18: 14 | M18: 74.001176 | N18: 73.9902 | O18: 74.01458548 | P18: 73.98776652 | Q18: 0.02324 | R18: 0.039 | S18: 0.0491526 | V18: 14 | W18: 74.005 | X18: 0 | Y18: 0 | AC18: =IF($C$11="","",$C$11) -> 74.006 | AF18: =IF($C$9="","",$C$9) -> 74.007 | AI18: =IF($C$8="","",$C$8) -> 73.996 | AL18: =IF($E$7="","",$E$7) -> 74.005 | AM18: 0.7336000204 | AN18: 0.451000005 | AO18: 0.3224000037 | AP18: 0.07419999689 | AQ18: 0.4088000059 | AR18: Konstanten | AS18: 0.5730000138 | AT18: 0.7634999752 | AU18: 0.5803999901 | AV18: 0.6518999934 | AW18: 0.8076999784 | AX18: 0.4169000089 | AY18: 0.7971000075 | AZ18: 0.7210999727 | BA18: 0.6934000254 | BB18: 0.7308999896 | BC18: 0.1923999935 | BD18: 14 | BE18: 14 | BF18: =IF('Eingabe Daten'!E18<>"",'Eingabe Daten'!E18,BF17) -> 74.006 | BG18: =IF('Eingabe Daten'!F18<>"",'Eingabe Daten'!F18,BG17) -> 73.967 | BH18: =IF('Eingabe Daten'!G18<>"",'Eingabe Daten'!G18,BH17) -> 73.994 | BI18: =IF('Eingabe Daten'!H18<>"",'Eingabe Daten'!H18,BI17) -> 74 | BJ18: =IF('Eingabe Daten'!I18<>"",'Eingabe Daten'!I18,BJ17) -> 73.984 | BK18: 0.7736999989 | BL18: 74.05 | BM18: 73.95 | BN18: 73.99099762 | BO18: 74.01135438 | BP18: 73.98081924 | BQ18: 74.02153276 | BR18: 73.97064086 | BS18: 74.03171114 | BT18: 74.001176 | BU18: 0.06989999861 | BV18: 0.2480999976 | BW18: 0.9505000114 | BX18: Mittelwert | BY18: =Mittelwert -> 74.001176 | BZ18: 3 | CA18: 0.8198999763 | CB18: 0.2195000052 | CC18: 0.1843000054 | CD18: 0.2370000035 | CE18: 14 | CF18: 73.984 | CG18: 14 | CH18: 0.0457537701 | CI18: 0.9542462299 | CJ18: 0.06001261144 | CK18: -159.2374041 | CL18: -1.600783316 | CM18: 0.9254999757 | CN18: 0.2576000094 | CO18: 0.2560000122 | CP18: 0.71450001 | CQ18: 0.6649000049 | CR18: 0.7728999853 | CS18: 0.7588999867 | CT18: 0.3084999919 | CU18: 0.8245999813 | CV18: 0.7188000083
A19: 15 | B19: =IF('Eingabe Daten'!E19="","",'Eingabe Daten'!E19) -> 74.012 | C19: =IF('Eingabe Daten'!F19="","",'Eingabe Daten'!F19) -> 74.014 | D19: =IF('Eingabe Daten'!G19="","",'Eingabe Daten'!G19) -> 73.998 | E19: =IF('Eingabe Daten'!H19="","",'Eingabe Daten'!H19) -> 73.999 | F19: =IF('Eingabe Daten'!I19="","",'Eingabe Daten'!I19) -> 74.007 | H19: 74.006 | I19: 0.006542170894 | J19: 0.016 | L19: 15 | M19: 74.001176 | N19: 74.006 | O19: 74.01458548 | P19: 73.98776652 | Q19: 0.02324 | R19: 0.016 | S19: 0.0491526 | V19: 15 | W19: 74.002 | X19: 0 | Y19: 0 | AB19: E12 | AC19: =IF($B$12="","",$B$12) -> 73.985 | AF19: =IF($D$9="","",$D$9) -> 74.015 | AI19: =IF($D$8="","",$D$8) -> 73.993 | AL19: =IF($F$7="","",$F$7) -> 74.002 | AM19: 0.8960000277 | AN19: 0.2225999981 | AO19: 0.356099993 | AP19: 0.5533999801 | AQ19: 0.3555999994 | AR19: n | AS19: 0.204400003 | AT19: 0.5789999962 | AU19: 0.6299999952 | AV19: 0.139500007 | AW19: 0.06100000069 | AX19: 0.6341999769 | AY19: 0.8385999799 | AZ19: 0.6409999728 | BA19: 0.4250000119 | BB19: 0.1871999949 | BC19: 0.4954999983 | BD19: 15 | BE19: 15 | BF19: =IF('Eingabe Daten'!E19<>"",'Eingabe Daten'!E19,BF18) -> 74.012 | BG19: =IF('Eingabe Daten'!F19<>"",'Eingabe Daten'!F19,BG18) -> 74.014 | BH19: =IF('Eingabe Daten'!G19<>"",'Eingabe Daten'!G19,BH18) -> 73.998 | BI19: =IF('Eingabe Daten'!H19<>"",'Eingabe Daten'!H19,BI18) -> 73.999 | BJ19: =IF('Eingabe Daten'!I19<>"",'Eingabe Daten'!I19,BJ18) -> 74.007 | BK19: 0.9732000232 | BL19: 74.05 | BM19: 73.95 | BN19: 73.99099762 | BO19: 74.01135438 | BP19: 73.98081924 | BQ19: 74.02153276 | BR19: 73.97064086 | BS19: 74.03171114 | BT19: 74.001176 | BU19: 0.7694000006 | BV19: 0.3806000054 | BW19: 0.4846999943 | BX19: OGW | BY19: =OGW -> 74.05 | BZ19: 3 | CA19: 0.5471000075 | CB19: 0.6740000248 | CC19: 0.03819999844 | CD19: 0.6478000283 | CE19: 15 | CF19: 73.984 | CG19: 15 | CH19: 0.0457537701 | CI19: 0.9542462299 | CJ19: 0.08720442429 | CK19: -160.1954576 | CL19: -1.565728716 | CM19: 0.8995000124 | CN19: 0.3404000103 | CO19: 0.1172999963 | CP19: 0.4255999923 | CQ19: 0.771600008 | CR19: 0.3582000136 | CS19: 0.4120000005 | CT19: 0.747600019 | CU19: 0.4365999997 | CV19: 0.719900012
A20: 16 | B20: =IF('Eingabe Daten'!E20="","",'Eingabe Daten'!E20) -> 74 | C20: =IF('Eingabe Daten'!F20="","",'Eingabe Daten'!F20) -> 73.984 | D20: =IF('Eingabe Daten'!G20="","",'Eingabe Daten'!G20) -> 74.005 | E20: =IF('Eingabe Daten'!H20="","",'Eingabe Daten'!H20) -> 73.998 | F20: =IF('Eingabe Daten'!I20="","",'Eingabe Daten'!I20) -> 73.996 | H20: 73.9966 | I20: 0.00697423831 | J20: 0.021 | L20: 16 | M20: 74.001176 | N20: 73.9966 | O20: 74.01458548 | P20: 73.98776652 | Q20: 0.02324 | R20: 0.021 | S20: 0.0491526 | V20: 16 | W20: 74.002 | X20: 0 | Y20: 0 | AC20: =IF($C$12="","",$C$12) -> 74.003 | AE20: E10 | AF20: =IF($B$10="","",$B$10) -> 74.009 | AI20: =IF($E$8="","",$E$8) -> 74.015 | AK20: E8 | AL20: =IF($B$8="","",$B$8) -> 74.002 | AM20: 0.5067999959 | AN20: 0.1736000031 | AO20: 0.2781000137 | AP20: 0.08730000257 | AQ20: 0.9789999723 | AR20: 1 | AS20: =six_AS1(AT89) -> 2.66 | AT20: =six_AI1(AT89) -> 3.27 | AU20: 0 | AV20: 1.128 | AW20: 0.2836000025 | AX20: 0.6182000041 | AY20: 0.3066999912 | AZ20: 0.8524000049 | BA20: 0.3190000057 | BB20: 0.7954000235 | BC20: 0.1744000018 | BD20: 16 | BE20: 16 | BF20: =IF('Eingabe Daten'!E20<>"",'Eingabe Daten'!E20,BF19) -> 74 | BG20: =IF('Eingabe Daten'!F20<>"",'Eingabe Daten'!F20,BG19) -> 73.984 | BH20: =IF('Eingabe Daten'!G20<>"",'Eingabe Daten'!G20,BH19) -> 74.005 | BI20: =IF('Eingabe Daten'!H20<>"",'Eingabe Daten'!H20,BI19) -> 73.998 | BJ20: =IF('Eingabe Daten'!I20<>"",'Eingabe Daten'!I20,BJ19) -> 73.996 | BK20: 0.3000999987 | BL20: 74.05 | BM20: 73.95 | BN20: 73.99099762 | BO20: 74.01135438 | BP20: 73.98081924 | BQ20: 74.02153276 | BR20: 73.97064086 | BS20: 74.03171114 | BT20: 74.001176 | BU20: 0.07280000299 | BV20: 0.4934000075 | BW20: 0.4528999925 | BX20: UGW | BY20: =UGW -> 73.95 | BZ20: 3 | CA20: 0.5978000164 | CB20: 0.03030000068 | CC20: 0.3183000088 | CD20: 0.1357000023 | CE20: 16 | CF20: 73.984 | CG20: 16 | CH20: 0.0457537701 | CI20: 0.9542462299 | CJ20: 0.08720442429 | CK20: -171.2434202 | CL20: -1.532498932 | CM20: 0.3269999921 | CN20: 0.7601000071 | CO20: 0.627300024 | CP20: 0.9636999965 | CQ20: 0.8277000189 | CR20: 0.554099977 | CS20: 0.6068999767 | CT20: 0.1903000027 | CU20: 0.90200001 | CV20: 0.318599999
A21: 17 | B21: =IF('Eingabe Daten'!E21="","",'Eingabe Daten'!E21) -> 73.994 | C21: =IF('Eingabe Daten'!F21="","",'Eingabe Daten'!F21) -> 74.012 | D21: =IF('Eingabe Daten'!G21="","",'Eingabe Daten'!G21) -> 73.986 | E21: =IF('Eingabe Daten'!H21="","",'Eingabe Daten'!H21) -> 74.005 | F21: =IF('Eingabe Daten'!I21="","",'Eingabe Daten'!I21) -> 74.007 | H21: 74.0008 | I21: 0.009453041838 | J21: 0.026 | L21: 17 | M21: 74.001176 | N21: 74.0008 | O21: 74.01458548 | P21: 73.98776652 | Q21: 0.02324 | R21: 0.026 | S21: 0.0491526 | V21: 17 | W21: 73.996 | X21: 0 | Y21: 0 | AB21: E13 | AC21: =IF($B$13="","",$B$13) -> 74.008 | AF21: =IF($C$10="","",$C$10) -> 73.994 | AH21: E9 | AI21: =IF($B$9="","",$B$9) -> 73.992 | AL21: =IF($C$8="","",$C$8) -> 73.996 | AM21: 0.6004999876 | AN21: 0.597299993 | AO21: 0.7670999765 | AP21: 0.7149999738 | AQ21: 0.6872000098 | AR21: 2 | AS21: =six_AS2(AT89) -> 1.88 | AT21: =six_AI2(AT89) -> 3.27 | AU21: 0 | AV21: 1.128 | AW21: 0.7605000138 | AX21: 0.258100003 | AY21: 0.5497999787 | AZ21: 0.5091999769 | BA21: 0.5652999878 | BB21: 0.2816999853 | BC21: 0.415899992 | BD21: 17 | BE21: 17 | BF21: =IF('Eingabe Daten'!E21<>"",'Eingabe Daten'!E21,BF20) -> 73.994 | BG21: =IF('Eingabe Daten'!F21<>"",'Eingabe Daten'!F21,BG20) -> 74.012 | BH21: =IF('Eingabe Daten'!G21<>"",'Eingabe Daten'!G21,BH20) -> 73.986 | BI21: =IF('Eingabe Daten'!H21<>"",'Eingabe Daten'!H21,BI20) -> 74.005 | BJ21: =IF('Eingabe Daten'!I21<>"",'Eingabe Daten'!I21,BJ20) -> 74.007 | BK21: 0.3506000042 | BL21: 74.05 | BM21: 73.95 | BN21: 73.99099762 | BO21: 74.01135438 | BP21: 73.98081924 | BQ21: 74.02153276 | BR21: 73.97064086 | BS21: 74.03171114 | BT21: 74.001176 | BU21: 0.9720000029 | BV21: 0.5187000036 | BW21: 0.5828999877 | BX21: Sollwert | BY21: =Sollwert -> 74 | BZ21: 3 | CA21: 0.4650999904 | CB21: 0.03209999949 | CC21: 0.3777999878 | CD21: 0.1377000064 | CE21: 17 | CF21: 73.985 | CG21: 17 | CH21: 0.05600186678 | CI21: 0.9439981332 | CJ21: 0.08720442429 | CK21: -175.6217254 | CL21: -1.500880079 | CM21: 0.6542000175 | CN21: 0.1533000022 | CO21: 0.1981000006 | CP21: 0.3754000068 | CQ21: 0.09560000151 | CR21: 0.6154000163 | CS21: 0.7024999857 | CT21: 0.4395999908 | CU21: 0.4208999872 | CV21: 0.3361000121
A22: 18 | B22: =IF('Eingabe Daten'!E22="","",'Eingabe Daten'!E22) -> 74.006 | C22: =IF('Eingabe Daten'!F22="","",'Eingabe Daten'!F22) -> 74.01 | D22: =IF('Eingabe Daten'!G22="","",'Eingabe Daten'!G22) -> 74.018 | E22: =IF('Eingabe Daten'!H22="","",'Eingabe Daten'!H22) -> 74.003 | F22: =IF('Eingabe Daten'!I22="","",'Eingabe Daten'!I22) -> 74 | H22: 74.0074 | I22: 0.006248199741 | J22: 0.018 | L22: 18 | M22: 74.001176 | N22: 74.0074 | O22: 74.01458548 | P22: 73.98776652 | Q22: 0.02324 | R22: 0.018 | S22: 0.0491526 | V22: 18 | W22: 73.993 | X22: 0 | Y22: 0 | AC22: =IF($C$13="","",$C$13) -> 73.995 | AF22: =IF($D$10="","",$D$10) -> 73.997 | AI22: =IF($C$9="","",$C$9) -> 74.007 | AL22: =IF($D$8="","",$D$8) -> 73.993 | AM22: 0.7009000182 | AN22: 0.2131000012 | AO22: 0.04399999976 | AP22: 0.8860999942 | AQ22: 0.04320000112 | AR22: 3 | AS22: =six_AS3(AT89) -> 1.023 | AT22: =six_AI3(AT89) -> 2.575 | AU22: 0 | AV22: 1.693 | AW22: 0.458799988 | AX22: 0.7390000224 | AY22: 0.7552999854 | AZ22: 0.8226000071 | BA22: 0.2097000033 | BB22: 0.4688000083 | BC22: 0.8680999875 | BD22: 18 | BE22: 18 | BF22: =IF('Eingabe Daten'!E22<>"",'Eingabe Daten'!E22,BF21) -> 74.006 | BG22: =IF('Eingabe Daten'!F22<>"",'Eingabe Daten'!F22,BG21) -> 74.01 | BH22: =IF('Eingabe Daten'!G22<>"",'Eingabe Daten'!G22,BH21) -> 74.018 | BI22: =IF('Eingabe Daten'!H22<>"",'Eingabe Daten'!H22,BI21) -> 74.003 | BJ22: =IF('Eingabe Daten'!I22<>"",'Eingabe Daten'!I22,BJ21) -> 74 | BK22: 0.8284000158 | BL22: 74.05 | BM22: 73.95 | BN22: =BN21 -> 73.99099762 | BO22: 74.01135438 | BP22: 73.98081924 | BQ22: 74.02153276 | BR22: 73.97064086 | BS22: 74.03171114 | BT22: 74.001176 | BU22: 0.41049999 | BV22: 0.4625999928 | BW22: 0.3488999903 | BX22: 0.2493000031 | BY22: 0.807099998 | BZ22: 0.5443999767 | CA22: 0.5382999778 | CB22: 0.6266999841 | CC22: 0.08820000291 | CD22: 0.7110999823 | CE22: 18 | CF22: 73.985 | CG22: 18 | CH22: 0.05600186678 | CI22: 0.9439981332 | CJ22: 0.08720442429 | CK22: -186.2654663 | CL22: -1.470694324 | CM22: 0.2579999864 | CN22: 0.05759999901 | CO22: 0.2752999961 | CP22: 0.9606999755 | CQ22: 0.3269999921 | CR22: 0.6477000117 | CS22: 0.363499999 | CT22: 0.3700000048 | CU22: 0.3269000053 | CV22: 0.2148000002
A23: 19 | B23: =IF('Eingabe Daten'!E23="","",'Eingabe Daten'!E23) -> 73.984 | C23: =IF('Eingabe Daten'!F23="","",'Eingabe Daten'!F23) -> 74.002 | D23: =IF('Eingabe Daten'!G23="","",'Eingabe Daten'!G23) -> 74.003 | E23: =IF('Eingabe Daten'!H23="","",'Eingabe Daten'!H23) -> 74.005 | F23: =IF('Eingabe Daten'!I23="","",'Eingabe Daten'!I23) -> 73.997 | H23: 73.9982 | I23: 0.007573638492 | J23: 0.021 | L23: 19 | M23: 74.001176 | N23: 73.9982 | O23: 74.01458548 | P23: 73.98776652 | Q23: 0.02324 | R23: 0.021 | S23: 0.0491526 | V23: 19 | W23: 74.015 | X23: 0 | Y23: 0 | AB23: E14 | AC23: =IF($B$14="","",$B$14) -> 73.998 | AE23: E11 | AF23: =IF($B$11="","",$B$11) -> 73.995 | AI23: =IF($D$9="","",$D$9) -> 74.015 | AL23: =IF($E$8="","",$E$8) -> 74.015 | AM23: 0.2124000043 | AN23: 0.4232000113 | AO23: 0.6175000072 | AP23: 0.2415000051 | AQ23: 0.6862000227 | AR23: 4 | AS23: =six_AS4(AT89) -> 0.729 | AT23: =six_AI4(AT89) -> 2.282 | AU23: 0 | AV23: 2.059 | AW23: 0.5899999738 | AX23: 0.6029000282 | AY23: 0.07880000025 | AZ23: 0.04470000044 | BA23: 0.1533000022 | BB23: 0.246299997 | BC23: 0.3987999856 | BD23: 19 | BE23: 19 | BF23: =IF('Eingabe Daten'!E23<>"",'Eingabe Daten'!E23,BF22) -> 73.984 | BG23: =IF('Eingabe Daten'!F23<>"",'Eingabe Daten'!F23,BG22) -> 74.002 | BH23: =IF('Eingabe Daten'!G23<>"",'Eingabe Daten'!G23,BH22) -> 74.003 | BI23: =IF('Eingabe Daten'!H23<>"",'Eingabe Daten'!H23,BI22) -> 74.005 | BJ23: =IF('Eingabe Daten'!I23<>"",'Eingabe Daten'!I23,BJ22) -> 73.997 | BK23: 0.5839999914 | BL23: 74.05 | BM23: 73.95 | BN23: 73.99099762 | BO23: 74.01135438 | BP23: 73.98081924 | BQ23: 74.02153276 | BR23: 73.97064086 | BS23: 74.03171114 | BT23: 74.001176 | BU23: 0.2876999974 | BV23: 0.8363999724 | BW23: 0.8981000185 | BX23: 0.5267000198 | BY23: 0.3876000047 | BZ23: 0.0027999999 | CA23: 0.2509000003 | CB23: 0.1629000008 | CC23: 0.6452000141 | CD23: 0.9811999798 | CE23: 19 | CF23: 73.985 | CG23: 19 | CH23: 0.05600186678 | CI23: 0.9439981332 | CJ23: 0.08720442429 | CK23: -196.9092072 | CL23: -1.441792135 | CM23: 0.3120000064 | CN23: 0.2407000065 | CO23: 0.8786000013 | CP23: 0.1297000051 | CQ23: 0.5698000193 | CR23: 0.6069999933 | CS23: 0.6101999879 | CT23: 0.6938999891 | CU23: 0.8500999808 | CV23: 0.09759999812
A24: 20 | B24: =IF('Eingabe Daten'!E24="","",'Eingabe Daten'!E24) -> 74 | C24: =IF('Eingabe Daten'!F24="","",'Eingabe Daten'!F24) -> 74.01 | D24: =IF('Eingabe Daten'!G24="","",'Eingabe Daten'!G24) -> 74.013 | E24: =IF('Eingabe Daten'!H24="","",'Eingabe Daten'!H24) -> 74.02 | F24: =IF('Eingabe Daten'!I24="","",'Eingabe Daten'!I24) -> 74.003 | H24: 74.0092 | I24: 0.007138627319 | J24: 0.02 | L24: 20 | M24: 74.001176 | N24: 74.0092 | O24: 74.01458548 | P24: 73.98776652 | Q24: 0.02324 | R24: 0.02 | S24: 0.0491526 | V24: 20 | W24: 74.009 | X24: 0 | Y24: 0 | AC24: =IF($C$14="","",$C$14) -> 74 | AF24: =IF($C$11="","",$C$11) -> 74.006 | AI24: =IF($E$9="","",$E$9) -> 73.989 | AL24: =IF($F$8="","",$F$8) -> 74.009 | AM24: 0.3944999874 | AN24: 0.8228999972 | AO24: 0.2682000101 | AP24: 0.6784999967 | AQ24: 0.3962000012 | AR24: 5 | AS24: =six_AS5(AT89) -> 0.577 | AT24: =six_AI5(AT89) -> 2.115 | AU24: 0 | AV24: 2.326 | AW24: 0.8343999982 | AX24: 0.4329000115 | AY24: 0.8360000253 | AZ24: 0.2187999934 | BA24: 0.7311999798 | BB24: 0.8992000222 | BC24: 0.2177000046 | BD24: 20 | BE24: 20 | BF24: =IF('Eingabe Daten'!E24<>"",'Eingabe Daten'!E24,BF23) -> 74 | BG24: =IF('Eingabe Daten'!F24<>"",'Eingabe Daten'!F24,BG23) -> 74.01 | BH24: =IF('Eingabe Daten'!G24<>"",'Eingabe Daten'!G24,BH23) -> 74.013 | BI24: =IF('Eingabe Daten'!H24<>"",'Eingabe Daten'!H24,BI23) -> 74.02 | BJ24: =IF('Eingabe Daten'!I24<>"",'Eingabe Daten'!I24,BJ23) -> 74.003 | BK24: 0.9822000265 | BL24: 74.05 | BM24: 73.95 | BN24: 73.99099762 | BO24: 74.01135438 | BP24: 73.98081924 | BQ24: 74.02153276 | BR24: 73.97064086 | BS24: 74.03171114 | BT24: 74.001176 | BU24: 0.9657999873 | BV24: 0.8713999987 | BW24: 0.5228999853 | BX24: 0.6510000229 | BY24: 0.4566999972 | BZ24: 0.1565999985 | CA24: 0.6431000233 | CB24: 0.6126999855 | CC24: 0.8539999723 | CD24: 0.3673000038 | CE24: 20 | CF24: 73.985 | CG24: 20 | CH24: 0.05600186678 | CI24: 0.9439981332 | CJ24: 0.08720442429 | CK24: -207.5529482 | CL24: -1.414046524 | CM24: 0.05319999903 | CN24: 0.5059000254 | CO24: 0.05469999835 | CP24: 0.375 | CQ24: 0.4512999952 | CR24: 0.2980000079 | CS24: 0.9684000015 | CT24: 0.01290000044 | CU24: 0.6500999928 | CV24: 0.6140999794
A25: 21 | B25: =IF('Eingabe Daten'!E25="","",'Eingabe Daten'!E25) -> 73.982 | C25: =IF('Eingabe Daten'!F25="","",'Eingabe Daten'!F25) -> 74.001 | D25: =IF('Eingabe Daten'!G25="","",'Eingabe Daten'!G25) -> 74.015 | E25: =IF('Eingabe Daten'!H25="","",'Eingabe Daten'!H25) -> 74.005 | F25: =IF('Eingabe Daten'!I25="","",'Eingabe Daten'!I25) -> 73.996 | H25: 73.9998 | I25: 0.01087014259 | J25: 0.033 | L25: 21 | M25: 74.001176 | N25: 73.9998 | O25: 74.01458548 | P25: 73.98776652 | Q25: 0.02324 | R25: 0.033 | S25: 0.0491526 | V25: 21 | W25: 73.992 | X25: 0 | Y25: 0 | AB25: E15 | AC25: =IF($B$15="","",$B$15) -> 73.994 | AF25: =IF($D$11="","",$D$11) -> 73.994 | AH25: E10 | AI25: =IF($B$10="","",$B$10) -> 74.009 | AK25: E9 | AL25: =IF($B$9="","",$B$9) -> 73.992 | AM25: 0.5332999825 | AN25: 0.02950000018 | AO25: 0.716899991 | AP25: 0.3140999973 | AQ25: 0.9812999964 | AR25: 0.2910999954 | AS25: 0.3648999929 | AT25: 0.3217999935 | AU25: 0.3540000021 | AV25: 0.2356999964 | AW25: 0.5928999782 | AX25: 0.7023000121 | AY25: 0.2682000101 | AZ25: 0.5753999949 | BA25: 0.5769000053 | BB25: 0.9908000231 | BC25: 0.931400001 | BD25: 21 | BE25: 21 | BF25: =IF('Eingabe Daten'!E25<>"",'Eingabe Daten'!E25,BF24) -> 73.982 | BG25: =IF('Eingabe Daten'!F25<>"",'Eingabe Daten'!F25,BG24) -> 74.001 | BH25: =IF('Eingabe Daten'!G25<>"",'Eingabe Daten'!G25,BH24) -> 74.015 | BI25: =IF('Eingabe Daten'!H25<>"",'Eingabe Daten'!H25,BI24) -> 74.005 | BJ25: =IF('Eingabe Daten'!I25<>"",'Eingabe Daten'!I25,BJ24) -> 73.996 | BK25: 0.25 | BL25: 74.05 | BM25: 73.95 | BN25: 73.99099762 | BO25: 74.01135438 | BP25: 73.98081924 | BQ25: 74.02153276 | BR25: 73.97064086 | BS25: 74.03171114 | BT25: 74.001176 | BU25: 0.810100019 | BV25: 0.7699000239 | BW25: 0.4077000022 | BX25: 0.6299999952 | BY25: 0.4936999977 | BZ25: 0.4986000061 | CA25: 0.1332000047 | CB25: 0.9695000052 | CC25: 0.177699998 | CD25: 0.5896000266 | CE25: 21 | CF25: 73.986 | CG25: 21 | CH25: 0.06798028277 | CI25: 0.9320197172 | CJ25: 0.08720442429 | CK25: -210.2495493 | CL25: -1.387348688 | CM25: 0.6815999746 | CN25: 0.1096000001 | CO25: 0.6510000229 | CP25: 0.7382000089 | CQ25: 0.780099988 | CR25: 0.4316000044 | CS25: 0.08280000091 | CT25: 0.4997999966 | CU25: 0.5746999979 | CV25: 0.05970000103
A26: 22 | B26: =IF('Eingabe Daten'!E26="","",'Eingabe Daten'!E26) -> 74.004 | C26: =IF('Eingabe Daten'!F26="","",'Eingabe Daten'!F26) -> 73.999 | D26: =IF('Eingabe Daten'!G26="","",'Eingabe Daten'!G26) -> 73.99 | E26: =IF('Eingabe Daten'!H26="","",'Eingabe Daten'!H26) -> 74.006 | F26: =IF('Eingabe Daten'!I26="","",'Eingabe Daten'!I26) -> 74.009 | H26: 74.0016 | I26: 0.006651315659 | J26: 0.019 | L26: 22 | M26: 74.001176 | N26: 74.0016 | O26: 74.01458548 | P26: 73.98776652 | Q26: 0.02324 | R26: 0.019 | S26: 0.0491526 | V26: 22 | W26: 74.007 | X26: 0 | Y26: 0 | AC26: =IF($C$15="","",$C$15) -> 73.998 | AE26: E12 | AF26: =IF($B$12="","",$B$12) -> 73.985 | AI26: =IF($C$10="","",$C$10) -> 73.994 | AL26: =IF($C$9="","",$C$9) -> 74.007 | AM26: 0.412499994 | AN26: 0.1182999983 | AO26: 0.1460999995 | AP26: 0.3145999908 | AQ26: 0.9908000231 | AR26: 0.6043999791 | AS26: 0.275000006 | AT26: 0.4163999856 | AU26: 0.4700999856 | AV26: 0.06329999864 | AW26: 0.4582000077 | AX26: 0.4374000132 | AY26: 0.9451000094 | AZ26: 0.2730999887 | BA26: 0.1736000031 | BB26: 0.506099999 | BC26: 0.3438000083 | BD26: 22 | BE26: 22 | BF26: =IF('Eingabe Daten'!E26<>"",'Eingabe Daten'!E26,BF25) -> 74.004 | BG26: =IF('Eingabe Daten'!F26<>"",'Eingabe Daten'!F26,BG25) -> 73.999 | BH26: =IF('Eingabe Daten'!G26<>"",'Eingabe Daten'!G26,BH25) -> 73.99 | BI26: =IF('Eingabe Daten'!H26<>"",'Eingabe Daten'!H26,BI25) -> 74.006 | BJ26: =IF('Eingabe Daten'!I26<>"",'Eingabe Daten'!I26,BJ25) -> 74.009 | BK26: 0.5130000114 | BL26: 74.05 | BM26: 73.95 | BN26: 73.99099762 | BO26: 74.01135438 | BP26: 73.98081924 | BQ26: 74.02153276 | BR26: 73.97064086 | BS26: 74.03171114 | BT26: 74.001176 | BU26: 0.396600008 | BV26: 0.2594999969 | BW26: 0.06740000099 | BX26: 0.641200006 | BY26: 0.3648000062 | BZ26: 0.5464000106 | CA26: 0.8816999793 | CB26: 0.4230999947 | CC26: 0.5945000052 | CD26: 0.3808999956 | CE26: 22 | CF26: 73.986 | CG26: 22 | CH26: 0.06798028277 | CI26: 0.9320197172 | CJ26: 0.08720442429 | CK26: -220.5056248 | CL26: -1.36160466 | CM26: 0.05730000138 | CN26: 0.1094999984 | CO26: 0.1458999962 | CP26: 0.1449999958 | CQ26: 0.7602000237 | CR26: 0.2646999955 | CS26: 0.1386000067 | CT26: 0.04230000079 | CU26: 0.6926000118 | CV26: 0.8445000052
A27: 23 | B27: =IF('Eingabe Daten'!E27="","",'Eingabe Daten'!E27) -> 74.01 | C27: =IF('Eingabe Daten'!F27="","",'Eingabe Daten'!F27) -> 73.989 | D27: =IF('Eingabe Daten'!G27="","",'Eingabe Daten'!G27) -> 73.99 | E27: =IF('Eingabe Daten'!H27="","",'Eingabe Daten'!H27) -> 74.009 | F27: =IF('Eingabe Daten'!I27="","",'Eingabe Daten'!I27) -> 74.014 | H27: 74.0024 | I27: 0.01066958293 | J27: 0.025 | L27: 23 | M27: 74.001176 | N27: 74.0024 | O27: 74.01458548 | P27: 73.98776652 | Q27: 0.02324 | R27: 0.025 | S27: 0.0491526 | V27: 23 | W27: 74.015 | X27: 0 | Y27: 0 | AB27: E16 | AC27: =IF($B$16="","",$B$16) -> 74.004 | AF27: =IF($C$12="","",$C$12) -> 74.003 | AI27: =IF($D$10="","",$D$10) -> 73.997 | AL27: =IF($D$9="","",$D$9) -> 74.015 | AM27: 0.5174000263 | AN27: 0.8004999757 | AO27: 0.9836000204 | AP27: 0.524600029 | AQ27: 0.06809999794 | AR27: 0.6251000166 | AS27: 0.329400003 | AT27: 0.2784999907 | AU27: 0.6829000115 | AV27: 0.4020999968 | AW27: 0.3844000101 | AX27: 0.205400005 | AY27: 0.8759999871 | AZ27: 0.1512999982 | BA27: 0.40169999 | BB27: 0.6090000272 | BC27: 0.5491999984 | BD27: 23 | BE27: 23 | BF27: =IF('Eingabe Daten'!E27<>"",'Eingabe Daten'!E27,BF26) -> 74.01 | BG27: =IF('Eingabe Daten'!F27<>"",'Eingabe Daten'!F27,BG26) -> 73.989 | BH27: =IF('Eingabe Daten'!G27<>"",'Eingabe Daten'!G27,BH26) -> 73.99 | BI27: =IF('Eingabe Daten'!H27<>"",'Eingabe Daten'!H27,BI26) -> 74.009 | BJ27: =IF('Eingabe Daten'!I27<>"",'Eingabe Daten'!I27,BJ26) -> 74.014 | BK27: 0.7294999957 | BL27: 74.05 | BM27: 73.95 | BN27: 73.99099762 | BO27: 74.01135438 | BP27: 73.98081924 | BQ27: 74.02153276 | BR27: 73.97064086 | BS27: 74.03171114 | BT27: 74.001176 | BU27: 0.1234000027 | BV27: 0.3249999881 | BW27: 0.007899999619 | BX27: 0.7835000157 | BY27: 0.9217000008 | BZ27: 0.2994999886 | CA27: 0.2260999978 | CB27: 0.9531999826 | CC27: 0.189199999 | CD27: 0.4171999991 | CE27: 23 | CF27: 73.988 | CG27: 23 | CH27: 0.0977449003 | CI27: 0.9022550997 | CJ27: 0.08720442429 | CK27: -214.4202509 | CL27: -1.3367327 | CM27: 0.3626999855 | CN27: 0.3248000145 | CO27: 0.9797000289 | CP27: 0.5791000128 | CQ27: 0.5266000032 | CR27: 0.134100005 | CS27: 0.8986999989 | CT27: 0.03119999915 | CU27: 0.7925999761 | CV27: 0.7192999721
A28: 24 | B28: =IF('Eingabe Daten'!E28="","",'Eingabe Daten'!E28) -> 74.015 | C28: =IF('Eingabe Daten'!F28="","",'Eingabe Daten'!F28) -> 74.008 | D28: =IF('Eingabe Daten'!G28="","",'Eingabe Daten'!G28) -> 73.993 | E28: =IF('Eingabe Daten'!H28="","",'Eingabe Daten'!H28) -> 74 | F28: =IF('Eingabe Daten'!I28="","",'Eingabe Daten'!I28) -> 74.01 | H28: 74.0052 | I28: 0.007782030583 | J28: 0.022 | L28: 24 | M28: 74.001176 | N28: 74.0052 | O28: 74.01458548 | P28: 73.98776652 | Q28: 0.02324 | R28: 0.022 | S28: 0.0491526 | V28: 24 | W28: 73.989 | X28: 0 | Y28: 0 | AC28: =IF($C$16="","",$C$16) -> 74 | AF28: =IF($D$12="","",$D$12) -> 73.993 | AI28: =IF($E$10="","",$E$10) -> 73.985 | AL28: =IF($E$9="","",$E$9) -> 73.989 | AM28: 0.2442000061 | AN28: 0.9423000216 | AO28: 0.466899991 | AP28: 0.7240999937 | AQ28: 0.3970000148 | AR28: 0.2319999933 | AS28: 0.602699995 | AT28: 0.5511999726 | AU28: 0.461800009 | AV28: 0.6492999792 | AW28: 0.7660999894 | AX28: 0.065200001 | AY28: 0.1572999954 | AZ28: 0.1001999974 | BA28: 0.0513000004 | BB28: 0.5457000136 | BC28: 0.9571999907 | BD28: 24 | BE28: 24 | BF28: =IF('Eingabe Daten'!E28<>"",'Eingabe Daten'!E28,BF27) -> 74.015 | BG28: =IF('Eingabe Daten'!F28<>"",'Eingabe Daten'!F28,BG27) -> 74.008 | BH28: =IF('Eingabe Daten'!G28<>"",'Eingabe Daten'!G28,BH27) -> 73.993 | BI28: =IF('Eingabe Daten'!H28<>"",'Eingabe Daten'!H28,BI27) -> 74 | BJ28: =IF('Eingabe Daten'!I28<>"",'Eingabe Daten'!I28,BJ27) -> 74.01 | BK28: 0.2261999995 | BL28: 74.05 | BM28: 73.95 | BN28: 73.99099762 | BO28: 74.01135438 | BP28: 73.98081924 | BQ28: 74.02153276 | BR28: 73.97064086 | BS28: 74.03171114 | BT28: 74.001176 | BU28: 0.3465999961 | BV28: 0.8905000091 | BW28: 0.4806999862 | BX28: 0.2319999933 | BY28: 0.8497999907 | BZ28: 0.06859999895 | CA28: 0.1332000047 | CB28: 0.9642999768 | CC28: 0.8339999914 | CD28: 0.8234999776 | CE28: 24 | CF28: 73.988 | CG28: 24 | CH28: 0.0977449003 | CI28: 0.9022550997 | CJ28: 0.08720442429 | CK28: -223.9500398 | CL28: -1.312661238 | CM28: 0.9966999888 | CN28: 0.239199996 | CO28: 0.662800014 | CP28: 0.6262000203 | CQ28: 0.9707999825 | CR28: 0.4208000004 | CS28: 0.05669999868 | CT28: 0.8783000112 | CU28: 0.1627999991 | CV28: 0.2492000014
A29: 25 | B29: =IF('Eingabe Daten'!E29="","",'Eingabe Daten'!E29) -> 73.982 | C29: =IF('Eingabe Daten'!F29="","",'Eingabe Daten'!F29) -> 73.984 | D29: =IF('Eingabe Daten'!G29="","",'Eingabe Daten'!G29) -> 73.995 | E29: =IF('Eingabe Daten'!H29="","",'Eingabe Daten'!H29) -> 74.017 | F29: =IF('Eingabe Daten'!I29="","",'Eingabe Daten'!I29) -> 74.013 | H29: 73.9982 | I29: 0.0144692778 | J29: 0.035 | L29: 25 | M29: 74.001176 | N29: 73.9982 | O29: 74.01458548 | P29: 73.98776652 | Q29: 0.02324 | R29: 0.035 | S29: 0.0491526 | V29: 25 | W29: 74.014 | X29: 0 | Y29: 0 | AB29: E17 | AC29: =IF($B$17="","",$B$17) -> 73.983 | AE29: E13 | AF29: =IF($B$13="","",$B$13) -> 74.008 | AH29: E11 | AI29: =IF($B$11="","",$B$11) -> 73.995 | AL29: =IF($F$9="","",$F$9) -> 74.014 | AM29: 0.6079999804 | AN29: 0.3653999865 | AO29: 0.5289999843 | AP29: 0.9183999896 | AQ29: 0.5467000008 | AR29: 0.9596999884 | AS29: 0.7646999955 | AT29: 0.4050000012 | AU29: 0.756099999 | AV29: 0.5738000274 | AW29: 0.4451000094 | AX29: 0.04560000077 | AY29: 0.03869999945 | AZ29: 0.3632000089 | BA29: 0.4160000086 | BB29: 0.3655000031 | BC29: 0.631099999 | BD29: 25 | BE29: 25 | BF29: =IF('Eingabe Daten'!E29<>"",'Eingabe Daten'!E29,BF28) -> 73.982 | BG29: =IF('Eingabe Daten'!F29<>"",'Eingabe Daten'!F29,BG28) -> 73.984 | BH29: =IF('Eingabe Daten'!G29<>"",'Eingabe Daten'!G29,BH28) -> 73.995 | BI29: =IF('Eingabe Daten'!H29<>"",'Eingabe Daten'!H29,BI28) -> 74.017 | BJ29: =IF('Eingabe Daten'!I29<>"",'Eingabe Daten'!I29,BJ28) -> 74.013 | BK29: 0.1798000038 | BL29: 74.05 | BM29: 73.95 | BN29: 73.99099762 | BO29: 74.01135438 | BP29: 73.98081924 | BQ29: 74.02153276 | BR29: 73.97064086 | BS29: 74.03171114 | BT29: 74.001176 | BU29: 0.4343999922 | BV29: 0.1563999951 | BW29: 0.970600009 | BX29: 0.2748000026 | BY29: 0.0588000007 | BZ29: 0.804799974 | CA29: 0.7100999951 | CB29: 0.2520999908 | CC29: 0.7903000116 | CD29: 0.8701999784 | CE29: 25 | CF29: 73.988 | CG29: 25 | CH29: 0.0977449003 | CI29: 0.9022550997 | CJ29: 0.1038481409 | CK29: -224.9207742 | CL29: -1.289327239 | CM29: 0.983799994 | CN29: 0.2711000144 | CO29: 0.4629999995 | CP29: 0.9129999876 | CQ29: 0.9230999947 | CR29: 0.5001000166 | CS29: 0.8845000267 | CT29: 0.5724999905 | CU29: 0.4221999943 | CV29: 0.8194000125
A30: 26 | B30: =IF('Eingabe Daten'!E30="","",'Eingabe Daten'!E30) -> 74.03 | C30: =IF('Eingabe Daten'!F30="","",'Eingabe Daten'!F30) -> 74.002 | D30: =IF('Eingabe Daten'!G30="","",'Eingabe Daten'!G30) -> 74.019 | E30: =IF('Eingabe Daten'!H30="","",'Eingabe Daten'!H30) -> 73.992 | F30: =IF('Eingabe Daten'!I30="","",'Eingabe Daten'!I30) -> 74.008 | H30: 74.0102 | I30: 0.01321211565 | J30: 0.038 | L30: 26 | M30: 74.001176 | N30: 74.0102 | O30: 74.01458548 | P30: 73.98776652 | Q30: 0.02324 | R30: 0.038 | S30: 0.0491526 | V30: 26 | W30: 74.009 | X30: 0 | Y30: 0 | AC30: =IF($C$17="","",$C$17) -> 74.002 | AF30: =IF($C$13="","",$C$13) -> 73.995 | AI30: =IF($C$11="","",$C$11) -> 74.006 | AK30: E10 | AL30: =IF($B$10="","",$B$10) -> 74.009 | AM30: 0.7268000245 | AN30: 0.8956000209 | AO30: 0.1536000073 | AP30: 0.7741000056 | AQ30: 0.6667000055 | AR30: 0.9142000079 | AS30: 0.8335000277 | AT30: 0.7775999904 | AU30: 0.7764000297 | AV30: 0.4738000035 | AW30: 0.7379000187 | AX30: 0.5647000074 | AY30: 0.1645999998 | AZ30: 0.3115999997 | BA30: 0.467900008 | BB30: 0.894299984 | BC30: 0.8662999868 | BD30: 26 | BE30: 26 | BF30: =IF('Eingabe Daten'!E30<>"",'Eingabe Daten'!E30,BF29) -> 74.03 | BG30: =IF('Eingabe Daten'!F30<>"",'Eingabe Daten'!F30,BG29) -> 74.002 | BH30: =IF('Eingabe Daten'!G30<>"",'Eingabe Daten'!G30,BH29) -> 74.019 | BI30: =IF('Eingabe Daten'!H30<>"",'Eingabe Daten'!H30,BI29) -> 73.992 | BJ30: =IF('Eingabe Daten'!I30<>"",'Eingabe Daten'!I30,BJ29) -> 74.008 | BK30: 0.3844000101 | BL30: 74.05 | BM30: 73.95 | BN30: 73.99099762 | BO30: 74.01135438 | BP30: 73.98081924 | BQ30: 74.02153276 | BR30: 73.97064086 | BS30: 74.03171114 | BT30: 74.001176 | BU30: 0.9654999971 | BV30: 0.5031999946 | BW30: 0.9842000008 | BX30: 0.4469000101 | BY30: 0.7792000175 | BZ30: 0.3086000085 | CA30: 0.07890000194 | CB30: 0.8798000216 | CC30: 0.5792999864 | CD30: 0.8616999984 | CE30: 26 | CF30: 73.988 | CG30: 26 | CH30: 0.0977449003 | CI30: 0.9022550997 | CJ30: 0.1038481409 | CK30: -234.101214 | CL30: -1.26667488 | CM30: 0.8095999956 | CN30: 0.7678999901 | CO30: 0.9240000248 | CP30: 0.05029999837 | CQ30: 0.8248999715 | CR30: 0.2282000035 | CS30: 0.2748999894 | CT30: 0.05270000175 | CU30: 0.9031000137 | CV30: 0.9879999757
A31: 27 | B31: =IF('Eingabe Daten'!E31="","",'Eingabe Daten'!E31) -> 73.995 | C31: =IF('Eingabe Daten'!F31="","",'Eingabe Daten'!F31) -> 73.992 | D31: =IF('Eingabe Daten'!G31="","",'Eingabe Daten'!G31) -> 74.001 | E31: =IF('Eingabe Daten'!H31="","",'Eingabe Daten'!H31) -> 74.011 | F31: =IF('Eingabe Daten'!I31="","",'Eingabe Daten'!I31) -> 74.004 | H31: 74.0006 | I31: 0.006711184694 | J31: 0.019 | L31: 27 | M31: 74.001176 | N31: 74.0006 | O31: 74.01458548 | P31: 73.98776652 | Q31: 0.02324 | R31: 0.019 | S31: 0.0491526 | V31: 27 | W31: 73.994 | X31: 0 | Y31: 0 | AB31: E18 | AC31: =IF($B$18="","",$B$18) -> 74.006 | AF31: =IF($D$13="","",$D$13) -> 74.009 | AI31: =IF($D$11="","",$D$11) -> 73.994 | AL31: =IF($C$10="","",$C$10) -> 73.994 | AM31: 0.2623000145 | AN31: 0.5399000049 | AO31: 0.3431000113 | AP31: 0.2132000029 | AQ31: 0.2012999952 | AR31: 0.1295000017 | AS31: 0.6049000025 | AT31: 0.5861999989 | AU31: 0.8569999933 | AV31: 0.08829999715 | AW31: 0.2003999949 | AX31: 0.6341000199 | AY31: 0.4605000019 | AZ31: 0.28580001 | BA31: 0.8335999846 | BB31: 0.3070000112 | BC31: 0.9743000269 | BD31: 27 | BE31: 27 | BF31: =IF('Eingabe Daten'!E31<>"",'Eingabe Daten'!E31,BF30) -> 73.995 | BG31: =IF('Eingabe Daten'!F31<>"",'Eingabe Daten'!F31,BG30) -> 73.992 | BH31: =IF('Eingabe Daten'!G31<>"",'Eingabe Daten'!G31,BH30) -> 74.001 | BI31: =IF('Eingabe Daten'!H31<>"",'Eingabe Daten'!H31,BI30) -> 74.011 | BJ31: =IF('Eingabe Daten'!I31<>"",'Eingabe Daten'!I31,BJ30) -> 74.004 | BK31: 0.3971999884 | BL31: 74.05 | BM31: 73.95 | BN31: 73.99099762 | BO31: 74.01135438 | BP31: 73.98081924 | BQ31: 74.02153276 | BR31: 73.97064086 | BS31: 74.03171114 | BT31: 74.001176 | BU31: 0.7917000055 | BV31: 0.8058999777 | BW31: 0.6078000069 | BX31: 0.3562999964 | BY31: 0.5856000185 | BZ31: 0.6607999802 | CA31: 0.5832999945 | CB31: 0.05889999866 | CC31: 0.8403000236 | CD31: 0.05909999833 | CE31: 27 | CF31: 73.989 | CG31: 27 | CH31: 0.1157973356 | CI31: 0.8842026644 | CJ31: 0.1038481409 | CK31: -234.2991857 | CL31: -1.244654478 | CM31: 0.1513999999 | CN31: 0.3158999979 | CO31: 0.4356999993 | CP31: 0.4234000146 | CQ31: 0.8565000296 | CR31: 0.05629999936 | CS31: 0.897300005 | CT31: 0.2398999929 | CU31: 0.05270000175 | CV31: 0.7803999782
A32: 28 | B32: =IF('Eingabe Daten'!E32="","",'Eingabe Daten'!E32) -> 73.988 | C32: =IF('Eingabe Daten'!F32="","",'Eingabe Daten'!F32) -> 74.024 | D32: =IF('Eingabe Daten'!G32="","",'Eingabe Daten'!G32) -> 74.021 | E32: =IF('Eingabe Daten'!H32="","",'Eingabe Daten'!H32) -> 74.005 | F32: =IF('Eingabe Daten'!I32="","",'Eingabe Daten'!I32) -> 74.002 | H32: 74.008 | I32: 0.01319090596 | J32: 0.036 | L32: 28 | M32: 74.001176 | N32: 74.008 | O32: 74.01458548 | P32: 73.98776652 | Q32: 0.02324 | R32: 0.036 | S32: 0.0491526 | V32: 28 | W32: 73.997 | X32: 0 | Y32: 0 | AC32: =IF($C$18="","",$C$18) -> 73.967 | AE32: E14 | AF32: =IF($B$14="","",$B$14) -> 73.998 | AI32: =IF($E$11="","",$E$11) -> 74 | AL32: =IF($D$10="","",$D$10) -> 73.997 | AM32: 0.03680000082 | AN32: 0.1363999993 | AO32: 0.6692000031 | AP32: 0.2630000114 | AQ32: 0.8422999978 | AR32: 0.2101999968 | AS32: 0.2263000011 | AT32: 0.5062000155 | AU32: 0.6197000146 | AV32: 0.6068000197 | AW32: 0.1002999991 | AX32: 0.9430000186 | AY32: 0.3826999962 | AZ32: 0.3474000096 | BA32: 0.03979999945 | BB32: 0.8902000189 | BC32: 0.4936000109 | BD32: 28 | BE32: 28 | BF32: =IF('Eingabe Daten'!E32<>"",'Eingabe Daten'!E32,BF31) -> 73.988 | BG32: =IF('Eingabe Daten'!F32<>"",'Eingabe Daten'!F32,BG31) -> 74.024 | BH32: =IF('Eingabe Daten'!G32<>"",'Eingabe Daten'!G32,BH31) -> 74.021 | BI32: =IF('Eingabe Daten'!H32<>"",'Eingabe Daten'!H32,BI31) -> 74.005 | BJ32: =IF('Eingabe Daten'!I32<>"",'Eingabe Daten'!I32,BJ31) -> 74.002 | BK32: 0.407400012 | BL32: 74.05 | BM32: 73.95 | BN32: 73.99099762 | BO32: 74.01135438 | BP32: 73.98081924 | BQ32: 74.02153276 | BR32: 73.97064086 | BS32: 74.03171114 | BT32: 74.001176 | BU32: 0.9312999845 | BV32: 0.2513000071 | BW32: 0.554099977 | BX32: 0.04450000077 | BY32: 0.8141999841 | BZ32: 0.4699999988 | CA32: 0.5457000136 | CB32: 0.3767000139 | CC32: 0.1471000016 | CD32: 0.733099997 | CE32: 28 | CF32: 73.989 | CG32: 28 | CH32: 0.1157973356 | CI32: 0.8842026644 | CJ32: 0.1038481409 | CK32: -243.1406644 | CL32: -1.223221608 | CM32: 0.2204000056 | CN32: 0.2102999985 | CO32: 0.3231999874 | CP32: 0.4237999916 | CQ32: 0.7412999868 | CR32: 0.1185000017 | CS32: 0.4357999861 | CT32: 0.8245999813 | CU32: 0.573300004 | CV32: 0.7689999938
A33: 29 | B33: =IF('Eingabe Daten'!E33="","",'Eingabe Daten'!E33) -> 74.002 | C33: =IF('Eingabe Daten'!F33="","",'Eingabe Daten'!F33) -> 73.996 | D33: =IF('Eingabe Daten'!G33="","",'Eingabe Daten'!G33) -> 73.993 | E33: =IF('Eingabe Daten'!H33="","",'Eingabe Daten'!H33) -> 74.015 | F33: =IF('Eingabe Daten'!I33="","",'Eingabe Daten'!I33) -> 74.009 | H33: 74.003 | I33: 0.008124038405 | J33: 0.022 | L33: 29 | M33: 74.001176 | N33: 74.003 | O33: 74.01458548 | P33: 73.98776652 | Q33: 0.02324 | R33: 0.022 | S33: 0.0491526 | V33: 29 | W33: 73.985 | X33: 0 | Y33: 0 | AB33: E19 | AC33: =IF($B$19="","",$B$19) -> 74.012 | AF33: =IF($C$14="","",$C$14) -> 74 | AH33: E12 | AI33: =IF($B$12="","",$B$12) -> 73.985 | AL33: =IF($E$10="","",$E$10) -> 73.985 | AM33: 0.2939999998 | AN33: 0.070600003 | AO33: 0.6237999797 | AP33: 0.5024999976 | AQ33: 0.6883999705 | AR33: 0.3524000049 | AS33: 0.6330999732 | AT33: 0.1606999934 | AU33: 0.9067000151 | AV33: 0.3697000146 | AW33: 0.8149999976 | AX33: 0.1641000062 | AY33: 0.4991999865 | AZ33: 0.03379999846 | BA33: 0.747699976 | BB33: 0.8407999873 | BC33: 0.2946000099 | BD33: 29 | BE33: 29 | BF33: =IF('Eingabe Daten'!E33<>"",'Eingabe Daten'!E33,BF32) -> 74.002 | BG33: =IF('Eingabe Daten'!F33<>"",'Eingabe Daten'!F33,BG32) -> 73.996 | BH33: =IF('Eingabe Daten'!G33<>"",'Eingabe Daten'!G33,BH32) -> 73.993 | BI33: =IF('Eingabe Daten'!H33<>"",'Eingabe Daten'!H33,BI32) -> 74.015 | BJ33: =IF('Eingabe Daten'!I33<>"",'Eingabe Daten'!I33,BJ32) -> 74.009 | BK33: 0.4212000072 | BL33: 74.05 | BM33: 73.95 | BN33: 73.99099762 | BO33: 74.01135438 | BP33: 73.98081924 | BQ33: 74.02153276 | BR33: 73.97064086 | BS33: 74.03171114 | BT33: 74.001176 | BU33: 0.5142999887 | BV33: 0.00400000019 | BW33: 0.6656000018 | BX33: 0.9765999913 | BY33: 0.09340000153 | BZ33: 0.7804999948 | CA33: 0.04419999942 | CB33: 0.9659000039 | CC33: 0.9998000264 | CD33: 0.6887000203 | CE33: 29 | CF33: 73.989 | CG33: 29 | CH33: 0.1157973356 | CI33: 0.8842026644 | CJ33: 0.1038481409 | CK33: -251.9821431 | CL33: -1.202336381 | CM33: 0.6879000068 | CN33: 0.1794999987 | CO33: 0.1747999936 | CP33: 0.9667000175 | CQ33: 0.6949999928 | CR33: 0.8852000237 | CS33: 0.1272999942 | CT33: 0.1504999995 | CU33: 0.2700000107 | CV33: 0.03159999847
A34: 30 | B34: =IF('Eingabe Daten'!E34="","",'Eingabe Daten'!E34) -> 73.992 | C34: =IF('Eingabe Daten'!F34="","",'Eingabe Daten'!F34) -> 74.007 | D34: =IF('Eingabe Daten'!G34="","",'Eingabe Daten'!G34) -> 74.015 | E34: =IF('Eingabe Daten'!H34="","",'Eingabe Daten'!H34) -> 73.989 | F34: =IF('Eingabe Daten'!I34="","",'Eingabe Daten'!I34) -> 74.014 | H34: 74.0034 | I34: 0.01092886087 | J34: 0.026 | L34: 30 | M34: 74.001176 | N34: 74.0034 | O34: 74.01458548 | P34: 73.98776652 | Q34: 0.02324 | R34: 0.026 | S34: 0.0491526 | V34: 30 | W34: 73.993 | X34: 0 | Y34: 0 | AC34: =IF($C$19="","",$C$19) -> 74.014 | AF34: =IF($D$14="","",$D$14) -> 73.99 | AI34: =IF($C$12="","",$C$12) -> 74.003 | AL34: =IF($F$10="","",$F$10) -> 73.993 | AM34: 0.3240999877 | AN34: 0.9018999934 | AO34: 0.2396000028 | AP34: 0.7009000182 | AQ34: 0.8309000134 | AR34: 0.0869999975 | AS34: 0.8184000254 | AT34: 0.8126000166 | AU34: 0.2021999955 | AV34: Wahrscheinlichkeitsnetz | AW34: 0.1040000021 | AX34: 0.6240000129 | AY34: 0.07580000162 | AZ34: 0.6227999926 | BA34: 0.4616000056 | BB34: 0.9430999756 | BC34: 0.1930000037 | BD34: 30 | BE34: 30 | BF34: =IF('Eingabe Daten'!E34<>"",'Eingabe Daten'!E34,BF33) -> 73.992 | BG34: =IF('Eingabe Daten'!F34<>"",'Eingabe Daten'!F34,BG33) -> 74.007 | BH34: =IF('Eingabe Daten'!G34<>"",'Eingabe Daten'!G34,BH33) -> 74.015 | BI34: =IF('Eingabe Daten'!H34<>"",'Eingabe Daten'!H34,BI33) -> 73.989 | BJ34: =IF('Eingabe Daten'!I34<>"",'Eingabe Daten'!I34,BJ33) -> 74.014 | BK34: 0.2978000045 | BL34: 74.05 | BM34: 73.95 | BN34: 73.99099762 | BO34: 74.01135438 | BP34: 73.98081924 | BQ34: 74.02153276 | BR34: 73.97064086 | BS34: 74.03171114 | BT34: 74.001176 | BU34: 0.6068000197 | BV34: 0.2469000071 | BW34: 0.3129999936 | BX34: 0.09350000322 | BY34: 0.003400000045 | BZ34: 0.9569000006 | CA34: 0.733799994 | CB34: 0.4277999997 | CC34: 0.4596000016 | CD34: 0.4605000019 | CE34: 30 | CF34: 73.989 | CG34: 30 | CH34: 0.1157973356 | CI34: 0.8842026644 | CJ34: 0.1038481409 | CK34: -260.8236218 | CL34: -1.181962836 | CM34: 0.8562999964 | CN34: 0.4111999869 | CO34: 0.7069000006 | CP34: 0.3761999905 | CQ34: 0.3867000043 | CR34: 0.2371000051 | CS34: 0.2274000049 | CT34: 0.06989999861 | CU34: 0.7903000116 | CV34: 0.8227000237
A35: 31 | B35: =IF('Eingabe Daten'!E35="","",'Eingabe Daten'!E35) -> 74.009 | C35: =IF('Eingabe Daten'!F35="","",'Eingabe Daten'!F35) -> 73.994 | D35: =IF('Eingabe Daten'!G35="","",'Eingabe Daten'!G35) -> 73.997 | E35: =IF('Eingabe Daten'!H35="","",'Eingabe Daten'!H35) -> 73.985 | F35: =IF('Eingabe Daten'!I35="","",'Eingabe Daten'!I35) -> 73.993 | H35: 73.9956 | I35: 0.007787168934 | J35: 0.024 | L35: 31 | M35: 74.001176 | N35: 73.9956 | O35: 74.01458548 | P35: 73.98776652 | Q35: 0.02324 | R35: 0.024 | S35: 0.0491526 | V35: 31 | W35: 73.995 | X35: 0 | Y35: 0 | AB35: E20 | AC35: =IF($B$20="","",$B$20) -> 74 | AE35: E15 | AF35: =IF($B$15="","",$B$15) -> 73.994 | AI35: =IF($D$12="","",$D$12) -> 73.993 | AK35: E11 | AL35: =IF($B$11="","",$B$11) -> 73.995 | AM35: 0.3323999941 | AN35: 0.4199999869 | AO35: 0.9940000176 | AP35: 0.699000001 | AQ35: 0.4905999899 | AR35: 0.8334000111 | AS35: 0.3400000036 | AT35: 0.1525000036 | AU35: 0.9057999849 | AV35: Stichprobe chronologisch | AW35: 0.510800004 | AX35: 0.788500011 | AY35: 0.6147999763 | AZ35: 0.3454999924 | BA35: 0.9624999762 | BB35: 0.3711999953 | BC35: 0.3036000133 | BD35: 31 | BE35: 31 | BF35: =IF('Eingabe Daten'!E35<>"",'Eingabe Daten'!E35,BF34) -> 74.009 | BG35: =IF('Eingabe Daten'!F35<>"",'Eingabe Daten'!F35,BG34) -> 73.994 | BH35: =IF('Eingabe Daten'!G35<>"",'Eingabe Daten'!G35,BH34) -> 73.997 | BI35: =IF('Eingabe Daten'!H35<>"",'Eingabe Daten'!H35,BI34) -> 73.985 | BJ35: =IF('Eingabe Daten'!I35<>"",'Eingabe Daten'!I35,BJ34) -> 73.993 | BK35: 0.2186000049 | BL35: 74.05 | BM35: 73.95 | BN35: 73.99099762 | BO35: 74.01135438 | BP35: 73.98081924 | BQ35: 74.02153276 | BR35: 73.97064086 | BS35: 74.03171114 | BT35: 74.001176 | BU35: 0.773999989 | BV35: 0.8938999772 | BW35: 0.1137000024 | BX35: 0.9039000273 | BY35: 0.6216999888 | BZ35: 0.8902000189 | CA35: 0.7569000125 | CB35: 0.3280000091 | CC35: 0.5382999778 | CD35: 0.8241999745 | CE35: 31 | CF35: 73.99 | CG35: 31 | CH35: 0.1360992608 | CI35: 0.8639007392 | CJ35: 0.1226831577 | CK35: -249.6437811 | CL35: -1.162068435 | CM35: 0.1533000022 | CN35: 0.793299973 | CO35: 0.4287 | CP35: 0.543900013 | CQ35: 0.07150000334 | CR35: 0.05660000071 | CS35: 0.8353999853 | CT35: 0.9842000008 | CU35: 0.01930000074 | CV35: 0.6567000151
A36: 32 | B36: =IF('Eingabe Daten'!E36="","",'Eingabe Daten'!E36) -> 73.995 | C36: =IF('Eingabe Daten'!F36="","",'Eingabe Daten'!F36) -> 74.006 | D36: =IF('Eingabe Daten'!G36="","",'Eingabe Daten'!G36) -> 73.994 | E36: =IF('Eingabe Daten'!H36="","",'Eingabe Daten'!H36) -> 74 | F36: =IF('Eingabe Daten'!I36="","",'Eingabe Daten'!I36) -> 74.005 | H36: 74 | I36: 0.004939635614 | J36: 0.012 | L36: 32 | M36: 74.001176 | N36: 74 | O36: 74.01458548 | P36: 73.98776652 | Q36: 0.02324 | R36: 0.012 | S36: 0.0491526 | V36: 32 | W36: 74.006 | X36: 0 | Y36: 0 | AC36: =IF($C$20="","",$C$20) -> 73.984 | AF36: =IF($C$15="","",$C$15) -> 73.998 | AI36: =IF($E$12="","",$E$12) -> 74.015 | AL36: =IF($C$11="","",$C$11) -> 74.006 | AM36: 0.9542999864 | AN36: 0.120099999 | AO36: 0.3846000135 | AP36: 0.4927999973 | AQ36: 0.9000999928 | AR36: 0.1694999933 | AS36: 0.8255000114 | AT36: 0.6528000236 | AU36: 0.222299993 | AV36: Test auf Normalverteilung (Anderson Darling) | AW36: 0.04679999873 | AX36: 0.9114999771 | AY36: 0.4907999933 | AZ36: 0.6704999804 | BA36: 0.06589999795 | BB36: 0.01370000001 | BC36: 0.9559000134 | BD36: 32 | BE36: 32 | BF36: =IF('Eingabe Daten'!E36<>"",'Eingabe Daten'!E36,BF35) -> 73.995 | BG36: =IF('Eingabe Daten'!F36<>"",'Eingabe Daten'!F36,BG35) -> 74.006 | BH36: =IF('Eingabe Daten'!G36<>"",'Eingabe Daten'!G36,BH35) -> 73.994 | BI36: =IF('Eingabe Daten'!H36<>"",'Eingabe Daten'!H36,BI35) -> 74 | BJ36: =IF('Eingabe Daten'!I36<>"",'Eingabe Daten'!I36,BJ35) -> 74.005 | BK36: 0.2099999934 | BL36: 74.05 | BM36: 73.95 | BN36: 73.99099762 | BO36: 74.01135438 | BP36: 73.98081924 | BQ36: 74.02153276 | BR36: 73.97064086 | BS36: 74.03171114 | BT36: 74.001176 | BU36: 0.8930000067 | BV36: 0.445600003 | BW36: 0.1700000018 | BX36: 0.2876000106 | BY36: 0.7501999736 | BZ36: 0.8539000154 | CA36: 0.2560000122 | CB36: 0.347299993 | CC36: 0.8680999875 | CD36: 0.8586999774 | CE36: 32 | CF36: 73.99 | CG36: 32 | CH36: 0.1360992608 | CI36: 0.8639007392 | CJ36: 0.1226831577 | CK36: -257.8288231 | CL36: -1.142623635 | CM36: 0.4158000052 | CN36: 0.5957000256 | CO36: 0.1896000057 | CP36: 0.9442999959 | CQ36: 0.2585999966 | CR36: 0.01769999973 | CS36: 0.3222000003 | CT36: 0.600300014 | CU36: 0.3790000081 | CV36: 0.6421999931
A37: 33 | B37: =IF('Eingabe Daten'!E37="","",'Eingabe Daten'!E37) -> 73.985 | C37: =IF('Eingabe Daten'!F37="","",'Eingabe Daten'!F37) -> 74.003 | D37: =IF('Eingabe Daten'!G37="","",'Eingabe Daten'!G37) -> 73.993 | E37: =IF('Eingabe Daten'!H37="","",'Eingabe Daten'!H37) -> 74.015 | F37: =IF('Eingabe Daten'!I37="","",'Eingabe Daten'!I37) -> 73.988 | H37: 73.9968 | I37: 0.01096175168 | J37: 0.03 | L37: 33 | M37: =IF(H37="",NA(),xquerquer) -> 74.001176 | N37: =IF(H37="",NA(),H37) -> 73.9968 | O37: =IF(H37="",NA(),xquerquer+(Azwei*Rquer)) -> 74.01458548 | P37: =IF(H37="",NA(),xquerquer-(Azwei*Rquer)) -> 73.98776652 | Q37: =IF(H37="",NA(),Rquer) -> 0.02324 | R37: 0.03 | S37: =IF(H37="",NA(),Dvier*Rquer) -> 0.0491526 | V37: 33 | W37: 73.994 | X37: 0 | Y37: 0 | AB37: E21 | AC37: =IF($B$21="","",$B$21) -> 73.994 | AF37: =IF($D$15="","",$D$15) -> 73.994 | AH37: E13 | AI37: =IF($B$13="","",$B$13) -> 74.008 | AL37: =IF($D$11="","",$D$11) -> 73.994 | AM37: 0.7419999838 | AN37: 0.7113000154 | AO37: 0.1849000007 | AP37: 0.05759999901 | AQ37: 0.2460999936 | AR37: 0.198300004 | AS37: 0.9761000276 | AT37: 0.1774999946 | AU37: 0.6560999751 | AV37: Prozess- und Maschinenfähigkeit | AW37: 0.9089999795 | AX37: 0.2718000114 | AY37: 0.2565000057 | AZ37: 0.7710999846 | BA37: 0.7585999966 | BB37: 0.389200002 | BC37: 0.1553000063 | BD37: 33 | BE37: =IF((AnzahlderStichproben>BD37),BD37,AnzahlderStichproben) -> 33 | BF37: =IF('Eingabe Daten'!E37<>"",'Eingabe Daten'!E37,BF36) -> 73.985 | BG37: =IF('Eingabe Daten'!F37<>"",'Eingabe Daten'!F37,BG36) -> 74.003 | BH37: =IF('Eingabe Daten'!G37<>"",'Eingabe Daten'!G37,BH36) -> 73.993 | BI37: =IF('Eingabe Daten'!H37<>"",'Eingabe Daten'!H37,BI36) -> 74.015 | BJ37: =IF('Eingabe Daten'!I37<>"",'Eingabe Daten'!I37,BJ36) -> 73.988 | BK37: 0.570900023 | BL37: =IF(W37<>"",OGW,BL36) -> 74.05 | BM37: 73.95 | BN37: 73.99099762 | BO37: 74.01135438 | BP37: 73.98081924 | BQ37: 74.02153276 | BR37: 73.97064086 | BS37: 74.03171114 | BT37: 74.001176 | BU37: 0.1202000007 | BV37: 0.271600008 | BW37: 0.8569999933 | BX37: 0.6690999866 | BY37: 0.4654000103 | BZ37: 0.5662000179 | CA37: 0.2322999984 | CB37: 0.01620000042 | CC37: 0.255400002 | CD37: 0.9524999857 | CE37: 33 | CF37: 73.99 | CG37: 33 | CH37: 0.1360992608 | CI37: =IF(W37="","",1-CH37) -> 0.8639007392 | CJ37: 0.1226831577 | CK37: =IF(W37="","",(2*CG37-1)*(LN(CJ37)+LN(CH37))) -> -266.0138651 | CL37: -1.123601526 | CM37: 0.05510000139 | CN37: 0.8528000116 | CO37: 0.08089999855 | CP37: 0.7203999758 | CQ37: 0.2682999969 | CR37: 0.9125000238 | CS37: 0.05330000073 | CT37: 0.5981000066 | CU37: 0.4995000064 | CV37: 0.8754000068
A38: 34 | B38: =IF('Eingabe Daten'!E38="","",'Eingabe Daten'!E38) -> 74.008 | C38: =IF('Eingabe Daten'!F38="","",'Eingabe Daten'!F38) -> 73.995 | D38: =IF('Eingabe Daten'!G38="","",'Eingabe Daten'!G38) -> 74.009 | E38: =IF('Eingabe Daten'!H38="","",'Eingabe Daten'!H38) -> 74.005 | F38: =IF('Eingabe Daten'!I38="","",'Eingabe Daten'!I38) -> 74.004 | H38: 74.0042 | I38: 0.004955804677 | J38: 0.014 | L38: 34 | M38: 74.001176 | N38: 74.0042 | O38: 74.01458548 | P38: 73.98776652 | Q38: 0.02324 | R38: 0.014 | S38: 0.0491526 | V38: 34 | W38: 74 | X38: 0 | Y38: 0 | AC38: =IF($C$21="","",$C$21) -> 74.012 | AE38: E16 | AF38: =IF($B$16="","",$B$16) -> 74.004 | AI38: =IF($C$13="","",$C$13) -> 73.995 | AL38: =IF($E$11="","",$E$11) -> 74 | AM38: 0.4453000128 | AN38: 0.8306999803 | AO38: 0.826399982 | AP38: 0.07079999894 | AQ38: 0.5809999704 | AR38: 0.507799983 | AS38: 0.7925000191 | AT38: 0.4307000041 | AU38: 0.9771000147 | AV38: 0.141900003 | AW38: 0.6726999879 | AX38: 0.6927000284 | AY38: 0.7333999872 | AZ38: 0.4964999855 | BA38: 0.9890000224 | BB38: 0.8532000184 | BC38: 0.172999993 | BD38: 34 | BE38: 34 | BF38: =IF('Eingabe Daten'!E38<>"",'Eingabe Daten'!E38,BF37) -> 74.008 | BG38: =IF('Eingabe Daten'!F38<>"",'Eingabe Daten'!F38,BG37) -> 73.995 | BH38: =IF('Eingabe Daten'!G38<>"",'Eingabe Daten'!G38,BH37) -> 74.009 | BI38: =IF('Eingabe Daten'!H38<>"",'Eingabe Daten'!H38,BI37) -> 74.005 | BJ38: =IF('Eingabe Daten'!I38<>"",'Eingabe Daten'!I38,BJ37) -> 74.004 | BK38: 0.6642000079 | BL38: 74.05 | BM38: 73.95 | BN38: =BN37 -> 73.99099762 | BO38: 74.01135438 | BP38: 73.98081924 | BQ38: 74.02153276 | BR38: 73.97064086 | BS38: 74.03171114 | BT38: 74.001176 | BU38: 0.2763000131 | BV38: 0.8705000281 | BW38: 0.7336000204 | BX38: 0.3946999907 | BY38: 0.09749999642 | BZ38: 0.6179999709 | CA38: 0.1076000035 | CB38: 0.6733999848 | CC38: 0.3097000122 | CD38: 0.08720000088 | CE38: 34 | CF38: 73.99 | CG38: =IF(W38="","",1+CG37) -> 34 | CH38: 0.1360992608 | CI38: 0.8639007392 | CJ38: 0.1226831577 | CK38: -274.1989071 | CL38: -1.104977522 | CM38: 0.6328999996 | CN38: 0.548699975 | CO38: 0.579400003 | CP38: 0.8407999873 | CQ38: 0.9337000251 | CR38: 0.2109999955 | CS38: 0.1483999938 | CT38: 0.7161999941 | CU38: 0.8108000159 | CV38: 0.3203000128
A39: 35 | B39: =IF('Eingabe Daten'!E39="","",'Eingabe Daten'!E39) -> 73.998 | C39: =IF('Eingabe Daten'!F39="","",'Eingabe Daten'!F39) -> 74 | D39: =IF('Eingabe Daten'!G39="","",'Eingabe Daten'!G39) -> 73.99 | E39: =IF('Eingabe Daten'!H39="","",'Eingabe Daten'!H39) -> 74.007 | F39: =IF('Eingabe Daten'!I39="","",'Eingabe Daten'!I39) -> 73.995 | H39: 73.998 | I39: 0.005621387729 | J39: 0.017 | L39: 35 | M39: 74.001176 | N39: 73.998 | O39: 74.01458548 | P39: 73.98776652 | Q39: 0.02324 | R39: 0.017 | S39: 0.0491526 | V39: 35 | W39: 74.005 | X39: 0 | Y39: 0 | AB39: E22 | AC39: =IF($B$22="","",$B$22) -> 74.006 | AF39: =IF($C$16="","",$C$16) -> 74 | AI39: =IF($D$13="","",$D$13) -> 74.009 | AL39: =IF($F$11="","",$F$11) -> 74.005 | AM39: 0.8492000103 | AN39: 0.7779999971 | AO39: 0.3824000061 | AP39: =COUNT(Berechnung!B5:F5) -> 5 | AQ39: =VLOOKUP(AP39,AR20:AS24,2,FALSE) -> 0.577 | AR39: =VLOOKUP(AP39,AR20:AT24,3,FALSE) -> 2.115 | AS39: 0.5842999816 | AT39: 0.3709000051 | AU39: 0.5217000246 | AV39: 0.4747000039 | AW39: 0.5868999958 | AX39: 0.774600029 | AY39: 0.3264999986 | AZ39: 0.2626999915 | BA39: 0.8658999801 | BB39: 0.2590000033 | BC39: 0.1586000025 | BD39: 35 | BE39: 35 | BF39: =IF('Eingabe Daten'!E39<>"",'Eingabe Daten'!E39,BF38) -> 73.998 | BG39: =IF('Eingabe Daten'!F39<>"",'Eingabe Daten'!F39,BG38) -> 74 | BH39: =IF('Eingabe Daten'!G39<>"",'Eingabe Daten'!G39,BH38) -> 73.99 | BI39: =IF('Eingabe Daten'!H39<>"",'Eingabe Daten'!H39,BI38) -> 74.007 | BJ39: =IF('Eingabe Daten'!I39<>"",'Eingabe Daten'!I39,BJ38) -> 73.995 | BK39: 0.1603000015 | BL39: 74.05 | BM39: 73.95 | BN39: 73.99099762 | BO39: 74.01135438 | BP39: 73.98081924 | BQ39: 74.02153276 | BR39: 73.97064086 | BS39: 74.03171114 | BT39: 74.001176 | BU39: 0.2415000051 | BV39: 0.1764000058 | BW39: 0.523999989 | BX39: 0.9617000222 | BY39: 0.3941999972 | BZ39: 0.2976000011 | CA39: 0.6722000241 | CB39: 0.2313999981 | CC39: 0.692900002 | CD39: 0.3285000026 | CE39: 35 | CF39: 73.99 | CG39: 35 | CH39: 0.1360992608 | CI39: 0.8639007392 | CJ39: 0.1437933904 | CK39: -271.4286534 | CL39: -1.0867291 | CM39: 0.04870000109 | CN39: 0.9448999763 | CO39: 0.2732000053 | CP39: 0.6747000217 | CQ39: 0.9984999895 | CR39: 0.3797999918 | CS39: 0.3653999865 | CT39: 0.4580000043 | CU39: 0.7192999721 | CV39: 0.2556999922
A40: 36 | B40: =IF('Eingabe Daten'!E40="","",'Eingabe Daten'!E40) -> 73.994 | C40: =IF('Eingabe Daten'!F40="","",'Eingabe Daten'!F40) -> 73.998 | D40: =IF('Eingabe Daten'!G40="","",'Eingabe Daten'!G40) -> 73.994 | E40: =IF('Eingabe Daten'!H40="","",'Eingabe Daten'!H40) -> 73.995 | F40: =IF('Eingabe Daten'!I40="","",'Eingabe Daten'!I40) -> 73.99 | H40: 73.9942 | I40: 0.002561249695 | J40: 0.008 | L40: 36 | M40: 74.001176 | N40: 73.9942 | O40: 74.01458548 | P40: 73.98776652 | Q40: 0.02324 | R40: 0.008 | S40: 0.0491526 | V40: 36 | W40: 73.985 | X40: 0 | Y40: 0 | AC40: =IF($C$22="","",$C$22) -> 74.01 | AF40: =IF($D$16="","",$D$16) -> 74.007 | AI40: =IF($E$13="","",$E$13) -> 74.005 | AK40: E12 | AL40: =IF($B$12="","",$B$12) -> 73.985 | AM40: 0.872600019 | AN40: 0.7813000083 | AO40: 0.4643000066 | AP40: =COUNT(B5:B54) -> 50 | AQ40: 0.1254999936 | AR40: 0.1988999993 | AS40: 0.2450000048 | AT40: 0.9955000281 | AU40: 0.01569999941 | AV40: 0.3276000023 | AW40: 0.7117999792 | AX40: 0.2867999971 | AY40: 0.3167999983 | AZ40: 0.1491000056 | BA40: 0.3228000104 | BB40: 0.4772000015 | BC40: 0.9244999886 | BD40: 36 | BE40: 36 | BF40: =IF('Eingabe Daten'!E40<>"",'Eingabe Daten'!E40,BF39) -> 73.994 | BG40: =IF('Eingabe Daten'!F40<>"",'Eingabe Daten'!F40,BG39) -> 73.998 | BH40: =IF('Eingabe Daten'!G40<>"",'Eingabe Daten'!G40,BH39) -> 73.994 | BI40: =IF('Eingabe Daten'!H40<>"",'Eingabe Daten'!H40,BI39) -> 73.995 | BJ40: =IF('Eingabe Daten'!I40<>"",'Eingabe Daten'!I40,BJ39) -> 73.99 | BK40: 0.03909999877 | BL40: 74.05 | BM40: 73.95 | BN40: 73.99099762 | BO40: 74.01135438 | BP40: 73.98081924 | BQ40: 74.02153276 | BR40: 73.97064086 | BS40: 74.03171114 | BT40: 74.001176 | BU40: 0.7634000182 | BV40: 0.07389999926 | BW40: 0.6298000216 | BX40: 0.6869999766 | BY40: 0.7779999971 | BZ40: 0.4052000046 | CA40: 0.7599999905 | CB40: 0.1736000031 | CC40: 0.9366000295 | CD40: 0.3240999877 | CE40: 36 | CF40: 73.99 | CG40: 36 | CH40: 0.1360992608 | CI40: 0.8639007392 | CJ40: 0.1437933904 | CK40: -279.2961506 | CL40: -1.068835566 | CM40: 0.06909999996 | CN40: 0.2994999886 | CO40: 0.6499999762 | CP40: 0.1608999968 | CQ40: 0.8783000112 | CR40: 0.1631000042 | CS40: 0.4352000058 | CT40: 0.926699996 | CU40: 0.4670000076 | CV40: 0.9890000224
A41: 37 | B41: =IF('Eingabe Daten'!E41="","",'Eingabe Daten'!E41) -> 74.004 | C41: =IF('Eingabe Daten'!F41="","",'Eingabe Daten'!F41) -> 74 | D41: =IF('Eingabe Daten'!G41="","",'Eingabe Daten'!G41) -> 74.007 | E41: =IF('Eingabe Daten'!H41="","",'Eingabe Daten'!H41) -> 74 | F41: =IF('Eingabe Daten'!I41="","",'Eingabe Daten'!I41) -> 73.996 | H41: 74.0014 | I41: 0.003773592453 | J41: 0.011 | L41: 37 | M41: 74.001176 | N41: 74.0014 | O41: 74.01458548 | P41: 73.98776652 | Q41: 0.02324 | R41: 0.011 | S41: 0.0491526 | V41: 37 | W41: 74.003 | X41: 0 | Y41: 0 | AB41: E23 | AC41: =IF($B$23="","",$B$23) -> 73.984 | AE41: E17 | AF41: =IF($B$17="","",$B$17) -> 73.983 | AH41: E14 | AI41: =IF($B$14="","",$B$14) -> 73.998 | AL41: =IF($C$12="","",$C$12) -> 74.003 | AM41: 0.431400001 | AN41: 0.766200006 | AO41: 0.7131999731 | AP41: 0.2055999935 | AQ41: 0.1657000035 | AR41: 0.6613000035 | AS41: 0.9842000008 | AT41: 0.7736999989 | AU41: 0.5681999922 | AV41: 0.3837000132 | AW41: 0.2772000134 | AX41: 0.7642999887 | AY41: 0.2381000072 | AZ41: 0.6984000206 | BA41: 0.6096000075 | BB41: 0.1870999932 | BC41: 0.9592000246 | BD41: 37 | BE41: 37 | BF41: =IF('Eingabe Daten'!E41<>"",'Eingabe Daten'!E41,BF40) -> 74.004 | BG41: =IF('Eingabe Daten'!F41<>"",'Eingabe Daten'!F41,BG40) -> 74 | BH41: =IF('Eingabe Daten'!G41<>"",'Eingabe Daten'!G41,BH40) -> 74.007 | BI41: =IF('Eingabe Daten'!H41<>"",'Eingabe Daten'!H41,BI40) -> 74 | BJ41: =IF('Eingabe Daten'!I41<>"",'Eingabe Daten'!I41,BJ40) -> 73.996 | BK41: 0.8166999817 | BL41: 74.05 | BM41: 73.95 | BN41: 73.99099762 | BO41: 74.01135438 | BP41: 73.98081924 | BQ41: 74.02153276 | BR41: 73.97064086 | BS41: 74.03171114 | BT41: 74.001176 | BU41: 0.6603999734 | BV41: 0.06830000132 | BW41: 0.4654000103 | BX41: 0.09910000116 | BY41: 0.6600000262 | BZ41: 0.7786999941 | CA41: 0.4564999938 | CB41: 0.008999999613 | CC41: 0.5313000083 | CD41: 0.6121000051 | CE41: 37 | CF41: 73.99 | CG41: 37 | CH41: 0.1360992608 | CI41: 0.8639007392 | CJ41: 0.1437933904 | CK41: -287.1636478 | CL41: -1.051277865 | CM41: 0.8636000156 | CN41: 0.3149999976 | CO41: 0.280400008 | CP41: 0.6133000255 | CQ41: 0.3652000129 | CR41: 0.5450000167 | CS41: 0.6366000175 | CT41: 0.6560999751 | CU41: 0.1520999968 | CV41: 0.6883999705
A42: 38 | B42: =IF('Eingabe Daten'!E42="","",'Eingabe Daten'!E42) -> 73.983 | C42: =IF('Eingabe Daten'!F42="","",'Eingabe Daten'!F42) -> 74.002 | D42: =IF('Eingabe Daten'!G42="","",'Eingabe Daten'!G42) -> 73.998 | E42: =IF('Eingabe Daten'!H42="","",'Eingabe Daten'!H42) -> 73.997 | F42: =IF('Eingabe Daten'!I42="","",'Eingabe Daten'!I42) -> 74.012 | H42: 73.9984 | I42: 0.009350935782 | J42: 0.029 | L42: 38 | M42: 74.001176 | N42: 73.9984 | O42: 74.01458548 | P42: 73.98776652 | Q42: 0.02324 | R42: 0.029 | S42: 0.0491526 | V42: 38 | W42: 73.993 | X42: 0 | Y42: 0 | AC42: =IF($C$23="","",$C$23) -> 74.002 | AF42: =IF($C$17="","",$C$17) -> 74.002 | AI42: =IF($C$14="","",$C$14) -> 74 | AL42: =IF($D$12="","",$D$12) -> 73.993 | AM42: 0.9438999891 | AN42: 0.7714999914 | AO42: 0.9437000155 | AP42: 0.1499000043 | AQ42: 0.300999999 | AR42: 0.7261000276 | AS42: 0.2531000078 | AT42: 0.9521999955 | AU42: 0.9519000053 | AV42: 0.8496000171 | AW42: 0.9032999873 | AX42: 0.1894000024 | AY42: 0.9272000194 | AZ42: 0.1136000007 | BA42: 0.7922000289 | BB42: 0.7299000025 | BC42: 0.9337999821 | BD42: 38 | BE42: 38 | BF42: =IF('Eingabe Daten'!E42<>"",'Eingabe Daten'!E42,BF41) -> 73.983 | BG42: =IF('Eingabe Daten'!F42<>"",'Eingabe Daten'!F42,BG41) -> 74.002 | BH42: =IF('Eingabe Daten'!G42<>"",'Eingabe Daten'!G42,BH41) -> 73.998 | BI42: =IF('Eingabe Daten'!H42<>"",'Eingabe Daten'!H42,BI41) -> 73.997 | BJ42: =IF('Eingabe Daten'!I42<>"",'Eingabe Daten'!I42,BJ41) -> 74.012 | BK42: 0.4593000114 | BL42: 74.05 | BM42: 73.95 | BN42: 73.99099762 | BO42: 74.01135438 | BP42: 73.98081924 | BQ42: 74.02153276 | BR42: 73.97064086 | BS42: 74.03171114 | BT42: 74.001176 | BU42: 0.9086999893 | BV42: 0.1697999984 | BW42: 0.4961999953 | BX42: 0.3758000135 | BY42: 0.59799999 | BZ42: 0.03570000082 | CA42: 0.3468999863 | CB42: 0.7281000018 | CC42: 0.0775000006 | CD42: 0.2381000072 | CE42: 38 | CF42: 73.99 | CG42: 38 | CH42: 0.1360992608 | CI42: 0.8639007392 | CJ42: 0.1437933904 | CK42: -295.031145 | CL42: -1.034038402 | CM42: 0.06710000336 | CN42: 0.8353000283 | CO42: 0.2021999955 | CP42: 0.7743999958 | CQ42: 0.9771000147 | CR42: 0.7990000248 | CS42: 0.4805000126 | CT42: 0.6819000244 | CU42: 0.2772000134 | CV42: 0.08070000261
A43: 39 | B43: =IF('Eingabe Daten'!E43="","",'Eingabe Daten'!E43) -> 74.006 | C43: =IF('Eingabe Daten'!F43="","",'Eingabe Daten'!F43) -> 73.967 | D43: =IF('Eingabe Daten'!G43="","",'Eingabe Daten'!G43) -> 73.994 | E43: =IF('Eingabe Daten'!H43="","",'Eingabe Daten'!H43) -> 74 | F43: =IF('Eingabe Daten'!I43="","",'Eingabe Daten'!I43) -> 73.984 | H43: 73.9902 | I43: 0.01368795091 | J43: 0.039 | L43: 39 | M43: 74.001176 | N43: 73.9902 | O43: 74.01458548 | P43: 73.98776652 | Q43: 0.02324 | R43: 0.039 | S43: 0.0491526 | V43: 39 | W43: 74.015 | X43: 0 | Y43: 0 | AB43: E24 | AC43: =IF($B$24="","",$B$24) -> 74 | AF43: =IF($D$17="","",$D$17) -> 73.998 | AI43: =IF($D$14="","",$D$14) -> 73.99 | AL43: =IF($E$12="","",$E$12) -> 74.015 | AM43: 0.3397000134 | AN43: 0.2413000017 | AO43: 0.4379999936 | AP43: 0.3307000101 | AQ43: 0.6417000294 | AR43: 0.4295000136 | AS43: 0.8417000175 | AT43: 0.4657999873 | AU43: 0.4485000074 | AV43: 0.622600019 | AW43: 0.6715999842 | AX43: 0.997600019 | AY43: 0.03799999878 | AZ43: 0.5496000051 | BA43: 0.0540000014 | BB43: 0.6104000211 | BC43: 0.169599995 | BD43: 39 | BE43: 39 | BF43: =IF('Eingabe Daten'!E43<>"",'Eingabe Daten'!E43,BF42) -> 74.006 | BG43: =IF('Eingabe Daten'!F43<>"",'Eingabe Daten'!F43,BG42) -> 73.967 | BH43: =IF('Eingabe Daten'!G43<>"",'Eingabe Daten'!G43,BH42) -> 73.994 | BI43: =IF('Eingabe Daten'!H43<>"",'Eingabe Daten'!H43,BI42) -> 74 | BJ43: =IF('Eingabe Daten'!I43<>"",'Eingabe Daten'!I43,BJ42) -> 73.984 | BK43: 0.4948999882 | BL43: 74.05 | BM43: 73.95 | BN43: 73.99099762 | BO43: 74.01135438 | BP43: 73.98081924 | BQ43: 74.02153276 | BR43: 73.97064086 | BS43: 74.03171114 | BT43: 74.001176 | BU43: 0.4478999972 | BV43: 0.9896000028 | BW43: 0.5996999741 | BX43: 0.7516999841 | BY43: 0.2858999968 | BZ43: 0.899600029 | CA43: 0.847299993 | CB43: 0.3253999949 | CC43: 0.8650000095 | CD43: 0.5121999979 | CE43: 39 | CF43: 73.992 | CG43: 39 | CH43: 0.183656288 | CI43: 0.816343712 | CJ43: 0.1437933904 | CK43: -279.8231642 | CL43: -1.017100902 | CM43: 0.2099999934 | CN43: 0.8859999776 | CO43: 0.4869999886 | CP43: 0.9843999743 | CQ43: 0.02910000086 | CR43: 0.9721000195 | CS43: 0.8492000103 | CT43: 0.2867000103 | CU43: 0.205400005 | CV43: 0.4431999922
A44: 40 | B44: =IF('Eingabe Daten'!E44="","",'Eingabe Daten'!E44) -> 74.012 | C44: =IF('Eingabe Daten'!F44="","",'Eingabe Daten'!F44) -> 74.014 | D44: =IF('Eingabe Daten'!G44="","",'Eingabe Daten'!G44) -> 73.998 | E44: =IF('Eingabe Daten'!H44="","",'Eingabe Daten'!H44) -> 73.999 | F44: =IF('Eingabe Daten'!I44="","",'Eingabe Daten'!I44) -> 74.007 | H44: 74.006 | I44: 0.006542170894 | J44: 0.016 | L44: 40 | M44: 74.001176 | N44: 74.006 | O44: 74.01458548 | P44: 73.98776652 | Q44: 0.02324 | R44: 0.016 | S44: 0.0491526 | V44: 40 | W44: 73.988 | X44: 0 | Y44: 0 | AC44: =IF($C$24="","",$C$24) -> 74.01 | AE44: E18 | AF44: =IF($B$18="","",$B$18) -> 74.006 | AI44: =IF($E$14="","",$E$14) -> 74.007 | AL44: =IF($F$12="","",$F$12) -> 73.988 | AM44: 0.685100019 | AN44: 0.2811999917 | AO44: 0.9653000236 | AP44: 0.1835000068 | AQ44: 0.6549000144 | AR44: 0.04980000108 | AS44: 0.8755000234 | AT44: 0.05460000038 | AU44: 0.4862000048 | AV44: 0.4722000062 | AW44: 0.1094999984 | AX44: 0.09880000353 | AY44: 0.3646000028 | AZ44: 0.0540000014 | BA44: 0.9628999829 | BB44: 0.992200017 | BC44: 0.5742999911 | BD44: 40 | BE44: 40 | BF44: =IF('Eingabe Daten'!E44<>"",'Eingabe Daten'!E44,BF43) -> 74.012 | BG44: =IF('Eingabe Daten'!F44<>"",'Eingabe Daten'!F44,BG43) -> 74.014 | BH44: =IF('Eingabe Daten'!G44<>"",'Eingabe Daten'!G44,BH43) -> 73.998 | BI44: =IF('Eingabe Daten'!H44<>"",'Eingabe Daten'!H44,BI43) -> 73.999 | BJ44: =IF('Eingabe Daten'!I44<>"",'Eingabe Daten'!I44,BJ43) -> 74.007 | BK44: 0.005100000184 | BL44: 74.05 | BM44: 73.95 | BN44: 73.99099762 | BO44: 74.01135438 | BP44: 73.98081924 | BQ44: 74.02153276 | BR44: 73.97064086 | BS44: 74.03171114 | BT44: 74.001176 | BU44: 0.6186000109 | BV44: 0.7477999926 | BW44: 0.3889000118 | BX44: 0.5674999952 | BY44: 0.1633999944 | BZ44: 0.6686000228 | CA44: 0.2117000073 | CB44: 0.5934000015 | CC44: 0.8524000049 | CD44: 0.5508000255 | CE44: 40 | CF44: 73.992 | CG44: 40 | CH44: 0.183656288 | CI44: 0.816343712 | CJ44: 0.1437933904 | CK44: -287.0912983 | CL44: -1.000450272 | CM44: 0.9667000175 | CN44: 0.3736999929 | CO44: 0.6258999705 | CP44: 0.1368999928 | CQ44: 0.7386999726 | CR44: 0.7159000039 | CS44: 0.8738999963 | CT44: 0.8188999891 | CU44: 0.6646999717 | CV44: 0.2721999884
A45: 41 | B45: =IF('Eingabe Daten'!E45="","",'Eingabe Daten'!E45) -> 74 | C45: =IF('Eingabe Daten'!F45="","",'Eingabe Daten'!F45) -> 73.984 | D45: =IF('Eingabe Daten'!G45="","",'Eingabe Daten'!G45) -> 74.005 | E45: =IF('Eingabe Daten'!H45="","",'Eingabe Daten'!H45) -> 73.998 | F45: =IF('Eingabe Daten'!I45="","",'Eingabe Daten'!I45) -> 73.996 | H45: 73.9966 | I45: 0.00697423831 | J45: 0.021 | L45: 41 | M45: 74.001176 | N45: 73.9966 | O45: 74.01458548 | P45: 73.98776652 | Q45: 0.02324 | R45: 0.021 | S45: 0.0491526 | V45: 41 | W45: 74.008 | X45: 0 | Y45: 0 | AB45: E25 | AC45: =IF($B$25="","",$B$25) -> 73.982 | AF45: =IF($C$18="","",$C$18) -> 73.967 | AH45: E15 | AI45: =IF($B$15="","",$B$15) -> 73.994 | AK45: E13 | AL45: =IF($B$13="","",$B$13) -> 74.008 | AM45: 0.4524999857 | AN45: 0.5911999941 | AO45: 0.07379999757 | AP45: 0.1174999997 | AQ45: 0.9491999745 | AR45: 0.2538000047 | AS45: 0.8781999946 | AT45: 0.5777000189 | AU45: 0.1984000057 | AV45: 0.8657000065 | AW45: 0.2134999931 | AX45: 0.3082000017 | AY45: 0.04740000144 | AZ45: 0.4476999938 | BA45: 0.3300000131 | BB45: 0.6209999919 | BC45: 0.3718000054 | BD45: 41 | BE45: 41 | BF45: =IF('Eingabe Daten'!E45<>"",'Eingabe Daten'!E45,BF44) -> 74 | BG45: =IF('Eingabe Daten'!F45<>"",'Eingabe Daten'!F45,BG44) -> 73.984 | BH45: =IF('Eingabe Daten'!G45<>"",'Eingabe Daten'!G45,BH44) -> 74.005 | BI45: =IF('Eingabe Daten'!H45<>"",'Eingabe Daten'!H45,BI44) -> 73.998 | BJ45: =IF('Eingabe Daten'!I45<>"",'Eingabe Daten'!I45,BJ44) -> 73.996 | BK45: 0.9356999993 | BL45: 74.05 | BM45: 73.95 | BN45: 73.99099762 | BO45: 74.01135438 | BP45: 73.98081924 | BQ45: 74.02153276 | BR45: 73.97064086 | BS45: 74.03171114 | BT45: 74.001176 | BU45: 0.7325999737 | BV45: 0.06400000304 | BW45: 0.3411000073 | BX45: 0.3835999966 | BY45: 0.5716999769 | BZ45: 0.2480999976 | CA45: 0.9343000054 | CB45: 0.4167999923 | CC45: 0.2838999927 | CD45: 0.9262999892 | CE45: 41 | CF45: 73.992 | CG45: 41 | CH45: 0.183656288 | CI45: 0.816343712 | CJ45: 0.1672265766 | CK45: -282.1306876 | CL45: -0.9840724896 | CM45: 0.7056000233 | CN45: 0.9350000024 | CO45: 0.4824999869 | CP45: 0.3210000098 | CQ45: 0.8003000021 | CR45: 0.06539999694 | CS45: 0.09820000082 | CT45: 0.7024000287 | CU45: 0.2196999937 | CV45: 0.3659999967
A46: 42 | B46: =IF('Eingabe Daten'!E46="","",'Eingabe Daten'!E46) -> 73.994 | C46: =IF('Eingabe Daten'!F46="","",'Eingabe Daten'!F46) -> 74.012 | D46: =IF('Eingabe Daten'!G46="","",'Eingabe Daten'!G46) -> 73.986 | E46: =IF('Eingabe Daten'!H46="","",'Eingabe Daten'!H46) -> 74.005 | F46: =IF('Eingabe Daten'!I46="","",'Eingabe Daten'!I46) -> 74.007 | H46: 74.0008 | I46: 0.009453041838 | J46: 0.026 | L46: 42 | M46: 74.001176 | N46: 74.0008 | O46: 74.01458548 | P46: 73.98776652 | Q46: 0.02324 | R46: 0.026 | S46: 0.0491526 | V46: 42 | W46: 73.995 | X46: 0 | Y46: 0 | AC46: =IF($C$25="","",$C$25) -> 74.001 | AF46: =IF($D$18="","",$D$18) -> 73.994 | AI46: =IF($C$15="","",$C$15) -> 73.998 | AL46: =IF($C$13="","",$C$13) -> 73.995 | AM46: 0.7699000239 | AN46: 0.2169000059 | AO46: 0.337500006 | AP46: 0.2784999907 | AQ46: 0.4848000109 | AR46: 0.9649999738 | AS46: 0.6649000049 | AT46: 0.8314999938 | AU46: 0.4697000086 | AV46: 0.3291000128 | AW46: 0.8666999936 | AX46: 0.5936999917 | AY46: 0.3309000134 | AZ46: 0.5522999763 | BA46: 0.02630000003 | BB46: 0.8769000173 | BC46: 0.4454999864 | BD46: 42 | BE46: 42 | BF46: =IF('Eingabe Daten'!E46<>"",'Eingabe Daten'!E46,BF45) -> 73.994 | BG46: =IF('Eingabe Daten'!F46<>"",'Eingabe Daten'!F46,BG45) -> 74.012 | BH46: =IF('Eingabe Daten'!G46<>"",'Eingabe Daten'!G46,BH45) -> 73.986 | BI46: =IF('Eingabe Daten'!H46<>"",'Eingabe Daten'!H46,BI45) -> 74.005 | BJ46: =IF('Eingabe Daten'!I46<>"",'Eingabe Daten'!I46,BJ45) -> 74.007 | BK46: 0.5662000179 | BL46: 74.05 | BM46: 73.95 | BN46: 73.99099762 | BO46: 74.01135438 | BP46: 73.98081924 | BQ46: 74.02153276 | BR46: 73.97064086 | BS46: 74.03171114 | BT46: 74.001176 | BU46: 0.1618999988 | BV46: 0.1890999973 | BW46: 0.6017000079 | BX46: 0.06859999895 | BY46: 0.9916999936 | BZ46: 0.9380999804 | CA46: 0.8892999887 | CB46: 0.8524000049 | CC46: 0.9499999881 | CD46: 0.3837000132 | CE46: 42 | CF46: 73.992 | CG46: 42 | CH46: 0.183656288 | CI46: 0.816343712 | CJ46: 0.1672265766 | CK46: -289.0968774 | CL46: -0.9679545025 | CM46: 0.8406999707 | CN46: 0.3833000064 | CO46: 0.4523999989 | CP46: 0.8417999744 | CQ46: 0.8210999966 | CR46: 0.6277999878 | CS46: 0.4113999903 | CT46: 0.1368999928 | CU46: 0.6694999933 | CV46: 0.1317999959
A47: 43 | B47: =IF('Eingabe Daten'!E47="","",'Eingabe Daten'!E47) -> 74.006 | C47: =IF('Eingabe Daten'!F47="","",'Eingabe Daten'!F47) -> 74.01 | D47: =IF('Eingabe Daten'!G47="","",'Eingabe Daten'!G47) -> 74.018 | E47: =IF('Eingabe Daten'!H47="","",'Eingabe Daten'!H47) -> 74.003 | F47: =IF('Eingabe Daten'!I47="","",'Eingabe Daten'!I47) -> 74 | H47: 74.0074 | I47: 0.006248199741 | J47: 0.018 | L47: 43 | M47: 74.001176 | N47: 74.0074 | O47: 74.01458548 | P47: 73.98776652 | Q47: 0.02324 | R47: 0.018 | S47: 0.0491526 | V47: 43 | W47: 74.009 | X47: 0 | Y47: 0 | AB47: E26 | AC47: =IF($B$26="","",$B$26) -> 74.004 | AE47: E19 | AF47: =IF($B$19="","",$B$19) -> 74.012 | AI47: =IF($D$15="","",$D$15) -> 73.994 | AL47: =IF($D$13="","",$D$13) -> 74.009 | AM47: 0.002400000114 | AN47: 0.3054000139 | AO47: 0.5889999866 | AP47: 0.34799999 | AQ47: 0.6791999936 | AR47: 0.5487999916 | AS47: 0.287800014 | AT47: 0.2148000002 | AU47: 0.4393000007 | AV47: 0.4366999865 | AW47: 0.3693999946 | AX47: 0.9840000272 | AY47: 0.339899987 | AZ47: 0.3601000011 | BA47: 0.9733999968 | BB47: 0.298999995 | BC47: 0.2633999884 | BD47: 43 | BE47: 43 | BF47: =IF('Eingabe Daten'!E47<>"",'Eingabe Daten'!E47,BF46) -> 74.006 | BG47: =IF('Eingabe Daten'!F47<>"",'Eingabe Daten'!F47,BG46) -> 74.01 | BH47: =IF('Eingabe Daten'!G47<>"",'Eingabe Daten'!G47,BH46) -> 74.018 | BI47: =IF('Eingabe Daten'!H47<>"",'Eingabe Daten'!H47,BI46) -> 74.003 | BJ47: =IF('Eingabe Daten'!I47<>"",'Eingabe Daten'!I47,BJ46) -> 74 | BK47: 0.2343000025 | BL47: 74.05 | BM47: 73.95 | BN47: 73.99099762 | BO47: 74.01135438 | BP47: 73.98081924 | BQ47: 74.02153276 | BR47: 73.97064086 | BS47: 74.03171114 | BT47: 74.001176 | BU47: 0.6664999723 | BV47: 0.5228000283 | BW47: 0.9330999851 | BX47: 0.4521999955 | BY47: 0.5824000239 | BZ47: 0.3163999915 | CA47: 0.1784999967 | CB47: 0.08739999682 | CC47: 0.8129000068 | CD47: 0.4666999876 | CE47: 43 | CF47: 73.992 | CG47: 43 | CH47: 0.183656288 | CI47: 0.816343712 | CJ47: 0.19298866 | CK47: -283.8841149 | CL47: -0.9520841374 | CM47: 0.4512999952 | CN47: 0.3470999897 | CO47: 0.04870000109 | CP47: 0.9648000002 | CQ47: 0.5910999775 | CR47: 0.2755999863 | CS47: 0.4693999887 | CT47: 0.3339000046 | CU47: 0.8404999971 | CV47: 0.7073000073
A48: 44 | B48: =IF('Eingabe Daten'!E48="","",'Eingabe Daten'!E48) -> 73.984 | C48: =IF('Eingabe Daten'!F48="","",'Eingabe Daten'!F48) -> 74.002 | D48: =IF('Eingabe Daten'!G48="","",'Eingabe Daten'!G48) -> 74.003 | E48: =IF('Eingabe Daten'!H48="","",'Eingabe Daten'!H48) -> 74.005 | F48: =IF('Eingabe Daten'!I48="","",'Eingabe Daten'!I48) -> 73.997 | H48: 73.9982 | I48: 0.007573638492 | J48: 0.021 | L48: 44 | M48: 74.001176 | N48: 73.9982 | O48: 74.01458548 | P48: 73.98776652 | Q48: 0.02324 | R48: 0.021 | S48: 0.0491526 | V48: 44 | W48: 74.005 | X48: 0 | Y48: 0 | AC48: =IF($C$26="","",$C$26) -> 73.999 | AF48: =IF($C$19="","",$C$19) -> 74.014 | AI48: =IF($E$15="","",$E$15) -> 73.995 | AL48: =IF($E$13="","",$E$13) -> 74.005 | AM48: 0.8845999837 | AN48: 0.2075999975 | AO48: 0.1112999991 | AP48: 0.4695000052 | AQ48: 0.124499999 | AR48: 0.1580000073 | AS48: 0.4995999932 | AT48: 0.8360999823 | AU48: 0.6804000139 | AV48: 0.7738000154 | AW48: 0.05189999938 | AX48: 0.2301000059 | AY48: 0.5953000188 | AZ48: 0.9883000255 | BA48: 0.7806000113 | BB48: 0.1773000062 | BC48: 0.6046000123 | BD48: 44 | BE48: 44 | BF48: =IF('Eingabe Daten'!E48<>"",'Eingabe Daten'!E48,BF47) -> 73.984 | BG48: =IF('Eingabe Daten'!F48<>"",'Eingabe Daten'!F48,BG47) -> 74.002 | BH48: =IF('Eingabe Daten'!G48<>"",'Eingabe Daten'!G48,BH47) -> 74.003 | BI48: =IF('Eingabe Daten'!H48<>"",'Eingabe Daten'!H48,BI47) -> 74.005 | BJ48: =IF('Eingabe Daten'!I48<>"",'Eingabe Daten'!I48,BJ47) -> 73.997 | BK48: 0.6579999924 | BL48: 74.05 | BM48: 73.95 | BN48: 73.99099762 | BO48: 74.01135438 | BP48: 73.98081924 | BQ48: 74.02153276 | BR48: 73.97064086 | BS48: 74.03171114 | BT48: 74.001176 | BU48: 0.9291999936 | BV48: 0.5090000033 | BW48: 0.5267000198 | BX48: 0.3898999989 | BY48: 0.4885999858 | BZ48: 0.8152999878 | CA48: 0.9036999941 | CB48: 0.6204000115 | CC48: 0.9623000026 | CD48: 0.1483999938 | CE48: 44 | CF48: 73.992 | CG48: 44 | CH48: 0.183656288 | CI48: 0.816343712 | CJ48: 0.19298866 | CK48: -290.5637411 | CL48: -0.9364500216 | CM48: 0.891900003 | CN48: 0.9430999756 | CO48: 0.3819999993 | CP48: 0.975399971 | CQ48: 0.4025000036 | CR48: 0.6869999766 | CS48: 0.5735999942 | CT48: 0.3815000057 | CU48: 0.4921999872 | CV48: 0.7443000078
A49: 45 | B49: =IF('Eingabe Daten'!E49="","",'Eingabe Daten'!E49) -> 74 | C49: =IF('Eingabe Daten'!F49="","",'Eingabe Daten'!F49) -> 74.01 | D49: =IF('Eingabe Daten'!G49="","",'Eingabe Daten'!G49) -> 74.013 | E49: =IF('Eingabe Daten'!H49="","",'Eingabe Daten'!H49) -> 74.02 | F49: =IF('Eingabe Daten'!I49="","",'Eingabe Daten'!I49) -> 74.003 | H49: 74.0092 | I49: 0.007138627319 | J49: 0.02 | L49: 45 | M49: 74.001176 | N49: 74.0092 | O49: 74.01458548 | P49: 73.98776652 | Q49: 0.02324 | R49: 0.02 | S49: 0.0491526 | V49: 45 | W49: 74.004 | X49: 0 | Y49: 0 | AB49: E27 | AC49: =IF($B$27="","",$B$27) -> 74.01 | AF49: =IF($D$19="","",$D$19) -> 73.998 | AH49: E16 | AI49: =IF($B$16="","",$B$16) -> 74.004 | AL49: =IF($F$13="","",$F$13) -> 74.004 | AM49: 0.6722999811 | AN49: 0.5231999755 | AO49: 0.003800000064 | AP49: 0.6492000222 | AQ49: 0.8885999918 | AR49: 0.3314999938 | AS49: 0.4569999874 | AT49: 0.9053000212 | AU49: 0.5238000154 | AV49: 0.4650000036 | AW49: 0.1886000037 | AX49: 0.5641999841 | AY49: 0.2358999997 | AZ49: 0.5127999783 | BA49: 0.7437000275 | BB49: 0.05350000039 | BC49: 0.5544999838 | BD49: 45 | BE49: 45 | BF49: =IF('Eingabe Daten'!E49<>"",'Eingabe Daten'!E49,BF48) -> 74 | BG49: =IF('Eingabe Daten'!F49<>"",'Eingabe Daten'!F49,BG48) -> 74.01 | BH49: =IF('Eingabe Daten'!G49<>"",'Eingabe Daten'!G49,BH48) -> 74.013 | BI49: =IF('Eingabe Daten'!H49<>"",'Eingabe Daten'!H49,BI48) -> 74.02 | BJ49: =IF('Eingabe Daten'!I49<>"",'Eingabe Daten'!I49,BJ48) -> 74.003 | BK49: 0.4478999972 | BL49: 74.05 | BM49: 73.95 | BN49: 73.99099762 | BO49: 74.01135438 | BP49: 73.98081924 | BQ49: 74.02153276 | BR49: 73.97064086 | BS49: 74.03171114 | BT49: 74.001176 | BU49: 0.5159000158 | BV49: 0.2547000051 | BW49: 0.6471999884 | BX49: 0.3300999999 | BY49: 0.6380000114 | BZ49: 0.8319000006 | CA49: 0.3348999918 | CB49: 0.2594000101 | CC49: 0.1229000017 | CD49: 0.8091999888 | CE49: 45 | CF49: 73.993 | CG49: 45 | CH49: 0.210908979 | CI49: 0.789091021 | CJ49: 0.19298866 | CK49: -284.9292695 | CL49: -0.9210415127 | CM49: 0.3574000001 | CN49: 0.5788000226 | CO49: 0.2536999881 | CP49: 0.399300009 | CQ49: 0.8891000152 | CR49: 0.3276999891 | CS49: 0.224999994 | CT49: 0.08150000125 | CU49: 0.3045000136 | CV49: 0.9448999763
A50: 46 | B50: =IF('Eingabe Daten'!E50="","",'Eingabe Daten'!E50) -> 73.982 | C50: =IF('Eingabe Daten'!F50="","",'Eingabe Daten'!F50) -> 74.001 | D50: =IF('Eingabe Daten'!G50="","",'Eingabe Daten'!G50) -> 74.015 | E50: =IF('Eingabe Daten'!H50="","",'Eingabe Daten'!H50) -> 74.005 | F50: =IF('Eingabe Daten'!I50="","",'Eingabe Daten'!I50) -> 73.996 | H50: 73.9998 | I50: 0.01087014259 | J50: 0.033 | L50: 46 | M50: 74.001176 | N50: 73.9998 | O50: 74.01458548 | P50: 73.98776652 | Q50: 0.02324 | R50: 0.033 | S50: 0.0491526 | V50: 46 | W50: 73.998 | X50: 0 | Y50: 0 | AC50: =IF($C$27="","",$C$27) -> 73.989 | AE50: E20 | AF50: =IF($B$20="","",$B$20) -> 74 | AI50: =IF($C$16="","",$C$16) -> 74 | AK50: E14 | AL50: =IF($B$14="","",$B$14) -> 73.998 | AM50: 0.03269999847 | AN50: 0.9298999906 | AO50: 0.1941000074 | AP50: 0.2217999995 | AQ50: 0.6155999899 | AR50: 0.1914000064 | AS50: 0.6297000051 | AT50: 0.5052000284 | AU50: 0.2450000048 | AV50: 0.1137999967 | AW50: 0.6801000237 | AX50: 0.1509999931 | AY50: 0.1662999988 | AZ50: 0.02410000004 | BA50: 0.1771000028 | BB50: 0.2267999947 | BC50: 0.4887999892 | BD50: 46 | BE50: 46 | BF50: =IF('Eingabe Daten'!E50<>"",'Eingabe Daten'!E50,BF49) -> 73.982 | BG50: =IF('Eingabe Daten'!F50<>"",'Eingabe Daten'!F50,BG49) -> 74.001 | BH50: =IF('Eingabe Daten'!G50<>"",'Eingabe Daten'!G50,BH49) -> 74.015 | BI50: =IF('Eingabe Daten'!H50<>"",'Eingabe Daten'!H50,BI49) -> 74.005 | BJ50: =IF('Eingabe Daten'!I50<>"",'Eingabe Daten'!I50,BJ49) -> 73.996 | BK50: 0.6564000249 | BL50: 74.05 | BM50: 73.95 | BN50: 73.99099762 | BO50: 74.01135438 | BP50: 73.98081924 | BQ50: 74.02153276 | BR50: 73.97064086 | BS50: 74.03171114 | BT50: 74.001176 | BU50: 0.7304000258 | BV50: 0.4654999971 | BW50: 0.3269000053 | BX50: 0.7304000258 | BY50: 0.9940000176 | BZ50: 0.4677999914 | CA50: 0.1903000027 | CB50: 0.7791000009 | CC50: 0.181400001 | CD50: 0.1559000015 | CE50: 46 | CF50: 73.993 | CG50: 46 | CH50: 0.210908979 | CI50: 0.789091021 | CJ50: 0.19298866 | CK50: -291.3321744 | CL50: -0.9058486354 | CM50: 0.6251000166 | CN50: 0.2268999964 | CO50: 0.831099987 | CP50: 0.4765999913 | CQ50: 0.1039000005 | CR50: 0.7185000181 | CS50: 0.8227000237 | CT50: 0.3537999988 | CU50: 0.166899994 | CV50: 0.6958000064
A51: 47 | B51: =IF('Eingabe Daten'!E51="","",'Eingabe Daten'!E51) -> 74.004 | C51: =IF('Eingabe Daten'!F51="","",'Eingabe Daten'!F51) -> 73.999 | D51: =IF('Eingabe Daten'!G51="","",'Eingabe Daten'!G51) -> 73.99 | E51: =IF('Eingabe Daten'!H51="","",'Eingabe Daten'!H51) -> 74.006 | F51: =IF('Eingabe Daten'!I51="","",'Eingabe Daten'!I51) -> 74.009 | H51: 74.0016 | I51: 0.006651315659 | J51: 0.019 | L51: 47 | M51: 74.001176 | N51: 74.0016 | O51: 74.01458548 | P51: 73.98776652 | Q51: 0.02324 | R51: 0.019 | S51: 0.0491526 | V51: 47 | W51: 74 | X51: 0 | Y51: 0 | AB51: E28 | AC51: =IF($B$28="","",$B$28) -> 74.015 | AF51: =IF($C$20="","",$C$20) -> 73.984 | AI51: =IF($D$16="","",$D$16) -> 74.007 | AL51: =IF($C$14="","",$C$14) -> 74 | AM51: 0.641900003 | AN51: 0.8923000097 | AO51: 0.8120999932 | AP51: 0.2270999998 | AQ51: 0.8967999816 | AR51: 0.8309000134 | AS51: 0.1362999976 | AT51: 0.08470000327 | AU51: 0.08309999853 | AV51: 0.2449000031 | AW51: 0.2256000042 | AX51: 0.07299999893 | AY51: 0.5997999907 | AZ51: 0.4999000132 | BA51: 0.2957000136 | BB51: 0.6069999933 | BC51: 0.01470000017 | BD51: 47 | BE51: 47 | BF51: =IF('Eingabe Daten'!E51<>"",'Eingabe Daten'!E51,BF50) -> 74.004 | BG51: =IF('Eingabe Daten'!F51<>"",'Eingabe Daten'!F51,BG50) -> 73.999 | BH51: =IF('Eingabe Daten'!G51<>"",'Eingabe Daten'!G51,BH50) -> 73.99 | BI51: =IF('Eingabe Daten'!H51<>"",'Eingabe Daten'!H51,BI50) -> 74.006 | BJ51: =IF('Eingabe Daten'!I51<>"",'Eingabe Daten'!I51,BJ50) -> 74.009 | BK51: 0.4546999931 | BL51: 74.05 | BM51: 73.95 | BN51: 73.99099762 | BO51: 74.01135438 | BP51: 73.98081924 | BQ51: 74.02153276 | BR51: 73.97064086 | BS51: 74.03171114 | BT51: 74.001176 | BU51: 0.08309999853 | BV51: 0.5399000049 | BW51: 0.5803999901 | BX51: 0.9140999913 | BY51: 0.4853000045 | BZ51: 0.2417999953 | CA51: 0.9994999766 | CB51: 0.3327000141 | CC51: 0.4515999854 | CD51: 0.9272000194 | CE51: 47 | CF51: 73.993 | CG51: 47 | CH51: 0.210908979 | CI51: 0.789091021 | CJ51: 0.19298866 | CK51: -297.7350793 | CL51: -0.8908620255 | CM51: 0.4406999946 | CN51: 0.7673000097 | CO51: 0.1235999987 | CP51: 0.2336000055 | CQ51: 0.8037999868 | CR51: 0.08049999923 | CS51: 0.2260999978 | CT51: 0.04960000142 | CU51: 0.2358999997 | CV51: 0.393900007
A52: 48 | B52: =IF('Eingabe Daten'!E52="","",'Eingabe Daten'!E52) -> 74.01 | C52: =IF('Eingabe Daten'!F52="","",'Eingabe Daten'!F52) -> 73.989 | D52: =IF('Eingabe Daten'!G52="","",'Eingabe Daten'!G52) -> 73.99 | E52: =IF('Eingabe Daten'!H52="","",'Eingabe Daten'!H52) -> 74.009 | F52: =IF('Eingabe Daten'!I52="","",'Eingabe Daten'!I52) -> 74.014 | H52: 74.0024 | I52: 0.01066958293 | J52: 0.025 | L52: 48 | M52: 74.001176 | N52: 74.0024 | O52: 74.01458548 | P52: 73.98776652 | Q52: 0.02324 | R52: 0.025 | S52: 0.0491526 | V52: 48 | W52: 73.99 | X52: 0 | Y52: 0 | AC52: =IF($C$28="","",$C$28) -> 74.008 | AF52: =IF($D$20="","",$D$20) -> 74.005 | AI52: =IF($E$16="","",$E$16) -> 74 | AL52: =IF($D$14="","",$D$14) -> 73.99 | AM52: 0.7071999907 | AN52: 0.5928000212 | AO52: 0.8967000246 | AP52: 0.7906000018 | AQ52: 0.6295999885 | AR52: 0.7379000187 | AS52: 0.9743000269 | AT52: 0.2689999938 | AU52: 0.3106999993 | AV52: 0.5952000022 | AW52: 0.950600028 | AX52: 0.9456999898 | AY52: 0.7135000229 | AZ52: 0.3382000029 | BA52: 0.1172999963 | BB52: 0.508400023 | BC52: 0.08709999919 | BD52: 48 | BE52: 48 | BF52: =IF('Eingabe Daten'!E52<>"",'Eingabe Daten'!E52,BF51) -> 74.01 | BG52: =IF('Eingabe Daten'!F52<>"",'Eingabe Daten'!F52,BG51) -> 73.989 | BH52: =IF('Eingabe Daten'!G52<>"",'Eingabe Daten'!G52,BH51) -> 73.99 | BI52: =IF('Eingabe Daten'!H52<>"",'Eingabe Daten'!H52,BI51) -> 74.009 | BJ52: =IF('Eingabe Daten'!I52<>"",'Eingabe Daten'!I52,BJ51) -> 74.014 | BK52: 0.2822000086 | BL52: 74.05 | BM52: 73.95 | BN52: 73.99099762 | BO52: 74.01135438 | BP52: 73.98081924 | BQ52: 74.02153276 | BR52: 73.97064086 | BS52: 74.03171114 | BT52: 74.001176 | BU52: 0.3409999907 | BV52: 0.9194999933 | BW52: 0.8572000265 | BX52: 0.2123000026 | BY52: 0.0794999972 | BZ52: 0.3684999943 | CA52: 0.7671999931 | CB52: 0.9611999989 | CC52: 0.646600008 | CD52: 0.476000011 | CE52: 48 | CF52: 73.993 | CG52: 48 | CH52: 0.210908979 | CI52: 0.789091021 | CJ52: 0.19298866 | CK52: -304.1379843 | CL52: -0.8760728794 | CM52: 0.2682000101 | CN52: 0.2375999987 | CO52: 0.7285000086 | CP52: 0.7461000085 | CQ52: 0.1601999998 | CR52: 0.7046999931 | CS52: 0.1490000039 | CT52: 0.2700999975 | CU52: 0.4821000099 | CV52: 0.3073000014
A53: 49 | B53: =IF('Eingabe Daten'!E53="","",'Eingabe Daten'!E53) -> 74.015 | C53: =IF('Eingabe Daten'!F53="","",'Eingabe Daten'!F53) -> 74.008 | D53: =IF('Eingabe Daten'!G53="","",'Eingabe Daten'!G53) -> 73.993 | E53: =IF('Eingabe Daten'!H53="","",'Eingabe Daten'!H53) -> 74 | F53: =IF('Eingabe Daten'!I53="","",'Eingabe Daten'!I53) -> 74.01 | H53: 74.0052 | I53: 0.007782030583 | J53: 0.022 | L53: 49 | M53: 74.001176 | N53: 74.0052 | O53: 74.01458548 | P53: 73.98776652 | Q53: 0.02324 | R53: 0.022 | S53: 0.0491526 | V53: 49 | W53: 74.007 | X53: 0 | Y53: 0 | AB53: E29 | AC53: =IF($B$29="","",$B$29) -> 73.982 | AE53: E21 | AF53: =IF($B$21="","",$B$21) -> 73.994 | AH53: E17 | AI53: =IF($B$17="","",$B$17) -> 73.983 | AL53: =IF($E$14="","",$E$14) -> 74.007 | AM53: 0.8851000071 | AN53: 0.67900002 | AO53: 0.6531999707 | AP53: 0.8511000276 | AQ53: 0.3330999911 | AR53: 0.3470999897 | AS53: 0.8626999855 | AT53: 0.8299999833 | AU53: 0.8234000206 | AV53: 0.8452000022 | AW53: 0.711499989 | AX53: 0.5045999885 | AY53: 0.3869000077 | AZ53: 0.6431999803 | BA53: 0.1019999981 | BB53: 0.2301000059 | BC53: 0.7702000141 | BD53: 49 | BE53: 49 | BF53: =IF('Eingabe Daten'!E53<>"",'Eingabe Daten'!E53,BF52) -> 74.015 | BG53: =IF('Eingabe Daten'!F53<>"",'Eingabe Daten'!F53,BG52) -> 74.008 | BH53: =IF('Eingabe Daten'!G53<>"",'Eingabe Daten'!G53,BH52) -> 73.993 | BI53: =IF('Eingabe Daten'!H53<>"",'Eingabe Daten'!H53,BI52) -> 74 | BJ53: =IF('Eingabe Daten'!I53<>"",'Eingabe Daten'!I53,BJ52) -> 74.01 | BK53: 0.06369999796 | BL53: 74.05 | BM53: 73.95 | BN53: 73.99099762 | BO53: 74.01135438 | BP53: 73.98081924 | BQ53: 74.02153276 | BR53: 73.97064086 | BS53: 74.03171114 | BT53: 74.001176 | BU53: 0.3788000047 | BV53: 0.03460000083 | BW53: 0.7014999986 | BX53: 0.4850000143 | BY53: 0.7197999954 | BZ53: 0.4474000037 | CA53: 0.4059000015 | CB53: 0.7940000296 | CC53: 0.7764000297 | CD53: 0.5764999986 | CE53: 49 | CF53: 73.993 | CG53: 49 | CH53: 0.210908979 | CI53: 0.789091021 | CJ53: 0.19298866 | CK53: -310.5408892 | CL53: -0.8614729087 | CM53: 0.3711999953 | CN53: 0.0896999985 | CO53: 0.5644000173 | CP53: 0.4375 | CQ53: 0.3635999858 | CR53: 0.6359999776 | CS53: 0.6042000055 | CT53: 0.5311999917 | CU53: 0.6933000088 | CV53: 0.065200001
A54: 50 | B54: =IF('Eingabe Daten'!E54="","",'Eingabe Daten'!E54) -> 73.982 | C54: =IF('Eingabe Daten'!F54="","",'Eingabe Daten'!F54) -> 73.984 | D54: =IF('Eingabe Daten'!G54="","",'Eingabe Daten'!G54) -> 73.995 | E54: =IF('Eingabe Daten'!H54="","",'Eingabe Daten'!H54) -> 74.017 | F54: =IF('Eingabe Daten'!I54="","",'Eingabe Daten'!I54) -> 74.013 | H54: 73.9982 | I54: 0.0144692778 | J54: 0.035 | L54: 50 | M54: 74.001176 | N54: 73.9982 | O54: 74.01458548 | P54: 73.98776652 | Q54: 0.02324 | R54: 0.035 | S54: 0.0491526 | V54: 50 | W54: 73.995 | X54: 0 | Y54: 0 | AC54: =IF($C$29="","",$C$29) -> 73.984 | AF54: =IF($C$21="","",$C$21) -> 74.012 | AI54: =IF($C$17="","",$C$17) -> 74.002 | AL54: =IF($F$14="","",$F$14) -> 73.995 | AM54: 0.3120000064 | AN54: 0.6717000008 | AO54: 0.7299000025 | AP54: 0.8306999803 | AQ54: 0.6399999857 | AR54: 0.06509999931 | AS54: 0.668299973 | AT54: 0.9101999998 | AU54: 0.9670000076 | AV54: 0.6367999911 | AW54: 0.5443000197 | AX54: 0.7591999769 | AY54: 0.2396000028 | AZ54: 0.6103000045 | BA54: 0.4999000132 | BB54: 0.5137000084 | BC54: 0.3619999886 | BD54: 50 | BE54: 50 | BF54: =IF('Eingabe Daten'!E54<>"",'Eingabe Daten'!E54,BF53) -> 73.982 | BG54: =IF('Eingabe Daten'!F54<>"",'Eingabe Daten'!F54,BG53) -> 73.984 | BH54: =IF('Eingabe Daten'!G54<>"",'Eingabe Daten'!G54,BH53) -> 73.995 | BI54: =IF('Eingabe Daten'!H54<>"",'Eingabe Daten'!H54,BI53) -> 74.017 | BJ54: =IF('Eingabe Daten'!I54<>"",'Eingabe Daten'!I54,BJ53) -> 74.013 | BK54: 0.3350999951 | BL54: 74.05 | BM54: 73.95 | BN54: =BN53 -> 73.99099762 | BO54: 74.01135438 | BP54: 73.98081924 | BQ54: 74.02153276 | BR54: 73.97064086 | BS54: 74.03171114 | BT54: 74.001176 | BU54: 0.2994000018 | BV54: 0.443599999 | BW54: 0.8373000026 | BX54: 0.3646999896 | BY54: 0.09470000118 | BZ54: 0.6556000113 | CA54: 0.6575999856 | CB54: 0.784799993 | CC54: 0.4410000145 | CD54: 0.0465000011 | CE54: 50 | CF54: 73.993 | CG54: 50 | CH54: 0.210908979 | CI54: 0.789091021 | CJ54: 0.19298866 | CK54: -316.9437941 | CL54: -0.8470542997 | CM54: 0.4451999962 | CN54: 0.7915999889 | CO54: 0.5626000166 | CP54: 0.5062000155 | CQ54: 0.8424999714 | CR54: 0.5195000172 | CS54: 0.8682000041 | CT54: 0.3711000085 | CU54: 0.1536000073 | CV54: 0.1199000031
B55: =IF('Eingabe Daten'!E55="","",'Eingabe Daten'!E55) ->  | C55: =IF('Eingabe Daten'!F55="","",'Eingabe Daten'!F55) ->  | D55: =IF('Eingabe Daten'!G55="","",'Eingabe Daten'!G55) ->  | E55: =IF('Eingabe Daten'!H55="","",'Eingabe Daten'!H55) ->  | F55: Mittelwert | H55: =AVERAGE(H5:H54) -> 74.001176 | I55: =AVERAGE(I5:I54) -> 0.008407153969 | J55: =AVERAGE(J5:J54) -> 0.02324 | V55: 51 | W55: 73.994 | X55: 0 | Y55: 0 | AB55: E30 | AC55: =IF($B$30="","",$B$30) -> 74.03 | AF55: =IF($D$21="","",$D$21) -> 73.986 | AI55: =IF($D$17="","",$D$17) -> 73.998 | AK55: E15 | AL55: =IF($B$15="","",$B$15) -> 73.994 | AM55: 0.7166000009 | AN55: 0.1265999973 | AO55: 0.2337000072 | AP55: 0.08860000223 | AQ55: 0.4327999949 | AR55: 0.3612000048 | AS55: 0.6309999824 | AT55: 0.8443999887 | AU55: 0.5728999972 | AV55: 0.9685000181 | AW55: 0.9761999846 | AX55: 0.557099998 | AY55: 0.440200001 | AZ55: 0.6013000011 | BA55: 0.6240000129 | BB55: 0.2252999991 | BC55: 0.8506000042 | BU55: 0.6833000183 | BV55: 0.241899997 | BW55: 0.4670999944 | BX55: 0.7759000063 | BY55: 0.834100008 | BZ55: 0.8932999969 | CA55: 0.4517999887 | CB55: 0.2556000054 | CC55: 0.3434999883 | CD55: 0.7695000172 | CE55: 51 | CF55: 73.993 | CG55: 51 | CH55: 0.210908979 | CI55: 0.789091021 | CJ55: 0.2210392458 | CK55: -309.6401065 | CL55: -0.8328096762 | CM55: 0.8594999909 | CN55: 0.173299998 | CO55: 0.4176999927 | CP55: 0.3147000074 | CQ55: 0.1703000069 | CR55: 0.6514999866 | CS55: 0.002000000095 | CT55: 0.755400002 | CU55: 0.5174000263 | CV55: 0.8525000215
B56: =IF('Eingabe Daten'!E56="","",'Eingabe Daten'!E56) ->  | C56: =IF('Eingabe Daten'!F56="","",'Eingabe Daten'!F56) ->  | D56: =IF('Eingabe Daten'!G56="","",'Eingabe Daten'!G56) ->  | E56: =IF('Eingabe Daten'!H56="","",'Eingabe Daten'!H56) ->  | F56: =IF('Eingabe Daten'!I56="","",'Eingabe Daten'!I56) ->  | H56: Mittelwert | I56: Standardabweichung | J56: Range | V56: 52 | W56: 73.998 | X56: 0 | Y56: 0 | AC56: =IF($C$30="","",$C$30) -> 74.002 | AE56: E22 | AF56: =IF($B$22="","",$B$22) -> 74.006 | AI56: =IF($E$17="","",$E$17) -> 73.997 | AL56: =IF($C$15="","",$C$15) -> 73.998 | AM56: 0.9217000008 | AN56: 0.6783000231 | AO56: 0.9532999992 | AP56: 0.1818999946 | AQ56: 0.2725000083 | AR56: 0.8583999872 | AS56: 0.9646999836 | AT56: 0.741599977 | AU56: 0.06140000001 | AV56: 0.3377999961 | AW56: 0.2388000041 | AX56: 0.03290000185 | AY56: 0.09700000286 | AZ56: 0.7529000044 | BA56: 0.6783999801 | BB56: 0.9096000195 | BC56: 0.1301999986 | BU56: 0.5371000171 | BV56: 0.2291000038 | BW56: 0.7344999909 | BX56: 0.6621000171 | BY56: 0.9854999781 | BZ56: 0.3842999935 | CA56: 0.01810000092 | CB56: 0.8133000135 | CC56: 0.7750999928 | CD56: 0.5351999998 | CE56: 52 | CF56: 73.993 | CG56: 52 | CH56: 0.210908979 | CI56: 0.789091021 | CJ56: 0.2210392458 | CK56: -315.7715937 | CL56: -0.8187320666 | CM56: 0.2560000122 | CN56: 0.277700007 | CO56: 0.09790000319 | CP56: 0.6685000062 | CQ56: 0.8007000089 | CR56: 0.05999999866 | CS56: 0.752399981 | CT56: 0.9514999986 | CU56: 0.4627000093 | CV56: 0.7907999754
B57: =IF('Eingabe Daten'!E57="","",'Eingabe Daten'!E57) ->  | C57: =IF('Eingabe Daten'!F57="","",'Eingabe Daten'!F57) ->  | D57: =IF('Eingabe Daten'!G57="","",'Eingabe Daten'!G57) ->  | E57: =IF('Eingabe Daten'!H57="","",'Eingabe Daten'!H57) ->  | F57: =IF('Eingabe Daten'!I57="","",'Eingabe Daten'!I57) ->  | V57: 53 | W57: 73.994 | X57: 0 | Y57: 0 | AB57: E31 | AC57: =IF($B$31="","",$B$31) -> 73.995 | AF57: =IF($C$22="","",$C$22) -> 74.01 | AH57: E18 | AI57: =IF($B$18="","",$B$18) -> 74.006 | AL57: =IF($D$15="","",$D$15) -> 73.994 | AM57: 0.6589000225 | AN57: 0.1852000058 | AO57: 0.1515000015 | AP57: 0.804799974 | AQ57: 0.6258000135 | AR57: 0.507700026 | AS57: 0.7653999925 | AT57: 0.4691999853 | AU57: 0.3643000126 | AV57: 0.3468999863 | AW57: 0.3328999877 | AX57: 0.7613000274 | AY57: 0.7551000118 | AZ57: 0.6241999865 | BA57: 0.402700007 | BB57: 0.09679999948 | BC57: 0.3630000055 | BU57: 0.6539999843 | BV57: 0.5180000067 | BW57: 0.8241000175 | BX57: 0.898999989 | BY57: 0.6323000193 | BZ57: 0.7454000115 | CA57: 0.9047999978 | CB57: 0.6179999709 | CC57: 0.8420000076 | CD57: 0.2669999897 | CE57: 53 | CF57: 73.994 | CG57: 53 | CH57: 0.2403977094 | CI57: 0.7596022906 | CJ57: 0.2210392458 | CK57: -308.1619396 | CL57: -0.8048148732 | CM57: 0.1383000016 | CN57: 0.7734000087 | CO57: 0.05849999934 | CP57: 0.8188999891 | CQ57: 0.1283999979 | CR57: 0.115699999 | CS57: 0.3434999883 | CT57: 0.2788000107 | CU57: 0.05460000038 | CV57: 0.6694999933
V58: 54 | W58: 73.995 | X58: 0 | Y58: 0 | AC58: =IF($C$31="","",$C$31) -> 73.992 | AF58: =IF($D$22="","",$D$22) -> 74.018 | AI58: =IF($C$18="","",$C$18) -> 73.967 | AL58: =IF($E$15="","",$E$15) -> 73.995 | AM58: 0.935100019 | AN58: 0.9941999912 | AO58: 0.6868000031 | AP58: 0.6872000098 | AQ58: 0.3892999887 | AR58: 0.3605000079 | AS58: 0.6516000032 | AT58: 0.8514999747 | AU58: 0.9696000218 | AV58: 0.648999989 | AW58: 0.9476000071 | AX58: 0.7293999791 | AY58: 0.2885999978 | AZ58: 0.08500000089 | BA58: 0.7110999823 | BB58: 0.4742999971 | BC58: 0.1976999938 | BU58: 0.9186000228 | BV58: 0.7594000101 | BW58: 0.8700000048 | BX58: 0.8266000152 | BY58: 0.5288000107 | BZ58: 0.3937000036 | CA58: 0.8216000199 | CB58: 0.6575000286 | CC58: 0.2284999937 | CD58: 0.9666000009 | CE58: 54 | CF58: 73.994 | CG58: 54 | CH58: 0.2403977094 | CI58: 0.7596022906 | CJ58: 0.2210392458 | CK58: -314.0316908 | CL58: -0.7910518452 | CM58: 0.336499989 | CN58: 0.6618999839 | CO58: 0.8180999756 | CP58: 0.6395000219 | CQ58: 0.242899999 | CR58: 0.4176999927 | CS58: 0.3761999905 | CT58: 0.7389000058 | CU58: 0.8737999797 | CV58: 0.9882000089
V59: 55 | W59: 73.99 | X59: 0 | Y59: 0 | AB59: E32 | AC59: =IF($B$32="","",$B$32) -> 73.988 | AE59: E23 | AF59: =IF($B$23="","",$B$23) -> 73.984 | AI59: =IF($D$18="","",$D$18) -> 73.994 | AL59: =IF($F$15="","",$F$15) -> 73.99 | AM59: 0.5254999995 | AN59: 0.9592999816 | AO59: 0.4578000009 | AP59: 0.7501000166 | AQ59: 0.9480999708 | AR59: 0.8167999983 | AS59: 0.7595999837 | AT59: 0.4717999995 | AU59: 0.1513999999 | AV59: 0.3517000079 | AW59: 0.9707000256 | AX59: 0.6413999796 | AY59: 0.4835999906 | AZ59: 0.08179999888 | BA59: 0.8500000238 | BB59: 0.0447999984 | BC59: 0.3993999958 | BU59: 0.7637000084 | BV59: 0.2716999948 | BW59: 0.06480000168 | BX59: 0.4217000008 | BY59: 0.07989999652 | BZ59: 0.1067000031 | CA59: 0.4595000148 | CB59: 0.7888000011 | CC59: 0.5752999783 | CD59: 0.07959999889 | CE59: 55 | CF59: 73.994 | CG59: 55 | CH59: 0.2403977094 | CI59: 0.7596022906 | CJ59: 0.2210392458 | CK59: -319.901442 | CL59: -0.7774370536 | CM59: 0.413199991 | CN59: 0.5606999993 | CO59: 0.6104999781 | CP59: 0.1714999974 | CQ59: 0.7947000265 | CR59: 0.6937000155 | CS59: 0.6287999749 | CT59: 0.1149000004 | CU59: 0.2198999971 | CV59: 0.9028999805
V60: 56 | W60: 74.004 | X60: 0 | Y60: 0 | AC60: =IF($C$32="","",$C$32) -> 74.024 | AF60: =IF($C$23="","",$C$23) -> 74.002 | AI60: =IF($E$18="","",$E$18) -> 74 | AK60: E16 | AL60: =IF($B$16="","",$B$16) -> 74.004 | AM60: 0.7972999811 | AN60: 0.4708999991 | AO60: 0.8170999885 | AP60: 0.3653999865 | AQ60: 0.897300005 | AR60: 0.9581999779 | AS60: 0.2432000041 | AT60: 0.6733000278 | AU60: 0.4650999904 | AV60: 0.03060000017 | AW60: 0.9488999844 | AX60: 0.03689999878 | AY60: 0.1821999997 | AZ60: 0.7056999803 | BA60: 0.6945000291 | BB60: 0.7376999855 | BC60: 0.5166000128 | BU60: 0.7714999914 | BV60: 0.738499999 | BW60: 0.06920000166 | BX60: 0.5695999861 | BY60: 0.02810000069 | BZ60: 0.4611999989 | CA60: 0.673699975 | CB60: 0.6880000234 | CC60: 0.1272000074 | CD60: 0.05059999973 | CE60: 56 | CF60: 73.994 | CG60: 56 | CH60: 0.2403977094 | CI60: 0.7596022906 | CJ60: 0.2210392458 | CK60: -325.7711933 | CL60: -0.763964868 | CM60: 0.4945000112 | CN60: 0.7082999945 | CO60: 0.8683999777 | CP60: 0.6711000204 | CQ60: 0.351000011 | CR60: 0.2346999943 | CS60: 0.2511000037 | CT60: 0.886500001 | CU60: 0.8643000126 | CV60: 0.4663999975
V61: 57 | W61: 74 | X61: 0 | Y61: 0 | AB61: E33 | AC61: =IF($B$33="","",$B$33) -> 74.002 | AF61: =IF($D$23="","",$D$23) -> 74.003 | AH61: E19 | AI61: =IF($B$19="","",$B$19) -> 74.012 | AL61: =IF($C$16="","",$C$16) -> 74 | AM61: 0.4907999933 | AN61: 0.6129999757 | AO61: 0.59799999 | AP61: 0.7753000259 | AQ61: 0.2842000127 | AR61: 0.3226999938 | AS61: 0.4487000108 | AT61: 0.5340999961 | AU61: 0.3253999949 | AV61: 0.4963999987 | AW61: 0.2865000069 | AX61: 0.1949000061 | AY61: 0.07090000063 | AZ61: 0.3265999854 | BA61: 0.8457999825 | BB61: 0.6168000102 | BC61: 0.7555999756 | BU61: 0.3876000047 | BV61: 0.564800024 | BW61: 0.4410000145 | BX61: 0.2763000131 | BY61: 0.3165000081 | BZ61: 0.7451000214 | CA61: 0.2492000014 | CB61: 0.05519999936 | CC61: 0.6197999716 | CD61: 0.1656000018 | CE61: 57 | CF61: 73.994 | CG61: 57 | CH61: 0.2403977094 | CI61: 0.7596022906 | CJ61: 0.2210392458 | CK61: -331.6409445 | CL61: -0.7506299367 | CM61: 0.2465000004 | CN61: 0.5360999703 | CO61: 0.00829999987 | CP61: 0.7559999824 | CQ61: 0.4569999874 | CR61: 0.2096000016 | CS61: 0.3231000006 | CT61: 0.0560999997 | CU61: 0.07360000163 | CV61: 0.05930000171
V62: 58 | W62: 74.007 | X62: 0 | Y62: 0 | AC62: =IF($C$33="","",$C$33) -> 73.996 | AE62: E24 | AF62: =IF($B$24="","",$B$24) -> 74 | AI62: =IF($C$19="","",$C$19) -> 74.014 | AL62: =IF($D$16="","",$D$16) -> 74.007 | AM62: 0.9254999757 | AN62: 0.04419999942 | AO62: 0.9736999869 | AP62: 0.01530000009 | AQ62: 0.3379000127 | AR62: 0.2152999938 | AS62: 0.4851999879 | AT62: 0.6570000052 | AU62: 0.134800002 | AV62: 0.9089999795 | AW62: 0.4013999999 | AX62: 0.1662999988 | AY62: 0.08269999921 | AZ62: 0.8877999783 | BA62: 0.2474000007 | BB62: 0.5309000015 | BC62: 0.5313000083 | BU62: 0.9677000046 | BV62: 0.2386000007 | BW62: 0.05290000141 | BX62: 0.915899992 | BY62: 0.8461999893 | BZ62: 0.1852000058 | CA62: 0.7161999941 | CB62: 0.6668000221 | CC62: 0.6222000122 | CD62: 0.02150000073 | CE62: 58 | CF62: 73.994 | CG62: 58 | CH62: 0.2403977094 | CI62: 0.7596022906 | CJ62: 0.2210392458 | CK62: -337.5106957 | CL62: -0.7374271666 | CM62: 0.96450001 | CN62: 0.9004999995 | CO62: 0.2346999943 | CP62: 0.4927000105 | CQ62: 0.8741999865 | CR62: 0.4508999884 | CS62: 0.9948999882 | CT62: 0.2282000035 | CU62: 0.8701000214 | CV62: 0.1058999971
V63: 59 | W63: 74 | X63: 0 | Y63: 0 | AB63: E34 | AC63: =IF($B$34="","",$B$34) -> 73.992 | AF63: =IF($C$24="","",$C$24) -> 74.01 | AI63: =IF($D$19="","",$D$19) -> 73.998 | AL63: =IF($E$16="","",$E$16) -> 74 | AM63: 0.3513999879 | AN63: 0.4440999925 | AO63: 0.6164000034 | AP63: 0.9356999993 | AQ63: 0.9064000249 | AR63: 0.8963999748 | AS63: 0.1571000069 | AT63: 0.8705999851 | AU63: 0.6809999943 | AV63: 0.08460000157 | AW63: 0.3066000044 | AX63: 0.5296000242 | AY63: 0.6308000088 | AZ63: 0.7042999864 | BA63: 0.2906999886 | BB63: 0.2984000146 | BC63: 0.4115999937 | BU63: 0.6244999766 | BV63: 0.288500011 | BW63: 0.7170000076 | BX63: 0.8574000001 | BY63: 0.09640000015 | BZ63: 0.5857999921 | CA63: 0.9358000159 | CB63: 0.119099997 | CC63: 0.8066999912 | CD63: 0.2189999968 | CE63: 59 | CF63: 73.994 | CG63: 59 | CH63: 0.2403977094 | CI63: 0.7596022906 | CJ63: 0.2210392458 | CK63: -343.380447 | CL63: -0.7243517069 | CM63: 0.9944000244 | CN63: 0.318599999 | CO63: 0.3323999941 | CP63: 0.5191000104 | CQ63: 0.7125999928 | CR63: 0.5587999821 | CS63: 0.6775000095 | CT63: 0.5365999937 | CU63: 0.7511000037 | CV63: 0.4199999869
V64: 60 | W64: 73.996 | X64: 0 | Y64: 0 | AC64: =IF($C$34="","",$C$34) -> 74.007 | AF64: =IF($D$24="","",$D$24) -> 74.013 | AI64: =IF($E$19="","",$E$19) -> 73.999 | AL64: =IF($F$16="","",$F$16) -> 73.996 | AM64: 0.413500011 | AN64: 0.6200000048 | AO64: 0.8770999908 | AP64: 1 | AQ64: =Minimum -> 73.967 | AR64: =AQ64+AT64 -> 73.97015 | AS64: =(AR64+AQ64)/2 -> 73.968575 | AT64: =Spannweite/AnzahlKlassenHistogramm -> 0.00315 | AU64: =FREQUENCY(xi,AR64) -> 2 | AV64: =$AU64/Anzahl -> 0.008 | AW64: =AU64 -> 2 | AX64: =AW64/Anzahl -> 0.008 | AY64: =AX64/AT64 -> 2.53968254 | AZ64: 0.1632999927 | BA64: 0.06960000098 | BB64: 0.2436999977 | BC64: 0.4797999859 | BU64: 0.4593000114 | BV64: 0.7340999842 | BW64: 0.280400008 | BX64: 0.2166000009 | BY64: 0.6200000048 | BZ64: 0.9610999823 | CA64: 0.7217000127 | CB64: 0.7759000063 | CC64: 0.5430999994 | CD64: 0.6392999887 | CE64: 60 | CF64: 73.994 | CG64: 60 | CH64: 0.2403977094 | CI64: 0.7596022906 | CJ64: 0.2210392458 | CK64: -349.2501982 | CL64: -0.7113989319 | CM64: 0.5946999788 | CN64: 0.684499979 | CO64: 0.4844999909 | CP64: 0.06329999864 | CQ64: 0.8277000189 | CR64: 0.7200999856 | CS64: 0.4237999916 | CT64: 0.3571000099 | CU64: 0.8615999818 | CV64: 0.122299999
V65: 61 | W65: 73.983 | X65: 0 | Y65: 0 | AB65: E35 | AC65: =IF($B$35="","",$B$35) -> 74.009 | AE65: E25 | AF65: =IF($B$25="","",$B$25) -> 73.982 | AH65: E20 | AI65: =IF($B$20="","",$B$20) -> 74 | AK65: E17 | AL65: =IF($B$17="","",$B$17) -> 73.983 | AM65: 0.9546999931 | AN65: 0.8015999794 | AO65: 0.665899992 | AP65: 2 | AQ65: =IF(AnzahlKlassenHistogramm<AP65,AQ64,AQ64+AT65+0.00000001) -> 73.97015001 | AR65: =AQ65+AT65 -> 73.97330001 | AS65: =(AR65+AQ65)/2 -> 73.97172501 | AT65: 0.00315 | AU65: 2 | AV65: 0.008 | AW65: =AU65-AU64 -> 0 | AX65: 0 | AY65: =AX65/AT65 -> 0 | AZ65: 0.5457000136 | BA65: 0.425999999 | BB65: 0.4133999944 | BC65: 0.003700000001 | BU65: 0.152700007 | BV65: 0.3734000027 | BW65: 0.9539999962 | BX65: 0.1710000038 | BY65: 0.5807999969 | BZ65: 0.3565999866 | CA65: 0.4508000016 | CB65: 0.5910999775 | CC65: 0.83950001 | CD65: 0.2743999958 | CE65: 61 | CF65: 73.994 | CG65: 61 | CH65: 0.2403977094 | CI65: 0.7596022906 | CJ65: 0.2512884673 | CK65: -339.6003342 | CL65: -0.6985644274 | CM65: 0.8668000102 | CN65: 0.08550000191 | CO65: 0.3788000047 | CP65: 0.8382999897 | CQ65: 0.8792999983 | CR65: 0.1850000024 | CS65: 0.9194999933 | CT65: 0.9487000108 | CU65: 0.6001999974 | CV65: 0.1163000017
V66: 62 | W66: 74.002 | X66: 0 | Y66: 0 | AC66: =IF($C$35="","",$C$35) -> 73.994 | AF66: =IF($C$25="","",$C$25) -> 74.001 | AI66: =IF($C$20="","",$C$20) -> 73.984 | AL66: =IF($C$17="","",$C$17) -> 74.002 | AM66: 0.09369999915 | AN66: 0.772300005 | AO66: 0.3416000009 | AP66: 3 | AQ66: 73.97330002 | AR66: =AQ66+AT66 -> 73.97645002 | AS66: =(AR66+AQ66)/2 -> 73.97487502 | AT66: 0.00315 | AU66: 2 | AV66: 0.008 | AW66: =AU66-AU65 -> 0 | AX66: 0 | AY66: =AX66/AT66 -> 0 | AZ66: 0.5056999922 | BA66: 0.334800005 | BB66: 0.07069999725 | BC66: 0.6312999725 | BU66: 0.5651999712 | BV66: 0.8123000264 | BW66: 0.3576999903 | BX66: 0.548600018 | BY66: 0.4323000014 | BZ66: 0.6000000238 | CA66: 0.07800000161 | CB66: 0.3878999949 | CC66: 0.1636999995 | CD66: 0.9079999924 | CE66: 62 | CF66: 73.994 | CG66: 62 | CH66: 0.2403977094 | CI66: 0.7596022906 | CJ66: 0.2512884673 | CK66: -345.2135628 | CL66: -0.6858439764 | CM66: 0.8974000216 | CN66: 0.9494000077 | CO66: 0.6696000099 | CP66: 0.06819999963 | CQ66: 0.6328999996 | CR66: 0.3449999988 | CS66: 0.9276000261 | CT66: 0.2102999985 | CU66: 0.7077000141 | CV66: 0.8666999936
V67: 63 | W67: 73.998 | X67: 0 | Y67: 0 | AB67: E36 | AC67: =IF($B$36="","",$B$36) -> 73.995 | AF67: =IF($D$25="","",$D$25) -> 74.015 | AI67: =IF($D$20="","",$D$20) -> 74.005 | AL67: =IF($D$17="","",$D$17) -> 73.998 | AM67: 0.3734000027 | AN67: 0.09000000358 | AO67: 0.6675000191 | AP67: 4 | AQ67: 73.97645003 | AR67: 73.97960003 | AS67: 73.97802503 | AT67: 0.00315 | AU67: 2 | AV67: 0.008 | AW67: 0 | AX67: 0 | AY67: 0 | AZ67: 0.4406999946 | BA67: 0.5411999822 | BB67: 0.1670999974 | BC67: 0.9453999996 | BU67: 0.03099999949 | BV67: 0.2358999997 | BW67: 0.3740000129 | BX67: 0.3892999887 | BY67: 0.9919000268 | BZ67: 0.4259000123 | CA67: 0.8363999724 | CB67: 0.1544999927 | CC67: 0.4885999858 | CD67: 0.8090000153 | CE67: 63 | CF67: 73.994 | CG67: 63 | CH67: 0.2403977094 | CI67: 0.7596022906 | CJ67: 0.2512884673 | CK67: -350.8267915 | CL67: -0.6732335469 | CM67: 0.3170999885 | CN67: 0.07209999859 | CO67: 0.9070000052 | CP67: 0.2903999984 | CQ67: 0.9132000208 | CR67: 0.4129000008 | CS67: 0.7470999956 | CT67: 0.4323000014 | CU67: 0.7502999902 | CV67: 0.3628000021
V68: 64 | W68: 73.997 | X68: 0 | Y68: 0 | AC68: =IF($C$36="","",$C$36) -> 74.006 | AE68: E26 | AF68: =IF($B$26="","",$B$26) -> 74.004 | AI68: =IF($E$20="","",$E$20) -> 73.998 | AL68: =IF($E$17="","",$E$17) -> 73.997 | AM68: 0.763899982 | AN68: 0.03249999881 | AO68: 0.2478999943 | AP68: 5 | AQ68: 73.97960004 | AR68: 73.98275004 | AS68: 73.98117504 | AT68: 0.00315 | AU68: 6 | AV68: 0.024 | AW68: 4 | AX68: 0.016 | AY68: 5.079365079 | AZ68: 0.2257000059 | BA68: 0.3578999937 | BB68: 0.9520999789 | BC68: 0.6349999905 | BU68: 0.9047999978 | BV68: 0.7674999833 | BW68: 0.06979999691 | BX68: 0.1794999987 | BY68: 0.7383000255 | BZ68: 0.5857999921 | CA68: 0.9092000127 | CB68: 0.02859999985 | CC68: 0.3388000131 | CD68: 0.5911999941 | CE68: 64 | CF68: 73.994 | CG68: 64 | CH68: 0.2403977094 | CI68: 0.7596022906 | CJ68: 0.2512884673 | CK68: -356.4400202 | CL68: -0.6607292806 | CM68: 0.7221999764 | CN68: 0.3517999947 | CO68: 0.3332999945 | CP68: 0.9653999805 | CQ68: 0.7767000198 | CR68: 0.9071999788 | CS68: 0.7598999739 | CT68: 0.6563000083 | CU68: 0.0410999991 | CV68: 0.3524000049
V69: 65 | W69: 74.012 | X69: =IF(W69<>"",IF(W69<UGW,1,0),"") -> 0 | Y69: =IF(W69<>"",IF(W69>OGW,1,0),"") -> 0 | AB69: E37 | AC69: =IF($B$37="","",$B$37) -> 73.985 | AF69: =IF($C$26="","",$C$26) -> 73.999 | AH69: E21 | AI69: =IF($B$21="","",$B$21) -> 73.994 | AL69: =IF($F$17="","",$F$17) -> 74.012 | AM69: 0.9587000012 | AN69: 0.706700027 | AO69: 0.1995999962 | AP69: 6 | AQ69: 73.98275005 | AR69: 73.98590005 | AS69: 73.98432505 | AT69: 0.00315 | AU69: 20 | AV69: 0.08 | AW69: 14 | AX69: 0.056 | AY69: 17.77777778 | AZ69: 0.1975000054 | BA69: 0.7117999792 | BB69: 0.8323000073 | BC69: 0.9178000093 | BU69: 0.3587000072 | BV69: 0.07859999686 | BW69: 0.8687999845 | BX69: 0.3359999955 | BY69: 0.3583000004 | BZ69: 0.2070000023 | CA69: 0.3519000113 | CB69: 0.5314999819 | CC69: 0.08749999851 | CD69: 0.3224000037 | CE69: 65 | CF69: =IF(W69="",NA(),SMALL(xi,CG69)) -> 73.995 | CG69: 65 | CH69: =IF(W69="","",NORMSDIST((CF69-Mittelwert)/Standardabweichung)-0.00000001) -> 0.2719996735 | CI69: =IF(W69="","",1-CH69) -> 0.7280003265 | CJ69: =IF(W69="","",SMALL(BG,CG69)) -> 0.2512884673 | CK69: =IF(W69="","",(2*CG69-1)*(LN(CJ69)+LN(CH69))) -> -346.1209501 | CL69: =IF(W69="",NA(),NORMSINV((CG69-0.3)/(Anzahl+0.4))) -> -0.6483274817 | CM69: 0.3467000127 | CN69: 0.7738000154 | CO69: 0.9301000237 | CP69: 0.3357999921 | CQ69: 0.9329000115 | CR69: 0.386500001 | CS69: 0.2280000001 | CT69: 0.2838999927 | CU69: 0.8122000098 | CV69: 0.8269000053
V70: 66 | W70: =IF($AP$39=2,IF(AC70<>"",AC70,""),(IF($AP$39=3,IF(AF70<>"",AF70,""),(IF($AP$39=4,IF(AI70<>"",AI70,""),IF(AL70<>"",AL70,"")))))) -> 74.006 | X70: 0 | Y70: 0 | AC70: =IF($C$37="","",$C$37) -> 74.003 | AF70: =IF($D$26="","",$D$26) -> 73.99 | AI70: =IF($C$21="","",$C$21) -> 74.012 | AK70: E18 | AL70: =IF($B$18="","",$B$18) -> 74.006 | AM70: 0.9218000174 | AN70: 0.4079999924 | AO70: 0.07410000265 | AP70: 7 | AQ70: 73.98590006 | AR70: 73.98905006 | AS70: 73.98747506 | AT70: 0.00315 | AU70: 30 | AV70: 0.12 | AW70: 10 | AX70: 0.04 | AY70: 12.6984127 | AZ70: 0.389200002 | BA70: 0.4411000013 | BB70: 0.4812000096 | BC70: 0.2111999989 | BU70: 0.4289000034 | BV70: 0.2476000041 | BW70: 0.9726999998 | BX70: 0.9409000278 | BY70: 0.5433999896 | BZ70: 0.402399987 | CA70: 0.2635999918 | CB70: 0.05290000141 | CC70: 0.5034000278 | CD70: 0.8838999867 | CE70: 66 | CF70: 73.995 | CG70: =IF(W70="","",1+CG69) -> 66 | CH70: 0.2719996735 | CI70: 0.7280003265 | CJ70: 0.2512884673 | CK70: -351.4871664 | CL70: -0.6360246074 | CM70: 0.9843000174 | CN70: 0.6448000073 | CO70: 0.715200007 | CP70: 0.5357000232 | CQ70: 0.4167999923 | CR70: 0.4336999953 | CS70: 0.3400999904 | CT70: 0.9368000031 | CU70: 0.6366000175 | CV70: 0.7548000216
V71: 67 | W71: 73.967 | X71: 0 | Y71: 0 | AB71: E38 | AC71: =IF($B$38="","",$B$38) -> 74.008 | AE71: E27 | AF71: =IF($B$27="","",$B$27) -> 74.01 | AI71: =IF($D$21="","",$D$21) -> 73.986 | AL71: =IF($C$18="","",$C$18) -> 73.967 | AM71: 0.6847000122 | AN71: 0.2294999957 | AO71: 0.02930000052 | AP71: 8 | AQ71: 73.98905007 | AR71: 73.99220007 | AS71: 73.99062507 | AT71: 0.00315 | AU71: 44 | AV71: 0.176 | AW71: 14 | AX71: 0.056 | AY71: 17.77777778 | AZ71: 0.01470000017 | BA71: 0.8417999744 | BB71: 0.1977999955 | BC71: 0.05510000139 | BU71: 0.3129000068 | BV71: 0.8697999716 | BW71: 0.03370000049 | BX71: 0.7254999876 | BY71: 0.03700000048 | BZ71: 0.1292999983 | CA71: 0.2094999999 | CB71: 0.5849999785 | CC71: 0.5476999879 | CD71: 0.5796999931 | CE71: 67 | CF71: 73.995 | CG71: 67 | CH71: 0.2719996735 | CI71: 0.7280003265 | CJ71: 0.2835955531 | CK71: -340.7673568 | CL71: -0.6238172589 | CM71: 0.1601999998 | CN71: 0.07699999958 | CO71: 0.2894999981 | CP71: 0.9505000114 | CQ71: 0.5102000237 | CR71: 0.8906000257 | CS71: 0.508400023 | CT71: 0.565500021 | CU71: 0.0998999998 | CV71: 0.06679999828
V72: 68 | W72: 73.994 | X72: 0 | Y72: 0 | AC72: =IF($C$38="","",$C$38) -> 73.995 | AF72: =IF($C$27="","",$C$27) -> 73.989 | AI72: =IF($E$21="","",$E$21) -> 74.005 | AL72: =IF($D$18="","",$D$18) -> 73.994 | AM72: 0.3930000067 | AN72: 0.9217000008 | AO72: 0.2513000071 | AP72: 9 | AQ72: 73.99220008 | AR72: 73.99535008 | AS72: 73.99377508 | AT72: 0.00315 | AU72: 76 | AV72: 0.304 | AW72: 32 | AX72: 0.128 | AY72: 40.63492063 | AZ72: 0.2028000057 | BA72: 0.4648000002 | BB72: 0.516900003 | BC72: 0.2831999958 | BU72: 0.9161000252 | BV72: 0.416200012 | BW72: 0.07580000162 | BX72: 0.3050000072 | BY72: 0.9311000109 | BZ72: 0.2992999852 | CA72: 0.8924999833 | CB72: 0.7066000104 | CC72: 0.4208000004 | CD72: 0.9963999987 | CE72: 68 | CF72: 73.995 | CG72: 68 | CH72: 0.2719996735 | CI72: 0.7280003265 | CJ72: 0.2835955531 | CK72: -345.891678 | CL72: -0.6117021725 | CM72: 0.5526000261 | CN72: 0.7226999998 | CO72: 0.633400023 | CP72: 0.8255000114 | CQ72: 0.9139999747 | CR72: 0.341899991 | CS72: 0.9157000184 | CT72: 0.8090999722 | CU72: 0.7224000096 | CV72: 0.8896999955
V73: 69 | W73: 74 | X73: 0 | Y73: 0 | AB73: E39 | AC73: =IF($B$39="","",$B$39) -> 73.998 | AF73: =IF($D$27="","",$D$27) -> 73.99 | AH73: E22 | AI73: =IF($B$22="","",$B$22) -> 74.006 | AL73: =IF($E$18="","",$E$18) -> 74 | AM73: 0.6036000252 | AN73: 0.00159999996 | AO73: 0.6266999841 | AP73: 10 | AQ73: 73.99535009 | AR73: 73.99850009 | AS73: 73.99692509 | AT73: 0.00315 | AU73: 100 | AV73: 0.4 | AW73: 24 | AX73: 0.096 | AY73: 30.47619048 | AZ73: 0.9817000031 | BA73: 0.1630000025 | BB73: 0.06780000031 | BC73: 0.4449000061 | BU73: 0.648999989 | BV73: 0.8434000015 | BW73: 0.6671000123 | BX73: 0.6626999974 | BY73: 0.2131000012 | BZ73: 0.137500003 | CA73: 0.07500000298 | CB73: 0.8181999922 | CC73: 0.8592000008 | CD73: 0.1116999984 | CE73: 69 | CF73: 73.995 | CG73: 69 | CH73: 0.2719996735 | CI73: 0.7280003265 | CJ73: 0.2835955531 | CK73: -351.0159991 | CL73: -0.599676212 | CM73: 0.6653000116 | CN73: 0.7585999966 | CO73: 0.1545999944 | CP73: 0.1262000054 | CQ73: 0.1699000001 | CR73: 0.850300014 | CS73: 0.3122000098 | CT73: 0.6046000123 | CU73: 0.1305000037 | CV73: 0.03119999915
V74: 70 | W74: 73.984 | X74: 0 | Y74: 0 | AC74: =IF($C$39="","",$C$39) -> 74 | AE74: E28 | AF74: =IF($B$28="","",$B$28) -> 74.015 | AI74: =IF($C$22="","",$C$22) -> 74.01 | AL74: =IF($F$18="","",$F$18) -> 73.984 | AM74: 0.8313000202 | AN74: 0.1120999977 | AO74: 0.6639000177 | AP74: 11 | AQ74: 73.9985001 | AR74: 74.0016501 | AS74: 74.0000751 | AT74: 0.00315 | AU74: 126 | AV74: 0.504 | AW74: 26 | AX74: 0.104 | AY74: 33.01587302 | AZ74: 0.5134999752 | BA74: 0.3876000047 | BB74: 0.6837999821 | BC74: 0.4774999917 | BU74: 0.4735000134 | BV74: 0.4524999857 | BW74: 0.3413999975 | BX74: 0.8845999837 | BY74: 0.5630000234 | BZ74: 0.7918000221 | CA74: 0.7506999969 | CB74: 0.6258000135 | CC74: 0.6822999716 | CD74: 0.6547999978 | CE74: 70 | CF74: 73.995 | CG74: 70 | CH74: 0.2719996735 | CI74: 0.7280003265 | CJ74: 0.2835955531 | CK74: -356.1403203 | CL74: -0.5877363614 | CM74: 0.7487999797 | CN74: 0.120099999 | CO74: 0.9839000106 | CP74: 0.6468999982 | CQ74: 0.3323000073 | CR74: 0.9399999976 | CS74: 0.06239999831 | CT74: 0.04619999975 | CU74: 0.4794000089 | CV74: 0.7138000131
V75: 71 | W75: 74.012 | X75: 0 | Y75: 0 | AB75: E40 | AC75: =IF($B$40="","",$B$40) -> 73.994 | AF75: =IF($C$28="","",$C$28) -> 74.008 | AI75: =IF($D$22="","",$D$22) -> 74.018 | AK75: E19 | AL75: =IF($B$19="","",$B$19) -> 74.012 | AM75: 0.3458000124 | AN75: 0.6317999959 | AO75: 0.665199995 | AP75: 12 | AQ75: 74.00165011 | AR75: 74.00480011 | AS75: 74.00322511 | AT75: 0.00315 | AU75: 152 | AV75: 0.608 | AW75: 26 | AX75: 0.104 | AY75: 33.01587302 | AZ75: 0.5784999728 | BA75: 0.7354999781 | BB75: 0.7619000077 | BC75: 0.6276000142 | BU75: 0.2004999965 | BV75: 0.9988999963 | BW75: 0.2703999877 | BX75: 0.1432999969 | BY75: 0.3998000026 | BZ75: 0.1922000051 | CA75: 0.5667999983 | CB75: 0.8754000068 | CC75: 0.5896000266 | CD75: 0.7148000002 | CE75: 71 | CF75: 73.995 | CG75: 71 | CH75: 0.2719996735 | CI75: 0.7280003265 | CJ75: 0.2835955531 | CK75: -361.2646415 | CL75: -0.5758797178 | CM75: 0.9728000164 | CN75: 0.9858999848 | CO75: 0.5228999853 | CP75: 0.3704000115 | CQ75: 0.8902000189 | CR75: 0.831700027 | CS75: 0.4419000149 | CT75: 0.494599998 | CU75: 0.1242000014 | CV75: 0.559499979
V76: 72 | W76: 74.014 | X76: 0 | Y76: 0 | AC76: =IF($C$40="","",$C$40) -> 73.998 | AF76: =IF($D$28="","",$D$28) -> 73.993 | AI76: =IF($E$22="","",$E$22) -> 74.003 | AL76: =IF($C$19="","",$C$19) -> 74.014 | AM76: 0.2187000066 | AN76: 0.5335999727 | AO76: 0.1491000056 | AP76: 13 | AQ76: 74.00480012 | AR76: 74.00795012 | AS76: 74.00637512 | AT76: 0.00315 | AU76: 184 | AV76: 0.736 | AW76: 32 | AX76: 0.128 | AY76: 40.63492063 | AZ76: 0.3093000054 | BA76: 0.7458999753 | BB76: 0.871900022 | BC76: 0.6236000061 | BU76: 0.03610000014 | BV76: 0.0513000004 | BW76: 0.1852000058 | BX76: 0.9330000281 | BY76: 0.1789000034 | BZ76: 0.1604000032 | CA76: 0.4957999885 | CB76: 0.3373999894 | CC76: 0.2073000073 | CD76: 0.6007999778 | CE76: 72 | CF76: 73.995 | CG76: 72 | CH76: 0.2719996735 | CI76: 0.7280003265 | CJ76: 0.2835955531 | CK76: -366.3889626 | CL76: -0.5641034856 | CM76: 0.8476999998 | CN76: 0.5121999979 | CO76: 0.2406000048 | CP76: 0.0773999989 | CQ76: 0.9387999773 | CR76: 0.9265999794 | CS76: 0.1841000021 | CT76: 0.9366000295 | CU76: 0.5421000123 | CV76: 0.8241000175
V77: 73 | W77: 73.998 | X77: 0 | Y77: 0 | AB77: E41 | AC77: =IF($B$41="","",$B$41) -> 74.004 | AE77: E29 | AF77: =IF($B$29="","",$B$29) -> 73.982 | AH77: E23 | AI77: =IF($B$23="","",$B$23) -> 73.984 | AL77: =IF($D$19="","",$D$19) -> 73.998 | AM77: 0.6198999882 | AN77: 0.4947000146 | AO77: 0.5213999748 | AP77: 14 | AQ77: 74.00795013 | AR77: 74.01110013 | AS77: 74.00952513 | AT77: 0.00315 | AU77: 210 | AV77: 0.84 | AW77: 26 | AX77: 0.104 | AY77: 33.01587302 | AZ77: 0.1756000072 | BA77: 0.9473999739 | BB77: 0.6157000065 | BC77: 0.09690000117 | BU77: 0.3790999949 | BV77: 0.6014000177 | BW77: 0.5482000113 | BX77: 0.5533999801 | BY77: 0.9383999705 | BZ77: 0.769299984 | CA77: 0.7569000125 | CB77: 0.04100000113 | CC77: 0.3851000071 | CD77: 0.9509000182 | CE77: 73 | CF77: 73.995 | CG77: 73 | CH77: 0.2719996735 | CI77: 0.7280003265 | CJ77: 0.2835955531 | CK77: -371.5132838 | CL77: -0.5524049696 | CM77: 0.8967000246 | CN77: 0.8170999885 | CO77: 0.7202000022 | CP77: 0.2057999969 | CQ77: 0.6019999981 | CR77: 0.5411999822 | CS77: 0.2775999904 | CT77: 0.5942999721 | CU77: 0.5042999983 | CV77: 0.8816000223
V78: 74 | W78: 73.999 | X78: 0 | Y78: 0 | AC78: =IF($C$41="","",$C$41) -> 74 | AF78: =IF($C$29="","",$C$29) -> 73.984 | AI78: =IF($C$23="","",$C$23) -> 74.002 | AL78: =IF($E$19="","",$E$19) -> 73.999 | AM78: 0.3650999963 | AN78: 0.2558000088 | AO78: 0.997600019 | AP78: 15 | AQ78: 74.01110014 | AR78: 74.01425014 | AS78: 74.01267514 | AT78: 0.00315 | AU78: 226 | AV78: 0.904 | AW78: 16 | AX78: 0.064 | AY78: 20.31746032 | AZ78: 0.2184000015 | BA78: 0.1546999961 | BB78: 0.7369999886 | BC78: 0.2542999983 | BU78: 0.8671000004 | BV78: 0.9230999947 | BW78: 0.9756000042 | BX78: 0.8443999887 | BY78: 0.09660000354 | BZ78: 0.9516999722 | CA78: 0.9886000156 | CB78: 0.7588000298 | CC78: 0.7433999777 | CD78: 0.09179999679 | CE78: 74 | CF78: 73.995 | CG78: 74 | CH78: 0.2719996735 | CI78: 0.7280003265 | CJ78: 0.2835955531 | CK78: -376.6376049 | CL78: -0.5407815706 | CM78: 0.5774999857 | CN78: 0.2150000036 | CO78: 0.9559000134 | CP78: 0.9602000117 | CQ78: 0.703700006 | CR78: 0.891200006 | CS78: 0.01260000002 | CT78: 0.7845000029 | CU78: 0.4977999926 | CV78: 0.9585000277
V79: 75 | W79: 74.007 | X79: 0 | Y79: 0 | AB79: E42 | AC79: =IF($B$42="","",$B$42) -> 73.983 | AF79: =IF($D$29="","",$D$29) -> 73.995 | AI79: =IF($D$23="","",$D$23) -> 74.003 | AL79: =IF($F$19="","",$F$19) -> 74.007 | AM79: 0.7124000192 | AN79: 0.230399996 | AO79: 0.774699986 | AP79: 16 | AQ79: 74.01425015 | AR79: 74.01740015 | AS79: 74.01582515 | AT79: 0.00315 | AU79: 238 | AV79: 0.952 | AW79: 12 | AX79: 0.048 | AY79: 15.23809524 | AZ79: 0.5343999863 | BA79: 0.01520000026 | BB79: 0.4803000093 | BC79: 0.7994999886 | BU79: 0.674399972 | BV79: 0.6818000078 | BW79: 0.9082999825 | BX79: 0.1700000018 | BY79: 0.4982999861 | BZ79: 0.3605999947 | CA79: 0.6700999737 | CB79: 0.7404999733 | CC79: 0.4697000086 | CD79: 0.6478000283 | CE79: 75 | CF79: 73.995 | CG79: 75 | CH79: 0.2719996735 | CI79: 0.7280003265 | CJ79: 0.2835955531 | CK79: -381.7619261 | CL79: -0.5292307793 | CM79: 0.4541000128 | CN79: 0.7009999752 | CO79: 0.9002000093 | CP79: 0.6711999774 | CQ79: 0.689899981 | CR79: 0.3260999918 | CS79: 0.2779999971 | CT79: 0.02820000052 | CU79: 0.397300005 | CV79: 0.1181000024
V80: 76 | W80: 74 | X80: 0 | Y80: 0 | AC80: =IF($C$42="","",$C$42) -> 74.002 | AE80: E30 | AF80: =IF($B$30="","",$B$30) -> 74.03 | AI80: =IF($E$23="","",$E$23) -> 74.005 | AK80: E20 | AL80: =IF($B$20="","",$B$20) -> 74 | AM80: 0.4088999927 | AN80: 0.364199996 | AO80: 0.4528999925 | AP80: 17 | AQ80: 74.01740016 | AR80: 74.02055016 | AS80: 74.01897516 | AT80: 0.00315 | AU80: 244 | AV80: 0.976 | AW80: 6 | AX80: 0.024 | AY80: 7.619047619 | AZ80: 0.01009999961 | BA80: 0.8065999746 | BB80: 0.2004999965 | BC80: 0.1054000035 | BU80: 0.05779999867 | BV80: 0.293900013 | BW80: 0.5346000195 | BX80: 0.6534000039 | BY80: 0.712100029 | BZ80: 0.4776000082 | CA80: 0.7930999994 | CB80: 0.6980999708 | CC80: 0.3662 | CD80: 0.4005999863 | CE80: 76 | CF80: 73.995 | CG80: 76 | CH80: 0.2719996735 | CI80: 0.7280003265 | CJ80: 0.2835955531 | CK80: -386.8862472 | CL80: -0.5177501719 | CM80: 0.6191999912 | CN80: 0.685100019 | CO80: 0.2601000071 | CP80: 0.404399991 | CQ80: 0.8004000187 | CR80: 0.8136000037 | CS80: 0.1080000028 | CT80: 0.409799993 | CU80: 0.3869999945 | CV80: 0.4952999949
V81: 77 | W81: 73.984 | X81: 0 | Y81: 0 | AB81: E43 | AC81: =IF($B$43="","",$B$43) -> 74.006 | AF81: =IF($C$30="","",$C$30) -> 74.002 | AH81: E24 | AI81: =IF($B$24="","",$B$24) -> 74 | AL81: =IF($C$20="","",$C$20) -> 73.984 | AM81: 0.9879999757 | AN81: 0.2446999997 | AO81: 0.7077999711 | AP81: 18 | AQ81: 74.02055017 | AR81: 74.02370017 | AS81: 74.02212517 | AT81: 0.00315 | AU81: 246 | AV81: 0.984 | AW81: 2 | AX81: 0.008 | AY81: 2.53968254 | AZ81: 0.3066000044 | BA81: 0.4832000136 | BB81: 0.2223999947 | BC81: 0.6353999972 | BU81: 0.1543000042 | BV81: 0.5363000035 | BW81: 0.9613999724 | BX81: 0.66049999 | BY81: 0.5770999789 | BZ81: 0.9732999802 | CA81: 0.7843000293 | CB81: 0.03979999945 | CC81: 0.1456999928 | CD81: 0.3986000121 | CE81: 77 | CF81: 73.996 | CG81: 77 | CH81: 0.3055412437 | CI81: 0.6944587563 | CJ81: 0.3177693066 | CK81: -356.8113177 | CL81: -0.5063374054 | CM81: 0.3652999997 | CN81: 0.9768000245 | CO81: 0.5447999835 | CP81: 0.8205999732 | CQ81: 0.4909999967 | CR81: 0.6740999818 | CS81: 0.4796000123 | CT81: 0.186499998 | CU81: 0.1327999979 | CV81: 0.7803999782
V82: 78 | W82: 74.005 | X82: 0 | Y82: 0 | AC82: =IF($C$43="","",$C$43) -> 73.967 | AF82: =IF($D$30="","",$D$30) -> 74.019 | AI82: =IF($C$24="","",$C$24) -> 74.01 | AL82: =IF($D$20="","",$D$20) -> 74.005 | AM82: 0.3161999881 | AN82: 0.4600000083 | AO82: 0.2119999975 | AP82: 19 | AQ82: 74.02370018 | AR82: 74.02685018 | AS82: 74.02527518 | AT82: 0.00315 | AU82: 248 | AV82: 0.992 | AW82: 2 | AX82: 0.008 | AY82: 2.53968254 | AZ82: 0.09380000085 | BA82: 0.9728000164 | BB82: 0.9495000243 | BC82: 0.6158999801 | BU82: 0.02759999968 | BV82: 0.4054999948 | BW82: 0.6369000077 | BX82: 0.5351999998 | BY82: 0.9995999932 | BZ82: 0.3158000112 | CA82: 0.6765000224 | CB82: 0.3542000055 | CC82: 0.9794999957 | CD82: 0.3158999979 | CE82: 78 | CF82: 73.996 | CG82: 78 | CH82: 0.3055412437 | CI82: 0.6944587563 | CJ82: 0.3177693066 | CK82: -361.475518 | CL82: -0.4949902134 | CM82: 0.1071999967 | CN82: 0.0195000004 | CO82: 0.3617999852 | CP82: 0.2843999863 | CQ82: 0.1052000001 | CR82: 0.5645999908 | CS82: 0.3585999906 | CT82: 0.6478999853 | CU82: 0.2035000026 | CV82: 0.953700006
V83: 79 | W83: 73.998 | X83: 0 | Y83: 0 | AB83: E44 | AC83: =IF($B$44="","",$B$44) -> 74.012 | AE83: E31 | AF83: =IF($B$31="","",$B$31) -> 73.995 | AI83: =IF($D$24="","",$D$24) -> 74.013 | AL83: =IF($E$20="","",$E$20) -> 73.998 | AM83: 0.3898000121 | AN83: 0.2089000046 | AO83: 0.8068000078 | AP83: 20 | AQ83: 74.02685019 | AR83: 74.03000019 | AS83: 74.02842519 | AT83: 0.00315 | AU83: 250 | AV83: 1 | AW83: 2 | AX83: 0.008 | AY83: 2.53968254 | AZ83: 0.534799993 | BA83: 0.7239999771 | BB83: 0.2241999954 | BC83: 0.9575999975 | BU83: 0.9649999738 | BV83: 0.2269999981 | BW83: 0.02160000056 | BX83: 0.5831000209 | BY83: 0.0003999999899 | BZ83: 0.6305999756 | CA83: 0.5309000015 | CB83: 0.1453000009 | CC83: 0.2935000062 | CD83: 0.06219999865 | CE83: 79 | CF83: 73.996 | CG83: 79 | CH83: 0.3055412437 | CI83: 0.6944587563 | CJ83: 0.3177693066 | CK83: -366.1397182 | CL83: -0.4837064018 | CM83: 0.5534999967 | CN83: 0.3745999932 | CO83: 0.9642999768 | CP83: 0.2240000069 | CQ83: 0.7960000038 | CR83: 0.7135999799 | CS83: 0.9972000122 | CT83: 0.224999994 | CU83: 0.7433999777 | CV83: 0.2700999975
V84: 80 | W84: 73.996 | X84: 0 | Y84: 0 | AC84: =IF($C$44="","",$C$44) -> 74.014 | AF84: =IF($C$31="","",$C$31) -> 73.992 | AI84: =IF($E$24="","",$E$24) -> 74.02 | AL84: =IF($F$20="","",$F$20) -> 73.996 | AM84: 0.3815999925 | AN84: 0.159799993 | AO84: 0.9244999886 | AP84: 0.01999999955 | AQ84: 0.502399981 | AR84: 0.9365000129 | AS84: 0.4277999997 | AT84: 0.2603999972 | AU84: 0.7803999782 | AV84: 0.3546000123 | AW84: 0.6668999791 | AX84: 0.3129999936 | AY84: 0.5633999705 | AZ84: 0.4334999919 | BA84: 0.3962000012 | BB84: 0.4767999947 | BC84: 0.2666000128 | BU84: 0.1288000047 | BV84: 0.456099987 | BW84: 0.0476000011 | BX84: 0.7404000163 | BY84: 0.6978999972 | BZ84: 0.4052999914 | CA84: 0.4805999994 | CB84: 0.8499000072 | CC84: 0.393900007 | CD84: 0.4932999909 | CE84: 80 | CF84: 73.996 | CG84: 80 | CH84: 0.3055412437 | CI84: 0.6944587563 | CJ84: 0.3177693066 | CK84: -370.8039184 | CL84: -0.4724838457 | CM84: 0.9384999871 | CN84: 0.560199976 | CO84: 0.2603999972 | CP84: 0.1519999951 | CQ84: 0.4381999969 | CR84: 0.8837000132 | CS84: 0.07220000029 | CT84: 0.6190999746 | CU84: 0.5792000294 | CV84: 0.08399999887
V85: 81 | W85: 73.994 | X85: 0 | Y85: 0 | AB85: E45 | AC85: =IF($B$45="","",$B$45) -> 74 | AF85: =IF($D$31="","",$D$31) -> 74.001 | AH85: E25 | AI85: =IF($B$25="","",$B$25) -> 73.982 | AK85: E21 | AL85: =IF($B$21="","",$B$21) -> 73.994 | AM85: 0.8514000177 | AN85: 0.390899986 | AO85: 0.184799999 | AP85: 0.7536000013 | AQ85: 0.6328999996 | AR85: 0.9258000255 | AS85: 0.1926999986 | AT85: 0.1423999965 | AU85: 0.4794999957 | AV85: 0.5971000195 | AW85: 0.7951999903 | AX85: 0.7354999781 | AY85: 0.7483000159 | AZ85: 0.8963999748 | BA85: 0.8302999735 | BB85: 0.08160000294 | BC85: 0.6058999896 | BU85: 0.7275999784 | BV85: 0.5960000157 | BW85: 0.6937000155 | BX85: 0.9794999957 | BY85: 0.3226000071 | BZ85: 0.8798000216 | CA85: 0.886500001 | CB85: 0.5188000202 | CC85: 0.6025000215 | CD85: 0.5970000029 | CE85: 81 | CF85: 73.996 | CG85: 81 | CH85: 0.3055412437 | CI85: 0.6944587563 | CJ85: 0.3177693066 | CK85: -375.4681187 | CL85: -0.461320485 | CM85: 0.3143999875 | CN85: 0.746999979 | CO85: 0.6319000125 | CP85: 0.6164000034 | CQ85: 0.1831 | CR85: 0.6097999811 | CS85: 0.8863999844 | CT85: 0.5735999942 | CU85: 0.3984999955 | CV85: 0.9523000121
V86: 82 | W86: 74.012 | X86: 0 | Y86: 0 | AC86: =IF($C$45="","",$C$45) -> 73.984 | AE86: E32 | AF86: =IF($B$32="","",$B$32) -> 73.988 | AI86: =IF($C$25="","",$C$25) -> 74.001 | AL86: =IF($C$21="","",$C$21) -> 74.012 | AM86: 0.1436000019 | AN86: 0.199000001 | AO86: 0.5820999742 | AP86: 0.4718999863 | AQ86: 0.6230000257 | AR86: 0.8956999779 | AS86: 0.3370999992 | AT86: 0.9218999743 | AU86: 0.3776000142 | AV86: 0.5677000284 | AW86: 0.7637000084 | AX86: 0.5644000173 | AY86: 0.9337000251 | AZ86: 0.698300004 | BA86: 0.2246000022 | BB86: 0.8733000159 | BC86: 0.182099998 | BU86: 0.1022000015 | BV86: 0.929099977 | BW86: 0.1986999959 | BX86: 0.3267999887 | BY86: 0.5691000223 | BZ86: 0.6499000192 | CA86: 0.9222000241 | CB86: 0.7483999729 | CC86: 0.7781999707 | CD86: 0.8507999778 | CE86: 82 | CF86: 73.996 | CG86: 82 | CH86: 0.3055412437 | CI86: 0.6944587563 | CJ86: 0.3177693066 | CK86: -380.1323189 | CL86: -0.4502143217 | CM86: 0.08439999819 | CN86: 0.2169000059 | CO86: 0.7566000223 | CP86: 0.01350000035 | CQ86: 0.5526999831 | CR86: 0.1932000071 | CS86: 0.934499979 | CT86: 0.4097000062 | CU86: 0.8241999745 | CV86: 0.248300001
V87: 83 | W87: 73.986 | X87: 0 | Y87: 0 | AB87: E46 | AC87: =IF($B$46="","",$B$46) -> 73.994 | AF87: =IF($C$32="","",$C$32) -> 74.024 | AI87: =IF($D$25="","",$D$25) -> 74.015 | AL87: =IF($D$21="","",$D$21) -> 73.986 | AM87: 0.4111000001 | AN87: 0.3045000136 | AO87: 0.4163999856 | AP87: 0.8917999864 | AQ87: 1.1 | AR87: =AR88-(AQ87*Standardabweichung) -> 73.93399869 | AS87: =NORMDIST(AR87,Mittelwert,Standardabweichung,0) -> 1.362377882e-08 | AT87: =TODAY() -> 43856 | AU87: OGW | AV87: =OGW -> 74.05 | AW87: =MAX(Häufigkeitsdichte)*1.05 -> 42.66666667 | AX87: 0.4700999856 | AY87: 0.4090999961 | AZ87: 0.5081999898 | BA87: 0.6499000192 | BB87: 0.3454000056 | BC87: 0.584100008 | BU87: 0.08169999719 | BV87: 0.638100028 | BW87: 0.1914999932 | BX87: 0.8011000156 | BY87: 0.350699991 | BZ87: 0.00419999985 | CA87: 0.8238999844 | CB87: 0.9617999792 | CC87: 0.9448999763 | CD87: 0.2423000038 | CE87: 83 | CF87: 73.996 | CG87: 83 | CH87: 0.3055412437 | CI87: 0.6944587563 | CJ87: 0.3177693066 | CK87: -384.7965191 | CL87: -0.4391634164 | CM87: 0.2973999977 | CN87: 0.2281000018 | CO87: 0.3359000087 | CP87: 0.7504000068 | CQ87: 0.9804999828 | CR87: 0.8069000244 | CS87: 0.9648000002 | CT87: 0.01720000058 | CU87: 0.9692000151 | CV87: 0.7228999734
V88: 84 | W88: 74.005 | X88: 0 | Y88: 0 | AC88: =IF($C$46="","",$C$46) -> 74.012 | AF88: =IF($D$32="","",$D$32) -> 74.021 | AI88: =IF($E$25="","",$E$25) -> 74.005 | AL88: =IF($E$21="","",$E$21) -> 74.005 | AM88: 0.8206999898 | AN88: 0.888199985 | AO88: 0.290199995 | AP88: 0.2083999962 | AQ88: 1 | AR88: 73.94519491 | AS88: 1.058101577e-05 | AT88: 43856 | AU88: UGW | AV88: =UGW -> 73.95 | AW88: 42.66666667 | AX88: 0.2687000036 | AY88: 0.08060000092 | AZ88: 0.3538999856 | BA88: 0.344599992 | BB88: 0.1279000044 | BC88: 0.9494000077 | BU88: 0.2478999943 | BV88: 0.3937000036 | BW88: 0.4745999873 | BX88: 0.3646000028 | BY88: 0.2338999957 | BZ88: 0.1959999949 | CA88: 0.03790000081 | CB88: 0.01499999966 | CC88: 0.5124999881 | CD88: 0.9207999706 | CE88: 84 | CF88: 73.996 | CG88: 84 | CH88: 0.3055412437 | CI88: 0.6944587563 | CJ88: 0.3177693066 | CK88: -389.4607194 | CL88: -0.4281658855 | CM88: 0.4307999909 | CN88: 0.3831999898 | CO88: 0.01649999991 | CP88: 0.8327999711 | CQ88: 0.6725999713 | CR88: 0.9743999839 | CS88: 0.5429000258 | CT88: 0.6036000252 | CU88: 0.5606999993 | CV88: 0.9588999748
V89: 85 | W89: 74.007 | X89: 0 | Y89: 0 | AB89: E47 | AC89: =IF($B$47="","",$B$47) -> 74.006 | AE89: E33 | AF89: =IF($B$33="","",$B$33) -> 74.002 | AH89: E26 | AI89: =IF($B$26="","",$B$26) -> 74.004 | AL89: =IF($F$21="","",$F$21) -> 74.007 | AM89: 0.8934000134 | AN89: 0.8902999759 | AO89: 0.9363999963 | AP89: 0.3750999868 | AQ89: 0.9 | AR89: 73.95537329 | AS89: 0.001570361976 | AT89: =six_89(AT87,AT88) -> 1 | AU89: ="+ 3 Sigma" -> + 3 Sigma | AV89: =Mittelwert+3*Standardabweichung -> 74.03171114 | AW89: 42.66666667 | AX89: 0.2653000057 | AY89: 0.1632999927 | AZ89: 0.2006999999 | BA89: 0.5824999809 | BB89: 0.8923000097 | BC89: 0.7846999764 | BU89: 0.1624000072 | BV89: 0.7699000239 | BW89: 0.5494999886 | BX89: 0.8421999812 | BY89: 0.7570999861 | BZ89: 0.5712000132 | CA89: 0.6399000287 | CB89: 0.3379000127 | CC89: 0.2194000036 | CD89: 0.5859000087 | CE89: 85 | CF89: 73.997 | CG89: 85 | CH89: 0.3407997589 | CI89: 0.6592002411 | CJ89: 0.3535706147 | CK89: -357.6263496 | CL89: -0.4172198985 | CM89: 0.6409000158 | CN89: 0.4492000043 | CO89: 0.7918000221 | CP89: 0.398999989 | CQ89: 0.8600999713 | CR89: 0.06639999896 | CS89: 0.3664000034 | CT89: 0.647300005 | CU89: 0.4494999945 | CV89: 0.5454000235
V90: 86 | W90: 74.006 | X90: 0 | Y90: 0 | AC90: =IF($C$47="","",$C$47) -> 74.01 | AF90: =IF($C$33="","",$C$33) -> 73.996 | AI90: =IF($C$26="","",$C$26) -> 73.999 | AK90: E22 | AL90: =IF($B$22="","",$B$22) -> 74.006 | AM90: 0.4375 | AN90: 0.1598999947 | AO90: 0.9843000174 | AP90: 0.9736999869 | AQ90: 0.8 | AR90: 73.96453383 | AS90: 0.06011781083 | AT90: 0.3052000105 | AU90: ="- 3 Sigma" -> - 3 Sigma | AV90: =Mittelwert-3*Standardabweichung -> 73.97064086 | AW90: 42.66666667 | AX90: 0.3490000069 | AY90: 0.2903000116 | AZ90: 0.6858000159 | BA90: 0.5284000039 | BB90: 0.850399971 | BC90: 0.5225999951 | BU90: 0.2480999976 | BV90: 0.1680999994 | BW90: 0.3889999986 | BX90: 0.2213000059 | BY90: 0.9273999929 | BZ90: 0.1374000013 | CA90: 0.7099000216 | CB90: 0.8223000169 | CC90: 0.6830999851 | CD90: 0.4438999891 | CE90: 86 | CF90: 73.997 | CG90: 86 | CH90: 0.3407997589 | CI90: 0.6592002411 | CJ90: 0.3535706147 | CK90: -361.8586141 | CL90: -0.4063236747 | CM90: 0.3201000094 | CN90: 0.6529999971 | CO90: 0.4569000006 | CP90: 0.5748000145 | CQ90: 0.8201000094 | CR90: 0.7246000171 | CS90: 0.7774000168 | CT90: 0.2569000125 | CU90: 0.0923999995 | CV90: 0.2018000036
V91: 87 | W91: 74.01 | X91: 0 | Y91: 0 | AB91: E48 | AC91: =IF($B$48="","",$B$48) -> 73.984 | AF91: =IF($D$33="","",$D$33) -> 73.993 | AI91: =IF($D$26="","",$D$26) -> 73.99 | AL91: =IF($C$22="","",$C$22) -> 74.01 | AM91: 0.7134000063 | AN91: 0.5965999961 | AO91: 0.8801000118 | AP91: 0.6679999828 | AQ91: 0.7 | AR91: 73.97267654 | AS91: 0.7776730184 | AT91: 0.07670000196 | AU91: Mittelwert | AV91: =Mittelwert -> 74.001176 | AW91: 42.66666667 | AX91: 0.4709999859 | AY91: 0.6146000028 | AZ91: 0.6414999962 | BA91: 0.8752999902 | BB91: 0.1682000011 | BC91: 0.4939999878 | BU91: 0.01700000092 | BV91: 0.07940000296 | BW91: 0.001900000032 | BX91: 0.3424000144 | BY91: 0.6841999888 | BZ91: 0.5066999793 | CA91: 0.6832000017 | CB91: 0.6590999961 | CC91: 0.9021999836 | CD91: 0.59799999 | CE91: 87 | CF91: 73.997 | CG91: 87 | CH91: 0.3407997589 | CI91: 0.6592002411 | CJ91: 0.3535706147 | CK91: -366.0908786 | CL91: -0.3954754817 | CM91: 0.4230999947 | CN91: 0.6475999951 | CO91: 0.5619000196 | CP91: 0.9930999875 | CQ91: 0.3650000095 | CR91: 0.6902999878 | CS91: 0.07869999856 | CT91: 0.758400023 | CU91: 0.3720000088 | CV91: 0.0103000002
V92: 88 | W92: 74.018 | X92: 0 | Y92: 0 | AC92: =IF($C$48="","",$C$48) -> 74.002 | AE92: E34 | AF92: =IF($B$34="","",$B$34) -> 73.992 | AI92: =IF($E$26="","",$E$26) -> 74.006 | AL92: =IF($D$22="","",$D$22) -> 74.018 | AM92: 0.3454000056 | AN92: 0.5278000236 | AO92: 0.6050999761 | AP92: 0.9373999834 | AQ92: 0.6 | AR92: 73.9798014 | AS92: 4.321276618 | AT92: 0.9355999827 | AU92: Sollwert | AV92: =Sollwert -> 74 | AW92: 42.66666667 | AX92: 0.8931000233 | AY92: 0.3510999978 | AZ92: 0.4230999947 | BA92: 0.5566999912 | BB92: 0.0449000001 | BC92: 0.1011999995 | BU92: 0.8400999904 | BV92: 0.3903000057 | BW92: 0.7282000184 | BX92: 0.1860000044 | BY92: 0.08609999716 | BZ92: 0.5031999946 | CA92: 0.08730000257 | CB92: 0.266200006 | CC92: 0.6227999926 | CD92: 0.8100000024 | CE92: 88 | CF92: 73.997 | CG92: 88 | CH92: 0.3407997589 | CI92: 0.6592002411 | CJ92: 0.3535706147 | CK92: -370.3231431 | CL92: -0.3846736321 | CM92: 0.6649000049 | CN92: 0.288500011 | CO92: 0.5406000018 | CP92: 0.3531000018 | CQ92: 0.3973999918 | CR92: 0.2563999891 | CS92: 0.391200006 | CT92: 0.788500011 | CU92: 0.3783000112 | CV92: 0.7014999986
V93: 89 | W93: 74.003 | X93: 0 | Y93: 0 | AB93: E49 | AC93: =IF($B$49="","",$B$49) -> 74 | AF93: =IF($C$34="","",$C$34) -> 74.007 | AH93: E27 | AI93: =IF($B$27="","",$B$27) -> 74.01 | AL93: =IF($E$22="","",$E$22) -> 74.003 | AM93: 0.1420000046 | AN93: 0.527700007 | AO93: 0.4365999997 | AP93: 0.9496999979 | AQ93: 0.5 | AR93: 73.98590843 | AS93: 12.72477489 | AT93: 0.3781999946 | AU93: 0.1271000057 | AV93: 0.9646999836 | AW93: 0.6363000274 | AX93: 0.7562000155 | AY93: 0.929700017 | AZ93: 0.9965000153 | BA93: 0.4717000127 | BB93: 0.7070999742 | BC93: 0.9550999999 | BU93: 0.9825000167 | BV93: 0.4415999949 | BW93: 0.2011000067 | BX93: 0.6994000077 | BY93: 0.3115999997 | BZ93: 0.8410999775 | CA93: 0.09170000255 | CB93: 0.01020000037 | CC93: 0.6812000275 | CD93: 0.07639999688 | CE93: 89 | CF93: 73.997 | CG93: 89 | CH93: 0.3407997589 | CI93: 0.6592002411 | CJ93: 0.3535706147 | CK93: -374.5554076 | CL93: -0.3739164819 | CM93: 0.6039999723 | CN93: 0.06939999759 | CO93: 0.9657999873 | CP93: 0.08619999886 | CQ93: 0.2339999974 | CR93: 0.451000005 | CS93: 0.2558000088 | CT93: 0.1617999971 | CU93: 0.4203999937 | CV93: 0.90200001
V94: 90 | W94: 74 | X94: 0 | Y94: 0 | AC94: =IF($C$49="","",$C$49) -> 74.01 | AF94: =IF($D$34="","",$D$34) -> 74.015 | AI94: =IF($C$27="","",$C$27) -> 73.989 | AL94: =IF($F$22="","",$F$22) -> 74 | AM94: 0.1230000034 | AN94: 0.1502999961 | AO94: 0.9345999956 | AP94: 0.1701000035 | AQ94: 0.4 | AR94: 73.99099762 | AS94: 23.77300925 | AT94: 0.1362999976 | AU94: 0.9075000286 | AV94: 0.5218999982 | AW94: 0.08229999989 | AX94: 0.627399981 | AY94: 0.0008999999845 | AZ94: 0.7917000055 | BA94: 0.8729000092 | BB94: 0.706099987 | BC94: 0.6632999778 | BU94: 0.5469999909 | BV94: 0.7132999897 | BW94: 0.8030999899 | BX94: 0.7048000097 | BY94: 0.6740000248 | BZ94: 0.181099996 | CA94: 0.1030000001 | CB94: 0.9451000094 | CC94: 0.7835000157 | CD94: 0.6115999818 | CE94: 90 | CF94: 73.997 | CG94: 90 | CH94: 0.3407997589 | CI94: 0.6592002411 | CJ94: 0.3535706147 | CK94: -378.7876721 | CL94: -0.3632024279 | CM94: 0.7846000195 | CN94: 0.2316000015 | CO94: 0.1800999939 | CP94: 0.9035999775 | CQ94: 0.7134000063 | CR94: 0.2802000046 | CS94: 0.7785000205 | CT94: 0.1252000034 | CU94: 0.2481999993 | CV94: 0.3273999989
V95: 91 | W95: 73.984 | X95: 0 | Y95: 0 | AB95: E50 | AC95: =IF($B$50="","",$B$50) -> 73.982 | AE95: E35 | AF95: =IF($B$35="","",$B$35) -> 74.009 | AI95: =IF($D$27="","",$D$27) -> 73.99 | AK95: E23 | AL95: =IF($B$23="","",$B$23) -> 73.984 | AM95: 0.9322000146 | AN95: 0.02869999968 | AO95: 0.6940000057 | AP95: 0.7706000209 | AQ95: 0.3 | AR95: 73.99506897 | AS95: 32.73847108 | AT95: 0.5109000206 | AU95: 0.8169999719 | AV95: 0.005100000184 | AW95: 0.05920000002 | AX95: 0.2294999957 | AY95: 0.1586000025 | AZ95: 0.7386000156 | BA95: 0.8346999884 | BB95: 0.2254000008 | BC95: 0.4532999992 | BU95: 0.1608999968 | BV95: 0.1209999993 | BW95: 0.3937999904 | BX95: 0.80400002 | BY95: 0.8255000114 | BZ95: 0.1920000017 | CA95: 0.2366999984 | CB95: 0.3576000035 | CC95: 0.167899996 | CD95: 0.4052999914 | CE95: 91 | CF95: 73.998 | CG95: 91 | CH95: 0.3775073567 | CI95: 0.6224926433 | CJ95: 0.3535706147 | CK95: -364.5045472 | CL95: -0.3525299058 | CM95: 0.1254999936 | CN95: 0.355399996 | CO95: 0.431400001 | CP95: 0.09359999746 | CQ95: 0.8741999865 | CR95: 0.9179999828 | CS95: 0.5672000051 | CT95: 0.4657999873 | CU95: 0.6690000296 | CV95: 0.04949999973
V96: 92 | W96: 74.002 | X96: 0 | Y96: 0 | AC96: =IF($C$50="","",$C$50) -> 74.001 | AF96: =IF($C$35="","",$C$35) -> 73.994 | AI96: =IF($E$27="","",$E$27) -> 74.009 | AL96: =IF($C$23="","",$C$23) -> 74.002 | AM96: 0.8751000166 | AN96: 0.6848000288 | AO96: 0.8337000012 | AP96: 0.3409999907 | AQ96: 0.2 | AR96: 73.99812249 | AS96: 37.47038441 | AT96: 0.8944000006 | AU96: 0.195600003 | AV96: 0.8452000022 | AW96: 0.923699975 | AX96: 0.543900013 | AY96: 0.3039000034 | AZ96: 0.5997999907 | BA96: 0.6719999909 | BB96: 0.5133000016 | BC96: 0.003500000108 | BU96: 0.6129000187 | BV96: 0.9445000291 | BW96: 0.197300002 | BX96: 0.1340000033 | BY96: 0.9261999726 | BZ96: 0.679700017 | CA96: 0.2164999992 | CB96: 0.6518999934 | CC96: 0.8963999748 | CD96: 0.4481000006 | CE96: 92 | CF96: 73.998 | CG96: 92 | CH96: 0.3775073567 | CI96: 0.6224926433 | CJ96: 0.3535706147 | CK96: -368.5322217 | CL96: -0.3418973885 | CM96: 0.1246000007 | CN96: 0.5382000208 | CO96: 0.6557000279 | CP96: 0.1656000018 | CQ96: 0.235799998 | CR96: 0.6626999974 | CS96: 0.1573999971 | CT96: 0.2845999897 | CU96: 0.256099999 | CV96: 0.7202000022
V97: 93 | W97: 74.003 | X97: 0 | Y97: 0 | AB97: E51 | AC97: =IF($B$51="","",$B$51) -> 74.004 | AF97: =IF($D$35="","",$D$35) -> 73.997 | AH97: E28 | AI97: =IF($B$28="","",$B$28) -> 74.015 | AL97: =IF($D$23="","",$D$23) -> 74.003 | AM97: 0.8795999885 | AN97: 0.6840000153 | AO97: 0.6110000014 | AP97: 0.2465000004 | AQ97: 0.1 | AR97: 74.00015816 | AS97: 38.99957981 | AT97: 0.7774000168 | AU97: 0.810100019 | AV97: 0.02400000021 | AW97: 0.8838000298 | AX97: 0.4869999886 | AY97: 0.0671999976 | AZ97: 0.3445000052 | BA97: 0.8962000012 | BB97: 0.7781999707 | BC97: 0.4584999979 | BU97: 0.8465999961 | BV97: 0.8615999818 | BW97: 0.6538000107 | BX97: 0.9534999728 | BY97: 0.4632000029 | BZ97: 0.3950000107 | CA97: 0.1544999927 | CB97: 0.3987999856 | CC97: 0.5349000096 | CD97: 0.2073999941 | CE97: 93 | CF97: 73.998 | CG97: 93 | CH97: 0.3775073567 | CI97: 0.6224926433 | CJ97: 0.3535706147 | CK97: -372.5598963 | CL97: -0.331303384 | CM97: 0.8845000267 | CN97: 0.9570999742 | CO97: 0.8651000261 | CP97: 0.4514999986 | CQ97: 0.698300004 | CR97: 0.1272999942 | CS97: 0.7696999907 | CT97: 0.7419000268 | CU97: 0.06469999999 | CV97: 0.565500021
V98: 94 | W98: 74.005 | X98: 0 | Y98: 0 | AC98: =IF($C$51="","",$C$51) -> 73.999 | AE98: E36 | AF98: =IF($B$36="","",$B$36) -> 73.995 | AI98: =IF($C$28="","",$C$28) -> 74.008 | AL98: =IF($E$23="","",$E$23) -> 74.005 | AM98: 0.09300000221 | AN98: 0.1081999987 | AO98: 0.2073999941 | AP98: 0.6631000042 | AQ98: 0 | AR98: =Mittelwert -> 74.001176 | AS98: 39.19506602 | AT98: 0.47330001 | AU98: 0.1981000006 | AV98: 0.4954999983 | AW98: 0.375 | AX98: 0.8582999706 | AY98: 0.7305999994 | AZ98: 0.08449999988 | BA98: 0.2976999879 | BB98: 0.2712000012 | BC98: 0.1993999928 | BU98: 0.2062000036 | BV98: 0.7900000215 | BW98: 0.1597000062 | BX98: 0.625 | BY98: 0.6934999824 | BZ98: 0.5325000286 | CA98: 0.5691999793 | CB98: 0.7355999947 | CC98: 0.5943999887 | CD98: 0.3817999959 | CE98: 94 | CF98: 73.998 | CG98: 94 | CH98: 0.3775073567 | CI98: 0.6224926433 | CJ98: 0.3535706147 | CK98: -376.5875709 | CL98: -0.3207464336 | CM98: 0.6152999997 | CN98: 0.06539999694 | CO98: 0.4507000148 | CP98: 0.5249999762 | CQ98: 0.2991000116 | CR98: 0.9233000278 | CS98: 0.398999989 | CT98: 0.3650000095 | CU98: 0.9746000171 | CV98: 0.560100019
V99: 95 | W99: 73.997 | X99: 0 | Y99: 0 | AB99: E52 | AC99: =IF($B$52="","",$B$52) -> 74.01 | AF99: =IF($C$36="","",$C$36) -> 74.006 | AI99: =IF($D$28="","",$D$28) -> 73.993 | AL99: =IF($F$23="","",$F$23) -> 73.997 | AM99: 0.7486000061 | AN99: 0.7861999869 | AO99: 0.5512999892 | AP99: 0.5598999858 | AQ99: 0.1 | AR99: =AR98+(AQ99*Standardabweichung) -> 74.00219384 | AS99: 38.99957981 | AT99: 0.8098999858 | AU99: 0.6699000001 | AV99: 0.9473000169 | AW99: 0.480399996 | AX99: 0.9724000096 | AY99: 0.6601999998 | AZ99: 0.7929000258 | BA99: 0.7436000109 | BB99: 0.03269999847 | BC99: 0.1796000004 | BU99: 0.1835999936 | BV99: 0.03620000184 | BW99: 0.4487999976 | BX99: 0.9872999787 | BY99: 0.9804000258 | BZ99: 0.3626999855 | CA99: 0.5681999922 | CB99: 0.5823000073 | CC99: 0.5852000117 | CD99: 0.6287000179 | CE99: 95 | CF99: 73.998 | CG99: 95 | CH99: 0.3775073567 | CI99: 0.6224926433 | CJ99: 0.3535706147 | CK99: -380.6152454 | CL99: -0.3102251106 | CM99: 0.7792000175 | CN99: 0.1723999977 | CO99: 0.3964000046 | CP99: 0.701300025 | CQ99: 0.2930999994 | CR99: 0.6854000092 | CS99: 0.9423999786 | CT99: 0.05779999867 | CU99: 0.4905000031 | CV99: 0.5428000093
V100: 96 | W100: 74 | X100: 0 | Y100: 0 | AC100: =IF($C$52="","",$C$52) -> 73.989 | AF100: =IF($D$36="","",$D$36) -> 73.994 | AI100: =IF($E$28="","",$E$28) -> 74 | AK100: E24 | AL100: =IF($B$24="","",$B$24) -> 74 | AM100: 0.2720000148 | AN100: 0.6140000224 | AO100: 0.4363000095 | AP100: 0.1118000001 | AQ100: 0.2 | AR100: 74.00422951 | AS100: 37.47038441 | AT100: 0.5953000188 | AU100: 0.8023999929 | AV100: 0.6457999945 | AW100: 0.4095000029 | AX100: 0.1741999984 | AY100: 0.9000999928 | AZ100: 0.0998999998 | BA100: 0.05530000106 | BB100: 0.4625999928 | BC100: 0.6072000265 | BU100: 0.9575999975 | BV100: 0.1308999956 | BW100: 0.7267000079 | BX100: 0.0298999995 | BY100: 0.5361999869 | BZ100: 0.7069000006 | CA100: 0.3136000037 | CB100: 0.5752000213 | CC100: 0.2326000035 | CD100: 0.8708000183 | CE100: 96 | CF100: 73.998 | CG100: 96 | CH100: 0.3775073567 | CI100: 0.6224926433 | CJ100: 0.3535706147 | CK100: -384.64292 | CL100: -0.2997380182 | CM100: 0.3122000098 | CN100: 0.3578000069 | CO100: 0.7990999818 | CP100: 0.6784999967 | CQ100: 0.6179999709 | CR100: 0.5042999983 | CS100: 0.418599993 | CT100: 0.893599987 | CU100: 0.002099999925 | CV100: 0.513199985
V101: 97 | W101: 74.01 | X101: 0 | Y101: 0 | AB101: E53 | AC101: =IF($B$53="","",$B$53) -> 74.015 | AE101: E37 | AF101: =IF($B$37="","",$B$37) -> 73.985 | AH101: E29 | AI101: =IF($B$29="","",$B$29) -> 73.982 | AL101: =IF($C$24="","",$C$24) -> 74.01 | AM101: 0.1577000022 | AN101: 0.6286000013 | AO101: 0.1900999993 | AP101: 0.02080000006 | AQ101: 0.3 | AR101: 74.00728303 | AS101: 32.73847108 | AT101: 0.6701999903 | AU101: 0.2349999994 | AV101: 0.1895000041 | AW101: 0.8167999983 | AX101: 0.1495999992 | AY101: 0.4442999959 | AZ101: 0.8683000207 | BA101: 0.1097000018 | BB101: 0.5328999758 | BC101: 0.7585999966 | BU101: 0.6222000122 | BV101: 0.9106000066 | BW101: 0.1296000034 | BX101: 0.4077000022 | BY101: 0.2058999985 | BZ101: 0.6011000276 | CA101: 0.9832000136 | CB101: 0.3215999901 | CC101: 0.2894000113 | CD101: 0.1243000031 | CE101: 97 | CF101: 73.998 | CG101: 97 | CH101: 0.3775073567 | CI101: =IF(W101="","",1-CH101) -> 0.6224926433 | CJ101: 0.3535706147 | CK101: =IF(W101="","",(2*CG101-1)*(LN(CJ101)+LN(CH101))) -> -388.6705945 | CL101: -0.2892837883 | CM101: 0.342599988 | CN101: 0.7064999938 | CO101: 0.9952999949 | CP101: 0.6747999787 | CQ101: 0.9363999963 | CR101: 0.4390999973 | CS101: 0.5058000088 | CT101: 0.268599987 | CU101: 0.02930000052 | CV101: 0.787800014
V102: 98 | W102: 74.013 | X102: 0 | Y102: 0 | AC102: =IF($C$53="","",$C$53) -> 74.008 | AF102: =IF($C$37="","",$C$37) -> 74.003 | AI102: =IF($C$29="","",$C$29) -> 73.984 | AL102: =IF($D$24="","",$D$24) -> 74.013 | AM102: 0.8282999992 | AN102: 0.4460000098 | AO102: 0.3125999868 | AP102: 0.7405999899 | AQ102: 0.4 | AR102: 74.01135438 | AS102: 23.77300925 | AT102: 0.8108999729 | AU102: 0.224999994 | AV102: 0.04540000111 | AW102: 0.5835000277 | AX102: 0.4083000124 | AY102: 0.3039999902 | AZ102: 0.4444000125 | BA102: 0.7285000086 | BB102: 0.197300002 | BC102: 0.5152999759 | BU102: 0.06340000033 | BV102: 0.2144999951 | BW102: 0.6488000154 | BX102: 0.6204000115 | BY102: 0.06939999759 | BZ102: 0.06859999895 | CA102: 0.7195000052 | CB102: 0.7590000033 | CC102: 0.8508999944 | CD102: 0.3817000091 | CE102: 98 | CF102: 73.998 | CG102: =IF(W102="","",1+CG101) -> 98 | CH102: 0.3775073567 | CI102: 0.6224926433 | CJ102: 0.3535706147 | CK102: -392.6982691 | CL102: -0.2788610801 | CM102: 0.05759999901 | CN102: 0.1621000022 | CO102: 0.6399000287 | CP102: 0.2698000073 | CQ102: 0.878099978 | CR102: 0.4966999888 | CS102: 0.4979000092 | CT102: 0.3610999882 | CU102: 0.8582000136 | CV102: 0.04399999976
V103: 99 | W103: 74.02 | X103: 0 | Y103: 0 | AB103: E54 | AC103: =IF($B$54="","",$B$54) -> 73.982 | AF103: =IF($D$37="","",$D$37) -> 73.993 | AI103: =IF($D$29="","",$D$29) -> 73.995 | AL103: =IF($E$24="","",$E$24) -> 74.02 | AM103: 0.6434000134 | AN103: 0.8126000166 | AO103: 0.08990000188 | AP103: 0.840200007 | AQ103: 0.5 | AR103: 74.01644357 | AS103: 12.72477489 | AT103: 0.03030000068 | AU103: 0.5749999881 | AV103: 0.2836000025 | AW103: 0.06710000336 | AX103: 0.175999999 | AY103: 0.9085000157 | AZ103: 0.2206999958 | BA103: 0.6924999952 | BB103: 0.2396000028 | BC103: 0.1486999989 | BU103: 0.918900013 | BV103: 0.1454000026 | BW103: 0.9255999923 | BX103: 0.8934000134 | BY103: 0.001900000032 | BZ103: 0.8281999826 | CA103: 0.3314999938 | CB103: 0.5630000234 | CC103: 0.5824999809 | CD103: 0.5691999793 | CE103: 99 | CF103: 73.998 | CG103: 99 | CH103: 0.3775073567 | CI103: 0.6224926433 | CJ103: 0.3907169885 | CK103: -377.0455926 | CL103: -0.2684685784 | CM103: 0.91049999 | CN103: 0.6697999835 | CO103: 0.9800000191 | CP103: 0.4726999998 | CQ103: 0.1624000072 | CR103: 0.277700007 | CS103: 0.3156000078 | CT103: 0.2375999987 | CU103: 0.8023999929 | CV103: 0.8030999899
V104: 100 | W104: 74.003 | X104: 0 | Y104: 0 | AC104: =IF($C$54="","",$C$54) -> 73.984 | AE104: E38 | AF104: =IF($B$38="","",$B$38) -> 74.008 | AI104: =IF($E$29="","",$E$29) -> 74.017 | AL104: =IF($F$24="","",$F$24) -> 74.003 | AM104: 0.6528000236 | AN104: 0.7358999848 | AO104: 0.02749999985 | AP104: 0.2178999931 | AQ104: 0.6 | AR104: 74.0225506 | AS104: 4.321276618 | AT104: 0.3883000016 | AU104: 0.8403999805 | AV104: 0.03159999847 | AW104: 0.5027999878 | AX104: 0.8920999765 | AY104: 0.503099978 | AZ104: 0.7712000012 | BA104: 0.3506000042 | BB104: 0.3986000121 | BC104: 0.08320000023 | BU104: 0.2046000063 | BV104: 0.3955000043 | BW104: 0.6660000086 | BX104: 0.7623999715 | BY104: 0.4370999932 | BZ104: 0.4591999948 | CA104: 0.4420000017 | CB104: 0.7835000157 | CC104: 0.5773000121 | CD104: 0.6784999967 | CE104: 100 | CF104: 73.998 | CG104: 100 | CH104: 0.3775073567 | CI104: 0.6224926433 | CJ104: 0.3907169885 | CK104: -380.8734666 | CL104: -0.2581049926 | CM104: 0.1145000011 | CN104: 0.02490000054 | CO104: 0.3258000016 | CP104: 0.2642999887 | CQ104: 0.1130999997 | CR104: 0.01080000028 | CS104: 0.6730999947 | CT104: 0.5576000214 | CU104: 0.4776000082 | CV104: 0.4339999855
V105: 101 | W105: 73.982 | X105: 0 | Y105: 0 | AF105: =IF($C$38="","",$C$38) -> 73.995 | AH105: E30 | AI105: =IF($B$30="","",$B$30) -> 74.03 | AK105: E25 | AL105: =IF($B$25="","",$B$25) -> 73.982 | AM105: 0.1028999984 | AN105: 0.4196999967 | AO105: 0.6865000129 | AP105: 0.6721000075 | AQ105: 0.7 | AR105: 74.02967546 | AS105: 0.7776730184 | AT105: 0.04520000145 | AU105: 0.8731999993 | AV105: 0.7344999909 | AW105: 0.5526999831 | AX105: 0.5795000196 | AY105: 0.992299974 | AZ105: 0.4614000022 | BA105: 0.3693000078 | BB105: 0.3876000047 | BC105: 0.04369999841 | BU105: 0.842599988 | BV105: 0.175999999 | BW105: 0.3039999902 | BX105: 0.72299999 | BY105: 0.4941000044 | BZ105: 0.7840999961 | CA105: 0.04129999876 | CB105: 0.07569999993 | CC105: 0.9918000102 | CD105: 0.8733000159 | CE105: 101 | CF105: 73.999 | CG105: 101 | CH105: 0.4153567765 | CI105: 0.5846432235 | CJ105: 0.3907169885 | CK105: -365.4962335 | CL105: -0.247769055 | CM105: 0.2768000066 | CN105: 0.1098000035 | CO105: 0.918200016 | CP105: 0.2583999932 | CQ105: 0.8787000179 | CR105: 0.2829999924 | CS105: 0.7124000192 | CT105: 0.184799999 | CU105: 0.4232000113 | CV105: 0.929099977
V106: 102 | W106: 74.001 | X106: 0 | Y106: 0 | AF106: =IF($D$38="","",$D$38) -> 74.009 | AI106: =IF($C$30="","",$C$30) -> 74.002 | AL106: =IF($C$25="","",$C$25) -> 74.001 | AM106: 0.1853999943 | AN106: 0.7815999985 | AO106: 0.8350999951 | AP106: 0.3359999955 | AQ106: 0.8 | AR106: 74.03781817 | AS106: 0.06011781083 | AT106: 0.2861000001 | AU106: 0.7649999857 | AV106: 0.2786999941 | AW106: 0.07400000095 | AX106: 0.1164999977 | AY106: 0.391200006 | AZ106: 0.2978000045 | BA106: 0.573300004 | BB106: 0.1976999938 | BC106: 0.6593999863 | BU106: 0.1271000057 | BV106: 0.8980000019 | BW106: 0.7239000201 | BX106: 0.7677999735 | BY106: 0.2587000132 | BZ106: 0.3560000062 | CA106: 0.04160000011 | CB106: 0.9897999763 | CC106: 0.3174999952 | CD106: 0.2551999986 | CE106: 102 | CF106: 73.999 | CG106: 102 | CH106: 0.4153567765 | CI106: 0.5846432235 | CJ106: 0.3907169885 | CK106: -369.133012 | CL106: -0.2374595201 | CM106: 0.3677999973 | CN106: 0.1903000027 | CO106: 0.4291999936 | CP106: 0.03060000017 | CQ106: 0.9595000148 | CR106: 0.9103000164 | CS106: 0.03310000151 | CT106: 0.1771000028 | CU106: 0.8953999877 | CV106: 0.2269999981
V107: 103 | W107: 74.015 | X107: 0 | Y107: 0 | AE107: E39 | AF107: =IF($B$39="","",$B$39) -> 73.998 | AI107: =IF($D$30="","",$D$30) -> 74.019 | AL107: =IF($D$25="","",$D$25) -> 74.015 | AM107: 0.9600999951 | AN107: 0.01439999975 | AO107: 0.7781000137 | AP107: 0.6444000006 | AQ107: 0.9 | AR107: 74.04697871 | AS107: 0.001570361976 | AT107: 0.760800004 | AU107: 0.7034000158 | AV107: 0.6881999969 | AW107: 0.2338999957 | AX107: 0.2836999893 | AY107: 0.5109999776 | AZ107: 0.3865999877 | BA107: 0.02480000071 | BB107: 0.503099978 | BC107: 0.3265999854 | BU107: 0.8069999814 | BV107: 0.8158000112 | BW107: 0.6603999734 | BX107: 0.2016000003 | BY107: 0.2899999917 | BZ107: 0.07599999756 | CA107: 0.002099999925 | CB107: 0.05970000103 | CC107: 0.3167000115 | CD107: 0.443599999 | CE107: 103 | CF107: 73.999 | CG107: 103 | CH107: 0.4153567765 | CI107: 0.5846432235 | CJ107: 0.3907169885 | CK107: -372.7697904 | CL107: -0.2271751629 | CM107: 0.8066999912 | CN107: 0.1733999997 | CO107: 0.6428999901 | CP107: 0.7132999897 | CQ107: 0.5026000142 | CR107: 0.820299983 | CS107: 0.7480999827 | CT107: 0.5091000199 | CU107: 0.0307 | CV107: 0.7401000261
V108: 104 | W108: 74.005 | X108: 0 | Y108: 0 | AF108: =IF($C$39="","",$C$39) -> 74 | AI108: =IF($E$30="","",$E$30) -> 73.992 | AL108: =IF($E$25="","",$E$25) -> 74.005 | AM108: 0.7263000011 | AN108: 0.611800015 | AO108: 0.8604000211 | AP108: 0.08730000257 | AQ108: 1 | AR108: 74.05715709 | AS108: 1.058101577e-05 | AT108: 0.4260999858 | AU108: 0.5379999876 | AV108: 0.2547999918 | AW108: 0.6347000003 | AX108: 0.8417999744 | AY108: 0.3675999939 | AZ108: 0.7868000269 | BA108: 0.2264000028 | BB108: 0.7534999847 | BC108: 0.8220000267 | BU108: 0.9745000005 | BV108: 0.3142000139 | BW108: 0.9751999974 | BX108: 0.3894000053 | BY108: 0.6427999735 | BZ108: 0.3319999874 | CA108: 0.1036000028 | CB108: 0.7085000277 | CC108: 0.8223000169 | CD108: 0.6326000094 | CE108: 104 | CF108: 73.999 | CG108: 104 | CH108: 0.4153567765 | CI108: 0.5846432235 | CJ108: 0.3907169885 | CK108: -376.4065688 | CL108: -0.2169147783 | CM108: 0.9347000122 | CN108: 0.2673000097 | CO108: 0.2398999929 | CP108: 0.3476999998 | CQ108: 0.1351999938 | CR108: 0.8777999878 | CS108: 0.02190000005 | CT108: 0.4111000001 | CU108: 0.9667999744 | CV108: 0.567900002
V109: 105 | W109: 73.996 | X109: 0 | Y109: 0 | AF109: =IF($D$39="","",$D$39) -> 73.99 | AH109: E31 | AI109: =IF($B$31="","",$B$31) -> 73.995 | AL109: =IF($F$25="","",$F$25) -> 73.996 | AM109: 0.6471999884 | AN109: 0.6988000274 | AO109: 0.8636999726 | AP109: 0.8470000029 | AQ109: 1.1 | AR109: 74.06835331 | AS109: 1.362377882e-08 | AT109: 0.1500999928 | AU109: 0.4198000133 | AV109: 0.261500001 | AW109: 0.2213999927 | AX109: 0.5738999844 | AY109: 0.7567999959 | AZ109: 0.674399972 | BA109: 0.9603000283 | BB109: 0.6740000248 | BC109: 0.7567999959 | BU109: 0.8975999951 | BV109: 0.6755999923 | BW109: 0.5605999827 | BX109: 0.4365000129 | BY109: 0.6542000175 | BZ109: 0.1525000036 | CA109: 0.1411000043 | CB109: 0.9118999839 | CC109: 0.8267999887 | CD109: 0.08780000359 | CE109: 105 | CF109: 74 | CG109: 105 | CH109: 0.4540089395 | CI109: 0.5459910605 | CJ109: 0.3907169885 | CK109: -361.4467289 | CL109: -0.2066771794 | CM109: 0.2249000072 | CN109: 0.240899995 | CO109: 0.3488000035 | CP109: 0.2448000014 | CQ109: 0.8353999853 | CR109: 0.4154999852 | CS109: 0.05660000071 | CT109: 0.6762999892 | CU109: 0.126000002 | CV109: 0.03810000047
V110: 106 | W110: 74.004 | X110: 0 | Y110: 0 | AE110: E40 | AF110: =IF($B$40="","",$B$40) -> 73.994 | AI110: =IF($C$31="","",$C$31) -> 73.992 | AK110: E26 | AL110: =IF($B$26="","",$B$26) -> 74.004 | AM110: 0.9556000233 | AN110: 0.9286999702 | AO110: 0.7706000209 | AP110: 0.1494999975 | AQ110: 0.7358999848 | AR110: 0.4943000078 | AS110: 0.6042000055 | AT110: 0.3072000146 | AU110: 0.5376999974 | AV110: 0.5151000023 | AW110: 0.5135999918 | AX110: 0.9132000208 | AY110: 0.9667999744 | AZ110: 0.7355999947 | BA110: 0.5778999925 | BB110: 0.7926999927 | BC110: 0.3610000014 | BU110: 0.6802999973 | BV110: 0.1098999977 | BW110: 0.7864999771 | BX110: 0.5475999713 | BY110: 0.8289999962 | BZ110: 0.4785000086 | CA110: 0.4866000116 | CB110: 0.279700011 | CC110: 0.3860000074 | CD110: 0.7979999781 | CE110: 106 | CF110: 74 | CG110: 106 | CH110: 0.4540089395 | CI110: 0.5459910605 | CJ110: 0.3907169885 | CK110: -364.9055493 | CL110: -0.1964611968 | CM110: 0.8068000078 | CN110: 0.7332999706 | CO110: 0.03200000152 | CP110: 0.08860000223 | CQ110: 0.4986999929 | CR110: 0.2166000009 | CS110: 0.1557999998 | CT110: 0.2467000037 | CU110: 0.6858000159 | CV110: 0.9210000038
V111: 107 | W111: 73.999 | X111: 0 | Y111: 0 | AF111: =IF($C$40="","",$C$40) -> 73.998 | AI111: =IF($D$31="","",$D$31) -> 74.001 | AL111: =IF($C$26="","",$C$26) -> 73.999 | AM111: 0.4948000014 | AN111: 0.1225999966 | AO111: 0.6294999719 | AP111: 0.6254000068 | AQ111: 0.02549999952 | AR111: 0.8490999937 | AS111: 0.7443000078 | AT111: 0.6482999921 | AU111: 0.1045000032 | AV111: 0.4189999998 | AW111: 0.8639000058 | AX111: 0.05160000175 | AY111: 0.858799994 | AZ111: 0.513899982 | BA111: 0.7562999725 | BB111: 0.09340000153 | BC111: 0.8264999986 | BU111: 0.5842000246 | BV111: 0.2477000058 | BW111: 0.6995999813 | BX111: 0.2038999945 | BY111: 0.5490000248 | BZ111: 0.6269000173 | CA111: 0.9911000133 | CB111: 0.2924000025 | CC111: 0.6441000104 | CD111: 0.5098999739 | CE111: 107 | CF111: 74 | CG111: 107 | CH111: 0.4540089395 | CI111: 0.5459910605 | CJ111: 0.4288890195 | CK111: -348.5096372 | CL111: -0.1862656776 | CM111: 0.08730000257 | CN111: 0.01769999973 | CO111: 0.6765000224 | CP111: 0.03779999912 | CQ111: 0.8779000044 | CR111: 0.7731000185 | CS111: 0.2786999941 | CT111: 0.8758999705 | CU111: 0.6794000268 | CV111: 0.6717000008
V112: 108 | W112: 73.99 | X112: 0 | Y112: 0 | AF112: =IF($D$40="","",$D$40) -> 73.994 | AI112: =IF($E$31="","",$E$31) -> 74.011 | AL112: =IF($D$26="","",$D$26) -> 73.99 | AM112: 0.9240000248 | AN112: 0.1669999957 | AO112: 0.3754999936 | AP112: 0.124499999 | AQ112: 0.1917999983 | AR112: 0.7347999811 | AS112: 0.8082000017 | AT112: 0.668299973 | AU112: 0.2840000093 | AV112: 0.5364999771 | AW112: 0.4180000126 | AX112: 0.04439999908 | AY112: 0.7900000215 | AZ112: 0.3664000034 | BA112: 0.1345999986 | BB112: 0.5256999731 | BC112: 0.7024999857 | BU112: 0.8274000287 | BV112: 0.1768999994 | BW112: 0.8098000288 | BX112: 0.554799974 | BY112: 0.326700002 | BZ112: 0.1773999929 | CA112: 0.5634999871 | CB112: 0.2782000005 | CC112: 0.4526999891 | CD112: 0.1608999968 | CE112: 108 | CF112: 74 | CG112: 108 | CH112: 0.4540089395 | CI112: 0.5459910605 | CJ112: 0.4288890195 | CK112: -351.7820282 | CL112: -0.1760894843 | CM112: 0.7784000039 | CN112: 0.3876000047 | CO112: 0.1119000018 | CP112: 0.4708999991 | CQ112: 0.2362000048 | CR112: 0.1002999991 | CS112: 0.965200007 | CT112: 0.1863999963 | CU112: 0.5127000213 | CV112: 0.2515000105
V113: 109 | W113: 74.006 | X113: 0 | Y113: 0 | AE113: E41 | AF113: =IF($B$41="","",$B$41) -> 74.004 | AH113: E32 | AI113: =IF($B$32="","",$B$32) -> 73.988 | AL113: =IF($E$26="","",$E$26) -> 74.006 | AM113: 0.8195999861 | AN113: 0.9498000145 | AO113: 0.4932999909 | AP113: 0.747699976 | AQ113: 0.2676999867 | AR113: 0.04509999976 | AS113: 0.1383000016 | AT113: 0.2698999941 | AU113: 0.5792000294 | AV113: 0.726000011 | AW113: 0.4990999997 | AX113: 0.226699993 | AY113: 0.8410999775 | AZ113: 0.7940999866 | BA113: 0.9836000204 | BB113: 0.9570999742 | BC113: 0.34830001 | BU113: 0.4523000121 | BV113: 0.3257000148 | BW113: 0.1685000062 | BX113: 0.4384000003 | BY113: 0.6714000106 | BZ113: 0.5317999721 | CA113: 0.2097000033 | CB113: 0.5866000056 | CC113: 0.6615999937 | CD113: 0.5069000125 | CE113: 109 | CF113: 74 | CG113: 109 | CH113: 0.4540089395 | CI113: 0.5459910605 | CJ113: 0.4288890195 | CK113: -355.0544191 | CL113: -0.1659314937 | CM113: 0.6977999806 | CN113: 0.1322000027 | CO113: 0.244599998 | CP113: 0.3479000032 | CQ113: 0.654399991 | CR113: 0.07320000231 | CS113: 0.2393999994 | CT113: 0.1606999934 | CU113: 0.0746999979 | CV113: 0.4864000082
V114: 110 | W114: 74.009 | X114: 0 | Y114: 0 | AF114: =IF($C$41="","",$C$41) -> 74 | AI114: =IF($C$32="","",$C$32) -> 74.024 | AL114: =IF($F$26="","",$F$26) -> 74.009 | AM114: 0.2275000066 | AN114: 0.7628999949 | AO114: 0.8180999756 | AP114: 0.8561000228 | AQ114: 0.5690000057 | AR114: 0.6373000145 | AS114: 0.7488999963 | AT114: 0.6517000198 | AU114: 0.6675999761 | AV114: 0.1347000003 | AW114: 0.1270000041 | AX114: 0.1563999951 | AY114: 0.4867999852 | AZ114: 0.9273999929 | BA114: 0.248300001 | BB114: 0.5447999835 | BC114: 0.315200001 | BU114: 0.1096000001 | BV114: 0.6086000204 | BW114: 0.4305000007 | BX114: 0.695200026 | BY114: 0.6474999785 | BZ114: 0.7393000126 | CA114: 0.05539999902 | CB114: 0.01999999955 | CC114: 0.3244999945 | CD114: 0.003299999982 | CE114: 110 | CF114: 74 | CG114: 110 | CH114: 0.4540089395 | CI114: 0.5459910605 | CJ114: 0.4288890195 | CK114: -358.3268101 | CL114: -0.1557905964 | CM114: 0.6279000044 | CN114: 0.4589999914 | CO114: 0.7882999778 | CP114: 0.5205000043 | CQ114: 0.6007999778 | CR114: 0.2163999975 | CS114: 0.7379000187 | CT114: 0.2556999922 | CU114: 0.8924999833 | CV114: 0.09920000285
V115: 111 | W115: 74.01 | X115: 0 | Y115: 0 | AF115: =IF($D$41="","",$D$41) -> 74.007 | AI115: =IF($D$32="","",$D$32) -> 74.021 | AK115: E27 | AL115: =IF($B$27="","",$B$27) -> 74.01 | AM115: 0.065200001 | AN115: 0.5963000059 | AO115: 0.1530999988 | AP115: 0.7200999856 | AQ115: 0.2448000014 | AR115: 0.1808999926 | AS115: 0.2795000076 | AT115: 0.9503999949 | AU115: 0.9750000238 | AV115: 0.9769999981 | AW115: 0.1815000027 | AX115: 0.6234999895 | AY115: 0.06830000132 | AZ115: 0.6093999743 | BA115: 0.7972000241 | BB115: 0.4876999855 | BC115: 0.5921999812 | BU115: 0.8630999923 | BV115: 0.5139999986 | BW115: 0.09160000086 | BX115: 0.9549000263 | BY115: 0.01429999992 | BZ115: 0.5762000084 | CA115: 0.6075999737 | CB115: 0.5497999787 | CC115: 0.05099999905 | CD115: 0.2515000105 | CE115: 111 | CF115: 74 | CG115: 111 | CH115: 0.4540089395 | CI115: 0.5459910605 | CJ115: 0.4288890195 | CK115: -361.5992011 | CL115: -0.1456656955 | CM115: 0.4754999876 | CN115: 0.5148000121 | CO115: 0.7002999783 | CP115: 0.9211000204 | CQ115: 0.8643000126 | CR115: 0.4052999914 | CS115: 0.1081999987 | CT115: 0.7093999982 | CU115: 0.7135000229 | CV115: 0.465200007
V116: 112 | W116: 73.989 | X116: 0 | Y116: 0 | AE116: E42 | AF116: =IF($B$42="","",$B$42) -> 73.983 | AI116: =IF($E$32="","",$E$32) -> 74.005 | AL116: =IF($C$27="","",$C$27) -> 73.989 | AM116: 0.3553000093 | AN116: 0.9369999766 | AO116: 0.3738000095 | AP116: 0.7052000165 | AQ116: 0.2224999964 | AR116: 0.8238000274 | AS116: 0.4977000058 | AT116: 0.2304999977 | AU116: 0.2064999938 | AV116: 0.4426000118 | AW116: 0.1797000021 | AX116: 0.8191999793 | AY116: 0.7851999998 | AZ116: 0.9214000106 | BA116: 0.3479000032 | BB116: 0.7505000234 | BC116: 0.9338999987 | BU116: 0.9818999767 | BV116: 0.2266000062 | BW116: 0.6212000251 | BX116: 0.739199996 | BY116: 0.4174000025 | BZ116: 0.4731000066 | CA116: 0.4726999998 | CB116: 0.6614999771 | CC116: 0.470299989 | CD116: 0.1058999971 | CE116: 112 | CF116: 74 | CG116: 112 | CH116: 0.4540089395 | CI116: 0.5459910605 | CJ116: 0.4288890195 | CK116: -364.871592 | CL116: -0.1355557056 | CM116: 0.4507000148 | CN116: 0.3486000001 | CO116: 0.7947999835 | CP116: 0.2241999954 | CQ116: 0.06960000098 | CR116: 0.8205000162 | CS116: 0.6441000104 | CT116: 0.1316999942 | CU116: 0.231099993 | CV116: 0.9338999987
V117: 113 | W117: 73.99 | X117: 0 | Y117: 0 | AF117: =IF($C$42="","",$C$42) -> 74.002 | AH117: E33 | AI117: =IF($B$33="","",$B$33) -> 74.002 | AL117: =IF($D$27="","",$D$27) -> 73.99 | AM117: 0.7602999806 | AN117: 0.6640999913 | AO117: 0.2405000031 | AP117: 0.3355000019 | AQ117: 0.5156000257 | AR117: 0.7675999999 | AS117: 0.07209999859 | AT117: 0.6653000116 | AU117: 0.3027000129 | AV117: 0.3265999854 | AW117: 0.8845000267 | AX117: 0.009700000286 | AY117: 0.1752000004 | AZ117: 0.2424000055 | BA117: 0.7865999937 | BB117: 0.6040999889 | BC117: 0.7387999892 | BU117: 0.9401999712 | BV117: 0.1289999932 | BW117: 0.4573999941 | BX117: 0.975399971 | BY117: 0.3488000035 | BZ117: 0.1339000016 | CA117: 0.0005000000237 | CB117: 0.9226999879 | CC117: 0.02779999934 | CD117: 0.7846999764 | CE117: 113 | CF117: 74 | CG117: 113 | CH117: 0.4540089395 | CI117: 0.5459910605 | CJ117: 0.4288890195 | CK117: -368.143983 | CL117: -0.1254595525 | CM117: 0.2349999994 | CN117: 0.9089000225 | CO117: 0.2502000034 | CP117: 0.8246999979 | CQ117: 0.2430000007 | CR117: 0.7501999736 | CS117: 0.3799000084 | CT117: 0.7250000238 | CU117: 0.9240999818 | CV117: 0.8106999993
V118: 114 | W118: 74.009 | X118: 0 | Y118: 0 | AF118: =IF($D$42="","",$D$42) -> 73.998 | AI118: =IF($C$33="","",$C$33) -> 73.996 | AL118: =IF($E$27="","",$E$27) -> 74.009 | AM118: 0.1370999962 | AN118: 0.8873000145 | AO118: 0.3856999874 | AP118: 0.8305000067 | AQ118: 0.1141000018 | AR118: 0.0970999971 | AS118: 0.5838999748 | AT118: 0.003599999938 | AU118: 0.5411000252 | AV118: 0.2266000062 | AW118: 0.2141000032 | AX118: 0.3066000044 | AY118: 0.3012999892 | AZ118: 0.1882999986 | BA118: 0.8515999913 | BB118: 0.07609999925 | BC118: 0.1970999986 | BU118: 0.09220000356 | BV118: 0.2754999995 | BW118: 0.08550000191 | BX118: 0.2630999982 | BY118: 0.8457000256 | BZ118: 0.9390000105 | CA118: 0.5728999972 | CB118: 0.6175000072 | CC118: 0.5824999809 | CD118: 0.5784000158 | CE118: 114 | CF118: 74 | CG118: 114 | CH118: 0.4540089395 | CI118: 0.5459910605 | CJ118: 0.4288890195 | CK118: -371.4163739 | CL118: -0.1153761719 | CM118: 0.3549999893 | CN118: 0.4198000133 | CO118: 0.9793999791 | CP118: 0.2258999944 | CQ118: 0.1482000053 | CR118: 0.08349999785 | CS118: 0.1086999997 | CT118: 0.7268999815 | CU118: 0.2283000052 | CV118: 0.3431999981
V119: 115 | W119: 74.014 | X119: 0 | Y119: 0 | AE119: E43 | AF119: =IF($B$43="","",$B$43) -> 74.006 | AI119: =IF($D$33="","",$D$33) -> 73.993 | AL119: =IF($F$27="","",$F$27) -> 74.014 | AM119: 0.07890000194 | AN119: 0.818599999 | AO119: 0.1967000067 | AP119: 0.9580000043 | AQ119: 0.9251000285 | AR119: 0.4578999877 | AS119: 0.9951000214 | AT119: 0.6646000147 | AU119: 0.7501000166 | AV119: 0.399300009 | AW119: 0.1720000058 | AX119: 0.3801999986 | AY119: 0.1142999977 | AZ119: 0.02360000089 | BA119: 0.3978999853 | BB119: 0.6559000015 | BC119: 0.6771000028 | BU119: 0.7419999838 | BV119: 0.6833000183 | BW119: 0.6654000282 | BX119: 0.4887999892 | BY119: 0.1463000029 | BZ119: 0.4785000086 | CA119: 0.5056999922 | CB119: 0.5406000018 | CC119: 0.5232999921 | CD119: 1 | CE119: 115 | CF119: 74 | CG119: 115 | CH119: 0.4540089395 | CI119: 0.5459910605 | CJ119: 0.467738519 | CK119: -354.8318932 | CL119: -0.1053045089 | CM119: 0.2333000004 | CN119: 0.7308999896 | CO119: 0.08259999752 | CP119: 0.1817000061 | CQ119: 0.3592999876 | CR119: 0.5896999836 | CS119: 0.04639999941 | CT119: 0.9194999933 | CU119: 0.50849998 | CV119: 0.304399997
V120: 116 | W120: 74.015 | X120: 0 | Y120: 0 | AF120: =IF($C$43="","",$C$43) -> 73.967 | AI120: =IF($E$33="","",$E$33) -> 74.015 | AK120: E28 | AL120: =IF($B$28="","",$B$28) -> 74.015 | AM120: 0.6653000116 | AN120: 0.02419999987 | AO120: 0.5608999729 | AP120: 0.2976999879 | AQ120: 0.4835999906 | AR120: 0.4246999919 | AS120: 0.04210000113 | AT120: 0.05559999868 | AU120: 0.8555999994 | AV120: 0.6215000153 | AW120: 0.7635999918 | AX120: 0.2060000002 | AY120: 0.7105000019 | AZ120: 0.389200002 | BA120: 0.7135999799 | BB120: 0.8461999893 | BC120: 0.5683000088 | BU120: 0.5771999955 | BV120: 0.5321999788 | BW120: 0.9305999875 | BX120: 0.632799983 | BY120: 0.7713999748 | BZ120: 0.8072000146 | CA120: 0.782400012 | CB120: 0.2962000072 | CC120: 0.3743000031 | CD120: 0.4693000019 | CE120: 116 | CF120: 74 | CG120: 116 | CH120: 0.4540089395 | CI120: 0.5459910605 | CJ120: 0.467738519 | CK120: -357.9308617 | CL120: -0.09524351669 | CM120: 0.6333000064 | CN120: 0.4821000099 | CO120: 0.8508999944 | CP120: 0.1862999946 | CQ120: 0.2922999859 | CR120: 0.3257000148 | CS120: 0.1084999964 | CT120: 0.2987000048 | CU120: 0.5500000119 | CV120: 0.01769999973
V121: 117 | W121: 74.008 | X121: 0 | Y121: 0 | AF121: =IF($D$43="","",$D$43) -> 73.994 | AH121: E34 | AI121: =IF($B$34="","",$B$34) -> 73.992 | AL121: =IF($C$28="","",$C$28) -> 74.008 | AM121: 0.8871999979 | AN121: 0.6481999755 | AO121: 0.6941000223 | AP121: 0.2576000094 | AQ121: 0.4011000097 | AR121: 0.6554999948 | AS121: 0.2748999894 | AT121: 0.9569000006 | AU121: 0.2284000069 | AV121: 0.6485999823 | AW121: 0.121100001 | AX121: 0.1920000017 | AY121: 0.4521000087 | AZ121: 0.4406999946 | BA121: 0.6053000093 | BB121: 0.4074999988 | BC121: 0.05070000142 | BU121: 0.6832000017 | BV121: 0.6201000214 | BW121: 0.323300004 | BX121: 0.8597000241 | BY121: 0.7502999902 | BZ121: 0.266900003 | CA121: 0.08919999748 | CB121: 0.6930999756 | CC121: 0.1066000015 | CD121: 0.8777999878 | CE121: 117 | CF121: 74 | CG121: 117 | CH121: 0.4540089395 | CI121: 0.5459910605 | CJ121: 0.467738519 | CK121: -361.0298302 | CL121: -0.0851921564 | CM121: 0.4668000042 | CN121: 0.1796000004 | CO121: 0.0390000008 | CP121: 0.1552000046 | CQ121: 0.6614000201 | CR121: 0.7663000226 | CS121: 0.01860000007 | CT121: 0.2477999926 | CU121: 0.5389999747 | CV121: 0.9167000055
V122: 118 | W122: 73.993 | X122: 0 | Y122: 0 | AE122: E44 | AF122: =IF($B$44="","",$B$44) -> 74.012 | AI122: =IF($C$34="","",$C$34) -> 74.007 | AL122: =IF($D$28="","",$D$28) -> 73.993 | AM122: 0.4670000076 | AN122: 0.4537999928 | AO122: 0.5178999901 | AP122: 0.4393999875 | AQ122: 0.7713000178 | AR122: 0.1738999933 | AS122: 0.7082999945 | AT122: 0.06549999863 | AU122: 0.5503000021 | AV122: 0.1145000011 | AW122: 0.3037999868 | AX122: 0.277399987 | AY122: 0.1696999967 | AZ122: 0.7407000065 | BA122: 0.2213000059 | BB122: 0.3864000142 | BC122: 0.5081999898 | BU122: 0.6100000143 | BV122: 0.6649000049 | BW122: 0.5888000131 | BX122: 0.2389999926 | BY122: 0.9603000283 | BZ122: 0.9678999782 | CA122: 0.8686000109 | CB122: 0.08320000023 | CC122: 0.6262000203 | CD122: 0.6245999932 | CE122: 118 | CF122: 74 | CG122: 118 | CH122: 0.4540089395 | CI122: 0.5459910605 | CJ122: 0.467738519 | CK122: -364.1287987 | CL122: -0.07514939592 | CM122: 0.184799999 | CN122: 0.5256000161 | CO122: 0.3763999939 | CP122: 0.3917999864 | CQ122: 0.07980000228 | CR122: 0.5011000037 | CS122: 0.7188000083 | CT122: 0.8083000183 | CU122: 0.7494000196 | CV122: 0.9846000075
V123: 119 | W123: 74 | X123: 0 | Y123: 0 | AF123: =IF($C$44="","",$C$44) -> 74.014 | AI123: =IF($D$34="","",$D$34) -> 74.015 | AL123: =IF($E$28="","",$E$28) -> 74 | AM123: 0.0410999991 | AN123: 0.7734000087 | AO123: 0.3086000085 | AP123: 0.1941000074 | AQ123: 0.001500000013 | AR123: 0.3747000098 | AS123: 0.3066000044 | AT123: 0.04410000145 | AU123: 0.1694999933 | AV123: 0.9666000009 | AW123: 0.4930000007 | AX123: 0.8482999802 | AY123: 0.9162999988 | AZ123: 0.4981000125 | BA123: 0.8332999945 | BB123: 0.2730999887 | BC123: 0.5552999973 | BU123: 0.2069000006 | BV123: 0.2978999913 | BW123: 0.2935000062 | BX123: 0.6880999804 | BY123: 0.7980999947 | BZ123: 0.274699986 | CA123: 0.3625999987 | CB123: 0.733099997 | CC123: 0.1562999934 | CD123: 0.9697999954 | CE123: 119 | CF123: 74 | CG123: 119 | CH123: 0.4540089395 | CI123: 0.5459910605 | CJ123: 0.467738519 | CK123: -367.2277672 | CL123: -0.06511420926 | CM123: 0.2178999931 | CN123: 0.5953000188 | CO123: 0.5360000134 | CP123: 0.1825000048 | CQ123: 0.7745000124 | CR123: 0.5916000009 | CS123: 0.7980999947 | CT123: 0.8924000263 | CU123: 0.4056000113 | CV123: 0.6654000282
V124: 120 | W124: 74.01 | X124: 0 | Y124: 0 | AF124: =IF($D$44="","",$D$44) -> 73.998 | AI124: =IF($E$34="","",$E$34) -> 73.989 | AL124: =IF($F$28="","",$F$28) -> 74.01 | AM124: 0.9255999923 | AN124: 0.7132999897 | AO124: 0.5827999711 | AP124: 0.4638999999 | AQ124: 0.7892000079 | AR124: 0.595600009 | AS124: 0.7673000097 | AT124: 0.6665999889 | AU124: 0.1626999974 | AV124: 0.7797999978 | AW124: 0.5498999953 | AX124: 0.5633999705 | AY124: 0.9893000126 | AZ124: 0.9997000098 | BA124: 0.04190000147 | BB124: 0.8826000094 | BC124: 0.8963000178 | BU124: 0.1967000067 | BV124: 0.8431000113 | BW124: 0.9894000292 | BX124: 0.9811000228 | BY124: 0.6517999768 | BZ124: 0.8901000023 | CA124: 0.8614000082 | CB124: 0.5762000084 | CC124: 0.4828000069 | CD124: 0.7975999713 | CE124: 120 | CF124: 74 | CG124: 120 | CH124: 0.4540089395 | CI124: 0.5459910605 | CJ124: 0.467738519 | CK124: -370.3267357 | CL124: -0.0550855758 | CM124: 0.1869000047 | CN124: 0.7056000233 | CO124: 0.02769999951 | CP124: 0.6144000292 | CQ124: 0.6323999763 | CR124: 0.9319000244 | CS124: 0.91049999 | CT124: 0.5306000113 | CU124: 0.4395999908 | CV124: 0.0923999995
V125: 121 | W125: 73.982 | X125: 0 | Y125: 0 | AE125: E45 | AF125: =IF($B$45="","",$B$45) -> 74 | AH125: E35 | AI125: =IF($B$35="","",$B$35) -> 74.009 | AK125: E29 | AL125: =IF($B$29="","",$B$29) -> 73.982 | AM125: 0.9322000146 | AN125: 0.2063000053 | AO125: 0.4411999881 | AP125: 0.2518999875 | AQ125: 0.210800007 | AR125: 0.3492000103 | AS125: 0.3262000084 | AT125: 0.9057999849 | AU125: 0.5726000071 | AV125: 0.543200016 | AW125: 0.1556999981 | AX125: 0.4332000017 | AY125: 0.1925999969 | AZ125: 0.3260999918 | BA125: 0.1283999979 | BB125: 0.8004000187 | BC125: 0.4848000109 | BU125: 0.7062000036 | BV125: 0.2245000005 | BW125: 0.9902999997 | BX125: 0.9187999964 | BY125: 0.8928999901 | BZ125: 0.3795999885 | CA125: 0.6297000051 | CB125: 0.9365000129 | CC125: 0.2822999954 | CD125: 0.1333999932 | CE125: 121 | CF125: 74 | CG125: 121 | CH125: 0.4540089395 | CI125: 0.5459910605 | CJ125: 0.467738519 | CK125: -373.4257042 | CL125: -0.04506247957 | CM125: 0.8518000245 | CN125: 0.06909999996 | CO125: 0.7373999953 | CP125: 0.4598999918 | CQ125: 0.0474999994 | CR125: 0.2069000006 | CS125: 0.399300009 | CT125: 0.4979000092 | CU125: 0.1121999994 | CV125: 0.7258999944
V126: 122 | W126: 73.984 | X126: 0 | Y126: 0 | AF126: =IF($C$45="","",$C$45) -> 73.984 | AI126: =IF($C$35="","",$C$35) -> 73.994 | AL126: =IF($C$29="","",$C$29) -> 73.984 | AM126: 0.9531000257 | AN126: 0.7548000216 | AO126: 0.837100029 | AP126: 0.3151000142 | AQ126: 0.1435000002 | AR126: 0.5587999821 | AS126: 0.549300015 | AT126: 0.05559999868 | AU126: 0.5404000282 | AV126: 0.7627999783 | AW126: 0.002899999963 | AX126: 0.7479000092 | AY126: 0.5544999838 | AZ126: 0.6973000169 | BA126: 0.5191000104 | BB126: 0.4905000031 | BC126: 0.7030000091 | BU126: 0.2231000066 | BV126: 0.5964999795 | BW126: 0.9808999896 | BX126: 0.001500000013 | BY126: 0.3558999896 | BZ126: 0.2316000015 | CA126: 0.2254000008 | CB126: 0.06909999996 | CC126: 9.999999747e-05 | CD126: 0.0083999997 | CE126: 122 | CF126: 74 | CG126: 122 | CH126: 0.4540089395 | CI126: 0.5459910605 | CJ126: 0.467738519 | CK126: -376.5246727 | CL126: -0.03504390851 | CM126: 0.01730000041 | CN126: 0.5766000152 | CO126: 0.07850000262 | CP126: 0.2206999958 | CQ126: 0.2876999974 | CR126: 0.2928000093 | CS126: 0.5970000029 | CT126: 0.9132999778 | CU126: 0.7149999738 | CV126: 0.7454000115
V127: 123 | W127: 73.995 | X127: 0 | Y127: 0 | AF127: =IF($D$45="","",$D$45) -> 74.005 | AI127: =IF($D$35="","",$D$35) -> 73.997 | AL127: =IF($D$29="","",$D$29) -> 73.995 | AM127: 0.2852999866 | AN127: 0.9599999785 | AO127: 0.4902000129 | AP127: 0.9240000248 | AQ127: 0.4871000051 | AR127: 0.391900003 | AS127: 0.3325999975 | AT127: 0.233099997 | AU127: 0.3012000024 | AV127: 0.975399971 | AW127: 0.7552999854 | AX127: 0.6955999732 | AY127: 0.9717000127 | AZ127: 0.04030000046 | BA127: 0.5813000202 | BB127: 0.405400008 | BC127: 0.5289999843 | BU127: 0.6966000199 | BV127: 0.5411999822 | BW127: 0.9265999794 | BX127: 0.2005999982 | BY127: 0.5256999731 | BZ127: 0.7964000106 | CA127: 0.1836999953 | CB127: 0.611199975 | CC127: 0.9981999993 | CD127: 0.5159999728 | CE127: 123 | CF127: 74.001 | CG127: 123 | CH127: 0.4931020021 | CI127: 0.5068979979 | CJ127: 0.467738519 | CK127: -359.3868458 | CL127: -0.02502885371 | CM127: 0.8640999794 | CN127: 0.3025999963 | CO127: 0.9758999944 | CP127: 0.6768000126 | CQ127: 0.3497000039 | CR127: 0.1916999966 | CS127: 0.5210000277 | CT127: 0.655099988 | CU127: 0.8241999745 | CV127: 0.7897999883
V128: 124 | W128: 74.017 | X128: 0 | Y128: 0 | AE128: E46 | AF128: =IF($B$46="","",$B$46) -> 73.994 | AI128: =IF($E$35="","",$E$35) -> 73.985 | AL128: =IF($E$29="","",$E$29) -> 74.017 | AM128: 0.9113000035 | AN128: 0.1797000021 | AO128: 0.4137000144 | AP128: 0.7814999819 | AQ128: 0.9061999917 | AR128: 0.5350999832 | AS128: 0.5770999789 | AT128: 0.8521000147 | AU128: 0.2619999945 | AV128: 0.01470000017 | AW128: 0.7470999956 | AX128: 0.7660999894 | AY128: 0.4979999959 | AZ128: 0.6234999895 | BA128: 0.2206999958 | BB128: 0.6951000094 | BC128: 0.9114000201 | BU128: 0.7519999743 | BV128: 0.9246000051 | BW128: 0.002400000114 | BX128: 0.6703000069 | BY128: 0.8999999762 | BZ128: 0.6977999806 | CA128: 0.2815000117 | CB128: 0.2863999903 | CC128: 0.9417999983 | CD128: 0.1527999938 | CE128: 124 | CF128: 74.001 | CG128: 124 | CH128: 0.4931020021 | CI128: 0.5068979979 | CJ128: 0.467738519 | CK128: -362.3206159 | CL128: -0.01501630877 | CM128: 0.4255000055 | CN128: 0.5770999789 | CO128: 0.1509000063 | CP128: 0.5315999985 | CQ128: 0.5210000277 | CR128: 0.845600009 | CS128: 0.9307000041 | CT128: 0.6863999963 | CU128: 0.8234000206 | CV128: 0.8878999949
V129: 125 | W129: 74.013 | X129: 0 | Y129: 0 | AF129: =IF($C$46="","",$C$46) -> 74.012 | AH129: E36 | AI129: =IF($B$36="","",$B$36) -> 73.995 | AL129: =IF($F$29="","",$F$29) -> 74.013 | AM129: 0.2052000016 | AN129: 0.9082000256 | AO129: 0.2725999951 | AP129: 0.4467000067 | AQ129: 0.05930000171 | AR129: 0.004300000146 | AS129: 0.2588999867 | AT129: 0.9139000177 | AU129: 0.6298000216 | AV129: 0.6269000173 | AW129: 0.6383000016 | AX129: 0.2838000059 | AY129: 0.2459000051 | AZ129: 0.8511000276 | BA129: 0.9981999993 | BB129: 0.3565999866 | BC129: 0.8198000193 | BU129: 0.2372999936 | BV129: 0.7578999996 | BW129: 0.5106999874 | BX129: 0.4959000051 | BY129: 0.2469000071 | BZ129: 0.5612000227 | CA129: 0.8537999988 | CB129: 0.4569999874 | CC129: 0.6423000097 | CD129: 0.7893000245 | CE129: 125 | CF129: 74.001 | CG129: 125 | CH129: 0.4931020021 | CI129: 0.5068979979 | CJ129: 0.5068979979 | CK129: -345.2346925 | CL129: -0.005005269051 | CM129: 0.1765999943 | CN129: 0.7172999978 | CO129: 0.4250000119 | CP129: 9.999999747e-05 | CQ129: 0.1177999973 | CR129: 0.4232000113 | CS129: 0.9685999751 | CT129: 0.6352000237 | CU129: 0.6647999883 | CV129: 0.6751999855
V130: 126 | W130: 74.03 | X130: 0 | Y130: 0 | AF130: =IF($D$46="","",$D$46) -> 73.986 | AI130: =IF($C$36="","",$C$36) -> 74.006 | AK130: E30 | AL130: =IF($B$30="","",$B$30) -> 74.03 | AM130: 0.7843000293 | AN130: 0.7233999968 | AO130: 0.04410000145 | AP130: 0.855700016 | AQ130: 0.5368999839 | AR130: 0.8331999779 | AS130: 0.8623999953 | AT130: 0.2079000026 | AU130: 0.3097000122 | AV130: 0.2764999866 | AW130: 0.4964999855 | AX130: 0.6631000042 | AY130: 0.121100001 | AZ130: 0.5613999963 | BA130: 0.7347000241 | BB130: 0.9193999767 | BC130: 0.6891999841 | BU130: 0.5697000027 | BV130: 0.6557999849 | BW130: 0.0055999998 | BX130: 0.8195999861 | BY130: 0.7254999876 | BZ130: 0.1516000032 | CA130: 0.8790000081 | CB130: 0.3675999939 | CC130: 0.8266000152 | CD130: 0.8622000217 | CE130: 126 | CF130: 74.001 | CG130: 126 | CH130: 0.4931020021 | CI130: 0.5068979979 | CJ130: 0.5068979979 | CK130: -348.0076619 | CL130: 0.005005269051 | CM130: 0.9553999901 | CN130: 0.7637000084 | CO130: 0.01269999985 | CP130: 0.4311000109 | CQ130: 0.1172000021 | CR130: 0.9230999947 | CS130: 0.850300014 | CT130: 0.2213000059 | CU130: 0.0876000002 | CV130: 0.2386000007
V131: 127 | W131: 74.002 | X131: 0 | Y131: 0 | AE131: E47 | AF131: =IF($B$47="","",$B$47) -> 74.006 | AI131: =IF($D$36="","",$D$36) -> 73.994 | AL131: =IF($C$30="","",$C$30) -> 74.002 | AM131: 0.4731999934 | AN131: 0.8938000202 | AO131: 0.6963000298 | AP131: 0.7839000225 | AQ131: 0.9732999802 | AR131: 0.235499993 | AS131: 0.3948999941 | AT131: 0.7663000226 | AU131: 0.0410999991 | AV131: 0.237499997 | AW131: 0.02300000004 | AX131: 0.2300000042 | AY131: 0.8562999964 | AZ131: 0.4230000079 | BA131: 0.8231999874 | BB131: 0.009300000034 | BC131: 0.2285999954 | BU131: 0.6032999754 | BV131: 0.7366999984 | BW131: 0.09340000153 | BX131: 0.939899981 | BY131: 0.08850000054 | BZ131: 0.2657999992 | CA131: 0.8023999929 | CB131: 0.1744000018 | CC131: 0.5504000187 | CD131: 0.6340000033 | CE131: 127 | CF131: 74.002 | CG131: 127 | CH131: 0.532261481 | CI131: 0.467738519 | CJ131: 0.5068979979 | CK131: -331.4466697 | CL131: 0.01501630877 | CM131: 0.685199976 | CN131: 0.8134999871 | CO131: 0.02099999972 | CP131: 0.3086999953 | CQ131: 0.6528000236 | CR131: 0.1861999929 | CS131: 0.3258000016 | CT131: 0.3749000132 | CU131: 0.7620000243 | CV131: 0.1850000024
V132: 128 | W132: 74.019 | X132: 0 | Y132: 0 | AF132: =IF($C$47="","",$C$47) -> 74.01 | AI132: =IF($E$36="","",$E$36) -> 74 | AL132: =IF($D$30="","",$D$30) -> 74.019 | AM132: 0.6001999974 | AN132: 0.989199996 | AO132: 0.8555999994 | AP132: 0.3438000083 | AQ132: 0.05480000004 | AR132: 0.08269999921 | AS132: 0.4532999992 | AT132: 0.1662999988 | AU132: 0.9908999801 | AV132: 0.3138999939 | AW132: 0.891900003 | AX132: 0.7041000128 | AY132: 0.06620000303 | AZ132: 0.2718000114 | BA132: 0.7166000009 | BB132: 0.3847999871 | BC132: 0.8105999827 | BU132: 0.9829999804 | BV132: 0.05730000138 | BW132: 0.6270999908 | BX132: 0.2274000049 | BY132: 0.4352999926 | BZ132: 0.9721999764 | CA132: 0.3174000084 | CB132: 0.1018999964 | CC132: 0.2251999974 | CD132: 0.6125000119 | CE132: 128 | CF132: 74.002 | CG132: 128 | CH132: 0.532261481 | CI132: 0.467738519 | CJ132: 0.5068979979 | CK132: -334.0668014 | CL132: 0.02502885371 | CM132: 0.6162999868 | CN132: 0.7954999804 | CO132: 0.6241999865 | CP132: 0.2263000011 | CQ132: 0.5924999714 | CR132: 0.6639000177 | CS132: 0.8774999976 | CT132: 0.1404999942 | CU132: 0.07769999653 | CV132: 0.7749000192
V133: 129 | W133: 73.992 | X133: =IF(W133<>"",IF(W133<UGW,1,0),"") -> 0 | Y133: =IF(W133<>"",IF(W133>OGW,1,0),"") -> 0 | AF133: =IF($D$47="","",$D$47) -> 74.018 | AH133: E37 | AI133: =IF($B$37="","",$B$37) -> 73.985 | AL133: =IF($E$30="","",$E$30) -> 73.992 | AM133: 0.09449999779 | AN133: 0.08929999918 | AO133: 0.6818000078 | AP133: 0.861199975 | AQ133: 0.3896000087 | AR133: 0.7922000289 | AS133: 0.058699999 | AT133: 0.5236999989 | AU133: 0.2725999951 | AV133: 0.7821999788 | AW133: 0.4219000041 | AX133: 0.684499979 | AY133: 0.2894000113 | AZ133: 0.4839999974 | BA133: 0.3098999858 | BB133: 0.2903000116 | BC133: 0.9126999974 | BU133: 0.2073999941 | BV133: 0.9269000292 | BW133: 0.2646999955 | BX133: 0.9499999881 | BY133: 0.2355999947 | BZ133: 0.04179999977 | CA133: 0.5716999769 | CB133: 0.3244000077 | CC133: 0.4771000147 | CD133: 0.4738999903 | CE133: 129 | CF133: =IF(W133="",NA(),SMALL(xi,CG133)) -> 74.002 | CG133: 129 | CH133: =IF(W133="","",NORMSDIST((CF133-Mittelwert)/Standardabweichung)-0.00000001) -> 0.532261481 | CI133: =IF(W133="","",1-CH133) -> 0.467738519 | CJ133: =IF(W133="","",SMALL(BG,CG133)) -> 0.5459910605 | CK133: =IF(W133="","",(2*CG133-1)*(LN(CJ133)+LN(CH133))) -> -317.5936818 | CL133: =IF(W133="",NA(),NORMSINV((CG133-0.3)/(Anzahl+0.4))) -> 0.03504390851 | CM133: 0.05590000004 | CN133: 0.780099988 | CO133: 0.6345000267 | CP133: 0.6776000261 | CQ133: 0.6667000055 | CR133: 0.5318999887 | CS133: 0.8765000105 | CT133: 0.7099000216 | CU133: 0.5457999706 | CV133: 0.2172999978
V134: 130 | W134: =IF($AP$39=2,IF(AC134<>"",AC134,""),(IF($AP$39=3,IF(AF134<>"",AF134,""),(IF($AP$39=4,IF(AI134<>"",AI134,""),IF(AL134<>"",AL134,"")))))) -> 74.008 | X134: 0 | Y134: 0 | AE134: E48 | AF134: =IF($B$48="","",$B$48) -> 73.984 | AI134: =IF($C$37="","",$C$37) -> 74.003 | AL134: =IF($F$30="","",$F$30) -> 74.008 | AM134: 0.1028999984 | AN134: 0.4332999885 | AO134: 0.4176999927 | AP134: 0.7246999741 | AQ134: 0.4607000053 | AR134: 0.9692999721 | AS134: 0.2309000045 | AT134: 0.2716999948 | AU134: 0.1098000035 | AV134: 0.4011999965 | AW134: 0.04780000076 | AX134: 0.7332999706 | AY134: 0.238199994 | AZ134: 0.7272999883 | BA134: 0.1860000044 | BB134: 0.2194000036 | BC134: 0.3278000057 | BU134: 0.8661000133 | BV134: 0.6938999891 | BW134: 0.6096000075 | BX134: 0.3528000116 | BY134: 0.5900999904 | BZ134: 0.6649000049 | CA134: 0.5184000134 | CB134: 0.4119000137 | CC134: 0.3066000044 | CD134: 0.08389999717 | CE134: 130 | CF134: 74.002 | CG134: =IF(W134="","",1+CG133) -> 130 | CH134: 0.532261481 | CI134: 0.467738519 | CJ134: 0.5459910605 | CK134: -320.0652279 | CL134: 0.04506247957 | CM134: 0.8052999973 | CN134: 0.1685000062 | CO134: 0.4347000122 | CP134: 0.7566000223 | CQ134: 0.86650002 | CR134: 0.9968000054 | CS134: 0.1638000011 | CT134: 0.1770000011 | CU134: 0.0326000005 | CV134: 0.4675000012
V135: 131 | W135: 73.995 | X135: 0 | Y135: 0 | AF135: =IF($C$48="","",$C$48) -> 74.002 | AI135: =IF($D$37="","",$D$37) -> 73.993 | AK135: E31 | AL135: =IF($B$31="","",$B$31) -> 73.995 | AM135: 0.09459999949 | AN135: 0.6054000258 | AO135: 0.3343999982 | AP135: 0.05070000142 | AQ135: 0.1295000017 | AR135: 0.397300005 | AS135: 0.5184999704 | AT135: 0.06880000234 | AU135: 0.6133999825 | AV135: 0.5807999969 | AW135: 0.3131000102 | AX135: 0.9002000093 | AY135: 0.7239000201 | AZ135: 0.6848999858 | BA135: 0.9433000088 | BB135: 0.4318999946 | BC135: 0.1125999987 | BU135: 0.7720999718 | BV135: 0.8489000201 | BW135: 0.4009000063 | BX135: 0.5853000283 | BY135: 0.9488000274 | BZ135: 0.795599997 | CA135: 0.3804999888 | CB135: 0.4377000034 | CC135: 0.2676999867 | CD135: 0.4602999985 | CE135: 131 | CF135: 74.002 | CG135: 131 | CH135: 0.532261481 | CI135: 0.467738519 | CJ135: 0.5459910605 | CK135: -322.5367741 | CL135: 0.0550855758 | CM135: 0.7724000216 | CN135: 0.3538999856 | CO135: 0.4930000007 | CP135: 0.1128000021 | CQ135: 0.07970000058 | CR135: 0.8873999715 | CS135: 0.7766000032 | CT135: 0.8598999977 | CU135: 0.2946000099 | CV135: 0.1238999963
V136: 132 | W136: 73.992 | X136: 0 | Y136: 0 | AF136: =IF($D$48="","",$D$48) -> 74.003 | AI136: =IF($E$37="","",$E$37) -> 74.015 | AL136: =IF($C$31="","",$C$31) -> 73.992 | AM136: 0.673699975 | AN136: 0.5985000134 | AO136: 0.03909999877 | AP136: 0.2596000135 | AQ136: 0.4086000025 | AR136: 0.2184000015 | AS136: 0.956099987 | AT136: 0.4289999902 | AU136: 0.3898999989 | AV136: 0.05590000004 | AW136: 0.3490999937 | AX136: 0.7832999825 | AY136: 0.9765999913 | AZ136: 0.5965999961 | BA136: 0.07379999757 | BB136: 0.8184000254 | BC136: 0.4936000109 | BU136: 0.9574999809 | BV136: 0.537800014 | BW136: 0.4744000137 | BX136: 0.3197999895 | BY136: 0.755400002 | BZ136: 0.7203999758 | CA136: 0.4472999871 | CB136: 0.08869999647 | CC136: 0.6353999972 | CD136: 0.7699999809 | CE136: 132 | CF136: 74.002 | CG136: 132 | CH136: 0.532261481 | CI136: 0.467738519 | CJ136: 0.5459910605 | CK136: -325.0083203 | CL136: 0.06511420926 | CM136: 0.4792999923 | CN136: 0.6999999881 | CO136: 0.9296000004 | CP136: 0.7529000044 | CQ136: 0.1841000021 | CR136: 0.8748000264 | CS136: 0.7875000238 | CT136: 0.283100009 | CU136: 0.5321000218 | CV136: 0.2646000087
V137: 133 | W137: 74.001 | X137: 0 | Y137: 0 | AE137: E49 | AF137: =IF($B$49="","",$B$49) -> 74 | AH137: E38 | AI137: =IF($B$38="","",$B$38) -> 74.008 | AL137: =IF($D$31="","",$D$31) -> 74.001 | AM137: 0.5663999915 | AN137: 0.3508000076 | AO137: 0.3655999899 | AP137: 0.9049999714 | AQ137: 0.4726999998 | AR137: 0.3998999894 | AS137: 0.1647000015 | AT137: 0.918299973 | AU137: 0.4514999986 | AV137: 0.6570000052 | AW137: 0.06260000169 | AX137: 0.4670000076 | AY137: 0.3282000124 | AZ137: 0.7088000178 | BA137: 0.1116999984 | BB137: 0.9566000104 | BC137: 0.1985999942 | BU137: 0.7511000037 | BV137: 0.8288000226 | BW137: 0.4609999955 | BX137: 0.1555999964 | BY137: 0.7354999781 | BZ137: 0.6919999719 | CA137: 0.6714000106 | CB137: 0.3741999865 | CC137: 0.7803000212 | CD137: 0.7063000202 | CE137: 133 | CF137: 74.002 | CG137: 133 | CH137: 0.532261481 | CI137: 0.467738519 | CJ137: 0.5459910605 | CK137: -327.4798664 | CL137: 0.07514939592 | CM137: 0.4325999916 | CN137: 0.9289000034 | CO137: 0.8518000245 | CP137: 0.5350000262 | CQ137: 0.06679999828 | CR137: 0.915199995 | CS137: 0.476000011 | CT137: 0.1629000008 | CU137: 0.9323999882 | CV137: 0.3203999996
V138: 134 | W138: 74.011 | X138: 0 | Y138: 0 | AF138: =IF($C$49="","",$C$49) -> 74.01 | AI138: =IF($C$38="","",$C$38) -> 73.995 | AL138: =IF($E$31="","",$E$31) -> 74.011 | AM138: 0.5038999915 | AN138: 0.5989999771 | AO138: 0.3147999942 | AP138: 0.3512000144 | AQ138: 0.1274999976 | AR138: 0.8299000263 | AS138: 0.5665000081 | AT138: 0.01240000036 | AU138: 0.1451999992 | AV138: 0.02300000004 | AW138: 0.4981000125 | AX138: 0.9345999956 | AY138: 0.4774999917 | AZ138: 0.9793999791 | BA138: 0.01889999956 | BB138: 0.4524999857 | BC138: 0.9326000214 | BU138: 0.4066999853 | BV138: 0.3274999857 | BW138: 0.4427999854 | BX138: 0.1516000032 | BY138: 0.798699975 | BZ138: 0.7240999937 | CA138: 0.7856000066 | CB138: 0.7756999731 | CC138: 0.2187999934 | CD138: 0.837199986 | CE138: 134 | CF138: 74.002 | CG138: 134 | CH138: 0.532261481 | CI138: 0.467738519 | CJ138: 0.5459910605 | CK138: -329.9514126 | CL138: 0.0851921564 | CM138: 0.576300025 | CN138: 0.2630999982 | CO138: 0.4277000129 | CP138: 0.4469999969 | CQ138: 0.2872000039 | CR138: 0.7595999837 | CS138: 0.3005000055 | CT138: 0.9908000231 | CU138: 0.4187000096 | CV138: 0.3262000084
V139: 135 | W139: 74.004 | X139: 0 | Y139: 0 | AF139: =IF($D$49="","",$D$49) -> 74.013 | AI139: =IF($D$38="","",$D$38) -> 74.009 | AL139: =IF($F$31="","",$F$31) -> 74.004 | AM139: 0.9672999978 | AN139: 0.1412999928 | AO139: 0.7653999925 | AP139: 0.1418000013 | AQ139: 0.2032999992 | AR139: 0.6345000267 | AS139: 0.931400001 | AT139: 0.956799984 | AU139: 0.07029999793 | AV139: 0.3483999968 | AW139: 0.09579999745 | AX139: 0.7957999706 | AY139: 0.8065000176 | AZ139: 0.6302000284 | BA139: 0.02879999951 | BB139: 0.9110000134 | BC139: 0.9677000046 | BU139: 0.00139999995 | BV139: 0.9826999903 | BW139: 0.03409999982 | BX139: 0.08139999956 | BY139: 0.772300005 | BZ139: 0.8891999722 | CA139: 0.9075999856 | CB139: 0.9319999814 | CC139: 0.0577000007 | CD139: 0.7714999914 | CE139: 135 | CF139: 74.002 | CG139: 135 | CH139: 0.532261481 | CI139: 0.467738519 | CJ139: 0.5459910605 | CK139: -332.4229587 | CL139: 0.09524351669 | CM139: 0.2953000069 | CN139: 0.9156000018 | CO139: 0.9168999791 | CP139: 0.01449999958 | CQ139: 0.3546000123 | CR139: 0.622699976 | CS139: 0.3903999925 | CT139: 0.05900000036 | CU139: 0.07580000162 | CV139: 0.1450999975
V140: 136 | W140: 73.988 | X140: 0 | Y140: 0 | AE140: E50 | AF140: =IF($B$50="","",$B$50) -> 73.982 | AI140: =IF($E$38="","",$E$38) -> 74.005 | AK140: E32 | AL140: =IF($B$32="","",$B$32) -> 73.988 | AM140: 0.01590000093 | AN140: 0.8546000123 | AO140: 0.9226999879 | AP140: 0.1534000039 | AQ140: 0.5938000083 | AR140: 0.5626000166 | AS140: 0.7235999703 | AT140: 0.2256000042 | AU140: 0.202700004 | AV140: 0.5097000003 | AW140: 0.8115000129 | AX140: 0.4248999953 | AY140: 0.465200007 | AZ140: 0.3903000057 | BA140: 0.4149999917 | BB140: 0.1281999946 | BC140: 0.06360000372 | BU140: 0.5713999867 | BV140: 0.1779000014 | BW140: 0.6082000136 | BX140: 0.2554999888 | BY140: 0.4359000027 | BZ140: 0.7153999805 | CA140: 0.8522999883 | CB140: 0.2032999992 | CC140: 0.8027999997 | CD140: 0.2340999991 | CE140: 136 | CF140: 74.002 | CG140: 136 | CH140: 0.532261481 | CI140: 0.467738519 | CJ140: 0.5459910605 | CK140: -334.8945049 | CL140: 0.1053045089 | CM140: 0.6880000234 | CN140: 0.7706999779 | CO140: 0.1272000074 | CP140: 0.4311000109 | CQ140: 0.8366000056 | CR140: 0.3564999998 | CS140: 0.5253999829 | CT140: 0.01999999955 | CU140: 0.9695000052 | CV140: 0.5088000298
V141: 137 | W141: 74.024 | X141: 0 | Y141: 0 | AF141: =IF($C$50="","",$C$50) -> 74.001 | AH141: E39 | AI141: =IF($B$39="","",$B$39) -> 73.998 | AL141: =IF($C$32="","",$C$32) -> 74.024 | AM141: 0.6654000282 | AN141: 0.05930000171 | AO141: 0.7239999771 | AP141: 0.8783000112 | AQ141: 0.9075999856 | AR141: 0.5302000046 | AS141: 0.9688000083 | AT141: 0.4214999974 | AU141: 0.6955000162 | AV141: 0.1649000049 | AW141: 0.3197000027 | AX141: 0.8532999754 | AY141: 0.1959999949 | AZ141: 0.5248000026 | BA141: 0.9052000046 | BB141: 0.351000011 | BC141: 0.1905999929 | BU141: 0.7055000067 | BV141: 0.4512000084 | BW141: 0.6360999942 | BX141: 0.0027999999 | BY141: 0.5762000084 | BZ141: 0.5230000019 | CA141: 0.6194000244 | CB141: 0.7074000239 | CC141: 0.7487999797 | CD141: 0.3959999979 | CE141: 137 | CF141: 74.003 | CG141: 137 | CH141: 0.5711109805 | CI141: 0.4288890195 | CJ141: 0.5459910605 | CK141: -318.1335619 | CL141: 0.1153761719 | CM141: 0.07769999653 | CN141: 0.3506000042 | CO141: 0.01590000093 | CP141: 0.2552999854 | CQ141: 0.7687000036 | CR141: 0.7211999893 | CS141: 0.8231999874 | CT141: 0.3257000148 | CU141: 0.3301999867 | CV141: 0.9685000181
V142: 138 | W142: 74.021 | X142: 0 | Y142: 0 | AF142: =IF($D$50="","",$D$50) -> 74.015 | AI142: =IF($C$39="","",$C$39) -> 74 | AL142: =IF($D$32="","",$D$32) -> 74.021 | AM142: 0.5357000232 | AN142: 0.07530000061 | AO142: 0.6704999804 | AP142: 0.4302000105 | AQ142: 0.9526000023 | AR142: 0.6683999896 | AS142: 0.6090000272 | AT142: 0.7106000185 | AU142: 0.07360000163 | AV142: 0.6690000296 | AW142: 0.766900003 | AX142: 0.008700000122 | AY142: 0.1141000018 | AZ142: 0.9932000041 | BA142: 0.7077000141 | BB142: 0.6963999867 | BC142: 0.7707999945 | BU142: 0.06409999728 | BV142: 0.4388999939 | BW142: 0.3582000136 | BX142: 0.1568000019 | BY142: 0.02859999985 | BZ142: 0.7973999977 | CA142: 0.7760000229 | CB142: 0.6732000113 | CC142: 0.4201000035 | CD142: 0.05110000074 | CE142: 138 | CF142: 74.003 | CG142: 138 | CH142: 0.5711109805 | CI142: 0.4288890195 | CJ142: 0.5459910605 | CK142: -320.4642107 | CL142: 0.1254595525 | CM142: 0.9808999896 | CN142: 0.4102999866 | CO142: 0.4034999907 | CP142: 0.7671999931 | CQ142: 0.08380000293 | CR142: 0.5978000164 | CS142: 0.6018999815 | CT142: 0.1388999969 | CU142: 0.3177999854 | CV142: 0.09939999878
V143: 139 | W143: 74.005 | X143: 0 | Y143: 0 | AE143: E51 | AF143: =IF($B$51="","",$B$51) -> 74.004 | AI143: =IF($D$39="","",$D$39) -> 73.99 | AL143: =IF($E$32="","",$E$32) -> 74.005 | AM143: 0.7372000217 | AN143: 0.06329999864 | AO143: 0.8033999801 | AP143: 0.1154000014 | AQ143: 0.5202999711 | AR143: 0.4700999856 | AS143: 0.5645999908 | AT143: 0.1366000026 | AU143: 0.7921000123 | AV143: 0.8991000056 | AW143: 0.7944999933 | AX143: 0.1465000063 | AY143: 0.9139999747 | AZ143: 0.328700006 | BA143: 0.3704000115 | BB143: 0.07509999722 | BC143: 0.4084999859 | BU143: 0.5426999927 | BV143: 0.8837000132 | BW143: 0.2563999891 | BX143: 0.1388999969 | BY143: 0.9273999929 | BZ143: 0.9408000112 | CA143: 0.7016000152 | CB143: 0.203700006 | CC143: 0.7811999917 | CD143: 0.4851999879 | CE143: 139 | CF143: 74.003 | CG143: 139 | CH143: 0.5711109805 | CI143: 0.4288890195 | CJ143: 0.5459910605 | CK143: -322.7948595 | CL143: 0.1355557056 | CM143: 0.00139999995 | CN143: 0.7558000088 | CO143: 0.0206000004 | CP143: 0.3296000063 | CQ143: 0.02979999967 | CR143: 0.235499993 | CS143: 0.137500003 | CT143: 0.5615000129 | CU143: 0.8374999762 | CV143: 0.5527999997
V144: 140 | W144: 74.002 | X144: 0 | Y144: 0 | AF144: =IF($C$51="","",$C$51) -> 73.999 | AI144: =IF($E$39="","",$E$39) -> 74.007 | AL144: =IF($F$32="","",$F$32) -> 74.002 | AM144: 0.2143000066 | AN144: 0.4954000115 | AO144: 0.7929000258 | AP144: 0.6654000282 | AQ144: 0.1900999993 | AR144: 0.8768000007 | AS144: 0.9721000195 | AT144: 0.4072000086 | AU144: 0.3759999871 | AV144: 0.3348999918 | AW144: 0.8001000285 | AX144: 0.5661000013 | AY144: 0.2207999974 | AZ144: 0.08590000123 | BA144: 0.9409000278 | BB144: 0.2123000026 | BC144: 0.3265999854 | BU144: 0.04899999872 | BV144: 0.8052999973 | BW144: 0.04580000043 | BX144: 0.4833999872 | BY144: 0.6306999922 | BZ144: 0.9958999753 | CA144: 0.9167000055 | CB144: 0.7929000258 | CC144: 0.1859000027 | CD144: 0.1294 | CE144: 140 | CF144: 74.003 | CG144: 140 | CH144: 0.5711109805 | CI144: 0.4288890195 | CJ144: 0.5459910605 | CK144: -325.1255083 | CL144: 0.1456656955 | CM144: 0.3688000143 | CN144: 0.1280999929 | CO144: 0.3551999927 | CP144: 0.3463999927 | CQ144: 0.7933999896 | CR144: 0.878099978 | CS144: 0.2842000127 | CT144: 0.2725000083 | CU144: 0.1254999936 | CV144: 0.8000000119
V145: 141 | W145: 74.002 | X145: 0 | Y145: 0 | AF145: =IF($D$51="","",$D$51) -> 73.99 | AH145: E40 | AI145: =IF($B$40="","",$B$40) -> 73.994 | AK145: E33 | AL145: =IF($B$33="","",$B$33) -> 74.002 | AM145: 0.01389999967 | AN145: 0.8471999764 | AO145: 0.3598000109 | AP145: 0.4722000062 | AQ145: 0.1216999963 | AR145: 0.4011999965 | AS145: 0.3163000047 | AT145: 0.9975000024 | AU145: 0.6114000082 | AV145: 0.9850999713 | AW145: 0.6556000113 | AX145: 0.9563999772 | AY145: 0.05429999903 | AZ145: 0.9473999739 | BA145: 0.1448999941 | BB145: 0.6097999811 | BC145: 0.9800000191 | BU145: 0.1114000008 | BV145: 0.1727000028 | BW145: 0.1547999978 | BX145: 0.8974000216 | BY145: 0.04039999843 | BZ145: 0.1865999997 | CA145: 0.9600999951 | CB145: 0.1907999963 | CC145: 0.2824999988 | CD145: 0.3434999883 | CE145: 141 | CF145: 74.003 | CG145: 141 | CH145: 0.5711109805 | CI145: 0.4288890195 | CJ145: 0.5459910605 | CK145: -327.4561571 | CL145: 0.1557905964 | CM145: 0.09019999951 | CN145: 0.2478999943 | CO145: 0.0186999999 | CP145: 0.6622999907 | CQ145: 0.8011999726 | CR145: 0.3634000123 | CS145: 0.1774999946 | CT145: 0.9204999804 | CU145: 0.07249999791 | CV145: 0.6610000134
V146: 142 | W146: 73.996 | X146: 0 | Y146: 0 | AE146: E52 | AF146: =IF($B$52="","",$B$52) -> 74.01 | AI146: =IF($C$40="","",$C$40) -> 73.998 | AL146: =IF($C$33="","",$C$33) -> 73.996 | AM146: 0.1997999996 | AN146: 0.3578999937 | AO146: 0.4979000092 | AP146: 0.4219999909 | AQ146: 0.05480000004 | AR146: 0.6288999915 | AS146: 0.4262999892 | AT146: 0.6626999974 | AU146: 0.5059000254 | AV146: 0.006399999838 | AW146: 0.3515999913 | AX146: 0.9628999829 | AY146: 0.6258000135 | AZ146: 0.8343999982 | BA146: 0.5544000268 | BB146: 0.5443000197 | BC146: 0.5626000166 | BU146: 0.7889000177 | BV146: 0.675999999 | BW146: 0.9120000005 | BX146: 0.200000003 | BY146: 0.2852999866 | BZ146: 0.3688000143 | CA146: 0.537800014 | CB146: 0.4596000016 | CC146: 0.345600009 | CD146: 0.920599997 | CE146: 142 | CF146: 74.003 | CG146: 142 | CH146: 0.5711109805 | CI146: 0.4288890195 | CJ146: 0.5459910605 | CK146: -329.7868059 | CL146: 0.1659314937 | CM146: 0.934400022 | CN146: 0.3635999858 | CO146: 0.6017000079 | CP146: 0.4981000125 | CQ146: 0.4140999913 | CR146: 0.5382000208 | CS146: 0.4873999953 | CT146: 0.8629000187 | CU146: 0.5045999885 | CV146: 0.962199986
V147: 143 | W147: 73.993 | X147: 0 | Y147: 0 | AF147: =IF($C$52="","",$C$52) -> 73.989 | AI147: =IF($D$40="","",$D$40) -> 73.994 | AL147: =IF($D$33="","",$D$33) -> 73.993 | AM147: 0.3786000013 | AN147: 0.9492999911 | AO147: 0.2152999938 | AP147: 0.1702000052 | AQ147: 0.9843999743 | AR147: 0.6927999854 | AS147: 0.5526000261 | AT147: 0.7053999901 | AU147: 0.9873999953 | AV147: 0.1076999977 | AW147: 0.2856000066 | AX147: 0.8230000138 | AY147: 0.9347000122 | AZ147: 0.6158000231 | BA147: 0.9617999792 | BB147: 0.4431999922 | BC147: 0.3779000044 | BU147: 0.6006000042 | BV147: 0.4381999969 | BW147: 0.9088000059 | BX147: 0.733799994 | BY147: 0.986100018 | BZ147: 0.7348999977 | CA147: 0.9085999727 | CB147: 0.3147999942 | CC147: 0.752300024 | CD147: 0.1594000012 | CE147: 143 | CF147: 74.003 | CG147: 143 | CH147: 0.5711109805 | CI147: 0.4288890195 | CJ147: 0.5459910605 | CK147: -332.1174548 | CL147: 0.1760894843 | CM147: 0.7164000273 | CN147: 0.8975999951 | CO147: 0.2354000062 | CP147: 0.2648000121 | CQ147: 0.9854999781 | CR147: 0.5845999718 | CS147: 0.9411000013 | CT147: 0.0971999988 | CU147: 0.8898000121 | CV147: 0.9168000221
V148: 144 | W148: 74.015 | X148: 0 | Y148: 0 | AF148: =IF($D$52="","",$D$52) -> 73.99 | AI148: =IF($E$40="","",$E$40) -> 73.995 | AL148: =IF($E$33="","",$E$33) -> 74.015 | AM148: 0.05930000171 | AN148: 0.6492000222 | AO148: 0.7644000053 | AP148: 0.951399982 | AQ148: 0.2301999927 | AR148: 0.5626000166 | AS148: 0.9961000085 | AT148: 0.5906000137 | AU148: 0.5597000122 | AV148: 0.08190000057 | AW148: 0.1640000045 | AX148: 0.1595000029 | AY148: 0.8855000138 | AZ148: 0.2572999895 | BA148: 0.4302000105 | BB148: 0.2340999991 | BC148: 0.2919999957 | BU148: 0.4424000084 | BV148: 0.7633000016 | BW148: 0.2572000027 | BX148: 0.09279999882 | BY148: 0.5716000199 | BZ148: 0.3659999967 | CA148: 0.7278000116 | CB148: 0.09529999644 | CC148: 0.5712000132 | CD148: 0.5960000157 | CE148: 144 | CF148: 74.003 | CG148: 144 | CH148: 0.5711109805 | CI148: 0.4288890195 | CJ148: 0.5459910605 | CK148: -334.4481036 | CL148: 0.1862656776 | CM148: 0.6013000011 | CN148: 0.0335999988 | CO148: 0.3298000097 | CP148: 0.8497999907 | CQ148: 0.5013999939 | CR148: 0.5993999839 | CS148: 0.08479999751 | CT148: 0.477699995 | CU148: 0.189199999 | CV148: 0.07129999995
V149: 145 | W149: 74.009 | X149: 0 | Y149: 0 | AE149: E53 | AF149: =IF($B$53="","",$B$53) -> 74.015 | AH149: E41 | AI149: =IF($B$41="","",$B$41) -> 74.004 | AL149: =IF($F$33="","",$F$33) -> 74.009 | AM149: 0.3127000034 | AN149: 0.1124000028 | AO149: 0.579400003 | AP149: 0.2680999935 | AQ149: 0.8701999784 | AR149: 0.2467000037 | AS149: 0.0055999998 | AT149: 0.7513999939 | AU149: 0.3842999935 | AV149: 0.06230000034 | AW149: 0.7358999848 | AX149: 0.2795000076 | AY149: 0.8930000067 | AZ149: 0.5070999861 | BA149: 0.7386000156 | BB149: 0.5098999739 | BC149: 0.7362999916 | BU149: 0.712199986 | BV149: 0.2621999979 | BW149: 0.7099999785 | BX149: 0.260800004 | BY149: 0.3639000058 | BZ149: 0.4754000008 | CA149: 0.8159999847 | CB149: 0.956700027 | CC149: 0.4842000008 | CD149: 0.7396000028 | CE149: 145 | CF149: 74.004 | CG149: 145 | CH149: 0.6092830115 | CI149: 0.3907169885 | CJ149: 0.5459910605 | CK149: -318.0806482 | CL149: 0.1964611968 | CM149: 0.3975999951 | CN149: 0.3391000032 | CO149: 0.2055999935 | CP149: 0.2202000022 | CQ149: 0.271299988 | CR149: 0.02089999989 | CS149: 0.5012000203 | CT149: 0.560199976 | CU149: 0.82099998 | CV149: 0.9132000208
V150: 146 | W150: 73.992 | X150: 0 | Y150: 0 | AF150: =IF($C$53="","",$C$53) -> 74.008 | AI150: =IF($C$41="","",$C$41) -> 74 | AK150: E34 | AL150: =IF($B$34="","",$B$34) -> 73.992 | AM150: 0.4507000148 | AN150: 0.08299999684 | AO150: 0.3883999884 | AP150: 0.05270000175 | AQ150: 0.7558000088 | AR150: 0.2460999936 | AS150: 0.9142000079 | AT150: 0.6807000041 | AU150: 0.5059999824 | AV150: 0.3436000049 | AW150: 0.8281000257 | AX150: 0.570299983 | AY150: 0.193900004 | AZ150: 0.459800005 | BA150: 0.1896000057 | BB150: 0.6050999761 | BC150: 0.9811999798 | BU150: 0.1099999994 | BV150: 0.9524000287 | BW150: 0.8633999825 | BX150: 0.5034000278 | BY150: 0.4020999968 | BZ150: 0.4377999902 | CA150: 0.5724999905 | CB150: 0.130400002 | CC150: 0.50849998 | CD150: 0.4061000049 | CE150: 146 | CF150: 74.004 | CG150: 146 | CH150: 0.6092830115 | CI150: 0.3907169885 | CJ150: 0.5459910605 | CK150: -320.2818983 | CL150: 0.2066771794 | CM150: 0.05570000038 | CN150: 0.7670000196 | CO150: 0.5903000236 | CP150: 0.4361000061 | CQ150: 0.3887999952 | CR150: 0.7481999993 | CS150: 0.954400003 | CT150: 0.6701999903 | CU150: 0.9571999907 | CV150: 0.4808000028
V151: 147 | W151: 74.007 | X151: 0 | Y151: 0 | AF151: =IF($D$53="","",$D$53) -> 73.993 | AI151: =IF($D$41="","",$D$41) -> 74.007 | AL151: =IF($C$34="","",$C$34) -> 74.007 | AM151: 0.693599999 | AN151: 0.8924000263 | AO151: 0.2213999927 | AP151: 0.145600006 | AQ151: 0.5774000287 | AR151: 0.8565000296 | AS151: 0.7325999737 | AT151: 0.6510999799 | AU151: 0.1928000003 | AV151: 0.8640999794 | AW151: 0.3987999856 | AX151: 0.8366000056 | AY151: 0.334800005 | AZ151: 0.592599988 | BA151: 0.9995999932 | BB151: 0.9250000119 | BC151: 0.6470000148 | BU151: 0.8327000141 | BV151: 0.172999993 | BW151: 0.9110000134 | BX151: 0.6076999903 | BY151: 0.2231999934 | BZ151: 0.9469000101 | CA151: 0.002600000007 | CB151: 0.3427999914 | CC151: 0.2379000038 | CD151: 0.4930000007 | CE151: 147 | CF151: 74.004 | CG151: 147 | CH151: 0.6092830115 | CI151: 0.3907169885 | CJ151: 0.5846432235 | CK151: -302.4421876 | CL151: 0.2169147783 | CM151: 0.8439999819 | CN151: 0.6294999719 | CO151: 0.195600003 | CP151: 0.4171999991 | CQ151: 0.9302999973 | CR151: 0.04459999874 | CS151: 0.1777999997 | CT151: 0.03700000048 | CU151: 0.6209999919 | CV151: 0.5724999905
V152: 148 | W152: 74.015 | X152: 0 | Y152: 0 | AE152: E54 | AF152: =IF($B$54="","",$B$54) -> 73.982 | AI152: =IF($E$41="","",$E$41) -> 74 | AL152: =IF($D$34="","",$D$34) -> 74.015 | AM152: 0.04470000044 | AN152: 0.3352000117 | AO152: 0.2802999914 | AP152: 0.1826000065 | AQ152: 0.6998999715 | AR152: 0.1626999974 | AS152: 0.6680999994 | AT152: 0.6579999924 | AU152: 0.6069999933 | AV152: 0.6916999817 | AW152: 0.5803999901 | AX152: 0.6733000278 | AY152: 0.5546000004 | AZ152: 0.1186999977 | BA152: 0.7398999929 | BB152: 0.1228 | BC152: 0.6721000075 | BU152: 0.1319999993 | BV152: 0.41080001 | BW152: 0.665899992 | BX152: 0.3136000037 | BY152: 0.06880000234 | BZ152: 0.8955000043 | CA152: 0.576300025 | CB152: 0.7389000058 | CC152: 0.5734999776 | CD152: 0.2897000015 | CE152: 148 | CF152: 74.004 | CG152: 148 | CH152: 0.6092830115 | CI152: 0.3907169885 | CJ152: 0.5846432235 | CK152: -304.5066394 | CL152: 0.2271751629 | CM152: 0.918299973 | CN152: 0.3889000118 | CO152: 0.8454999924 | CP152: 0.05810000002 | CQ152: 0.1103999987 | CR152: 0.5705000162 | CS152: 0.2763000131 | CT152: 0.08820000291 | CU152: 0.3025999963 | CV152: 0.3964999914
V153: 149 | W153: 73.989 | X153: 0 | Y153: 0 | AF153: =IF($C$54="","",$C$54) -> 73.984 | AH153: E42 | AI153: =IF($B$42="","",$B$42) -> 73.983 | AL153: =IF($E$34="","",$E$34) -> 73.989 | AM153: 0.8406000137 | AN153: 0.5184000134 | AO153: 0.891900003 | AP153: 0.238199994 | AQ153: 0.736800015 | AR153: 0.8165000081 | AS153: 0.2881000042 | AT153: 0.4287999868 | AU153: 0.277399987 | AV153: 0.1071000025 | AW153: 0.9291999936 | AX153: 0.2168000042 | AY153: 0.02979999967 | AZ153: 0.7505000234 | BA153: 0.5471000075 | BB153: 0.9686999917 | BC153: 0.2070000023 | BU153: 0.4548999965 | BV153: 0.3795000017 | BW153: 0.8226000071 | BX153: 0.0298999995 | BY153: 0.2356999964 | BZ153: 0.8223999739 | CA153: 0.3876999915 | CB153: 0.9031000137 | CC153: 0.1604000032 | CD153: 0.6657999754 | CE153: 149 | CF153: 74.004 | CG153: 149 | CH153: 0.6092830115 | CI153: 0.3907169885 | CJ153: 0.5846432235 | CK153: -306.5710912 | CL153: 0.2374595201 | CM153: 0.2549999952 | CN153: 0.3580000103 | CO153: 0.8748999834 | CP153: 0.5342000127 | CQ153: 0.8640000224 | CR153: 0.1386999935 | CS153: 0.9599000216 | CT153: 0.2480999976 | CU153: 0.06539999694 | CV153: 0.7555999756
V154: 150 | W154: 74.014 | X154: 0 | Y154: 0 | AF154: =IF($D$54="","",$D$54) -> 73.995 | AI154: =IF($C$42="","",$C$42) -> 74.002 | AL154: =IF($F$34="","",$F$34) -> 74.014 | AM154: 0.6963000298 | AN154: 0.5275999904 | AO154: 0.01140000019 | AP154: 0.8141000271 | AQ154: 0.08060000092 | AR154: 0.9451000094 | AS154: 0.2969999909 | AT154: 0.5922999978 | AU154: 0.09099999815 | AV154: 0.1290999949 | AW154: 0.349999994 | AX154: 0.8693000078 | AY154: 0.2026000023 | AZ154: 0.2163999975 | BA154: 0.07169999927 | BB154: 0.003400000045 | BC154: 0.1533000022 | BU154: 0.6342999935 | BV154: 0.9473999739 | BW154: 0.6750000119 | BX154: 0.1797000021 | BY154: 0.5407000184 | BZ154: 0.0195000004 | CA154: 0.3346999884 | CB154: 0.8219000101 | CC154: 1 | CD154: 0.7336000204 | CE154: 150 | CF154: 74.004 | CG154: 150 | CH154: 0.6092830115 | CI154: 0.3907169885 | CJ154: 0.5846432235 | CK154: -308.635543 | CL154: 0.247769055 | CM154: 0.1664000005 | CN154: 0.655099988 | CO154: 0.7652999759 | CP154: 0.8931000233 | CQ154: 0.5720000267 | CR154: 0.03599999845 | CS154: 0.07880000025 | CT154: 0.8337000012 | CU154: 0.3569000065 | CV154: 0.1115000024
V155: 151 | W155: 74.009 | X155: 0 | Y155: 0 | AI155: =IF($D$42="","",$D$42) -> 73.998 | AK155: E35 | AL155: =IF($B$35="","",$B$35) -> 74.009 | AM155: 0.8126000166 | AN155: 0.00159999996 | AO155: 0.9950000048 | AP155: 0.0214000009 | AQ155: 0.8594999909 | AR155: 0.7813000083 | AS155: 0.1453000009 | AT155: 0.3521000147 | AU155: 0.7730000019 | AV155: 0.5741000175 | AW155: 0.4165999889 | AX155: 0.8391000032 | AY155: 0.6588000059 | AZ155: 0.1257999986 | BA155: 0.3838 | BB155: 0.3206999898 | BC155: 0.3149000108 | BU155: 0.8499000072 | BV155: 0.7555999756 | BW155: 0.7603999972 | BX155: 0.7680000067 | BY155: 0.1168000028 | BZ155: 0.6427000165 | CA155: 0.2858999968 | CB155: 0.8812000155 | CC155: 0.9584000111 | CD155: 0.8252999783 | CE155: 151 | CF155: 74.004 | CG155: 151 | CH155: 0.6092830115 | CI155: 0.3907169885 | CJ155: 0.6224926433 | CK155: -291.8182577 | CL155: 0.2581049926 | CM155: 0.8661999702 | CN155: 0.005700000096 | CO155: 0.2383999974 | CP155: 0.2745000124 | CQ155: 0.9007999897 | CR155: 0.0055999998 | CS155: 0.1772000045 | CT155: 0.891900003 | CU155: 0.9972000122 | CV155: 0.121100001
V156: 152 | W156: 73.994 | X156: 0 | Y156: 0 | AI156: =IF($E$42="","",$E$42) -> 73.997 | AL156: =IF($C$35="","",$C$35) -> 73.994 | AM156: 0.867200017 | AN156: 0.9628999829 | AO156: 0.6114000082 | AP156: 0.04619999975 | AQ156: 0.03830000013 | AR156: 0.8600000143 | AS156: 0.9388999939 | AT156: 0.2574000061 | AU156: 0.07389999926 | AV156: 0.9955999851 | AW156: 0.05480000004 | AX156: 0.5914000273 | AY156: 0.2763000131 | AZ156: 0.02520000003 | BA156: 0.3050999939 | BB156: 0.07339999825 | BC156: 0.3824999928 | BU156: 0.3262999952 | BV156: 0.6222000122 | BW156: 0.1482000053 | BX156: 0.01649999991 | BY156: 0.01040000003 | BZ156: 0.4199000001 | CA156: 0.4557000101 | CB156: 0.2426999956 | CC156: 0.135800004 | CD156: 0.8817999959 | CE156: 152 | CF156: 74.004 | CG156: 152 | CH156: 0.6092830115 | CI156: 0.3907169885 | CJ156: 0.6224926433 | CK156: -293.7572495 | CL156: 0.2684685784 | CM156: 0.8054999709 | CN156: 0.236499995 | CO156: 0.2748000026 | CP156: 0.3535000086 | CQ156: 0.9735999703 | CR156: 0.2325000018 | CS156: 0.03599999845 | CT156: 0.07220000029 | CU156: 0.06100000069 | CV156: 0.4898999929
V157: 153 | W157: 73.997 | X157: 0 | Y157: 0 | AH157: E43 | AI157: =IF($B$43="","",$B$43) -> 74.006 | AL157: =IF($D$35="","",$D$35) -> 73.997 | AM157: 0.9545000196 | AN157: 0.494599998 | AO157: 0.5098999739 | AP157: 0.2452999949 | AQ157: 0.6330000162 | AR157: 0.8755000234 | AS157: 0.3684000075 | AT157: 0.915899992 | AU157: 0.1319999993 | AV157: 0.09549999982 | AW157: 0.8072000146 | AX157: 0.5529999733 | AY157: 0.6108000278 | AZ157: 0.7394999862 | BA157: 0.8844000101 | BB157: 0.5443999767 | BC157: 0.2178999931 | BU157: 0.989199996 | BV157: 0.07479999959 | BW157: 0.3416999876 | BX157: 0.1574999988 | BY157: 0.2978999913 | BZ157: 0.8014000058 | CA157: 0.4541999996 | CB157: 0.1933999956 | CC157: 0.3201000094 | CD157: 0.5943999887 | CE157: 153 | CF157: 74.005 | CG157: 153 | CH157: 0.6464293853 | CI157: 0.3535706147 | CJ157: 0.6224926433 | CK157: -277.6460084 | CL157: 0.2788610801 | CM157: 0.7461000085 | CN157: 0.5541999936 | CO157: 0.7779999971 | CP157: 0.8497999907 | CQ157: 0.342599988 | CR157: 0.9271000028 | CS157: 0.4221999943 | CT157: 0.8783000112 | CU157: 0.6236000061 | CV157: 0.234799996
V158: 154 | W158: 73.985 | X158: 0 | Y158: 0 | AI158: =IF($C$43="","",$C$43) -> 73.967 | AL158: =IF($E$35="","",$E$35) -> 73.985 | AM158: 0.2971999943 | AN158: 0.1089000031 | AO158: 0.6144999862 | AP158: 0.4634000063 | AQ158: 0.2570999861 | AR158: 0.5419999957 | AS158: 0.6269999743 | AT158: 0.7407000065 | AU158: 0.7311000228 | AV158: 0.4523000121 | AW158: 0.1492999941 | AX158: 0.6642000079 | AY158: 0.7393000126 | AZ158: 0.3420000076 | BA158: 0.9872000217 | BB158: 0.8791000247 | BC158: 0.1581999958 | BU158: 0.5468999743 | BV158: 0.605700016 | BW158: 0.01209999993 | BX158: 0.7322999835 | BY158: 0.6909000278 | BZ158: 0.6446999907 | CA158: 0.7321000099 | CB158: 0.3107999861 | CC158: 0.9897000194 | CD158: 0.8949000239 | CE158: 154 | CF158: 74.005 | CG158: 154 | CH158: 0.6464293853 | CI158: 0.3535706147 | CJ158: 0.6224926433 | CK158: -279.466638 | CL158: 0.2892837883 | CM158: 0.7914000154 | CN158: 0.9532999992 | CO158: 0.8507999778 | CP158: 0.1967999935 | CQ158: 0.4808000028 | CR158: 0.350300014 | CS158: 0.5142999887 | CT158: 0.8920000196 | CU158: 0.5877000093 | CV158: 0.7016000152
V159: 155 | W159: 73.993 | X159: 0 | Y159: 0 | AI159: =IF($D$43="","",$D$43) -> 73.994 | AL159: =IF($F$35="","",$F$35) -> 73.993 | AM159: 0.6941999793 | AN159: 0.9013000131 | AO159: 0.1626999974 | AP159: 0.4183999896 | AQ159: 0.4688000083 | AR159: 0.05249999836 | AS159: 0.5343000293 | AT159: 0.07729999721 | AU159: 0.4208999872 | AV159: 0.6590999961 | AW159: 0.5751000047 | AX159: 0.6230000257 | AY159: 0.02940000035 | AZ159: 0.3477999866 | BA159: 0.2173999995 | BB159: 0.8213000298 | BC159: 0.3086999953 | BU159: 0.7161999941 | BV159: 0.4941000044 | BW159: 0.03269999847 | BX159: 0.9876999855 | BY159: 0.84799999 | BZ159: 0.7788000107 | CA159: 0.3887999952 | CB159: 0.5386000276 | CC159: 0.5870000124 | CD159: 0.6362000108 | CE159: 155 | CF159: 74.005 | CG159: 155 | CH159: 0.6464293853 | CI159: 0.3535706147 | CJ159: 0.6224926433 | CK159: -281.2872675 | CL159: 0.2997380182 | CM159: 0.8431000113 | CN159: 0.3459999859 | CO159: 0.9045000076 | CP159: 0.715200007 | CQ159: 0.7617999911 | CR159: 0.3734000027 | CS159: 0.7220000029 | CT159: 0.8137999773 | CU159: 0.06289999932 | CV159: 0.9291999936
V160: 156 | W160: 73.995 | X160: 0 | Y160: 0 | AI160: =IF($E$43="","",$E$43) -> 74 | AK160: E36 | AL160: =IF($B$36="","",$B$36) -> 73.995 | AM160: 0.926699996 | AN160: 0.8327000141 | AO160: 0.3569000065 | AP160: 0.2448000014 | AQ160: 0.6373000145 | AR160: 0.978399992 | AS160: 0.3370999992 | AT160: 0.3023999929 | AU160: 0.7196999788 | AV160: 0.2159000039 | AW160: 0.4207000136 | AX160: 0.9132999778 | AY160: 0.5522000194 | AZ160: 0.9724000096 | BA160: 0.638899982 | BB160: 0.04610000178 | BC160: 0.04179999977 | BU160: 0.5619999766 | BV160: 0.287800014 | BW160: 0.5338000059 | BX160: 0.2126999944 | BY160: 0.8626999855 | BZ160: 0.04019999877 | CA160: 0.5629000068 | CB160: 0.5164999962 | CC160: 0.02889999934 | CD160: 0.559400022 | CE160: 156 | CF160: 74.005 | CG160: 156 | CH160: 0.6464293853 | CI160: 0.3535706147 | CJ160: 0.6224926433 | CK160: -283.1078971 | CL160: 0.3102251106 | CM160: 0.202000007 | CN160: 0.2594999969 | CO160: 0.06849999726 | CP160: 0.8841000199 | CQ160: 0.1469999999 | CR160: 0.9168000221 | CS160: 0.8693000078 | CT160: 0.4135999978 | CU160: 0.01279999968 | CV160: 0.206400007
V161: 157 | W161: 74.006 | X161: 0 | Y161: 0 | AH161: E44 | AI161: =IF($B$44="","",$B$44) -> 74.012 | AL161: =IF($C$36="","",$C$36) -> 74.006 | AM161: 0.58950001 | AN161: 0.7357000113 | AO161: 0.8486999869 | AP161: 0.5428000093 | AQ161: 0.2985000014 | AR161: 0.7045000196 | AS161: 0.9042000175 | AT161: 0.7396000028 | AU161: 0.8675000072 | AV161: 0.769200027 | AW161: 0.6449000239 | AX161: 0.9631999731 | AY161: 0.1101000011 | AZ161: 0.551699996 | BA161: 0.01750000007 | BB161: 0.9355999827 | BC161: 0.1726000011 | BU161: 0.1683000028 | BV161: 0.2890000045 | BW161: 0.9447000027 | BX161: 0.1116999984 | BY161: 0.6456999779 | BZ161: 0.6266999841 | CA161: 0.8723000288 | CB161: 0.7570000291 | CC161: 0.6758000255 | CD161: 0.888199985 | CE161: 157 | CF161: 74.005 | CG161: 157 | CH161: 0.6464293853 | CI161: 0.3535706147 | CJ161: 0.6224926433 | CK161: -284.9285267 | CL161: 0.3207464336 | CM161: 0.282400012 | CN161: 0.1928000003 | CO161: 0.6194999814 | CP161: 0.5532000065 | CQ161: 0.04830000177 | CR161: 0.8622999787 | CS161: 0.9599000216 | CT161: 0.7354000211 | CU161: 0.1415999979 | CV161: 0.912800014
V162: 158 | W162: 73.994 | X162: 0 | Y162: 0 | AI162: =IF($C$44="","",$C$44) -> 74.014 | AL162: =IF($D$36="","",$D$36) -> 73.994 | AM162: 0.06759999692 | AN162: 0.8852999806 | AO162: 0.5232999921 | AP162: 0.5236999989 | AQ162: 0.2166000009 | AR162: 0.7433000207 | AS162: 0.2842999995 | AT162: 0.4848999977 | AU162: 0.8496999741 | AV162: 0.543299973 | AW162: 0.03610000014 | AX162: 0.02480000071 | AY162: 0.09459999949 | AZ162: 0.4650999904 | BA162: 0.5511000156 | BB162: 0.888199985 | BC162: 0.5289000273 | BU162: 0.1108999997 | BV162: 0.6377999783 | BW162: 0.2433999926 | BX162: 0.5554000139 | BY162: 0.1704999954 | BZ162: 0.8597999811 | CA162: 0.6255000234 | CB162: 0.5148000121 | CC162: 0.2250999957 | CD162: 0.1472000033 | CE162: 158 | CF162: 74.005 | CG162: 158 | CH162: 0.6464293853 | CI162: 0.3535706147 | CJ162: 0.6224926433 | CK162: -286.7491562 | CL162: 0.331303384 | CM162: 0.6589000225 | CN162: 0.9774000049 | CO162: 0.398999989 | CP162: 0.1904000044 | CQ162: 0.08529999852 | CR162: 0.2804999948 | CS162: 0.9927999973 | CT162: 0.1492999941 | CU162: 0.2372999936 | CV162: 0.9887999892
V163: 159 | W163: 74 | X163: 0 | Y163: 0 | AI163: =IF($D$44="","",$D$44) -> 73.998 | AL163: =IF($E$36="","",$E$36) -> 74 | AM163: 0.625 | AN163: 0.2316000015 | AO163: 0.3039000034 | AP163: 0.0978000015 | AQ163: 0.6215999722 | AR163: 0.5213000178 | AS163: 0.8461999893 | AT163: 0.4866000116 | AU163: 0.6575999856 | AV163: 0.05620000139 | AW163: 0.5630999804 | AX163: 0.6213999987 | AY163: 0.6470000148 | AZ163: 0.1563999951 | BA163: 0.3066000044 | BB163: 0.5083000064 | BC163: 0.8840000033 | BU163: 0.4487000108 | BV163: 0.837199986 | BW163: 0.8816999793 | BX163: 0.3052999973 | BY163: 0.800999999 | BZ163: 0.7024000287 | CA163: 0.7699000239 | CB163: 0.4397999942 | CC163: 0.2502000034 | CD163: 0.04639999941 | CE163: 159 | CF163: 74.005 | CG163: 159 | CH163: 0.6464293853 | CI163: 0.3535706147 | CJ163: 0.6224926433 | CK163: -288.5697858 | CL163: 0.3418973885 | CM163: 0.912899971 | CN163: 0.7358000278 | CO163: 0.4375 | CP163: 0.5083000064 | CQ163: 0.706099987 | CR163: 0.06920000166 | CS163: 0.5479000211 | CT163: 0.09520000219 | CU163: 0.4408000112 | CV163: 0.6291999817
V164: 160 | W164: 74.005 | X164: 0 | Y164: 0 | AI164: =IF($E$44="","",$E$44) -> 73.999 | AL164: =IF($F$36="","",$F$36) -> 74.005 | AM164: 0.8262000084 | AN164: 0.6355999708 | AO164: 0.9440000057 | AP164: 0.9966999888 | AQ164: 0.3422999978 | AR164: 0.4821999967 | AS164: 0.4697999954 | AT164: 0.4722000062 | AU164: 0.00680000009 | AV164: 0.4654999971 | AW164: 0.8396000266 | AX164: 0.6542000175 | AY164: 0.8368999958 | AZ164: 0.09650000185 | BA164: 0.8325999975 | BB164: 0.2671999931 | BC164: 0.4717999995 | BU164: 0.203700006 | BV164: 0.8133000135 | BW164: 0.1054000035 | BX164: 0.554099977 | BY164: 0.1701000035 | BZ164: 0.6233000159 | CA164: 0.7976999879 | CB164: 0.3603999913 | CC164: 0.3519999981 | CD164: 0.5250999928 | CE164: 160 | CF164: 74.005 | CG164: 160 | CH164: 0.6464293853 | CI164: 0.3535706147 | CJ164: 0.6224926433 | CK164: -290.3904154 | CL164: 0.3525299058 | CM164: 0.9997000098 | CN164: 0.2816999853 | CO164: 0.2552999854 | CP164: 0.06340000033 | CQ164: 0.8899999857 | CR164: 0.3456999958 | CS164: 0.1097000018 | CT164: 0.6119999886 | CU164: 0.1592999995 | CV164: 0.04179999977
V165: 161 | W165: 73.985 | X165: 0 | Y165: 0 | AH165: E45 | AI165: =IF($B$45="","",$B$45) -> 74 | AK165: E37 | AL165: =IF($B$37="","",$B$37) -> 73.985 | AM165: 0.7587000132 | AN165: 0.7020999789 | AO165: 0.0270000007 | AP165: 0.2748000026 | AQ165: 0.8012999892 | AR165: 0.6000000238 | AS165: 0.5063999891 | AT165: 0.5673000216 | AU165: 0.9815999866 | AV165: 0.1356000006 | AW165: 0.9203000069 | AX165: 0.5134999752 | AY165: 0.8299000263 | AZ165: 0.7804999948 | BA165: 0.6665999889 | BB165: 0.4817000031 | BC165: 0.5533000231 | BU165: 0.5483000278 | BV165: 0.8536999822 | BW165: 0.6369000077 | BX165: 0.3765000105 | BY165: 0.3273999989 | BZ165: 0.6532999873 | CA165: 0.07710000128 | CB165: 0.7886000276 | CC165: 0.1430000067 | CD165: 0.3003999889 | CE165: 161 | CF165: 74.005 | CG165: 161 | CH165: 0.6464293853 | CI165: =IF(W165="","",1-CH165) -> 0.3535706147 | CJ165: 0.6592002411 | CK165: =IF(W165="","",(2*CG165-1)*(LN(CJ165)+LN(CH165))) -> -273.8191785 | CL165: 0.3632024279 | CM165: 0.1036999971 | CN165: 0.05460000038 | CO165: 0.5572000146 | CP165: 0.671299994 | CQ165: 0.4004999995 | CR165: 0.1859000027 | CS165: 0.3479000032 | CT165: 0.9947999716 | CU165: 0.5935000181 | CV165: 0.3671000004
V166: 162 | W166: 74.003 | X166: 0 | Y166: 0 | AI166: =IF($C$45="","",$C$45) -> 73.984 | AL166: =IF($C$37="","",$C$37) -> 74.003 | AM166: 0.7743999958 | AN166: 0.05530000106 | AO166: 0.6416000128 | AP166: 0.7833999991 | AQ166: 0.09319999814 | AR166: 0.6460999846 | AS166: 0.477699995 | AT166: 0.6992999911 | AU166: 0.323300004 | AV166: 0.2725000083 | AW166: 0.8985999823 | AX166: 0.7864999771 | AY166: 0.2621000111 | AZ166: 0.1046999991 | BA166: 0.706099987 | BB166: 0.7020000219 | BC166: 0.7511000037 | BU166: 0.1676999927 | BV166: 0.01970000006 | BW166: 0.9408000112 | BX166: 0.4334999919 | BY166: 0.1254999936 | BZ166: 0.7267000079 | CA166: 0.3289999962 | CB166: 0.9918000102 | CC166: 0.5318999887 | CD166: 0.5135999918 | CE166: 162 | CF166: 74.005 | CG166: =IF(W166="","",1+CG165) -> 162 | CH166: 0.6464293853 | CI166: 0.3535706147 | CJ166: 0.6592002411 | CK166: -275.525217 | CL166: 0.3739164819 | CM166: 0.1999000013 | CN166: 0.9340999722 | CO166: 0.290199995 | CP166: 0.7329000235 | CQ166: 0.3088999987 | CR166: 0.5565000176 | CS166: 0.8245000243 | CT166: 0.1754000038 | CU166: 0.09600000083 | CV166: 0.1017000005
V167: 163 | W167: 73.993 | X167: 0 | Y167: 0 | AI167: =IF($D$45="","",$D$45) -> 74.005 | AL167: =IF($D$37="","",$D$37) -> 73.993 | AM167: 0.7196000218 | AN167: 0.1483999938 | AO167: 0.4514000118 | AP167: 0.4614000022 | AQ167: 0.6123999953 | AR167: 0.8043000102 | AS167: 0.7311999798 | AT167: 0.1300999969 | AU167: 0.3319999874 | AV167: 0.7178999782 | AW167: 0.02280000038 | AX167: 0.4079999924 | AY167: 0.2906000018 | AZ167: 0.7153000236 | BA167: 0.6607000232 | BB167: 0.8539000154 | BC167: 0.1240999997 | BU167: 0.5174999833 | BV167: 0.8743000031 | BW167: 0.5394999981 | BX167: 0.5249999762 | BY167: 0.06329999864 | BZ167: 0.6513000131 | CA167: 0.2158000022 | CB167: 0.7246999741 | CC167: 0.02769999951 | CD167: 0.3170999885 | CE167: 163 | CF167: 74.005 | CG167: 163 | CH167: 0.6464293853 | CI167: 0.3535706147 | CJ167: 0.6592002411 | CK167: -277.2312555 | CL167: 0.3846736321 | CM167: 0.7918000221 | CN167: 0.5264000297 | CO167: 0.2840999961 | CP167: 0.8136000037 | CQ167: 0.7547000051 | CR167: 0.5303000212 | CS167: 0.8439999819 | CT167: 0.6693000197 | CU167: 0.8313999772 | CV167: 0.6190000176
V168: 164 | W168: 74.015 | X168: 0 | Y168: 0 | AI168: =IF($E$45="","",$E$45) -> 73.998 | AL168: =IF($E$37="","",$E$37) -> 74.015 | AM168: 0.871900022 | AN168: 0.9528999925 | AO168: 0.1280999929 | AP168: 0.5356000066 | AQ168: 0.9514999986 | AR168: 0.4763000011 | AS168: 0.5220000148 | AT168: 0.711499989 | AU168: 0.6007000208 | AV168: 0.2476000041 | AW168: 0.3012999892 | AX168: 0.3447999954 | AY168: 0.03799999878 | AZ168: 0.1743000001 | BA168: 0.05570000038 | BB168: 0.7282999754 | BC168: 0.1975000054 | BU168: 0.9444000125 | BV168: 0.6200000048 | BW168: 0.09880000353 | BX168: 0.8331000209 | BY168: 0.05530000106 | BZ168: 0.3012999892 | CA168: 0.2630999982 | CB168: 0.9654999971 | CC168: 0.03240000084 | CD168: 0.4970999956 | CE168: 164 | CF168: 74.005 | CG168: 164 | CH168: 0.6464293853 | CI168: 0.3535706147 | CJ168: 0.6592002411 | CK168: -278.9372939 | CL168: 0.3954754817 | CM168: 0.5440999866 | CN168: 0.7674000263 | CO168: 0.9422000051 | CP168: 0.07050000131 | CQ168: 0.1649000049 | CR168: 0.1317999959 | CS168: 0.4187000096 | CT168: 0.1825000048 | CU168: 0.4551999867 | CV168: 0.6322000027
V169: 165 | W169: 73.988 | X169: 0 | Y169: 0 | AH169: E46 | AI169: =IF($B$46="","",$B$46) -> 73.994 | AL169: =IF($F$37="","",$F$37) -> 73.988 | AM169: 0.05350000039 | AN169: 0.1199000031 | AO169: 0.3666999936 | AP169: 0.9758999944 | AQ169: 0.03730000183 | AR169: 0.3738999963 | AS169: 0.2389999926 | AT169: 0.7071999907 | AU169: 0.04980000108 | AV169: 0.967599988 | AW169: 0.8144999743 | AX169: 0.1603000015 | AY169: 0.4005999863 | AZ169: 0.03460000083 | BA169: 0.5052000284 | BB169: 0.662800014 | BC169: 0.4198000133 | BU169: 0.8884000182 | BV169: 0.9909999967 | BW169: 0.2518000007 | BX169: 0.951300025 | BY169: 0.8445000052 | BZ169: 0.8768000007 | CA169: 0.581799984 | CB169: 0.2486999929 | CC169: 0.3404000103 | CD169: 0.475300014 | CE169: 165 | CF169: 74.005 | CG169: 165 | CH169: 0.6464293853 | CI169: 0.3535706147 | CJ169: 0.6592002411 | CK169: -280.6433324 | CL169: 0.4063236747 | CM169: 0.7778999805 | CN169: 0.9358999729 | CO169: 0.7019000053 | CP169: 0.3716000021 | CQ169: 0.3968999982 | CR169: 0.4052999914 | CS169: 0.5641999841 | CT169: 0.222299993 | CU169: 0.7814999819 | CV169: 0.6911000013
V170: 166 | W170: 74.008 | X170: 0 | Y170: 0 | AI170: =IF($C$46="","",$C$46) -> 74.012 | AK170: E38 | AL170: =IF($B$38="","",$B$38) -> 74.008 | AM170: 0.6380000114 | AN170: 0.4584000111 | AO170: 0.9514999986 | AP170: 0.7968000174 | AQ170: 0.7243999839 | AR170: 0.2382999957 | AS170: 0.7436000109 | AT170: 0.273999989 | AU170: 0.9812999964 | AV170: 0.6514000297 | AW170: 0.2029999942 | AX170: 0.05040000007 | AY170: 0.4386000037 | AZ170: 0.1703999937 | BA170: 0.2232999951 | BB170: 0.5074999928 | BC170: 0.763800025 | BU170: 0.6366000175 | BV170: 0.4932999909 | BW170: 0.3790999949 | BX170: 0.04199999943 | BY170: 0.02999999933 | BZ170: 0.3231000006 | CA170: 0.1094999984 | CB170: 0.4406000078 | CC170: 0.3138000071 | CD170: 0.2825999856 | CE170: 166 | CF170: 74.005 | CG170: 166 | CH170: 0.6464293853 | CI170: 0.3535706147 | CJ170: 0.6592002411 | CK170: -282.3493709 | CL170: 0.4172198985 | CM170: 0.04870000109 | CN170: 0.4203999937 | CO170: 0.233099997 | CP170: 0.1987999976 | CQ170: 0.5279999971 | CR170: 0.5490000248 | CS170: 0.3973999918 | CT170: 0.3057000041 | CU170: 0.6575000286 | CV170: 0.05909999833
V171: 167 | W171: 73.995 | X171: 0 | Y171: 0 | AI171: =IF($D$46="","",$D$46) -> 73.986 | AL171: =IF($C$38="","",$C$38) -> 73.995 | AM171: 0.4210000038 | AN171: 0.8230999708 | AO171: 0.5910999775 | AP171: 0.05160000175 | AQ171: 0.3136999905 | AR171: 0.7838000059 | AS171: 0.04210000113 | AT171: 0.9488000274 | AU171: 0.1215000004 | AV171: 0.1125999987 | AW171: 0.04930000007 | AX171: 0.1970999986 | AY171: 0.8170999885 | AZ171: 0.953700006 | BA171: 0.9919999838 | BB171: 0.2207999974 | BC171: 0.4406999946 | BU171: 0.3461000025 | BV171: 0.8353999853 | BW171: 0.8159000278 | BX171: 0.7166000009 | BY171: 0.9254999757 | BZ171: 0.2538000047 | CA171: 0.3411999941 | CB171: 0.04930000007 | CC171: 0.4519999921 | CD171: 0.3501000106 | CE171: 167 | CF171: 74.006 | CG171: 167 | CH171: 0.6822306934 | CI171: 0.3177693066 | CJ171: 0.6944587563 | CK171: -248.7543043 | CL171: 0.4281658855 | CM171: 0.274300009 | CN171: 0.8342999816 | CO171: 0.5943999887 | CP171: 0.6812000275 | CQ171: 0.2567999959 | CR171: 0.2090999931 | CS171: 0.752399981 | CT171: 0.6097000241 | CU171: 0.5134999752 | CV171: 0.5622000098
V172: 168 | W172: 74.009 | X172: 0 | Y172: 0 | AI172: =IF($E$46="","",$E$46) -> 74.005 | AL172: =IF($D$38="","",$D$38) -> 74.009 | AM172: 0.5731999874 | AN172: 0.7570000291 | AO172: 0.4927000105 | AP172: 0.611199975 | AQ172: 0.7164000273 | AR172: 0.7064999938 | AS172: 0.7569000125 | AT172: 0.7308999896 | AU172: 0.8701000214 | AV172: 0.9563999772 | AW172: 0.1235999987 | AX172: 0.5315999985 | AY172: 0.01640000008 | AZ172: 0.123300001 | BA172: 0.05570000038 | BB172: 0.6866999865 | BC172: 0.9466999769 | BU172: 0.3050999939 | BV172: 0.6449999809 | BW172: 0.2029999942 | BX172: 0.4828000069 | BY172: 0.7188000083 | BZ172: 0.9721999764 | CA172: 0.7653999925 | CB172: 0.413199991 | CC172: 0.3253999949 | CD172: 0.2093999982 | CE172: 168 | CF172: 74.006 | CG172: 168 | CH172: 0.6822306934 | CI172: 0.3177693066 | CJ172: 0.6944587563 | CK172: -250.2483242 | CL172: 0.4391634164 | CM172: 0.1332000047 | CN172: 0.3215999901 | CO172: 0.8143000007 | CP172: 0.3504000008 | CQ172: 0.1371999979 | CR172: 0.2786999941 | CS172: 0.2861000001 | CT172: 0.1557999998 | CU172: 0.3082000017 | CV172: 0.2544000149
V173: 169 | W173: 74.005 | X173: 0 | Y173: 0 | AH173: E47 | AI173: =IF($B$47="","",$B$47) -> 74.006 | AL173: =IF($E$38="","",$E$38) -> 74.005 | AM173: 0.1432999969 | AN173: 0.4808999896 | AO173: 0.8927000165 | AP173: 0.07140000165 | AQ173: 0.2307000011 | AR173: 0.8537999988 | AS173: 0.118900001 | AT173: 0.6079000235 | AU173: 0.2259999961 | AV173: 0.3037 | AW173: 0.7118999958 | AX173: 0.2509000003 | AY173: 0.2806999981 | AZ173: 0.4386999905 | BA173: 0.6596999764 | BB173: 0.5993000269 | BC173: 0.9103999734 | BU173: 0.6510999799 | BV173: 0.8137999773 | BW173: 0.9509000182 | BX173: 0.8514000177 | BY173: 0.6516000032 | BZ173: 0.4334999919 | CA173: 0.4776000082 | CB173: 0.3632999957 | CC173: 0.08980000019 | CD173: 0.4474000037 | CE173: 169 | CF173: 74.006 | CG173: 169 | CH173: 0.6822306934 | CI173: 0.3177693066 | CJ173: 0.6944587563 | CK173: -251.742344 | CL173: 0.4502143217 | CM173: 0.7009000182 | CN173: 0.1486999989 | CO173: 0.6175000072 | CP173: 0.4620999992 | CQ173: 0.1130999997 | CR173: 0.7935000062 | CS173: 0.2899999917 | CT173: 0.8744999766 | CU173: 0.8360999823 | CV173: 0.9936000109
V174: 170 | W174: 74.004 | X174: 0 | Y174: 0 | AI174: =IF($C$47="","",$C$47) -> 74.01 | AL174: =IF($F$38="","",$F$38) -> 74.004 | AM174: 0.8314999938 | AN174: 0.07450000197 | AO174: 0.01279999968 | AP174: 0.3837000132 | AQ174: 0.1507000029 | AR174: 0.8982999921 | AS174: 0.4469000101 | AT174: 0.6148999929 | AU174: 0.1067000031 | AV174: 0.3316000104 | AW174: 0.493900001 | AX174: 0.6832000017 | AY174: 0.523999989 | AZ174: 0.4625999928 | BA174: 0.201700002 | BB174: 0.5073999763 | BC174: 0.4589999914 | BU174: 0.01530000009 | BV174: 0.06570000201 | BW174: 0.0362999998 | BX174: 0.4467000067 | BY174: 0.1862999946 | BZ174: 0.2423000038 | CA174: 0.6873999834 | CB174: 0.2005999982 | CC174: 0.05279999971 | CD174: 0.508400023 | CE174: 170 | CF174: 74.006 | CG174: 170 | CH174: 0.6822306934 | CI174: 0.3177693066 | CJ174: 0.6944587563 | CK174: -253.2363639 | CL174: 0.461320485 | CM174: 0.5426999927 | CN174: 0.9241999984 | CO174: 0.264200002 | CP174: 0.9781000018 | CQ174: 0.07230000198 | CR174: 0.7691000104 | CS174: 0.6779000163 | CT174: 0.1413999945 | CU174: 0.6187000275 | CV174: 0.2707999945
V175: 171 | W175: 73.998 | X175: 0 | Y175: 0 | AI175: =IF($D$47="","",$D$47) -> 74.018 | AK175: E39 | AL175: =IF($B$39="","",$B$39) -> 73.998 | AM175: 9.999999747e-05 | AN175: 0.9424999952 | AO175: 0.1618999988 | AP175: 0.05169999972 | AQ175: 0.6761999726 | AR175: 0.1077999994 | AS175: 0.3352000117 | AT175: 0.7742000222 | AU175: 0.03150000051 | AV175: 0.7239999771 | AW175: 0.6909000278 | AX175: 0.3438999951 | AY175: 0.6615999937 | AZ175: 0.06629999727 | BA175: 0.2160000056 | BB175: 0.3625999987 | BC175: 0.07349999994 | BU175: 0.8108999729 | BV175: 0.5910000205 | BW175: 0.5993000269 | BX175: 0.7156000137 | BY175: 0.381099999 | BZ175: 0.02910000086 | CA175: 0.08900000155 | CB175: 0.08470000327 | CC175: 0.009200000204 | CD175: 0.1879000068 | CE175: 171 | CF175: 74.006 | CG175: 171 | CH175: 0.6822306934 | CI175: 0.3177693066 | CJ175: 0.6944587563 | CK175: -254.7303837 | CL175: 0.4724838457 | CM175: 0.7329000235 | CN175: 0.04179999977 | CO175: 0.7211999893 | CP175: 0.5521000028 | CQ175: 0.3896000087 | CR175: 0.07389999926 | CS175: 0.8682000041 | CT175: 0.6308000088 | CU175: 0.8442000151 | CV175: 0.8880000114
V176: 172 | W176: 74 | X176: 0 | Y176: 0 | AI176: =IF($E$47="","",$E$47) -> 74.003 | AL176: =IF($C$39="","",$C$39) -> 74 | AM176: 0.1421999931 | AN176: 0.9106000066 | AO176: 0.9495000243 | AP176: 0.9886000156 | AQ176: 0.8416000009 | AR176: 0.0588000007 | AS176: 0.01579999924 | AT176: 0.5065000057 | AU176: 0.3867999911 | AV176: 0.3765000105 | AW176: 0.4526000023 | AX176: 0.2763999999 | AY176: 0.08609999716 | AZ176: 0.5016999841 | BA176: 0.6583999991 | BB176: 0.1653999984 | BC176: 0.1508000046 | BU176: 0.134800002 | BV176: 0.8409000039 | BW176: 0.06010000035 | BX176: 0.07710000128 | BY176: 0.9395999908 | BZ176: 0.7997000217 | CA176: 0.3138000071 | CB176: 0.1757999957 | CC176: 0.3145000041 | CD176: 0.9114999771 | CE176: 172 | CF176: 74.006 | CG176: 172 | CH176: 0.6822306934 | CI176: 0.3177693066 | CJ176: 0.6944587563 | CK176: -256.2244036 | CL176: 0.4837064018 | CM176: 0.5188000202 | CN176: 0.1898999959 | CO176: 0.6345999837 | CP176: 0.113499999 | CQ176: 0.6757000089 | CR176: 0.6802999973 | CS176: 0.5299000144 | CT176: 0.5784000158 | CU176: 0.07900000364 | CV176: 0.326000005
V177: 173 | W177: 73.99 | X177: 0 | Y177: 0 | AH177: E48 | AI177: =IF($B$48="","",$B$48) -> 73.984 | AL177: =IF($D$39="","",$D$39) -> 73.99 | AM177: 0.2757000029 | AN177: 0.5424000025 | AO177: 0.8328999877 | AP177: 0.3772999942 | AQ177: 0.4336999953 | AR177: 0.383100003 | AS177: 0.6164000034 | AT177: 0.3589000106 | AU177: 0.7421000004 | AV177: 0.9481999874 | AW177: 0.6998000145 | AX177: 0.02300000004 | AY177: 0.2567999959 | AZ177: 0.1328999996 | BA177: 0.2096000016 | BB177: 0.5526000261 | BC177: 0.74150002 | BU177: 0.5019000173 | BV177: 0.8253999949 | BW177: 0.7240999937 | BX177: 0.6074000001 | BY177: 0.6564000249 | BZ177: 0.1001999974 | CA177: 0.9340999722 | CB177: 0.1242000014 | CC177: 0.9160000086 | CD177: 0.1420000046 | CE177: 173 | CF177: 74.006 | CG177: 173 | CH177: 0.6822306934 | CI177: 0.3177693066 | CJ177: 0.6944587563 | CK177: -257.7184234 | CL177: 0.4949902134 | CM177: 0.5968999863 | CN177: 0.02080000006 | CO177: 0.8212000132 | CP177: 0.8917000294 | CQ177: 0.2028000057 | CR177: 0.888899982 | CS177: 0.4095999897 | CT177: 0.798600018 | CU177: 0.7157999873 | CV177: 0.8991000056
V178: 174 | W178: 74.007 | X178: 0 | Y178: 0 | AI178: =IF($C$48="","",$C$48) -> 74.002 | AL178: =IF($E$39="","",$E$39) -> 74.007 | AM178: 0.9815999866 | AN178: 0.5242000222 | AO178: 0.4638999999 | AP178: 0.1295000017 | AQ178: 0.1159000024 | AR178: 0.8949999809 | AS178: 0.280400008 | AT178: 0.1432999969 | AU178: 0.9350000024 | AV178: 0.1057000011 | AW178: 0.8937000036 | AX178: 0.8173000216 | AY178: 0.6212999821 | AZ178: 0.1721999943 | BA178: 0.568599999 | BB178: 0.4199000001 | BC178: 0.1819999963 | BU178: 0.8794000149 | BV178: 0.5099999905 | BW178: 0.09359999746 | BX178: 0.6043000221 | BY178: 0.2248000056 | BZ178: 0.09309999645 | CA178: 0.7360000014 | CB178: 0.7518000007 | CC178: 0.8090000153 | CD178: 0.510800004 | CE178: 174 | CF178: 74.006 | CG178: 174 | CH178: 0.6822306934 | CI178: 0.3177693066 | CJ178: 0.6944587563 | CK178: -259.2124433 | CL178: 0.5063374054 | CM178: 0.2223999947 | CN178: 0.3239000142 | CO178: 0.2481999993 | CP178: 0.9767000079 | CQ178: 0.7245000005 | CR178: 0.3688000143 | CS178: 0.7103999853 | CT178: 0.04919999838 | CU178: 0.3794000149 | CV178: 0.03709999844
V179: 175 | W179: 73.995 | X179: 0 | Y179: 0 | AI179: =IF($D$48="","",$D$48) -> 74.003 | AL179: =IF($F$39="","",$F$39) -> 73.995 | AM179: 0.05620000139 | AN179: 0.2094999999 | AO179: 0.5558000207 | AP179: 0.7853999734 | AQ179: 0.2287999988 | AR179: 0.689899981 | AS179: 0.369599998 | AT179: 0.8284999728 | AU179: 0.8952999711 | AV179: 0.5518000126 | AW179: 0.4492999911 | AX179: 0.8438000083 | AY179: 0.337199986 | AZ179: 0.01370000001 | BA179: 0.9514999986 | BB179: 0.9232000113 | BC179: 0.5903999805 | BU179: 0.7414000034 | BV179: 0.1525000036 | BW179: 0.3558999896 | BX179: 0.6230999827 | BY179: 0.6269000173 | BZ179: 0.8869000077 | CA179: 0.2301000059 | CB179: 0.01820000075 | CC179: 0.638100028 | CD179: 0.5137000084 | CE179: 175 | CF179: 74.007 | CG179: 175 | CH179: 0.7164044469 | CI179: 0.2835955531 | CJ179: 0.7280003265 | CK179: -227.1865002 | CL179: 0.5177501719 | CM179: 0.6183999777 | CN179: 0.2969999909 | CO179: 0.7207999825 | CP179: 0.7578999996 | CQ179: 0.6583999991 | CR179: 0.1088000014 | CS179: 0.7398999929 | CT179: 0.5875999928 | CU179: 0.75849998 | CV179: 0.2910999954
V180: 176 | W180: 73.994 | X180: 0 | Y180: 0 | AI180: =IF($E$48="","",$E$48) -> 74.005 | AK180: E40 | AL180: =IF($B$40="","",$B$40) -> 73.994 | AM180: 0.9947000146 | AN180: 0.6671000123 | AO180: 0.2381000072 | AP180: 0.9484999776 | AQ180: 0.9848999977 | AR180: 0.06019999832 | AS180: 0.2181999981 | AT180: 0.7797999978 | AU180: 0.4257000089 | AV180: 0.1832000017 | AW180: 0.7624999881 | AX180: 0.6570000052 | AY180: 0.5141000152 | AZ180: 0.00810000021 | BA180: 0.2673999965 | BB180: 0.4528999925 | BC180: 0.4438999891 | BU180: 0.110799998 | BV180: 0.675999999 | BW180: 0.7652999759 | BX180: 0.8300999999 | BY180: 0.5745000243 | BZ180: 0.7128999829 | CA180: 0.6207000017 | CB180: 0.6159999967 | CC180: 0.4113999903 | CD180: 0.8683999777 | CE180: 176 | CF180: 74.007 | CG180: 176 | CH180: 0.7164044469 | CI180: 0.2835955531 | CJ180: 0.7280003265 | CK180: -228.4884285 | CL180: 0.5292307793 | CM180: 0.4052000046 | CN180: 0.7585999966 | CO180: 0.744599998 | CP180: 0.8357999921 | CQ180: 0.8521000147 | CR180: 0.6215000153 | CS180: 0.7958999872 | CT180: 0.01219999976 | CU180: 0.581799984 | CV180: 0.905099988
V181: 177 | W181: 73.998 | X181: 0 | Y181: 0 | AH181: E49 | AI181: =IF($B$49="","",$B$49) -> 74 | AL181: =IF($C$40="","",$C$40) -> 73.998 | AM181: 0.7763000131 | AN181: 0.8271999955 | AO181: 0.1185000017 | AP181: 0.6000999808 | AQ181: 0.02659999952 | AR181: 0.3206999898 | AS181: 0.1550000012 | AT181: 0.1899999976 | AU181: 0.4081999958 | AV181: 0.9708999991 | AW181: 0.06880000234 | AX181: 0.1050999984 | AY181: 0.9437999725 | AZ181: 0.7728000283 | BA181: 0.6876999736 | BB181: 0.4244999886 | BC181: 0.7074000239 | BU181: 0.809400022 | BV181: 0.4199000001 | BW181: 0.8892999887 | BX181: 0.7657999992 | BY181: 0.7197999954 | BZ181: 0.7943999767 | CA181: 0.6988000274 | CB181: 0.7886999846 | CC181: 0.5471000075 | CD181: 0.8751999736 | CE181: 177 | CF181: 74.007 | CG181: 177 | CH181: 0.7164044469 | CI181: 0.2835955531 | CJ181: 0.7280003265 | CK181: -229.7903569 | CL181: 0.5407815706 | CM181: 0.01820000075 | CN181: 0.3953000009 | CO181: 0.283100009 | CP181: 0.2495999932 | CQ181: 0.3982000053 | CR181: 0.9958000183 | CS181: 0.5102999806 | CT181: 0.7322999835 | CU181: 0.7070999742 | CV181: 0.04789999872
V182: 178 | W182: 73.994 | X182: 0 | Y182: 0 | AI182: =IF($C$49="","",$C$49) -> 74.01 | AL182: =IF($D$40="","",$D$40) -> 73.994 | AM182: 0.6676999927 | AN182: 0.5687999725 | AO182: 0.5210999846 | AP182: 0.8853999972 | AQ182: 0.5665000081 | AR182: 0.8883000016 | AS182: 0.7649999857 | AT182: 0.7961999774 | AU182: 0.1554999948 | AV182: 0.4068000019 | AW182: 0.6031000018 | AX182: 0.3506000042 | AY182: 0.5367000103 | AZ182: 0.3806999922 | BA182: 0.5792999864 | BB182: 0.9787999988 | BC182: 0.2311999947 | BU182: 0.3828000128 | BV182: 0.8646000028 | BW182: 0.9352999926 | BX182: 0.861899972 | BY182: 0.6039999723 | BZ182: 0.0001999999949 | CA182: 0.3815999925 | CB182: 0.2146999985 | CC182: 0.7204999924 | CD182: 0.3752999902 | CE182: 178 | CF182: 74.007 | CG182: 178 | CH182: 0.7164044469 | CI182: 0.2835955531 | CJ182: 0.7280003265 | CK182: -231.0922853 | CL182: 0.5524049696 | CM182: 0.3316000104 | CN182: 0.388500005 | CO182: 0.3779999912 | CP182: 0.1159000024 | CQ182: 0.2203000039 | CR182: 0.6405000091 | CS182: 0.1176000014 | CT182: 0.6613000035 | CU182: 0.5425999761 | CV182: 0.04899999872
V183: 179 | W183: 73.995 | X183: 0 | Y183: 0 | AI183: =IF($D$49="","",$D$49) -> 74.013 | AL183: =IF($E$40="","",$E$40) -> 73.995 | AM183: 0.01630000025 | AN183: 0.8421999812 | AO183: 0.6182000041 | AP183: 0.2169000059 | AQ183: 0.5782999992 | AR183: 0.2092999965 | AS183: 0.6079000235 | AT183: 0.2246000022 | AU183: 0.8748000264 | AV183: 0.611100018 | AW183: 0.7788000107 | AX183: 0.8331000209 | AY183: 0.935199976 | AZ183: 0.02190000005 | BA183: 0.02019999921 | BB183: 0.9373000264 | BC183: 0.3874999881 | BU183: 0.4203999937 | BV183: 0.1715999991 | BW183: 0.6301000118 | BX183: 0.3057000041 | BY183: 0.5627999902 | BZ183: 0.627300024 | CA183: 0.8637999892 | CB183: 0.05220000073 | CC183: 0.2308000028 | CD183: 0.1511999965 | CE183: 179 | CF183: 74.007 | CG183: 179 | CH183: 0.7164044469 | CI183: 0.2835955531 | CJ183: 0.7280003265 | CK183: -232.3942136 | CL183: 0.5641034856 | CM183: 0.9595000148 | CN183: 0.01339999959 | CO183: 0.8524000049 | CP183: 0.02080000006 | CQ183: 0.3968000114 | CR183: 0.8130000234 | CS183: 0.3688000143 | CT183: 0.9757000208 | CU183: 0.269600004 | CV183: 0.2321999967
V184: 180 | W184: 73.99 | X184: 0 | Y184: 0 | AI184: =IF($E$49="","",$E$49) -> 74.02 | AL184: =IF($F$40="","",$F$40) -> 73.99 | AM184: 0.2493000031 | AN184: 0.170599997 | AO184: 0.4264000058 | AP184: 0.7872999907 | AQ184: 0.7570000291 | AR184: 0.3781000078 | AS184: 0.8615000248 | AT184: 0.5583000183 | AU184: 0.4648000002 | AV184: 0.4424999952 | AW184: 0.3553000093 | AX184: 0.2666000128 | AY184: 0.02070000023 | AZ184: 0.9819999933 | BA184: 0.3648000062 | BB184: 0.6035000086 | BC184: 0.1634999961 | BU184: 0.238499999 | BV184: 0.6341000199 | BW184: 0.3670000136 | BX184: 0.09700000286 | BY184: 0.05860000104 | BZ184: 0.9065999985 | CA184: 0.6015999913 | CB184: 0.4873000085 | CC184: 0.855700016 | CD184: 0.8610000014 | CE184: 180 | CF184: 74.007 | CG184: 180 | CH184: 0.7164044469 | CI184: 0.2835955531 | CJ184: 0.7280003265 | CK184: -233.696142 | CL184: 0.5758797178 | CM184: 0.9502999783 | CN184: 0.05440000072 | CO184: 0.5637000203 | CP184: 0.7590000033 | CQ184: 0.4411999881 | CR184: 0.2773000002 | CS184: 0.05840000138 | CT184: 0.03489999846 | CU184: 0.5835999846 | CV184: 0.1904000044
V185: 181 | W185: 74.004 | X185: 0 | Y185: 0 | AH185: E50 | AI185: =IF($B$50="","",$B$50) -> 73.982 | AK185: E41 | AL185: =IF($B$41="","",$B$41) -> 74.004 | AM185: 0.5489000082 | AN185: 0.123999998 | AO185: 0.8838000298 | AP185: 0.8368999958 | AQ185: 0.2179999948 | AR185: 0.540899992 | AS185: 0.6108999848 | AT185: 0.9721000195 | AU185: 0.112499997 | AV185: 0.2072000057 | AW185: 0.8125 | AX185: 0.01610000059 | AY185: 0.2842999995 | AZ185: 0.02999999933 | BA185: 0.5798000097 | BB185: 0.2574000061 | BC185: 0.1807000041 | BU185: 0.1454000026 | BV185: 0.3819999993 | BW185: 0.5922999978 | BX185: 0.3885999918 | BY185: 0.1556999981 | BZ185: 0.07410000265 | CA185: 0.597299993 | CB185: 0.3795999885 | CC185: 0.4142999947 | CD185: 0.8532999754 | CE185: 181 | CF185: 74.007 | CG185: 181 | CH185: 0.7164044469 | CI185: 0.2835955531 | CJ185: 0.7280003265 | CK185: -234.9980704 | CL185: 0.5877363614 | CM185: 0.8450000286 | CN185: 0.1312000006 | CO185: 0.9265999794 | CP185: 0.2657999992 | CQ185: 0.009100000374 | CR185: 0.6840000153 | CS185: 0.3826999962 | CT185: 0.804099977 | CU185: 0.9247000217 | CV185: 0.5954999924
V186: 182 | W186: 74 | X186: 0 | Y186: 0 | AI186: =IF($C$50="","",$C$50) -> 74.001 | AL186: =IF($C$41="","",$C$41) -> 74 | AM186: 0.9226999879 | AN186: 0.6100999713 | AO186: 0.4785999954 | AP186: 0.2680000067 | AQ186: 0.1526000053 | AR186: 0.4282999933 | AS186: 0.75 | AT186: 0.5263000131 | AU186: 0.4099999964 | AV186: 0.8087000251 | AW186: 0.4009999931 | AX186: 0.4465999901 | AY186: 0.279399991 | AZ186: 0.560199976 | BA186: 0.3174999952 | BB186: 0.4338000119 | BC186: 0.3578999937 | BU186: 0.7573000193 | BV186: 0.9338999987 | BW186: 0.6488000154 | BX186: 0.4571999907 | BY186: 0.1103999987 | BZ186: 0.1035000011 | CA186: 0.7039999962 | CB186: 0.8506000042 | CC186: 0.5037000179 | CD186: 0.4530000091 | CE186: 182 | CF186: 74.007 | CG186: 182 | CH186: 0.7164044469 | CI186: 0.2835955531 | CJ186: 0.7280003265 | CK186: -236.2999987 | CL186: 0.599676212 | CM186: 0.3169000149 | CN186: 0.277700007 | CO186: 0.6747000217 | CP186: 0.8327999711 | CQ186: 0.7488999963 | CR186: 0.5173000097 | CS186: 0.6000000238 | CT186: 0.3756999969 | CU186: 0.4144999981 | CV186: 0.8877999783
V187: 183 | W187: 74.007 | X187: 0 | Y187: 0 | AI187: =IF($D$50="","",$D$50) -> 74.015 | AL187: =IF($D$41="","",$D$41) -> 74.007 | AM187: 0.6359999776 | AN187: 0.07450000197 | AO187: 0.147300005 | AP187: 0.4512999952 | AQ187: 0.909799993 | AR187: 0.6108000278 | AS187: 0.7154999971 | AT187: 0.4657000005 | AU187: 0.9595000148 | AV187: 0.4325000048 | AW187: 0.5874000192 | AX187: 0.08860000223 | AY187: 0.6251000166 | AZ187: 0.08259999752 | BA187: 0.9470000267 | BB187: 0.3301999867 | BC187: 0.1888000071 | BU187: 0.08380000293 | BV187: 0.4408000112 | BW187: 0.5446000099 | BX187: 0.8957999945 | BY187: 0.2919999957 | BZ187: 0.4413999915 | CA187: 0.9172000289 | CB187: 0.905099988 | CC187: 0.1324999928 | CD187: 0.5645999908 | CE187: 183 | CF187: 74.007 | CG187: 183 | CH187: 0.7164044469 | CI187: 0.2835955531 | CJ187: 0.7280003265 | CK187: -237.6019271 | CL187: 0.6117021725 | CM187: 0.8632000089 | CN187: 0.3702000082 | CO187: 0.07850000262 | CP187: 0.9534000158 | CQ187: 0.2664000094 | CR187: 0.7017999887 | CS187: 0.7095999718 | CT187: 0.4313000143 | CU187: 0.9685999751 | CV187: 0.4370999932
V188: 184 | W188: 74 | X188: 0 | Y188: 0 | AI188: =IF($E$50="","",$E$50) -> 74.005 | AL188: =IF($E$41="","",$E$41) -> 74 | AM188: 0.2275999933 | AN188: 0.9556999803 | AO188: 0.4104000032 | AP188: 0.3170999885 | AQ188: 0.2219000012 | AR188: 0.3206999898 | AS188: 0.5214999914 | AT188: 0.6148999929 | AU188: 0.685199976 | AV188: 0.110799998 | AW188: 0.8615999818 | AX188: 0.7141000032 | AY188: 0.2791999876 | AZ188: 0.9032999873 | BA188: 0.01070000045 | BB188: 0.9369999766 | BC188: 0.8500999808 | BU188: 0.3513999879 | BV188: 0.7148000002 | BW188: 0.3664999902 | BX188: 0.8731999993 | BY188: 0.905099988 | BZ188: 0.3413000107 | CA188: 0.8751000166 | CB188: 0.4336000085 | CC188: 0.2154999971 | CD188: 0.6856999993 | CE188: 184 | CF188: 74.007 | CG188: 184 | CH188: 0.7164044469 | CI188: 0.2835955531 | CJ188: 0.7280003265 | CK188: -238.9038555 | CL188: 0.6238172589 | CM188: 0.2648999989 | CN188: 0.2449000031 | CO188: 0.08929999918 | CP188: 0.3905000091 | CQ188: 0.4212000072 | CR188: 0.2137999982 | CS188: 0.1194999963 | CT188: 0.7397000194 | CU188: 0.3045000136 | CV188: 0.02119999938
V189: 185 | W189: 73.996 | X189: 0 | Y189: 0 | AH189: E51 | AI189: =IF($B$51="","",$B$51) -> 74.004 | AL189: =IF($F$41="","",$F$41) -> 73.996 | AM189: 0.575600028 | AN189: 0.9869999886 | AO189: 0.9661999941 | AP189: 0.07549999654 | AQ189: 0.5444999933 | AR189: 0.9340000153 | AS189: 0.8138999939 | AT189: 0.7160999775 | AU189: 0.3213 | AV189: 0.7581999898 | AW189: 0.1275999993 | AX189: 0.6657999754 | AY189: 0.04949999973 | AZ189: 0.09130000323 | BA189: 0.8248999715 | BB189: 0.7346000075 | BC189: 0.6121000051 | BU189: 0.7849000096 | BV189: 0.3869999945 | BW189: 0.3073999882 | BX189: 0.5533999801 | BY189: 0.2311999947 | BZ189: 0.638199985 | CA189: 0.0335999988 | CB189: 0.1856999993 | CC189: 0.1517000049 | CD189: 0.673600018 | CE189: 185 | CF189: 74.008 | CG189: 185 | CH189: 0.7487115327 | CI189: 0.2512884673 | CJ189: 0.7280003265 | CK189: -223.9296015 | CL189: 0.6360246074 | CM189: 0.7858999968 | CN189: 0.6029000282 | CO189: 0.1281999946 | CP189: 0.3109999895 | CQ189: 0.4237999916 | CR189: 0.2888999879 | CS189: 0.5203999877 | CT189: 0.03299999982 | CU189: 0.8116999865 | CV189: 0.7135000229
V190: 186 | W190: 73.983 | X190: 0 | Y190: 0 | AI190: =IF($C$51="","",$C$51) -> 73.999 | AK190: E42 | AL190: =IF($B$42="","",$B$42) -> 73.983 | AM190: 0.7322999835 | AN190: 0.1905999929 | AO190: 0.2092999965 | AP190: 0.1596000046 | AQ190: 0.7271999717 | AR190: 0.4559000134 | AS190: 0.9125999808 | AT190: 0.8018000126 | AU190: 0.793900013 | AV190: 0.5256000161 | AW190: 0.1442999989 | AX190: 0.03460000083 | AY190: 0.5618000031 | AZ190: 0.07370000333 | BA190: 0.194600001 | BB190: 0.05000000075 | BC190: 0.2667999864 | BU190: 0.8130999804 | BV190: 0.7876999974 | BW190: 0.524600029 | BX190: 0.01879999973 | BY190: 0.358799994 | BZ190: 0.05889999866 | CA190: 0.235799998 | CB190: 0.5613999963 | CC190: 0.9530000091 | CD190: 0.8604999781 | CE190: 186 | CF190: 74.008 | CG190: 186 | CH190: 0.7487115327 | CI190: 0.2512884673 | CJ190: 0.7280003265 | CK190: -225.1433121 | CL190: 0.6483274817 | CM190: 0.3282999992 | CN190: 0.04190000147 | CO190: 0.4873999953 | CP190: 0.5799999833 | CQ190: 0.4521999955 | CR190: 0.07289999723 | CS190: 0.4365000129 | CT190: 0.8560000062 | CU190: 0.5044000149 | CV190: 0.5259000063
V191: 187 | W191: 74.002 | X191: 0 | Y191: 0 | AI191: =IF($D$51="","",$D$51) -> 73.99 | AL191: =IF($C$42="","",$C$42) -> 74.002 | AM191: 0.4986999929 | AN191: 0.6560000181 | AO191: 0.3946999907 | AP191: 0.2340999991 | AQ191: 0.486499995 | AR191: 0.6047999859 | AS191: 0.06109999865 | AT191: 0.94599998 | AU191: 0.4674000144 | AV191: 0.5626000166 | AW191: 0.7357000113 | AX191: 0.5278999805 | AY191: 0.1544000059 | AZ191: 0.4530999959 | BA191: 0.4600000083 | BB191: 0.4178000093 | BC191: 0.5465000272 | BU191: 0.4203999937 | BV191: 0.3932999969 | BW191: 0.2998999953 | BX191: 0.2913999856 | BY191: 0.6204000115 | BZ191: 0.4106000066 | CA191: 0.6457999945 | CB191: 0.3107999861 | CC191: 0.6416000128 | CD191: 0.3589999974 | CE191: 187 | CF191: 74.008 | CG191: 187 | CH191: 0.7487115327 | CI191: 0.2512884673 | CJ191: 0.7596022906 | CK191: -210.506948 | CL191: 0.6607292806 | CM191: 0.01449999958 | CN191: 0.8120999932 | CO191: 0.5644999743 | CP191: 0.5593000054 | CQ191: 0.7569000125 | CR191: 0.8059999943 | CS191: 0.1700000018 | CT191: 0.2312999964 | CU191: 0.5252000093 | CV191: 0.3977000117
V192: 188 | W192: 73.998 | X192: 0 | Y192: 0 | AI192: =IF($E$51="","",$E$51) -> 74.006 | AL192: =IF($D$42="","",$D$42) -> 73.998 | AM192: 0.9548000097 | AN192: 0.4476999938 | AO192: 0.4144000113 | AP192: 0.3653999865 | AQ192: 0.3968000114 | AR192: 0.3366999924 | AS192: 0.3521000147 | AT192: 0.9880999923 | AU192: 0.4713000059 | AV192: 0.5353999734 | AW192: 0.7397000194 | AX192: 0.1240999997 | AY192: 0.4160999954 | AZ192: 0.8925999999 | BA192: 0.3431000113 | BB192: 0.5388000011 | BC192: 0.7473999858 | BU192: 0.611100018 | BV192: 0.9332000017 | BW192: 0.2186000049 | BX192: 0.2951999903 | BY192: 0.2052000016 | BZ192: 0.2430000007 | CA192: 0.2632000148 | CB192: 0.4896999896 | CC192: 0.886500001 | CD192: 0.654399991 | CE192: 188 | CF192: 74.008 | CG192: 188 | CH192: 0.7487115327 | CI192: 0.2512884673 | CJ192: 0.7596022906 | CK192: -211.6356716 | CL192: 0.6732335469 | CM192: 0.9129999876 | CN192: 0.1381999999 | CO192: 0.397300005 | CP192: 0.003199999919 | CQ192: 0.4731999934 | CR192: 0.8874999881 | CS192: 0.1096000001 | CT192: 0.2355999947 | CU192: 0.9179999828 | CV192: 0.3774999976
V193: 189 | W193: 73.997 | X193: 0 | Y193: 0 | AH193: E52 | AI193: =IF($B$52="","",$B$52) -> 74.01 | AL193: =IF($E$42="","",$E$42) -> 73.997 | AM193: 0.416200012 | AN193: 0.2360000014 | AO193: 0.4061999917 | AP193: 0.6945000291 | AQ193: 0.3707999885 | AR193: 0.9057999849 | AS193: 0.04670000076 | AT193: 0.07410000265 | AU193: 0.5788999796 | AV193: 0.4907000065 | AW193: 0.9142000079 | AX193: 0.8544999957 | AY193: 0.3384000063 | AZ193: 0.1596000046 | BA193: 0.3149999976 | BB193: 0.6796000004 | BC193: 0.03030000068 | BU193: 0.2057999969 | BV193: 0.5006999969 | BW193: 0.336800009 | BX193: 0.853399992 | BY193: 0.6664999723 | BZ193: 0.8259000182 | CA193: 0.4893999994 | CB193: 0.2610999942 | CC193: 0.09690000117 | CD193: 0.8238999844 | CE193: 189 | CF193: 74.008 | CG193: 189 | CH193: 0.7487115327 | CI193: 0.2512884673 | CJ193: 0.7596022906 | CK193: -212.7643951 | CL193: 0.6858439764 | CM193: 0.8774999976 | CN193: 0.2005999982 | CO193: 0.2173999995 | CP193: 0.8963999748 | CQ193: 0.6086000204 | CR193: 0.4117999971 | CS193: 0.6201999784 | CT193: 0.8288000226 | CU193: 0.638899982 | CV193: 0.08889999986
V194: 190 | W194: 74.012 | X194: 0 | Y194: 0 | AI194: =IF($C$52="","",$C$52) -> 73.989 | AL194: =IF($F$42="","",$F$42) -> 74.012 | AM194: 0.5353999734 | AN194: 0.4934000075 | AO194: 0.6636000276 | AP194: 0.2081999928 | AQ194: 0.8464999795 | AR194: 0.8027999997 | AS194: 0.258100003 | AT194: 0.1067000031 | AU194: 0.3555000126 | AV194: 0.9125000238 | AW194: 0.2680999935 | AX194: 0.3093000054 | AY194: 0.2996000051 | AZ194: 0.674399972 | BA194: 0.4505000114 | BB194: 0.6079999804 | BC194: 0.115699999 | BU194: 0.4381999969 | BV194: 0.2612999976 | BW194: 0.556400001 | BX194: 0.06560000032 | BY194: 0.2921000123 | BZ194: 0.5376999974 | CA194: 0.4629000127 | CB194: 0.3894000053 | CC194: 0.4410000145 | CD194: 0.9800999761 | CE194: 190 | CF194: 74.008 | CG194: 190 | CH194: 0.7487115327 | CI194: 0.2512884673 | CJ194: 0.7596022906 | CK194: -213.8931187 | CL194: 0.6985644274 | CM194: 0.7188000083 | CN194: 0.121799998 | CO194: 0.9932000041 | CP194: 0.3257000148 | CQ194: 0.9254000187 | CR194: 0.02170000039 | CS194: 0.9840000272 | CT194: 0.5313000083 | CU194: 0.02459999919 | CV194: 0.8259000182
V195: 191 | W195: 74.006 | X195: 0 | Y195: 0 | AI195: =IF($D$52="","",$D$52) -> 73.99 | AK195: E43 | AL195: =IF($B$43="","",$B$43) -> 74.006 | AM195: 0.5159000158 | AN195: 0.3517000079 | AO195: 0.564800024 | AP195: 0.451700002 | AQ195: 0.1497000009 | AR195: 0.1674000025 | AS195: 0.2164999992 | AT195: 0.4499999881 | AU195: 0.5444999933 | AV195: 0.06329999864 | AW195: 0.537800014 | AX195: 0.7089999914 | AY195: 0.3488000035 | AZ195: 0.1563999951 | BA195: 0.9901999831 | BB195: 0.4066999853 | BC195: 0.3411000073 | BU195: 0.07240000367 | BV195: 0.6028000116 | BW195: 0.6750000119 | BX195: 0.6560000181 | BY195: 0.5575000048 | BZ195: 0.007199999876 | CA195: 0.1328999996 | CB195: 0.5187000036 | CC195: 0.5095999837 | CD195: 0.780099988 | CE195: 191 | CF195: 74.009 | CG195: 191 | CH195: 0.7789607542 | CI195: 0.2210392458 | CJ195: 0.7596022906 | CK195: -199.9316164 | CL195: 0.7113989319 | CM195: 0.176699996 | CN195: 0.5497999787 | CO195: 0.1791999936 | CP195: 0.7324000001 | CQ195: 0.6862000227 | CR195: 0.1720000058 | CS195: 0.110799998 | CT195: 0.7930999994 | CU195: 0.1869000047 | CV195: 0.8712999821
V196: 192 | W196: 73.967 | X196: 0 | Y196: 0 | AI196: =IF($E$52="","",$E$52) -> 74.009 | AL196: =IF($C$43="","",$C$43) -> 73.967 | AM196: 0.6585999727 | AN196: 0.4625999928 | AO196: 0.4903999865 | AP196: 0.2754999995 | AQ196: 0.7518000007 | AR196: 0.5153999925 | AS196: 0.5849999785 | AT196: 0.4821999967 | AU196: 0.9103000164 | AV196: 0.9539999962 | AW196: 0.7764000297 | AX196: 0.6366000175 | AY196: 0.5109000206 | AZ196: 0.2110999972 | BA196: 0.07850000262 | BB196: 0.7599999905 | BC196: 0.3019999862 | BU196: 0.007400000002 | BV196: 0.8201000094 | BW196: 0.8307999969 | BX196: 0.1395999938 | BY196: 0.1284999996 | BZ196: 0.6035000086 | CA196: 0.2906000018 | CB196: 0.5807999969 | CC196: 0.5931000113 | CD196: 0.09480000287 | CE196: 192 | CF196: 74.009 | CG196: 192 | CH196: 0.7789607542 | CI196: 0.2210392458 | CJ196: 0.7596022906 | CK196: -200.9811262 | CL196: 0.7243517069 | CM196: 0.4115999937 | CN196: 0.6830000281 | CO196: 0.1413999945 | CP196: 0.135800004 | CQ196: 0.481400013 | CR196: 0.1455000043 | CS196: 0.9872999787 | CT196: 0.1469999999 | CU196: 0.05050000176 | CV196: 0.8799999952
V197: 193 | W197: 73.994 | X197: =IF(W197<>"",IF(W197<UGW,1,0),"") -> 0 | Y197: =IF(W197<>"",IF(W197>OGW,1,0),"") -> 0 | AH197: E53 | AI197: =IF($B$53="","",$B$53) -> 74.015 | AL197: =IF($D$43="","",$D$43) -> 73.994 | AM197: 0.709100008 | AN197: 0.4564999938 | AO197: 0.9474999905 | AP197: 0.9627000093 | AQ197: 0.3898000121 | AR197: 0.8774999976 | AS197: 0.5450000167 | AT197: 0.8384000063 | AU197: 0.00800000038 | AV197: 0.5368999839 | AW197: 0.2752000093 | AX197: 0.7731000185 | AY197: 0.07840000093 | AZ197: 0.9528999925 | BA197: 0.3955000043 | BB197: 0.5569000244 | BC197: 0.5424000025 | BU197: 0.5892999768 | BV197: 0.679799974 | BW197: 0.3107999861 | BX197: 0.8975999951 | BY197: 0.1349000037 | BZ197: 0.1172999963 | CA197: 0.02490000054 | CB197: 0.9257000089 | CC197: 0.7904000282 | CD197: 0.1826000065 | CE197: 193 | CF197: =IF(W197="",NA(),SMALL(xi,CG197)) -> 74.009 | CG197: 193 | CH197: =IF(W197="","",NORMSDIST((CF197-Mittelwert)/Standardabweichung)-0.00000001) -> 0.7789607542 | CI197: =IF(W197="","",1-CH197) -> 0.2210392458 | CJ197: =IF(W197="","",SMALL(BG,CG197)) -> 0.7596022906 | CK197: =IF(W197="","",(2*CG197-1)*(LN(CJ197)+LN(CH197))) -> -202.030636 | CL197: =IF(W197="",NA(),NORMSINV((CG197-0.3)/(Anzahl+0.4))) -> 0.7374271666 | CM197: 0.9846000075 | CN197: 0.8299999833 | CO197: 0.9769999981 | CP197: 0.1738000065 | CQ197: 0.6079999804 | CR197: 0.4190999866 | CS197: 0.08209999651 | CT197: 0.4916000068 | CU197: 0.00540000014 | CV197: 0.4241999984
V198: 194 | W198: =IF($AP$39=2,IF(AC198<>"",AC198,""),(IF($AP$39=3,IF(AF198<>"",AF198,""),(IF($AP$39=4,IF(AI198<>"",AI198,""),IF(AL198<>"",AL198,"")))))) -> 74 | X198: 0 | Y198: 0 | AI198: =IF($C$53="","",$C$53) -> 74.008 | AL198: =IF($E$43="","",$E$43) -> 74 | AM198: 0.7243000269 | AN198: 0.8422999978 | AO198: 0.3704000115 | AP198: 0.3274999857 | AQ198: 0.269600004 | AR198: 0.6912000179 | AS198: 0.6200000048 | AT198: 0.4402999878 | AU198: 0.5963000059 | AV198: 0.965200007 | AW198: 0.28549999 | AX198: 0.2312999964 | AY198: 0.1112999991 | AZ198: 0.006500000134 | BA198: 0.6529999971 | BB198: 0.904399991 | BC198: 0.01520000026 | BU198: 0.09910000116 | BV198: 0.4559000134 | BW198: 0.9409000278 | BX198: 0.5073000193 | BY198: 0.681400001 | BZ198: 0.7269999981 | CA198: 0.3242000043 | CB198: 0.0178999994 | CC198: 0.4183000028 | CD198: 0.9599000216 | CE198: 194 | CF198: 74.009 | CG198: =IF(W198="","",1+CG197) -> 194 | CH198: 0.7789607542 | CI198: 0.2210392458 | CJ198: 0.7596022906 | CK198: -203.0801458 | CL198: 0.7506299367 | CM198: 0.5446000099 | CN198: 0.8490999937 | CO198: 0.6976000071 | CP198: 0.05389999971 | CQ198: 0.7170000076 | CR198: 0.2187999934 | CS198: 0.1774999946 | CT198: 0.09660000354 | CU198: 0.3907999992 | CV198: 0.04140000045
V199: 195 | W199: 73.984 | X199: 0 | Y199: 0 | AI199: =IF($D$53="","",$D$53) -> 73.993 | AL199: =IF($F$43="","",$F$43) -> 73.984 | AM199: 0.4275999963 | AN199: 0.4424000084 | AO199: 0.3154999912 | AP199: 0.6308000088 | AQ199: 0.8187999725 | AR199: 0.04039999843 | AS199: 0.4564999938 | AT199: 0.6532999873 | AU199: 0.6649000049 | AV199: 0.01229999959 | AW199: 0.260800004 | AX199: 0.3307000101 | AY199: 0.6122000217 | AZ199: 0.481099993 | BA199: 0.1720000058 | BB199: 0.8939999938 | BC199: 0.2809999883 | BU199: 0.1350000054 | BV199: 0.2834999859 | BW199: 0.5267000198 | BX199: 0.9186999798 | BY199: 0.815500021 | BZ199: 0.5938000083 | CA199: 0.7904000282 | CB199: 0.7940000296 | CC199: 0.4408999979 | CD199: 0.2140000015 | CE199: 195 | CF199: 74.009 | CG199: 195 | CH199: 0.7789607542 | CI199: 0.2210392458 | CJ199: 0.7596022906 | CK199: -204.1296556 | CL199: 0.763964868 | CM199: 0.6909999847 | CN199: 0.05920000002 | CO199: 0.9941999912 | CP199: 0.7574999928 | CQ199: 0.7002999783 | CR199: 0.3616000116 | CS199: 0.3459999859 | CT199: 0.1748999953 | CU199: 0.2793000042 | CV199: 0.3806999922
V200: 196 | W200: 74.012 | X200: 0 | Y200: 0 | AI200: =IF($E$53="","",$E$53) -> 74 | AK200: E44 | AL200: =IF($B$44="","",$B$44) -> 74.012 | AM200: 0.2703999877 | AN200: 0.706799984 | AO200: 0.01879999973 | AP200: 0.4063999951 | AQ200: 0.7102000117 | AR200: 0.08680000156 | AS200: 0.03040000051 | AT200: 0.1669999957 | AU200: 0.2930000126 | AV200: 0.9950000048 | AW200: 0.5863999724 | AX200: 0.907400012 | AY200: 0.09640000015 | AZ200: 0.7606999874 | BA200: 0.0111999996 | BB200: 0.7172999978 | BC200: 0.6639999747 | BU200: 0.858099997 | BV200: 0.9218999743 | BW200: 0.06409999728 | BX200: 0.324000001 | BY200: 0.4225000143 | BZ200: 0.6801000237 | CA200: 0.6854000092 | CB200: 0.02290000021 | CC200: 0.8873999715 | CD200: 0.8501999974 | CE200: 196 | CF200: 74.009 | CG200: 196 | CH200: 0.7789607542 | CI200: 0.2210392458 | CJ200: 0.7596022906 | CK200: -205.1791654 | CL200: 0.7774370536 | CM200: 0.7308999896 | CN200: 0.4686000049 | CO200: 0.05350000039 | CP200: 0.09229999781 | CQ200: 0.03330000117 | CR200: 0.7257999778 | CS200: 0.03909999877 | CT200: 0.1141000018 | CU200: 0.2815999985 | CV200: 0.2897999883
... 55 more rows

Sheet Beispieldaten
B2: 74.03 | C2: 74.002 | D2: 74.019 | E2: 73.992 | F2: 74.008
B3: 73.995 | C3: 73.992 | D3: 74.001 | E3: 74.011 | F3: 74.004
B4: 73.988 | C4: 74.024 | D4: 74.021 | E4: 74.005 | F4: 74.002
B5: 74.002 | C5: 73.996 | D5: 73.993 | E5: 74.015 | F5: 74.009
B6: 73.992 | C6: 74.007 | D6: 74.015 | E6: 73.989 | F6: 74.014
B7: 74.009 | C7: 73.994 | D7: 73.997 | E7: 73.985 | F7: 73.993
B8: 73.995 | C8: 74.006 | D8: 73.994 | E8: 74 | F8: 74.005
B9: 73.985 | C9: 74.003 | D9: 73.993 | E9: 74.015 | F9: 73.988
B10: 74.008 | C10: 73.995 | D10: 74.009 | E10: 74.005 | F10: 74.004
B11: 73.998 | C11: 74 | D11: 73.99 | E11: 74.007 | F11: 73.995
B12: 73.994 | C12: 73.998 | D12: 73.994 | E12: 73.995 | F12: 73.99
B13: 74.004 | C13: 74 | D13: 74.007 | E13: 74 | F13: 73.996
B14: 73.983 | C14: 74.002 | D14: 73.998 | E14: 73.997 | F14: 74.012
B15: 74.006 | C15: 73.967 | D15: 73.994 | E15: 74 | F15: 73.984
B16: 74.012 | C16: 74.014 | D16: 73.998 | E16: 73.999 | F16: 74.007
B17: 74 | C17: 73.984 | D17: 74.005 | E17: 73.998 | F17: 73.996
B18: 73.994 | C18: 74.012 | D18: 73.986 | E18: 74.005 | F18: 74.007
B19: 74.006 | C19: 74.01 | D19: 74.018 | E19: 74.003 | F19: 74
B20: 73.984 | C20: 74.002 | D20: 74.003 | E20: 74.005 | F20: 73.997
B21: 74 | C21: 74.01 | D21: 74.013 | E21: 74.02 | F21: 74.003
B22: 73.982 | C22: 74.001 | D22: 74.015 | E22: 74.005 | F22: 73.996
B23: 74.004 | C23: 73.999 | D23: 73.99 | E23: 74.006 | F23: 74.009
B24: 74.01 | C24: 73.989 | D24: 73.99 | E24: 74.009 | F24: 74.014
B25: 74.015 | C25: 74.008 | D25: 73.993 | E25: 74 | F25: 74.01
B26: 73.982 | C26: 73.984 | D26: 73.995 | E26: 74.017 | F26: 74.013
B27: 74.03 | C27: 74.002 | D27: 74.019 | E27: 73.992 | F27: 74.008
B28: 73.995 | C28: 73.992 | D28: 74.001 | E28: 74.011 | F28: 74.004
B29: 73.988 | C29: 74.024 | D29: 74.021 | E29: 74.005 | F29: 74.002
B30: 74.002 | C30: 73.996 | D30: 73.993 | E30: 74.015 | F30: 74.009
B31: 73.992 | C31: 74.007 | D31: 74.015 | E31: 73.989 | F31: 74.014
B32: 74.009 | C32: 73.994 | D32: 73.997 | E32: 73.985 | F32: 73.993
B33: 73.995 | C33: 74.006 | D33: 73.994 | E33: 74 | F33: 74.005
B34: 73.985 | C34: 74.003 | D34: 73.993 | E34: 74.015 | F34: 73.988
B35: 74.008 | C35: 73.995 | D35: 74.009 | E35: 74.005 | F35: 74.004
B36: 73.998 | C36: 74 | D36: 73.99 | E36: 74.007 | F36: 73.995
B37: 73.994 | C37: 73.998 | D37: 73.994 | E37: 73.995 | F37: 73.99
B38: 74.004 | C38: 74 | D38: 74.007 | E38: 74 | F38: 73.996
B39: 73.983 | C39: 74.002 | D39: 73.998 | E39: 73.997 | F39: 74.012
B40: 74.006 | C40: 73.967 | D40: 73.994 | E40: 74 | F40: 73.984
B41: 74.012 | C41: 74.014 | D41: 73.998 | E41: 73.999 | F41: 74.007
B42: 74 | C42: 73.984 | D42: 74.005 | E42: 73.998 | F42: 73.996
B43: 73.994 | C43: 74.012 | D43: 73.986 | E43: 74.005 | F43: 74.007
B44: 74.006 | C44: 74.01 | D44: 74.018 | E44: 74.003 | F44: 74
B45: 73.984 | C45: 74.002 | D45: 74.003 | E45: 74.005 | F45: 73.997
B46: 74 | C46: 74.01 | D46: 74.013 | E46: 74.02 | F46: 74.003
B47: 73.982 | C47: 74.001 | D47: 74.015 | E47: 74.005 | F47: 73.996
B48: 74.004 | C48: 73.999 | D48: 73.99 | E48: 74.006 | F48: 74.009
B49: 74.01 | C49: 73.989 | D49: 73.99 | E49: 74.009 | F49: 74.014
B50: 74.015 | C50: 74.008 | D50: 73.993 | E50: 74 | F50: 74.01
B51: 73.982 | C51: 73.984 | D51: 73.995 | E51: 74.017 | F51: 74.013

Sheet Info
B2: Bei Fragen wenden Sie sich bitte an | G2: roland.schnurr@sixsigmablackbelt.de
